Workbook

Sheet Calculations (hidden)
F1: Offset | H1: Current UTC Time | I1: Current awarness start | J1: Next Awareness Start | K1: Row of Current Awareness | M1: Proper year | N1: Mind Awareness | BL1: Emotional Awarenss | DF1: Physical Awareness | FB1: Journal Entry
AJ2: MACRO | AT2: Micro | CH2: MACRO | CR2: Micro | ED2: MACRO | EN2: Micro
A3: Full Name | B3: First Name | C3: Last Name | D3: DOB | E3: Time of Birth | H3: UTC Time | I3: UTC Time | N3: Current Mind Awareness | P3: Current Shap | S3: Wave (M) | T3: Wave (m) | U3: Awarness Phase (M) | V3: Start Phase | W3: end Phase | X3: % thru phase | Y3: Phase (m) | Z3: Start Of Previous Mind Awareness | AA3: Start of current Mind Awareness | AB3: Start of Next Mind Awareness | AC3: Length of Current Mind Awareness | AD3: Time Into Current Mind Awareness | AE3: Percent thru Mind Awareness | AF3: LR | AG3: RL | AH3: Next Mind Awarenss | AJ3: Direction of Wave | AL3: Direction | AM3: Rotation | AN3: Orbit | AO3: Polarity | AP3: Zone | AQ3: Time | AT3: Direction of micro Wave | AV3: Direction | AW3: Rotation | AX3: Orbit | AY3: Polarity | AZ3: Zone | BA3: Time | BD3: Micro Awarness | BG3: Start of Previous Micro | BH3: Start of Current micro | BI3: Start of Next Micro | BJ3: Lenght of current Micro | BK3: % thru | BL3: Current Emotional Awarness | BN3: Start/Mid/End Shapes | BQ3: Next Emo Awarenss | BS3: Wave (M) | BT3: Wave (m) | BU3: Awarness Phase (M) | BV3: Start Phase | BW3: end Phase | BX3: % thru phase | BY3: Phase (m) | BZ3: Start of Previous Emo Awareness | CA3: Start of current Emo Awareness | CB3: Start of Next Emo Awareness | CC3: Length of Current Emo Awareness | CD3: Time Into Current Emo Awareness | CE3: Percent thru Emo Awareness | CF3: LR | CG3: RL | CH3: Direction of Wave | CJ3: Direction | CK3: Rotation | CL3: Orbit | CM3: Polarity | CN3: Zone | CO3: Time | CR3: Direction of micro wave | CT3: Direction | CU3: Rotation | CV3: Orbit | CW3: Polarity | CX3: Zone | CY3: Time | DB3: Micro Awarness | DF3: Current Physical Awareness | DH3: Start/Mid/End Shapes | DK3: Next Physical Awareness | DM3: Wave (M) | DN3: Wave (m) | DO3: Awarness Phase (M) | DP3: Start Phase | DQ3: end Phase | DR3: % thru awarness | DS3: Phase (m) | DT3: Start of Previous Physical Awareness | DU3: Start of Current Physical Awareness | DV3: Start of Next Physical Awareness | DW3: Lenth of Current Physical Awareness | DX3: Time Into Current Physical Awareness | DY3: Percent Thru Physical Awareness | DZ3: LR | EA3: RL | EB3: Phase | EC3: Pos/Neg | ED3: Direction Of Wave | EF3: Direction | EG3: Rotation | EH3: Orbit | EI3: Polarity | EJ3: Zone | EK3: Time | EN3: Direction of Micro Wave | EP3: Direction | EQ3: Rotation | ER3: Orbit | ES3: Polarity | ET3: Zone | EU3: Time | EX3: Micro Awarness | FB3: Journal Entry
A4: =IF(C11=1,Home!AB3,#REF!) -> Selig, Jeremy | B4: =#REF! ->  | C4: =#REF! ->  | D4: =IF(C11=1,VLOOKUP(Home!AB3,Family!$B$14:$H$67,4,FALSE),IF(C11=2,VLOOKUP(#REF!,Family!$B$14:$H$67,4,FALSE),IF(C11=3,D7,"error"))) -> 1974-12-24 | E4: =IF(C11=1,VLOOKUP(Home!AB3,Family!$B$14:$H$72,5,FALSE),IF(C11=2,VLOOKUP(#REF!,Family!$B$14:$H$72,5,FALSE),IF(C11=3,E7,"ERROR"))) -> 19:15:00 | F4: =IF(C11=1,VLOOKUP(Home!AB3,Family!$B$14:$H$72,7,FALSE),IF(C11=2,VLOOKUP(#REF!,Family!$B$14:$H$72,7,FALSE),IF(C11=3,F7,"ERROR"))) -> (GMT-06:00) Central Time (US and Canada) | G4: =VLOOKUP(F4,'Time Zones'!$C1:$D82,2,0) -> -6 | H4: =D4+E4-VLOOKUP(F4,'Time Zones'!$C1:$D82,2,0)/24 -> 1974-12-25T01:15:00 | I4: =MAX(IF('AW1899-2149'!A2:IQ730<H4,'AW1899-2149'!A2:IQ730)) -> 1974-12-24T16:35:54.396 | J4: =MIN(IF('AW1899-2149'!A2:IQ729>H4,'AW1899-2149'!A2:IQ729)) -> 1974-12-25T04:20:05.275 | K4: =ADDRESS(MIN(IF(NOT(ISERROR(FIND(I4,'AW1899-2149'!$A$1:$IQ$729,1))),ROW('AW1899-2149'!$A$1:$IQ$729)," ")),1) -> $A$7 | L4: =MIN(IF(NOT(ISERROR(FIND(I4,'AW1899-2149'!$A$1:$IQ$729,1))),ROW('AW1899-2149'!$A$1:$IQ$729)," "))-1 -> 6 | M4: =IF(AND(L4<25,MONTH(H4)=12),YEAR(H4)+1,YEAR(H4)) -> 1975 | N4: =VLOOKUP(M4,Years.Mind!A1:B250,2,0) -> 8-3 | O4: =VLOOKUP(N4,'EMO and PHY YR'!D1:E730,2,0) -> SSE | Q4: =IF(AE4<0.25,VLOOKUP(O4,$A$38:$D$54,2,0),IF(AE4>=0.75,VLOOKUP(O4,$A$38:$D$54,4,0),VLOOKUP(O4,$A$38:$D$54,3,0))) -> DC | S4: =VLOOKUP(N4,'EMO and PHY YR'!D2:L57,9,FALSE) -> 8 | T4: =IF(AE4<12.5%,8,IF(AND(AE4>=12.5%,AE4<25%),1,IF(AND(AE4>=25%,AE4<37.5%),2,IF(AND(AE4>=37.5%,AE4<50%),3,IF(AND(AE4>=50%,AE4<62.5%),4,IF(AND(AE4>=62.5%,AE4<75%),5,IF(AND(AE4>=75%,AE4<87.5%),6,IF(AE4>=87.5%,7,"oops")))))))) -> 8 | U4: =IF(AE4>X4,W4,V4) -> 5 | V4: =VLOOKUP(N4,'Macro Phase'!B3:L65,10,FALSE) -> 5 | W4: =VLOOKUP(N4,'Macro Phase'!B3:L65,11,FALSE) -> 5 | X4: =VLOOKUP(N4,'Macro Phase'!B3:L65,8,FALSE) -> 1 | Y4: =VLOOKUP(AE4,A66:C105,3,TRUE) -> 1 | Z4: =HLOOKUP(M4-1,'AW1899-2149'!A1:IQ731,2,FALSE)+VLOOKUP(F4,'Time Zones'!$C1:$D81,2,0)/24 -> 1973-12-21T18:07:00 | AA4: =HLOOKUP(M4,'AW1899-2149'!A:IQ,2,FALSE)+VLOOKUP(F4,'Time Zones'!$C:$D,2,0)/24 -> 1974-12-21T23:55:00 | AB4: =HLOOKUP(M4+1,'AW1899-2149'!A:IQ,2,FALSE)+VLOOKUP(F4,'Time Zones'!$C:$D,2,0)/24 -> 1975-12-22T05:45:00 | AC4: =AB4-AA4 -> 365.2430556 | AD4: =H4-AA4+VLOOKUP(F4,'Time Zones'!$C:$D,2,0)/24 -> 2.805555556 | AE4: =O38 -> 0.00788 | AF4: =IF(AJ4="LR",AE4,"") -> 0.00788 | AG4: =IF(AJ4="RL",AE4,"") ->  | AH4: =VLOOKUP(M4+1,Years.Mind!A:B,2,0) -> 2-4 | AI4: =VLOOKUP(AH4,'EMO and PHY YR'!D:E,2,0) -> W | AJ4: =VLOOKUP(N4,'EMO and PHY YR'!D2:K57,8,FALSE) -> LR | AK4: =IF(AJ4="LR","♂","♀") -> ♂ | AL4: =VLOOKUP(N4,'EMO and PHY YR'!D2:Q57,10,FALSE) -> ↘ | AM4: =VLOOKUP(N4,'EMO and PHY YR'!D2:Q57,13,FALSE) -> ↷ | AN4: =VLOOKUP(N4,'EMO and PHY YR'!D2:Q57,14,FALSE) -> ⇉ | AO4: =VLOOKUP(N4,'EMO and PHY YR'!D2:K57,7,FALSE) -> -+ | AP4: =VLOOKUP(N4,'EMO and PHY YR'!D2:Q57,11,FALSE) -> 1 | AQ4: =VLOOKUP(AS4*360,$M$108:$N$171,2,TRUE) -> O | AR4: =IF(AND(AS4>0.125,AS4<0.375),2,IF(AND(AS4>0.375,AS4<0.625),3,IF(AND(AS4>0.625,AS4<0.875),4,1))) -> 2 | AS4: =IF(AJ4="LR",VLOOKUP(N4,'Macro Phase'!B3:N58,12,FALSE)+((30*AE4)/24/60),IF(VLOOKUP(N4,'Macro Phase'!B3:N58,13,FALSE)-((30*AE4)/24/60)<0,VLOOKUP(N4,'Macro Phase'!B3:N58,13,FALSE)-((30*AE4)/24/60)+1,VLOOKUP(N4,'Macro Phase'!B3:N58,13,FALSE)-((30*AE4)/24/60))) -> 08:30:14.184 | AT4: =VLOOKUP(BE4,'EMO and PHY YR'!D2:K57,8,FALSE) -> LR | AU4: =IF(AT4="LR","♂","♀") -> ♂ | AV4: =VLOOKUP(BE4,'EMO and PHY YR'!D2:Q57,10,FALSE) -> ↘ | AW4: =VLOOKUP(BE4,'EMO and PHY YR'!D2:Q57,13,FALSE) -> ↶ | AX4: =VLOOKUP(BE4,'EMO and PHY YR'!D2:Q57,14,FALSE) -> ⇉ | AY4: =VLOOKUP(BE4,'EMO and PHY YR'!D2:Q57,7,FALSE) -> -+ | AZ4: =VLOOKUP(BE4,'EMO and PHY YR'!D2:Q57,11,FALSE) -> 1 | BA4: =VLOOKUP(BC4*360,$M$108:$N$171,2,TRUE) -> ID | BB4: =IF(AND(BC4>0.125,BC4<0.375),2,IF(AND(BC4>0.375,BC4<0.625),3,IF(AND(BC4>0.625,BC4<0.875),4,1))) -> 2 | BC4: =IF(AT4="LR",VLOOKUP(AE4,'Macro Phase'!C3:M58,11,TRUE)+(30*(((AE4-VLOOKUP(AE4,'Macro Phase'!C3:M58,1,TRUE))/(100/48))*100)/1440),IF(VLOOKUP(AE4,'Macro Phase'!C3:N58,12,TRUE)-(30*(((AE4-VLOOKUP(AE4,'Macro Phase'!C3:N58,1,TRUE))/(100/48))*100)/1440)<0,VLOOKUP(AE4,'Macro Phase'!C3:N58,12,TRUE)-(30*(((AE4-VLOOKUP(AE4,'Macro Phase'!C3:N58,1,TRUE))/(100/48))*100)/1440)+1,VLOOKUP(AE4,'Macro Phase'!C3:N58,12,TRUE)-(30*(((AE4-VLOOKUP(AE4,'Macro Phase'!C3:N58,1,TRUE))/(100/48))*100)/1440))) -> 06:11:20.832 | BD4: =IF(BE8<0,VLOOKUP((360+BE8),$M$108:$N$171,2,TRUE),VLOOKUP(BE8,$M$108:$N$171,2,TRUE)) -> D | BE4: =IF(AJ4="LR",(VLOOKUP(AE4,N51:P98,3,TRUE)),(VLOOKUP(AE4,N51:S98,6,TRUE))) -> 7-7 | BF4: =VLOOKUP(BE4,'EMO and PHY YR'!D2:E57,2,FALSE) -> W | BG4: =VLOOKUP(BF4,A38:D54,2,0) -> ID | BH4: =VLOOKUP(BF4,A38:D54,3,0) -> D | BI4: =VLOOKUP(BF4,A38:D54,4,0) -> DC | BJ4: =L105 -> 7.416736111 | BK4: =((D4+E4)-J105)/L105 -> 0.3782736117 | BL4: =VLOOKUP(L4,'EMO and PHY YR'!A2:E729,2) -> 7-1 | BM4: =VLOOKUP($L$4,'EMO and PHY YR'!A2:E729,3) -> NE | BO4: =IF(CE4<0.25,VLOOKUP(BM4,$A$38:$D$54,2,0),IF(CE4>=0.75,VLOOKUP(BM4,$A$38:$D$54,4,0),VLOOKUP(BM4,$A$38:$D$54,3,0))) -> O | BQ4: =VLOOKUP((L4-VLOOKUP($L$4,'EMO and PHY YR'!A2:F730,6))+13,'EMO and PHY YR'!A2:E730,2) -> 7-2 | BR4: =VLOOKUP((L4-VLOOKUP($L$4,'EMO and PHY YR'!A2:F730,6))+13,'EMO and PHY YR'!A2:E730,3) -> NNE | BS4: =VLOOKUP(BL4,'EMO and PHY YR'!D2:L57,9,FALSE) -> 7 | BT4: =IF(CE4<12.5%,8,IF(AND(CE4>=12.5%,CE4<25%),1,IF(AND(CE4>=25%,CE4<37.5%),2,IF(AND(CE4>=37.5%,CE4<50%),3,IF(AND(CE4>=50%,CE4<62.5%),4,IF(AND(CE4>=62.5%,CE4<75%),5,IF(AND(CE4>=75%,CE4<87.5%),6,IF(CE4>=87.5%,7,"uffda")))))))) -> 3 | BU4: =IF(CE4>BX4,BW4,BV4) -> 1 | BV4: =VLOOKUP(BL4,'Macro Phase'!B3:L65,10,FALSE) -> 1 | BW4: =VLOOKUP(BL4,'Macro Phase'!B3:L65,11,FALSE) -> 1 | BX4: =VLOOKUP(BL4,'Macro Phase'!B3:L65,8,FALSE) -> 1 | BY4: =VLOOKUP(CE4,A66:C105,3,TRUE) -> 3 | BZ4: =IF(((L4-VLOOKUP($L$4,'EMO and PHY YR'!A2:P730,6))-12)<0,HLOOKUP(M4-1,'AW1899-2149'!A:IQ,(L4-VLOOKUP($L$4,'EMO and PHY YR'!A2:P730,6))-12+728,FALSE)+VLOOKUP(F4,'Time Zones'!$C:$D,2,0)/24,HLOOKUP(M4,'AW1899-2149'!A:IQ,(L4-VLOOKUP($L$4,'EMO and PHY YR'!A2:P730,6))-12,FALSE)+VLOOKUP(F4,'Time Zones'!$C:$D,2,0)/24) -> 1974-12-15T13:55:12.857 | CA4: =HLOOKUP(M4,'AW1899-2149'!A:IQ,(L4-VLOOKUP($L$4,'EMO and PHY YR'!A2:F730,6))+1,FALSE)+VLOOKUP(F4,'Time Zones'!$C:$D,2,0)/24 -> 1974-12-21T23:55:00 | CB4: =HLOOKUP(M4,'AW1899-2149'!A:IQ,(L4-VLOOKUP($L$4,'EMO and PHY YR'!A2:F730,6))+14,FALSE)+VLOOKUP(F4,'Time Zones'!$C:$D,2,0)/24 -> 1974-12-28T08:29:21.429 | CC4: =CB4-CA4 -> 6.35719246 | CD4: =H4-CA4+VLOOKUP(F4,'Time Zones'!$C:$D,2,0)/24 -> 2.805555556 | CE4: =CD4/CC4 -> 0.4413199023 | CF4: =IF(CH4="LR",CE4,"") -> 0.4413199023 | CG4: =IF(CH4="RL",CE4,"") ->  | CH4: =VLOOKUP(BL4,'EMO and PHY YR'!D2:K57,8,FALSE) -> LR | CI4: =IF(CH4="LR","♂","♀") -> ♂ | CJ4: =VLOOKUP(BL4,'EMO and PHY YR'!D2:Q57,10,FALSE) -> ↘ | CK4: =VLOOKUP(BL4,'EMO and PHY YR'!D2:Q57,13,FALSE) -> ↶ | CL4: =VLOOKUP(BL4,'EMO and PHY YR'!D2:Q57,14,FALSE) -> ⇆ | CM4: =VLOOKUP(BL4,'EMO and PHY YR'!D2:K57,7,FALSE) -> ++ | CN4: =VLOOKUP(BL4,'EMO and PHY YR'!D2:Q57,11,FALSE) -> 7 | CO4: =VLOOKUP(CQ4*360,$M$108:$N$171,2,TRUE) -> OC | CP4: =IF(AND(CQ4>0.125,CQ4<0.375),2,IF(AND(CQ4>0.375,CQ4<0.625),3,IF(AND(CQ4>0.625,CQ4<0.875),4,1))) -> 2 | CQ4: =IF(CH4="LR",VLOOKUP(BL4,'Macro Phase'!B3:N58,12,FALSE)+((30*CE4)/24/60),IF(VLOOKUP(BL4,'Macro Phase'!B3:N58,13,FALSE)-((30*CE4)/24/60)<0,VLOOKUP(BL4,'Macro Phase'!B3:N58,13,FALSE)-((30*CE4)/24/60)+1,VLOOKUP(BL4,'Macro Phase'!B3:N58,13,FALSE)-((30*CE4)/24/60))) -> 03:13:14.376 | CR4: =VLOOKUP(DC4,'EMO and PHY YR'!D2:K57,8,FALSE) -> RL | CS4: =IF(CR4="LR","♂","♀") -> ♀ | CT4: =VLOOKUP(DC4,'EMO and PHY YR'!D2:Q57,10,FALSE) -> ↙ | CU4: =VLOOKUP(DC4,'EMO and PHY YR'!D2:Q57,13,FALSE) -> ↷ | CV4: =VLOOKUP(DC4,'EMO and PHY YR'!D2:Q57,14,FALSE) -> ⇄ | CW4: =VLOOKUP(DC4,'EMO and PHY YR'!D2:Q57,7,FALSE) -> +- | CX4: =VLOOKUP(DC4,'EMO and PHY YR'!D2:Q57,11,FALSE) -> 4 | CY4: =VLOOKUP(DA4*360,$M$108:$N$171,2,TRUE) -> IO | CZ4: =IF(AND(DA4>0.125,DA4<0.375),2,IF(AND(DA4>0.375,DA4<0.625),3,IF(AND(DA4>0.625,DA4<0.875),4,1))) -> 4 | DA4: =IF(CR4="LR",VLOOKUP(CE4,'Macro Phase'!C3:M58,11,TRUE)+(30*(((CE4-VLOOKUP(CE4,'Macro Phase'!C3:M58,1,TRUE))/(100/48))*100)/1440),IF(VLOOKUP(CE4,'Macro Phase'!C3:N58,12,TRUE)-(30*(((CE4-VLOOKUP(CE4,'Macro Phase'!C3:N58,1,TRUE))/(100/48))*100)/1440)<0,VLOOKUP(CE4,'Macro Phase'!C3:N58,12,TRUE)-(30*(((CE4-VLOOKUP(CE4,'Macro Phase'!C3:N58,1,TRUE))/(100/48))*100)/1440)+1,VLOOKUP(CE4,'Macro Phase'!C3:N58,12,TRUE)-(30*(((CE4-VLOOKUP(CE4,'Macro Phase'!C3:N58,1,TRUE))/(100/48))*100)/1440))) -> 19:24:29.960 | DB4: =IF(DC8<0,VLOOKUP((360+DC8),$M$108:$N$171,2,TRUE),VLOOKUP(DC8,$M$108:$N$171,2,TRUE)) -> DC | DC4: =IF(CH4="LR",(VLOOKUP(CE4,N51:P98,3,TRUE)),(VLOOKUP(CE4,N51:S98,6,TRUE))) -> 3-4 | DD4: =VLOOKUP(DC4,'EMO and PHY YR'!D2:E57,2,FALSE) -> SSE | DF4: =VLOOKUP(L4,'EMO and PHY YR'!A2:E730,4) -> 2-8 | DG4: =VLOOKUP(L4,'EMO and PHY YR'!A2:E730,5) -> N | DI4: =IF(DY4<0.25,VLOOKUP(DG4,$A$38:$D$54,2,0),IF(DY4>=0.75,VLOOKUP(DG4,$A$38:$D$54,4,0),VLOOKUP(DG4,$A$38:$D$54,3,0))) -> D | DK4: =VLOOKUP(L4+1,'EMO and PHY YR'!A2:E729,4) -> 3-7 | DL4: =VLOOKUP(L4+1,'EMO and PHY YR'!A2:E729,5) -> E | DM4: =VLOOKUP(DF4,'EMO and PHY YR'!D2:L57,9,FALSE) -> 2 | DN4: =IF(DY4<12.5%,8,IF(AND(DY4>=12.5%,DY4<25%),1,IF(AND(DY4>=25%,DY4<37.5%),2,IF(AND(DY4>=37.5%,DY4<50%),3,IF(AND(DY4>=50%,DY4<62.5%),4,IF(AND(DY4>=62.5%,DY4<75%),5,IF(AND(DY4>=75%,DY4<87.5%),6,IF(DY4>=87.5%,7,"uffda")))))))) -> 5 | DO4: =IF(DY4>DR4,DQ4,DP4) -> 1 | DP4: =VLOOKUP(DF4,'Macro Phase'!B3:L65,10,FALSE) -> 1 | DQ4: =VLOOKUP(DF4,'Macro Phase'!B3:L65,11,FALSE) -> 1 | DR4: =VLOOKUP(DF4,'Macro Phase'!B3:L65,8,FALSE) -> 1 | DS4: =VLOOKUP(DY4,A66:C105,3,TRUE) -> 5 | DT4: =IF(L4<2,HLOOKUP(M4-1,'AW1899-2149'!A:IQ,L4+728,0),HLOOKUP(M4,'AW1899-2149'!A:IQ,L4,0)+VLOOKUP(F4,'Time Zones'!$C:$D,2,0)/24) -> 1974-12-23T22:51:43.516 | DU4: =HLOOKUP(M4,'AW1899-2149'!A:IQ,L4+1,0)+VLOOKUP(F4,'Time Zones'!$C:$D,2,0)/24 -> 1974-12-24T10:35:54.396 | DV4: =HLOOKUP(M4,'AW1899-2149'!A:IQ,L4+2,0)+VLOOKUP(F4,'Time Zones'!$C:$D,2,0)/24 -> 1974-12-24T22:20:05.275 | DW4: =DV4-DU4 -> 11:44:10.879 | DX4: =H4+VLOOKUP(F4,'Time Zones'!$C:$D,2,0)/24-DU4 -> 0.3604815324 | DY4: =DX4/DW4 -> 0.73715873 | DZ4: =IF(ED4="LR",DY4,"") ->  | EA4: =IF(ED4="RL",DY4,"") -> 0.73715873 | EB4: =VLOOKUP(L4,'EMO and PHY YR'!A2:P730,7) -> 7 | EC4: =VLOOKUP(L4,'EMO and PHY YR'!A2:P730,8) -> P | ED4: =VLOOKUP(DF4,'EMO and PHY YR'!D2:K57,8,FALSE) -> RL | EE4: =IF(ED4="LR","♂","♀") -> ♀ | EF4: =VLOOKUP(DF4,'EMO and PHY YR'!D2:Q57,10,FALSE) -> ↖ | EG4: =VLOOKUP(DF4,'EMO and PHY YR'!D2:Q57,13,FALSE) -> ↶ | EH4: =VLOOKUP(DF4,'EMO and PHY YR'!D2:Q57,14,FALSE) -> ⇄ | EI4: =VLOOKUP(DF4,'EMO and PHY YR'!D2:K57,7,FALSE) -> -- | EJ4: =VLOOKUP(DF4,'EMO and PHY YR'!D2:Q57,11,FALSE) -> 4 | EK4: =VLOOKUP(EM4*360,$M$108:$N$171,2,TRUE) -> ID | EL4: =IF(AND(EM4>0.125,EM4<0.375),2,IF(AND(EM4>0.375,EM4<0.625),3,IF(AND(EM4>0.625,EM4<0.875),4,1))) -> 1 | EM4: =IF(ED4="LR",VLOOKUP(DF4,'Macro Phase'!B3:N58,12,FALSE)+((30*DY4)/24/60),IF(VLOOKUP(DF4,'Macro Phase'!B3:N58,13,FALSE)-((30*DY4)/24/60)<0,VLOOKUP(DF4,'Macro Phase'!B3:N58,13,FALSE)-((30*DY4)/24/60)+1,VLOOKUP(DF4,'Macro Phase'!B3:N58,13,FALSE)-((30*DY4)/24/60))) -> 23:37:53.114 | EN4: =VLOOKUP(EY4,'EMO and PHY YR'!D2:K57,8,FALSE) -> RL | EO4: =IF(EN4="LR","♂","♀") -> ♀ | EP4: =VLOOKUP(EY4,'EMO and PHY YR'!D2:Q57,10,FALSE) -> ↖ | EQ4: =VLOOKUP(EY4,'EMO and PHY YR'!D2:Q57,13,FALSE) -> ↶ | ER4: =VLOOKUP(EY4,'EMO and PHY YR'!D2:Q57,14,FALSE) -> ⇇ | ES4: =VLOOKUP(EY4,'EMO and PHY YR'!D2:Q57,7,FALSE) -> +- | ET4: =VLOOKUP(EY4,'EMO and PHY YR'!D2:Q57,11,FALSE) -> 6 | EU4: =VLOOKUP(EW4*360,$M$108:$N$171,2,TRUE) -> ID | EV4: =IF(AND(EW4>0.125,EW4<0.375),2,IF(AND(EW4>0.375,EW4<0.625),3,IF(AND(EW4>0.625,EW4<0.875),4,1))) -> 3 | EW4: =IF(EN4="LR",VLOOKUP(DY4,'Macro Phase'!C3:M58,11,TRUE)+(30*(((DY4-VLOOKUP(DY4,'Macro Phase'!C3:M58,1,TRUE))/(100/48))*100)/1440)-(2/60/60/24),IF(VLOOKUP(DY4,'Macro Phase'!C3:N58,12,TRUE)-(30*(((DY4-VLOOKUP(DY4,'Macro Phase'!C3:N58,1,TRUE))/(100/48))*100)/1440)<0,VLOOKUP(DY4,'Macro Phase'!C3:N58,12,TRUE)-(30*(((DY4-VLOOKUP(DY4,'Macro Phase'!C3:N58,1,TRUE))/(100/48))*100)/1440)+1+(2/60/60/24),VLOOKUP(DY4,'Macro Phase'!C3:N58,12,TRUE)-(30*(((DY4-VLOOKUP(DY4,'Macro Phase'!C3:N58,1,TRUE))/(100/48))*100)/1440)+(2/60/60/24))) -> 12:18:31.486 | EX4: =IF(EY8<0,VLOOKUP((360+EY8),$M$108:$N$171,2,TRUE),VLOOKUP(EY8,$M$108:$N$171,2,TRUE)) -> I | EY4: =IF(ED4="LR",(VLOOKUP(DY4,N51:P98,3,TRUE)),(VLOOKUP(DY4,N51:S98,6,TRUE))) -> 5-6 | EZ4: =VLOOKUP(EY4,'EMO and PHY YR'!D2:E57,2,FALSE) -> SSW | FA4: =((D4+E4)-J80)/L80 -> -1798506.103
A5: =IF(C11=1,Home!AB3,#REF!) -> Selig, Jeremy | D5: =Home!G3 -> 2025-03-10 | E5: =IF(C11=1,Home!G4,IF(C11=2,#REF!,IF(C11=3,E12,"Error"))) -> 17:49:32.200 | F5: =IF(C11=1,Home!G5,IF(C11=2,#REF!,IF(C11=3,E12,"Error"))) -> (GMT-04:00) Eastern Time (US and Canada) *DST* | G5: =VLOOKUP(F5,'Time Zones'!$C1:$D82,2,0) -> -4 | H5: =D5+E5-VLOOKUP(F5,'Time Zones'!$C1:$D82,2,0)/24 -> 2025-03-10T21:49:32.200 | I5: =MAX(IF('AW1899-2149'!A2:IQ730<H5,'AW1899-2149'!A2:IQ730)) -> 2025-03-10T14:19:34.286 | J5: =MIN(IF('AW1899-2149'!A2:IQ729>H5,'AW1899-2149'!A2:IQ729)) -> 2025-03-11T02:03:38.571 | K5: =ADDRESS(MIN(IF(NOT(ISERROR(FIND(I5,'AW1899-2149'!$A$1:$IQ$729,1))),ROW('AW1899-2149'!$A$1:$IQ$729)," ")),1) -> $A$164 | L5: =MIN(IF(NOT(ISERROR(FIND(I5,'AW1899-2149'!$A$1:$IQ$729,1))),ROW('AW1899-2149'!$A$1:$IQ$729)," "))-1 -> 163 | M5: =IF(AND(L5<25,MONTH(H5)=12),YEAR(H5)+1,YEAR(H5)) -> 2025 | N5: =VLOOKUP(M5,Years.Mind!A1:B250,2,0) -> 2-5 | O5: =VLOOKUP(N5,'EMO and PHY YR'!D1:E730,2,0) -> WNW | Q5: =IF(AE5<0.25,VLOOKUP(O5,$A$38:$D$54,2,0),IF(AE5>=0.75,VLOOKUP(O5,$A$38:$D$54,4,0),VLOOKUP(O5,$A$38:$D$54,3,0))) -> IO | S5: =VLOOKUP(N5,'EMO and PHY YR'!D2:L57,9,FALSE) -> 2 | T5: =IF(AE5<12.5%,8,IF(AND(AE5>=12.5%,AE5<25%),1,IF(AND(AE5>=25%,AE5<37.5%),2,IF(AND(AE5>=37.5%,AE5<50%),3,IF(AND(AE5>=50%,AE5<62.5%),4,IF(AND(AE5>=62.5%,AE5<75%),5,IF(AND(AE5>=75%,AE5<87.5%),6,IF(AE5>=87.5%,7,"oops")))))))) -> 1 | U5: =IF(AE5>X5,W5,V5) -> 3 | V5: =VLOOKUP(N5,'Macro Phase'!B3:L65,10,FALSE) -> 3 | W5: =VLOOKUP(N5,'Macro Phase'!B3:L65,11,FALSE) -> 4 | X5: =VLOOKUP(N5,'Macro Phase'!B3:L65,8,FALSE) -> 0.6 | Y5: =VLOOKUP(AE5,A66:C105,3,TRUE) -> 4 | Z5: =HLOOKUP(M5-1,'AW1899-2149'!A1:IQ731,2,FALSE)+VLOOKUP(F5,'Time Zones'!$C1:$D81,2,0)/24 -> 2023-12-21T23:27:00 | AA5: =HLOOKUP(M5,'AW1899-2149'!A:IQ,2,FALSE)+VLOOKUP(F5,'Time Zones'!$C:$D,2,0)/24 -> 2024-12-21T05:20:00 | AB5: =HLOOKUP(M5+1,'AW1899-2149'!A:IQ,2,FALSE)+VLOOKUP(F5,'Time Zones'!$C:$D,2,0)/24 -> 2025-12-21T11:03:00 | AC5: =AB5-AA5 -> 365.2381944 | AD5: =H5-AA5+VLOOKUP(F5,'Time Zones'!$C:$D,2,0)/24 -> 79.52051157 | AE5: =O25 -> 0.2234053439 | AF5: =IF(AJ5="LR",AE5,"") -> 0.2234053439 | AG5: =IF(AJ5="RL",AE5,"") ->  | AH5: =VLOOKUP(M5+1,Years.Mind!A:B,2,0) -> 4-6 | AI5: =VLOOKUP(AH5,'EMO and PHY YR'!D:E,2,0) -> NE | AJ5: =VLOOKUP(N5,'EMO and PHY YR'!D2:K57,8,FALSE) -> LR | AK5: =IF(AJ5="LR","♂","♀") -> ♂ | AL5: =VLOOKUP(N5,'EMO and PHY YR'!D2:Q57,10,FALSE) -> ↗ | AM5: =VLOOKUP(N5,'EMO and PHY YR'!D2:Q57,13,FALSE) -> ↶ | AN5: =VLOOKUP(N5,'EMO and PHY YR'!D2:Q57,14,FALSE) -> ⇆ | AO5: =VLOOKUP(N5,'EMO and PHY YR'!D2:K57,7,FALSE) -> -+ | AP5: =VLOOKUP(N5,'EMO and PHY YR'!D2:Q57,11,FALSE) -> 3 | AQ5: =VLOOKUP(AS5*360,$M$108:$N$171,2,TRUE) -> IO | AR5: =IF(AND(AS5>0.125,AS5<0.375),2,IF(AND(AS5>0.375,AS5<0.625),3,IF(AND(AS5>0.625,AS5<0.875),4,1))) -> 3 | AS5: =IF(AJ5="LR",VLOOKUP(N5,'Macro Phase'!B3:N58,12,FALSE)+((30*AE5)/24/60),IF(VLOOKUP(N5,'Macro Phase'!B3:N58,13,FALSE)-((30*AE5)/24/60)<0,VLOOKUP(N5,'Macro Phase'!B3:N58,13,FALSE)-((30*AE5)/24/60)+1,VLOOKUP(N5,'Macro Phase'!B3:N58,13,FALSE)-((30*AE5)/24/60))) -> 13:36:42.130 | AT5: =VLOOKUP(BE5,'EMO and PHY YR'!D2:K57,8,FALSE) -> LR | AU5: =IF(AT5="LR","♂","♀") -> ♂ | AV5: =VLOOKUP(BE5,'EMO and PHY YR'!D2:Q57,10,FALSE) -> ↗ | AW5: =VLOOKUP(BE5,'EMO and PHY YR'!D2:Q57,13,FALSE) -> ↷ | AX5: =VLOOKUP(BE5,'EMO and PHY YR'!D2:Q57,14,FALSE) -> ⇉ | AY5: =VLOOKUP(BE5,'EMO and PHY YR'!D2:Q57,7,FALSE) -> ++ | AZ5: =VLOOKUP(BE5,'EMO and PHY YR'!D2:Q57,11,FALSE) -> 1 | BA5: =VLOOKUP(BC5*360,$M$108:$N$171,2,TRUE) -> D | BB5: =IF(AND(BC5>0.125,BC5<0.375),2,IF(AND(BC5>0.375,BC5<0.625),3,IF(AND(BC5>0.625,BC5<0.875),4,1))) -> 3 | BC5: =IF(AT5="LR",VLOOKUP(AE5,'Macro Phase'!C3:M58,11,TRUE)+(30*(((AE5-VLOOKUP(AE5,'Macro Phase'!C3:M58,1,TRUE))/(100/48))*100)/1440),IF(VLOOKUP(AE5,'Macro Phase'!C3:N58,12,TRUE)-(30*(((AE5-VLOOKUP(AE5,'Macro Phase'!C3:N58,1,TRUE))/(100/48))*100)/1440)<0,VLOOKUP(AE5,'Macro Phase'!C3:N58,12,TRUE)-(30*(((AE5-VLOOKUP(AE5,'Macro Phase'!C3:N58,1,TRUE))/(100/48))*100)/1440)+1,VLOOKUP(AE5,'Macro Phase'!C3:N58,12,TRUE)-(30*(((AE5-VLOOKUP(AE5,'Macro Phase'!C3:N58,1,TRUE))/(100/48))*100)/1440))) -> 11:21:42.222 | BD5: =IF(BE9<0,VLOOKUP((360+BE9),$M$108:$N$171,2,TRUE),VLOOKUP(BE9,$M$108:$N$171,2,TRUE)) -> O | BE5: =IF(AJ5="LR",(VLOOKUP(AE5,N51:P98,3,TRUE)),(VLOOKUP(AE5,N51:S98,6,TRUE))) -> 1-5 | BF5: =VLOOKUP(BE5,'EMO and PHY YR'!D2:E57,2,FALSE) -> NE | BG5: =VLOOKUP(BF5,A38:D55,2,0) -> OC | BH5: =VLOOKUP(BF5,A38:D54,3,0) -> O | BI5: =VLOOKUP(BF5,A38:D54,4,0) -> IO | BJ5: =L88 -> 7.415578704 | BK5: =((D5+E5)-J88)/L88 -> 0.7234553758 | BL5: =VLOOKUP(L5,'EMO and PHY YR'!A2:E729,2) -> 8-3 | BM5: =VLOOKUP(L5,'EMO and PHY YR'!A2:E729,3) -> SSE | BO5: =IF(CE5<0.25,VLOOKUP(BM5,$A$38:$D$54,2,0),IF(CE5>=0.75,VLOOKUP(BM5,$A$38:$D$54,4,0),VLOOKUP(BM5,$A$38:$D$54,3,0))) -> C | BQ5: =VLOOKUP((L5-VLOOKUP($L$5,'EMO and PHY YR'!A2:F730,6))+13,'EMO and PHY YR'!A2:E730,2) -> 8-2 | BR5: =VLOOKUP((L5-VLOOKUP($L$5,'EMO and PHY YR'!A2:F730,6))+13,'EMO and PHY YR'!A2:E730,3) -> SE | BS5: =VLOOKUP(BL5,'EMO and PHY YR'!D2:L57,9,FALSE) -> 8 | BT5: =IF(CE5<12.5%,8,IF(AND(CE5>=12.5%,CE5<25%),1,IF(AND(CE5>=25%,CE5<37.5%),2,IF(AND(CE5>=37.5%,CE5<50%),3,IF(AND(CE5>=50%,CE5<62.5%),4,IF(AND(CE5>=62.5%,CE5<75%),5,IF(AND(CE5>=75%,CE5<87.5%),6,IF(CE5>=87.5%,7,"uffda")))))))) -> 4 | BU5: =IF(CE5>BX5,BW5,BV5) -> 5 | BV5: =VLOOKUP(BL5,'Macro Phase'!B3:L65,10,FALSE) -> 5 | BW5: =VLOOKUP(BL5,'Macro Phase'!B3:L65,11,FALSE) -> 5 | BX5: =VLOOKUP(BL5,'Macro Phase'!B3:L65,8,FALSE) -> 1 | BY5: =VLOOKUP(CE5,A66:C105,3,TRUE) -> 1 | BZ5: =IF(((L5-VLOOKUP($L$5,'EMO and PHY YR'!A2:P730,6))-12)<0,HLOOKUP(M5-1,'AW1899-2149'!A:IQ,(L5-VLOOKUP($L$5,'EMO and PHY YR'!A2:P730,6))-12+728,FALSE)+VLOOKUP(F5,'Time Zones'!$C:$D,2,0)/24,HLOOKUP(M5,'AW1899-2149'!A:IQ,(L5-VLOOKUP($L$5,'EMO and PHY YR'!A2:P730,6))-12,FALSE)+VLOOKUP(F5,'Time Zones'!$C:$D,2,0)/24) -> 2025-03-01T03:22:12.857 | CA5: =HLOOKUP(M5,'AW1899-2149'!A:IQ,(L5-VLOOKUP($L$5,'EMO and PHY YR'!A2:F730,6))+1,FALSE)+VLOOKUP(F5,'Time Zones'!$C:$D,2,0)/24 -> 2025-03-07T11:55:08.571 | CB5: =HLOOKUP(M5,'AW1899-2149'!A:IQ,(L5-VLOOKUP($L$5,'EMO and PHY YR'!A2:F730,6))+14,FALSE)+VLOOKUP(F5,'Time Zones'!$C:$D,2,0)/24 -> 2025-03-13T20:28:04.286 | CC5: =CB5-CA5 -> 6.356200397 | CD5: =H5-CA5+VLOOKUP(F5,'Time Zones'!$C:$D,2,0)/24 -> 3.246106813 | CE5: =CD5/CC5 -> 0.5106992558 | CF5: =IF(CH5="LR",CE5,"") -> 0.5106992558 | CG5: =IF(CH5="RL",CE5,"") ->  | CH5: =VLOOKUP(BL5,'EMO and PHY YR'!D2:K57,8,FALSE) -> LR | CI5: =IF(CH5="LR","♂","♀") -> ♂ | CJ5: =VLOOKUP(BL5,'EMO and PHY YR'!D2:Q57,10,FALSE) -> ↘ | CK5: =VLOOKUP(BL5,'EMO and PHY YR'!D2:Q57,13,FALSE) -> ↷ | CL5: =VLOOKUP(BL5,'EMO and PHY YR'!D2:Q57,14,FALSE) -> ⇉ | CM5: =VLOOKUP(BL5,'EMO and PHY YR'!D2:K57,7,FALSE) -> -+ | CN5: =VLOOKUP(BL5,'EMO and PHY YR'!D2:Q57,11,FALSE) -> 1 | CO5: =VLOOKUP(CQ5*360,$M$108:$N$171,2,TRUE) -> OC | CP5: =IF(AND(CQ5>0.125,CQ5<0.375),2,IF(AND(CQ5>0.375,CQ5<0.625),3,IF(AND(CQ5>0.625,CQ5<0.875),4,1))) -> 2 | CQ5: =IF(CH5="LR",VLOOKUP(BL5,'Macro Phase'!B3:N58,12,FALSE)+((30*CE5)/24/60),IF(VLOOKUP(BL5,'Macro Phase'!B3:N58,13,FALSE)-((30*CE5)/24/60)<0,VLOOKUP(BL5,'Macro Phase'!B3:N58,13,FALSE)-((30*CE5)/24/60)+1,VLOOKUP(BL5,'Macro Phase'!B3:N58,13,FALSE)-((30*CE5)/24/60))) -> 08:45:19.259 | CR5: =VLOOKUP(DC5,'EMO and PHY YR'!D2:K57,8,FALSE) -> LR | CS5: =IF(CR5="LR","♂","♀") -> ♂ | CT5: =VLOOKUP(DC5,'EMO and PHY YR'!D2:Q57,10,FALSE) -> ↘ | CU5: =VLOOKUP(DC5,'EMO and PHY YR'!D2:Q57,13,FALSE) -> ↶ | CV5: =VLOOKUP(DC5,'EMO and PHY YR'!D2:Q57,14,FALSE) -> ⇉ | CW5: =VLOOKUP(DC5,'EMO and PHY YR'!D2:Q57,7,FALSE) -> -+ | CX5: =VLOOKUP(DC5,'EMO and PHY YR'!D2:Q57,11,FALSE) -> 5 | CY5: =VLOOKUP(DA5*360,$M$108:$N$171,2,TRUE) -> ID | CZ5: =IF(AND(DA5>0.125,DA5<0.375),2,IF(AND(DA5>0.375,DA5<0.625),3,IF(AND(DA5>0.625,DA5<0.875),4,1))) -> 4 | DA5: =IF(CR5="LR",VLOOKUP(CE5,'Macro Phase'!C3:M58,11,TRUE)+(30*(((CE5-VLOOKUP(CE5,'Macro Phase'!C3:M58,1,TRUE))/(100/48))*100)/1440),IF(VLOOKUP(CE5,'Macro Phase'!C3:N58,12,TRUE)-(30*(((CE5-VLOOKUP(CE5,'Macro Phase'!C3:N58,1,TRUE))/(100/48))*100)/1440)<0,VLOOKUP(CE5,'Macro Phase'!C3:N58,12,TRUE)-(30*(((CE5-VLOOKUP(CE5,'Macro Phase'!C3:N58,1,TRUE))/(100/48))*100)/1440)+1,VLOOKUP(CE5,'Macro Phase'!C3:N58,12,TRUE)-(30*(((CE5-VLOOKUP(CE5,'Macro Phase'!C3:N58,1,TRUE))/(100/48))*100)/1440))) -> 18:15:24.416 | DB5: =IF(DC9<0,VLOOKUP((360+DC9),$M$108:$N$171,2,TRUE),VLOOKUP(DC9,$M$108:$N$171,2,TRUE)) -> D | DC5: =IF(CH5="LR",(VLOOKUP(CE5,N51:P98,3,TRUE)),(VLOOKUP(CE5,N51:S98,6,TRUE))) -> 3-7 | DD5: =VLOOKUP(DC5,'EMO and PHY YR'!D2:E57,2,FALSE) -> E | DE5: =((D5+E5)-J84)/L84 -> 0.5134766649 | DF5: =VLOOKUP(L5,'EMO and PHY YR'!A2:E730,4) -> 5-5 | DG5: =VLOOKUP(L5,'EMO and PHY YR'!A2:E730,5) -> SW | DI5: =IF(DY5<0.25,VLOOKUP(DG5,$A$38:$D$54,2,0),IF(DY5>=0.75,VLOOKUP(DG5,$A$38:$D$54,4,0),VLOOKUP(DG5,$A$38:$D$54,3,0))) -> O | DK5: =VLOOKUP(L5+1,'EMO and PHY YR'!A3:E730,4) -> 7-4 | DL5: =VLOOKUP(L5+1,'EMO and PHY YR'!A3:E730,5) -> NNW | DM5: =VLOOKUP(DF5,'EMO and PHY YR'!D2:L57,9,FALSE) -> 5 | DN5: =IF(DY5<12.5%,8,IF(AND(DY5>=12.5%,DY5<25%),1,IF(AND(DY5>=25%,DY5<37.5%),2,IF(AND(DY5>=37.5%,DY5<50%),3,IF(AND(DY5>=50%,DY5<62.5%),4,IF(AND(DY5>=62.5%,DY5<75%),5,IF(AND(DY5>=75%,DY5<87.5%),6,IF(DY5>=87.5%,7,"uffda")))))))) -> 5 | DO5: =IF(DY5>DR5,DQ5,DP5) -> 4 | DP5: =VLOOKUP(DF5,'Macro Phase'!B3:L65,10,FALSE) -> 4 | DQ5: =VLOOKUP(DF5,'Macro Phase'!B3:L65,11,FALSE) -> 5 | DR5: =VLOOKUP(DF5,'Macro Phase'!B3:L65,8,FALSE) -> 0.8 | DS5: =VLOOKUP(DY5,A66:C105,3,TRUE) -> 1 | DT5: =IF(L5<2,HLOOKUP(M5-1,'AW1899-2149'!A:IQ,L5+728,0),HLOOKUP(M5,'AW1899-2149'!A:IQ,L5,0)+VLOOKUP(F5,'Time Zones'!$C:$D,2,0)/24) -> 2025-03-09T22:35:30 | DU5: =HLOOKUP(M5,'AW1899-2149'!A:IQ,L5+1,0)+VLOOKUP(F5,'Time Zones'!$C:$D,2,0)/24 -> 2025-03-10T10:19:34.286 | DV5: =HLOOKUP(M5,'AW1899-2149'!A:IQ,L5+2,0)+VLOOKUP(F5,'Time Zones'!$C:$D,2,0)/24 -> 2025-03-10T22:03:38.571 | DW5: =DV5-DU5 -> 11:44:04.286 | DX5: =H5+VLOOKUP(F5,'Time Zones'!$C:$D,2,0)/24-DU5 -> 0.3124758602 | DY5: =DX5/DW5 -> 0.6390903259 | DZ5: =IF(ED5="LR",DY5,"") -> 0.6390903259 | EA5: =IF(ED5="RL",DY5,"") ->  | EB5: =VLOOKUP(L5,'EMO and PHY YR'!A2:P730,7) -> 8 | EC5: =VLOOKUP(L5,'EMO and PHY YR'!A2:P730,8) -> N | ED5: =VLOOKUP(DF5,'EMO and PHY YR'!D2:K57,8,FALSE) -> LR | EE5: =IF(ED5="LR","♂","♀") -> ♂ | EF5: =VLOOKUP(DF5,'EMO and PHY YR'!D2:Q57,10,FALSE) -> ↗ | EG5: =VLOOKUP(DF5,'EMO and PHY YR'!D2:Q57,13,FALSE) -> ↷ | EH5: =VLOOKUP(DF5,'EMO and PHY YR'!D2:Q57,14,FALSE) -> ⇉ | EI5: =VLOOKUP(DF5,'EMO and PHY YR'!D2:K57,7,FALSE) -> ++ | EJ5: =VLOOKUP(DF5,'EMO and PHY YR'!D2:Q57,11,FALSE) -> 5 | EK5: =VLOOKUP(EM5*360,$M$108:$N$171,2,TRUE) -> D | EL5: =IF(AND(EM5>0.125,EM5<0.375),2,IF(AND(EM5>0.375,EM5<0.625),3,IF(AND(EM5>0.625,EM5<0.875),4,1))) -> 1 | EM5: =IF(ED5="LR",VLOOKUP(DF5,'Macro Phase'!B3:N58,12,FALSE)+((30*DY5)/24/60),IF(VLOOKUP(DF5,'Macro Phase'!B3:N58,13,FALSE)-((30*DY5)/24/60)<0,VLOOKUP(DF5,'Macro Phase'!B3:N58,13,FALSE)-((30*DY5)/24/60)+1,VLOOKUP(DF5,'Macro Phase'!B3:N58,13,FALSE)-((30*DY5)/24/60))) -> 23:19:10.363 | EN5: =VLOOKUP(EY5,'EMO and PHY YR'!D2:K57,8,FALSE) -> LR | EO5: =IF(EN5="LR","♂","♀") -> ♂ | EP5: =VLOOKUP(EY5,'EMO and PHY YR'!D2:Q57,10,FALSE) -> ↗ | EQ5: =VLOOKUP(EY5,'EMO and PHY YR'!D2:Q57,13,FALSE) -> ↷ | ER5: =VLOOKUP(EY5,'EMO and PHY YR'!D2:Q57,14,FALSE) -> ⇉ | ES5: =VLOOKUP(EY5,'EMO and PHY YR'!D2:Q57,7,FALSE) -> ++ | ET5: =VLOOKUP(EY5,'EMO and PHY YR'!D2:Q57,11,FALSE) -> 5 | EU5: =VLOOKUP(EW5*360,$M$108:$N$171,2,TRUE) -> OC | EV5: =IF(AND(EW5>0.125,EW5<0.375),2,IF(AND(EW5>0.375,EW5<0.625),3,IF(AND(EW5>0.625,EW5<0.875),4,1))) -> 1 | EW5: =IF(EN5="LR",VLOOKUP(DY5,'Macro Phase'!C3:M58,11,TRUE)+(30*(((DY5-VLOOKUP(DY5,'Macro Phase'!C3:M58,1,TRUE))/(100/48))*100)/1440)-(2/60/60/24),IF(VLOOKUP(DY5,'Macro Phase'!C3:N58,12,TRUE)-(30*(((DY5-VLOOKUP(DY5,'Macro Phase'!C3:N58,1,TRUE))/(100/48))*100)/1440)<0,VLOOKUP(DY5,'Macro Phase'!C3:N58,12,TRUE)-(30*(((DY5-VLOOKUP(DY5,'Macro Phase'!C3:N58,1,TRUE))/(100/48))*100)/1440)+1+(2/60/60/24),VLOOKUP(DY5,'Macro Phase'!C3:N58,12,TRUE)-(30*(((DY5-VLOOKUP(DY5,'Macro Phase'!C3:N58,1,TRUE))/(100/48))*100)/1440)+(2/60/60/24))) -> 21:20:15.404 | EX5: =IF(EY9<0,VLOOKUP((360+EY9),$M$108:$N$171,2,TRUE),VLOOKUP(EY9,$M$108:$N$171,2,TRUE)) -> O | EY5: =IF(ED5="LR",(VLOOKUP(DY5,N51:P98,3,TRUE)),(VLOOKUP(DY5,N51:S98,6,TRUE))) -> 5-1 | EZ5: =VLOOKUP(EY5,'EMO and PHY YR'!D2:E57,2,FALSE) -> NW | FA5: =((D5+E5)-J80)/L80 -> 0.6755959138 | FB5: =IF(C11=1,Home!$L$3,#REF!) -> 0
AA6: end of next: | AB6: =HLOOKUP(M5+2,'AW1899-2149'!A:IQ,2,FALSE)+VLOOKUP(F5,'Time Zones'!$C:$D,2,0)/24 -> 2026-12-21T16:50:00 | CA6: end of Next: | CB6: =HLOOKUP(M5,'AW1899-2149'!A:IQ,(L5-VLOOKUP($L$5,'EMO and PHY YR'!A2:F730,6))+27,FALSE)+VLOOKUP(F5,'Time Zones'!$C:$D,2,0)/24 -> 2025-03-20T05:01:00 | DU6: End of Next: | DV6: =HLOOKUP(M5,'AW1899-2149'!A:IQ,L5+3,0)+VLOOKUP(F5,'Time Zones'!$C:$D,2,0)/24 -> 2025-03-11T09:47:42.857
D7: =Home!AB3 -> Selig, Jeremy | E7: =Home!AB4 -> 27387.80208 | F7: =Home!AB5 -> (GMT-06:00) Central Time (US and Canada)
D8: UTC Time: | E8: =NOW()+5/24 -> 2025-03-17T20:29:07.670 | N8: =IF((VLOOKUP(O4,F17:G32,2,0)=0),360+(VLOOKUP(O4,F17:G32,2,0)-22.5*AE4),VLOOKUP(O4,F17:G32,2,0)-22.5*AE4) -> 157.3227 | O8: =IF(AND(N8<=135,N8>45),2,IF(AND(N8<=315,N8>225),4,IF(AND(N8<=225,N8>135),3,1))) -> 3 | Q8: =VLOOKUP(Q4,B56:F63,5,FALSE) -> 4 | AL8: =IF(OR(AL4="↖",AL4="↘"),1,2) -> 1 | AN8: =IF(OR(AN4="⇄",AN4="⇆"),1,2) -> 2 | AO8: =IF(OR(AO4="-+",AO4="+-"),1,2) -> 1 | AQ8: =VLOOKUP(AQ4,B56:F63,5,FALSE) -> 7 | AS8: =IF(AS4>AS5,"+","-") -> - | AV8: =IF(OR(AV4="↖",AV4="↘"),1,2) -> 1 | AX8: =IF(OR(AX4="⇄",AX4="⇆"),1,2) -> 2 | AY8: =IF(OR(AY4="-+",AY4="+-"),1,2) -> 1 | BA8: =VLOOKUP(BA4,B56:F63,5,FALSE) -> 2 | BC8: =IF(BC4>BC5,"+","-") -> - | BD8: =VLOOKUP(BD4,B56:F63,5,FALSE) -> 3 | BE8: =IF(VLOOKUP(BF4,F17:G32,2,0)-((AE4-FLOOR(AE4,100/48/100))/(100/48/100))*22.5<0,360-VLOOKUP(BF4,F17:G32,2,0)-((AE4-FLOOR(AE4,100/48/100))/(100/48/100))*22.5,VLOOKUP(BF4,F17:G32,2,0)-((AE4-FLOOR(AE4,100/48/100))/(100/48/100))*22.5) -> 261.4896 | BF8: =IF(AND(BE8<=135,BE8>45),2,IF(AND(BE8<=315,BE8>225),4,IF(AND(BE8<=225,BE8>135),3,1))) -> 4 | BL8: =IF((VLOOKUP(BM4,F17:G32,2,0)=0),360+(VLOOKUP(BM4,F17:G32,2,0)-22.5*CE4),VLOOKUP(BM4,F17:G32,2,0)-22.5*CE4) -> 35.0703022 | BM8: =IF(AND(BL8<=135,BL8>45),2,IF(AND(BL8<=315,BL8>225),4,IF(AND(BL8<=225,BL8>135),3,1))) -> 1 | BO8: =VLOOKUP(BO4,B56:F63,5,FALSE) -> 7 | CJ8: =IF(OR(CJ4="↖",CJ4="↘"),1,2) -> 1 | CL8: =IF(OR(CL4="⇄",CL4="⇆"),1,2) -> 1 | CM8: =IF(OR(CM4="-+",CM4="+-"),1,2) -> 2 | CO8: =VLOOKUP(CO4,B56:F63,5,FALSE) -> 6 | CQ8: =IF(CQ4>CQ5,"+","-") -> - | CT8: =IF(OR(CT4="↖",CT4="↘"),1,2) -> 2 | CV8: =IF(OR(CV4="⇄",CV4="⇆"),1,2) -> 1 | CW8: =IF(OR(CW4="-+",CW4="+-"),1,2) -> 1 | CY8: =VLOOKUP(CY4,B56:F63,5,FALSE) -> 8 | DA8: =IF(DA4>DA5,"+","-") -> + | DB8: =VLOOKUP(DB4,B56:F63,5,FALSE) -> 4 | DC8: =IF(VLOOKUP(DD4,F17:G32,2,0)-((CE4-FLOOR(CE4,100/48/100))/(100/48/100))*22.5<0,360-VLOOKUP(DD4,F17:G32,2,0)-((CE4-FLOOR(CE4,100/48/100))/(100/48/100))*22.5,VLOOKUP(DD4,F17:G32,2,0)-((CE4-FLOOR(CE4,100/48/100))/(100/48/100))*22.5) -> 153.3745055 | DD8: =IF(AND(DC8<=135,DC8>45),2,IF(AND(DC8<=315,DC8>225),4,IF(AND(DC8<=225,DC8>135),3,1))) -> 3 | DF8: =IF((VLOOKUP(DG4,F17:G32,2,0)=0),360+(VLOOKUP(DG4,F17:G32,2,0)-22.5*DY4),VLOOKUP(DG4,F17:G32,2,0)-22.5*DY4) -> 343.4139286 | DG8: =IF(AND(DF8<=135,DF8>45),2,IF(AND(DF8<=315,DF8>225),4,IF(AND(DF8<=225,DF8>135),3,1))) -> 1 | DI8: =VLOOKUP(DI4,B56:F63,5,FALSE) -> 3 | EF8: =IF(OR(EF4="↖",EF4="↘"),1,2) -> 1 | EH8: =IF(OR(EH4="⇄",EH4="⇆"),1,2) -> 1 | EI8: =IF(OR(EI4="-+",EI4="+-"),1,2) -> 2 | EK8: =VLOOKUP(EK4,B56:F63,5,FALSE) -> 2 | EM8: =IF(EM4>EM5,"+","-") -> + | EP8: =IF(OR(EP4="↖",EP4="↘"),1,2) -> 1 | ER8: =IF(OR(ER4="⇄",ER4="⇆"),1,2) -> 2 | ES8: =IF(OR(ES4="-+",ES4="+-"),1,2) -> 1 | EU8: =VLOOKUP(EU4,B56:F63,5,FALSE) -> 2 | EW8: =IF(EW4>EW5,"+","-") -> - | EX8: =VLOOKUP(EX4,B56:F63,5,FALSE) -> 1 | EY8: =IF(VLOOKUP(EZ4,F17:G32,2,0)-((DY4-FLOOR(DY4,100/48/100))/(100/48/100))*22.5<0,360-VLOOKUP(EZ4,F17:G32,2,0)-((DY4-FLOOR(DY4,100/48/100))/(100/48/100))*22.5,VLOOKUP(EZ4,F17:G32,2,0)-((DY4-FLOOR(DY4,100/48/100))/(100/48/100))*22.5) -> 193.8685716 | EZ8: =IF(AND(EY8<=135,EY8>45),2,IF(AND(EY8<=315,EY8>225),4,IF(AND(EY8<=225,EY8>135),3,1))) -> 3
D9: Entered Time | E9: =D5+E5 -> 2025-03-10T17:49:32.200 | G9: #FF6000 | N9: =IF((VLOOKUP(O5,F17:G32,2,0)=0),360+(VLOOKUP(O5,F17:G32,2,0)-22.5*AE5),VLOOKUP(O5,F17:G32,2,0)-22.5*AE5) -> 287.4733798 | O9: =IF(AND(N9<=135,N9>45),2,IF(AND(N9<=315,N9>225),4,IF(AND(N9<=225,N9>135),3,1))) -> 4 | Q9: =VLOOKUP(Q5,B56:F63,5,FALSE) -> 8 | AL9: =IF(OR(AL5="↖",AL5="↘"),1,2) -> 2 | AN9: =IF(OR(AN5="⇄",AN5="⇆"),1,2) -> 1 | AO9: =IF(OR(AO5="-+",AO5="+-"),1,2) -> 1 | AQ9: =VLOOKUP(AQ5,B56:F63,5,FALSE) -> 8 | AS9: =IF(AS4>AS5,AS4-AS5,AS5-AS4) -> 0.2128234447 | AV9: =IF(OR(AV5="↖",AV5="↘"),1,2) -> 2 | AX9: =IF(OR(AX5="⇄",AX5="⇆"),1,2) -> 2 | AY9: =IF(OR(AY5="-+",AY5="+-"),1,2) -> 2 | BA9: =VLOOKUP(BA5,B56:F63,5,FALSE) -> 3 | BC9: =IF(BC4>BC5,BC4-BC5,BC5-BC4) -> 0.2155253439 | BD9: =VLOOKUP(BD5,B56:F63,5,FALSE) -> 7 | BE9: =VLOOKUP(BF5,F17:G32,2,0)-((AE5-FLOOR(AE5,100/48/100))/(100/48/100))*22.5 -> 28.72222864 | BF9: =IF(AND(BE9<=135,BE9>45),2,IF(AND(BE9<=315,BE9>225),4,IF(AND(BE9<=225,BE9>135),3,1))) -> 1 | BL9: =IF((VLOOKUP(BM5,F17:G32,2,0)=0),360+(VLOOKUP(BM5,F17:G32,2,0)-22.5*CE5),VLOOKUP(BM5,F17:G32,2,0)-22.5*CE5) -> 146.0092667 | BM9: =IF(AND(BL9<=135,BL9>45),2,IF(AND(BL9<=315,BL9>225),4,IF(AND(BL9<=225,BL9>135),3,1))) -> 3 | BO9: =VLOOKUP(BO5,B56:F63,5,FALSE) -> 5 | CJ9: =IF(OR(CJ5="↖",CJ5="↘"),1,2) -> 1 | CL9: =IF(OR(CL5="⇄",CL5="⇆"),1,2) -> 2 | CM9: =IF(OR(CM5="-+",CM5="+-"),1,2) -> 1 | CO9: =VLOOKUP(CO5,B56:F63,5,FALSE) -> 6 | CQ9: =IF(CQ4>CQ5,CQ4-CQ5,CQ5-CQ4) -> 0.2306120699 | CT9: =IF(OR(CT5="↖",CT5="↘"),1,2) -> 1 | CV9: =IF(OR(CV5="⇄",CV5="⇆"),1,2) -> 2 | CW9: =IF(OR(CW5="-+",CW5="+-"),1,2) -> 1 | CY9: =VLOOKUP(CY5,B56:F63,5,FALSE) -> 2 | DA9: =IF(DA4>DA5,DA4-DA5,DA5-DA4) -> 0.04798084185 | DB9: =VLOOKUP(DB5,B56:F63,5,FALSE) -> 3 | DC9: =VLOOKUP(DD5,F17:G32,2,0)-((CE5-FLOOR(CE5,100/48/100))/(100/48/100))*22.5 -> 78.4448037 | DD9: =IF(AND(DC9<=135,DC9>45),2,IF(AND(DC9<=315,DC9>225),4,IF(AND(DC9<=225,DC9>135),3,1))) -> 2 | DF9: =IF((VLOOKUP(DG5,F17:G32,2,0)=0),360+(VLOOKUP(DG5,F17:G32,2,0)-22.5*DY5),VLOOKUP(DG5,F17:G32,2,0)-22.5*DY5) -> 210.6204677 | DG9: =IF(AND(DF9<=135,DF9>45),2,IF(AND(DF9<=315,DF9>225),4,IF(AND(DF9<=225,DF9>135),3,1))) -> 3 | DI9: =VLOOKUP(DI5,B56:F63,5,FALSE) -> 7 | EF9: =IF(OR(EF5="↖",EF5="↘"),1,2) -> 2 | EH9: =IF(OR(EH5="⇄",EH5="⇆"),1,2) -> 2 | EI9: =IF(OR(EI5="-+",EI5="+-"),1,2) -> 2 | EK9: =VLOOKUP(EK5,B56:F63,5,FALSE) -> 3 | EM9: =IF(EM4>EM5,EM4-EM5,EM5-EM4) -> 0.01299481133 | EP9: =IF(OR(EP5="↖",EP5="↘"),1,2) -> 2 | ER9: =IF(OR(ER5="⇄",ER5="⇆"),1,2) -> 2 | ES9: =IF(OR(ES5="-+",ES5="+-"),1,2) -> 2 | EU9: =VLOOKUP(EU5,B56:F63,5,FALSE) -> 6 | EW9: =IF(EW4>EW5,EW4-EW5,EW5-EW4) -> 0.3762027596 | EX9: =VLOOKUP(EX5,B56:F63,5,FALSE) -> 7 | EY9: =VLOOKUP(EZ5,F17:G32,2,0)-((DY5-FLOOR(DY5,100/48/100))/(100/48/100))*22.5 -> 299.782448 | EZ9: =IF(AND(EY9<=135,EY9>45),2,IF(AND(EY9<=315,EY9>225),4,IF(AND(EY9<=225,EY9>135),3,1))) -> 4
A10: Which Page has control? | E10: =IF(V74=TRUE,E8,"") ->  | N10: =IF(ABS(N8-N9)>180,180-(ABS(N8-N9)-180),ABS(N8-N9)) -> 130.1506798 | AL10: =AL8*AL9 -> 2 | AN10: =AN8*AN9 -> 2 | AO10: 1 | AS10: =IF(AS9>1,AS9-1,IF(AS9>0.5,0.5-(AS9-0.5),AS9)) -> 0.2128234447 | AV10: =AV8*AV9 -> 2 | AX10: =AX8*AX9 -> 4 | AY10: 2 | BC10: =IF(BC9>1,BC9-1,IF(BC9>0.5,0.5-(BC9-0.5),BC9)) -> 0.2155253439 | BE10: =IF(ABS(BE8-BE9)>180,180-(ABS(BE8-BE9)-180),ABS(BE8-BE9)) -> 127.2326286 | BG10: Macro | BH10: =S5&" / "&U5 -> 2 / 3 | BL10: =IF(ABS(BL8-BL9)>180,180-(ABS(BL8-BL9)-180),ABS(BL8-BL9)) -> 110.9389645 | CF10: MACRO | CG10: =BS5&" / "&BU5 -> 8 / 5 | CJ10: =CJ8*CJ9 -> 1 | CL10: =CL8*CL9 -> 2 | CM10: 2 | CQ10: =IF(CQ9>1,CQ9-1,IF(CQ9>0.5,0.5-(CQ9-0.5),CQ9)) -> 0.2306120699 | CT10: =CT8*CT9 -> 2 | CV10: =CV8*CV9 -> 2 | CW10: 1 | DA10: =IF(DA9>1,DA9-1,IF(DA9>0.5,0.5-(DA9-0.5),DA9)) -> 0.04798084185 | DC10: =IF(ABS(DC8-DC9)>180,180-(ABS(DC8-DC9)-180),ABS(DC8-DC9)) -> 74.92970181 | DF10: =IF(ABS(DF8-DF9)>180,180-(ABS(DF8-DF9)-180),ABS(DF8-DF9)) -> 132.7934609 | EA10: Macro | EB10: =DM5&" / "&DO5 -> 5 / 4 | EF10: =EF8*EF9 -> 2 | EH10: =EH8*EH9 -> 2 | EI10: 4 | EM10: =IF(EM9>1,EM9-1,IF(EM9>0.5,0.5-(EM9-0.5),EM9)) -> 0.01299481133 | EP10: =EP8*EP9 -> 2 | ER10: =ER8*ER9 -> 4 | ES10: 2 | EW10: =IF(EW9>1,EW9-1,IF(EW9>0.5,0.5-(EW9-0.5),EW9)) -> 0.3762027596 | EY10: =IF(ABS(EY8-EY9)>180,180-(ABS(EY8-EY9)-180),ABS(EY8-EY9)) -> 105.9138765
A11: =IF(C11=1,"Simple","Advance") -> Simple | C11: 1 | D11: 1=Simple | E11: =TODAY() -> 2025-03-17 | G11: #FFDF00 | N11: =TRUNC(N10,2) -> 130.15 | O11: =IF(O8=O9,"G",IF(ISODD(O8+O9),"Y","R")) -> Y | Q11: =VLOOKUP(Q8,V40:AD47,Q9+1,FALSE) -> R | R11: =IF(AJ4="RL",IF(AE5<=0.25,IF(P4=P5,"G","Y"),""),IF(AE5>0.75,IF(R4=R5,"G","Y"),"")) ->  | S11: =VLOOKUP(S4,Q18:Y25,S5+1) -> Y | T11: =VLOOKUP(T4,Q18:Y25,T5+1) -> Y | U11: =IF(ISEVEN(S4+S5),VLOOKUP(U5,$P$39:$U$43,U4+1),VLOOKUP(U5,$P$45:$U$49,U4+1)) -> Y | Y11: =IF(ISEVEN(T4+T5),VLOOKUP(Y5,$P$39:$U$43,Y4+1),VLOOKUP(Y5,$P$45:$U$49,Y4+1)) -> Y | AL11: =IF(AL4=AL5,"G",IF(AL10=2,"Y","R")) -> Y | AM11: =IF(AM4=AM5,"G","R") -> R | AN11: =IF(AN4=AN5,"G",IF(AN10=2,"Y","R")) -> Y | AO11: G | AP11: =VLOOKUP(AP5,$Q$28:$Y$36,AP4+1) -> Y | AQ11: =VLOOKUP(AQ8,V40:AD47,AQ9+1,FALSE) -> Y | AR11: =IF(AR4=AR5,"G",IF(ISODD(AR5+AR4),"Y","R")) -> Y | AS11: =TEXT(AS10,"h:MM") -> 5:06 | AV11: =IF(AV4=AV5,"G",IF(AV10=2,"Y","R")) -> Y | AW11: =IF(AW4=AW5,"G","R") -> R | AX11: =IF(AX4=AX5,"G",IF(AX10=2,"Y","R")) -> G | AY11: Y | AZ11: =VLOOKUP(AZ5,$Q$28:$Y$36,AZ4+1) -> G | BA11: =VLOOKUP(BA8,V40:AD47,BA9+1,FALSE) -> Y | BB11: =IF(BB5=BB4,"G",IF(ISODD(BB5+BB4),"Y","R")) -> Y | BC11: =TEXT(BC10,"h:MM") -> 5:10 | BD11: =VLOOKUP(BD8,V40:AD47,BD9+1,FALSE) -> R | BE11: =TRUNC(BE10,2) -> 127.23 | BF11: =IF(BF8=BF9,"G",IF(ISODD(BF8+BF9),"Y","R")) -> Y | BG11: Micro | BH11: =T5&" / "&Y5 -> 1 / 4 | BL11: =TRUNC(BL10,2) -> 110.93 | BM11: =IF(BM8=BM9,"G",IF(ISODD(BM8+BM9),"Y","R")) -> R | BO11: =VLOOKUP(BO8,V40:AD47,BO9+1,FALSE) -> Y | BS11: =VLOOKUP(BS4,Q18:Y25,BS5+1) -> G | BT11: =VLOOKUP(BT4,Q18:Y25,BT5+1) -> G | BU11: =IF(ISEVEN(BS4+BS5),VLOOKUP(BU5,$P$39:$U$43,BU4+1),VLOOKUP(BU5,$P$45:$U$49,BU4+1)) -> G | BY11: =IF(ISEVEN(BT4+BT5),VLOOKUP(BY5,$P$39:$U$43,BY4+1),VLOOKUP(BY5,$P$45:$U$49,BY4+1)) -> Y | CF11: Micro | CG11: =BT5&" / "&BY5 -> 4 / 1 | CJ11: =IF(CJ4=CJ5,"G",IF(CJ10=2,"Y","R")) -> G | CK11: =IF(CK4=CK5,"G","R") -> R | CL11: =IF(CL4=CL5,"G",IF(CL10=2,"Y","R")) -> Y | CM11: Y | CN11: =VLOOKUP(CN5,$Q$28:$Y$36,CN4+1) -> Y | CO11: =VLOOKUP(CO8,V40:AD47,CO9+1,FALSE) -> G | CP11: =IF(CP5=CP4,"G",IF(ISODD(CP5+CP4),"Y","R")) -> G | CQ11: =TEXT(CQ10,"h:MM") -> 5:32 | CT11: =IF(CT4=CT5,"G",IF(CT10=2,"Y","R")) -> Y | CU11: =IF(CU4=CU5,"G","R") -> R | CV11: =IF(CV4=CV5,"G",IF(CV10=2,"Y","R")) -> Y | CW11: R | CX11: =VLOOKUP(CX5,$Q$28:$Y$36,CX4+1) -> Y | CY11: =VLOOKUP(CY8,V40:AD47,CY9+1,FALSE) -> Y | CZ11: =IF(CZ5=CZ4,"G",IF(ISODD(CZ5+CZ4),"Y","R")) -> G | DA11: =TEXT(DA10,"h:MM") -> 1:09 | DB11: =VLOOKUP(DB8,V40:AD47,DB9+1,FALSE) -> Y | DC11: =TRUNC(DC10,2) -> 74.92 | DD11: =IF(DD8=DD9,"G",IF(ISODD(DD8+DD9),"Y","R")) -> Y | DF11: =TRUNC(DF10,2) -> 132.79 | DG11: =IF(DG8=DG9,"G",IF(ISODD(DG8+DG9),"Y","R")) -> R | DH11: =IF(ED4="RL",IF(DY5>0.75,IF(DJ4=DJ5,"G","Y"),""),IF(DY5<=0.25,IF(DH4=DH5,"G","Y"),"")) ->  | DI11: =VLOOKUP(DI8,V40:AD47,DI9+1,FALSE) -> R | DM11: =VLOOKUP(DM4,Q18:Y25,DM5+1) -> R | DN11: =VLOOKUP(DN4,Q18:Y25,DN5+1) -> G | DO11: =IF(ISEVEN(DM4+DM5),VLOOKUP(DO5,$P$39:$U$43,DO4+1),VLOOKUP(DO5,$P$45:$U$49,DO4+1)) -> Y | DS11: =IF(ISEVEN(DN4+DN5),VLOOKUP(DS5,$P$39:$U$43,DS4+1),VLOOKUP(DS5,$P$45:$U$49,DS4+1)) -> R | EA11: Micro | EB11: =DN5&" / "&DS5 -> 5 / 1 | EF11: =IF(EF4=EF5,"G",IF(EF10=2,"Y","R")) -> Y | EG11: =IF(EG4=EG5,"G","R") -> R | EH11: =IF(EH4=EH5,"G",IF(EH10=2,"Y","R")) -> Y | EI11: R | EJ11: =VLOOKUP(EJ5,Q28:Y36,EJ4+1) -> Y | EK11: =VLOOKUP(EK8,V40:AD47,EK9+1,FALSE) -> Y | EL11: =IF(EL5=EL4,"G",IF(ISODD(EL5+EL4),"Y","R")) -> G | EM11: =TEXT(EM10,"h:MM") -> 0:18 | EP11: =IF(EP4=EP5,"G",IF(EP10=2,"Y","R")) -> Y | EQ11: =IF(EQ4=EQ5,"G","R") -> R | ER11: =IF(ER4=ER5,"G",IF(ER10=2,"Y","R")) -> R | ES11: Y | ET11: =VLOOKUP(ET5,$Q$28:$Y$36,ET4+1) -> G | EU11: =VLOOKUP(EU8,V40:AD47,EU9+1,FALSE) -> R | EV11: =IF(EV5=EV4,"G",IF(ISODD(EV5+EV4),"Y","R")) -> R | EW11: =TEXT(EW10,"h:MM") -> 9:01 | EX11: =VLOOKUP(EX8,V40:AD47,EX9+1,FALSE) -> Y | EY11: =TRUNC(EY10,2) -> 105.91 | EZ11: =IF(EZ8=EZ9,"G",IF(ISODD(EZ8+EZ9),"Y","R")) -> Y
C12: TRUE | D12: 2=Advanced | E12: =NOW()-TODAY() -> 15:29:07.670
D13: 3=Live Version | E13: =IF(B26=FALSE,NA(),IF(VLOOKUP(BF5,F17:G32,2,0)-((AE5-FLOOR(AE5,100/48/100))/(100/48/100))*22.5<0,360+VLOOKUP(BF5,F17:G32,2,0)-((AE5-FLOOR(AE5,100/48/100))/(100/48/100))*22.5,VLOOKUP(BF5,F17:G32,2,0)-((AE5-FLOOR(AE5,100/48/100))/(100/48/100))*22.5)) -> 28.72222864 | G13: #7FD828 | N13: =IF(VLOOKUP(BF4,F17:G32,2,0)-((AE4-FLOOR(AE4,100/48/100))/(100/48/100))*22.5<0,360-VLOOKUP(BF4,F17:G32,2,0)-((AE4-FLOOR(AE4,100/48/100))/(100/48/100))*22.5,VLOOKUP(BF4,F17:G32,2,0)-((AE4-FLOOR(AE4,100/48/100))/(100/48/100))*22.5) -> 261.4896
CW14: g | CX14: h | CY14: i | CZ14: j | DA14: k | DB14: l | DC14: m
AH15: For Time Zone Offset on Live Page | CW15: Time | CX15: Current UTC Time | CY15: Start of Awarness | CZ15: Start of Next Awarness
A16: Start and stop Auto Clock | C16: Dial for Ploting Space (Coordinate Compass Page) | H16: Dial for Ploting Time(coordinate Compass page) | K16: Mind Current | Q16: Used to determin WAVE Match and Color | AA16: Space | AC16: Time | AE16: Names for Drop Down | AF16: Birth Day of Currently Selected user | AH16: 0 | AK16: =IF(AK5="♂",1,2) -> 1 | AS16: SPACE Birth Bar | AV16: TIME Birth Bar | CT16: Mental Micro Pattern | CW16: =DU4+DW4*AE4 -> 1974-12-24T10:41:27.333 | CX16: =CW16-G4/24 -> 1974-12-24T16:41:27.333 | CY16: =MAX(IF('AW1899-2149'!A2:IQ730<CX16,'AW1899-2149'!A2:IQ730)) -> 1974-12-24T16:35:54.396 | CZ16: =MIN(IF('AW1899-2149'!A2:IQ729>CX16,'AW1899-2149'!A2:IQ729)) -> 1974-12-25T04:20:05.275 | DA16: =ADDRESS(MIN(IF(NOT(ISERROR(FIND(CY16,'AW1899-2149'!$A$1:$IQ$729,1))),ROW('AW1899-2149'!$A$1:$IQ$729)," ")),1) -> $A$7 | DB16: =MIN(IF(NOT(ISERROR(FIND(CY16,'AW1899-2149'!$A$1:$IQ$729,1))),ROW('AW1899-2149'!$A$1:$IQ$729)," "))-1 -> 6 | DC16: =IF(AND(DB16<25,MONTH(CX16)=12),YEAR(CX16)+1,YEAR(CX16)) -> 1975 | DF16: =VLOOKUP(DB16,'EMO and PHY YR'!A2:E730,4) -> 2-8 | DG16: =VLOOKUP(DB16,'EMO and PHY YR'!A2:E730,5) -> N | DI16: =IF(DY16<0.25,VLOOKUP(DG16,$A$38:$D$54,2,0),IF(DY16>=0.75,VLOOKUP(DG16,$A$38:$D$54,4,0),VLOOKUP(DG16,$A$38:$D$54,3,0))) -> ID | DM16: =VLOOKUP(DF16,'EMO and PHY YR'!D2:L57,9,FALSE) -> 2 | DN16: =IF(DY16<12.5%,8,IF(AND(DY16>=12.5%,DY16<25%),1,IF(AND(DY16>=25%,DY16<37.5%),2,IF(AND(DY16>=37.5%,DY16<50%),3,IF(AND(DY16>=50%,DY16<62.5%),4,IF(AND(DY16>=62.5%,DY16<75%),5,IF(AND(DY16>=75%,DY16<87.5%),6,IF(DY16>=87.5%,7,"uffda")))))))) -> 8 | DO16: =IF(DY16>DR16,DQ16,DP16) -> 1 | DP16: =VLOOKUP(DF16,'Macro Phase'!B3:L65,10,FALSE) -> 1 | DQ16: =VLOOKUP(DF16,'Macro Phase'!B3:L65,11,FALSE) -> 1 | DR16: =VLOOKUP(DF16,'Macro Phase'!B3:L65,8,FALSE) -> 1 | DS16: =VLOOKUP(DY16,A66:C105,3,TRUE) -> 1 | DT16: =IF(DB16<2,HLOOKUP(DC16-1,'AW1899-2149'!A:IQ,DB16+728,0),HLOOKUP(DC16,'AW1899-2149'!A:IQ,DB16,0)+VLOOKUP(F4,'Time Zones'!$C:$D,2,0)/24) -> 1974-12-23T22:51:43.516 | DU16: =HLOOKUP(DC16,'AW1899-2149'!A:IQ,DB16+1,0)+VLOOKUP(F4,'Time Zones'!$C:$D,2,0)/24 -> 1974-12-24T10:35:54.396 | DV16: =HLOOKUP(DC16,'AW1899-2149'!A:IQ,DB16+2,0)+VLOOKUP(F4,'Time Zones'!$C:$D,2,0)/24 -> 1974-12-24T22:20:05.275 | DW16: =DV16-DU16 -> 11:44:10.879 | DX16: =CX16+VLOOKUP(F4,'Time Zones'!$C:$D,2,0)/24-DU16 -> 0.003853436661 | DY16: =DX16/DW16 -> 0.007880000002 | ED16: =VLOOKUP(DF16,'EMO and PHY YR'!D2:K57,8,FALSE) -> RL | EF16: =VLOOKUP(DF16,'EMO and PHY YR'!D2:Q57,10,FALSE) -> ↖ | EG16: =VLOOKUP(DF16,'EMO and PHY YR'!D2:Q57,13,FALSE) -> ↶ | EH16: =VLOOKUP(DF16,'EMO and PHY YR'!D2:Q57,14,FALSE) -> ⇄ | EI16: =VLOOKUP(DF16,'EMO and PHY YR'!D2:K57,7,FALSE) -> -- | EJ16: =VLOOKUP(DF16,'EMO and PHY YR'!D2:Q57,11,FALSE) -> 4 | EK16: =VLOOKUP(EM16*360,$M$108:$N$171,2,TRUE) -> ID | EL16: =IF(AND(EM16>0.125,EM16<0.375),2,IF(AND(EM16>0.375,EM16<0.625),3,IF(AND(EM16>0.625,EM16<0.875),4,1))) -> 1 | EM16: =IF(ED16="LR",VLOOKUP(DF16,'Macro Phase'!B3:N58,12,FALSE)+((30*DY16)/24/60),IF(VLOOKUP(DF16,'Macro Phase'!B3:N58,13,FALSE)-((30*DY16)/24/60)<0,VLOOKUP(DF16,'Macro Phase'!B3:N58,13,FALSE)-((30*DY16)/24/60)+1,VLOOKUP(DF16,'Macro Phase'!B3:N58,13,FALSE)-((30*DY16)/24/60))) -> 23:59:45.816 | EN16: =VLOOKUP(EY16,'EMO and PHY YR'!D2:K57,8,FALSE) -> RL | EP16: =VLOOKUP(EY16,'EMO and PHY YR'!D2:Q57,10,FALSE) -> ↙ | EQ16: =VLOOKUP(EY16,'EMO and PHY YR'!D2:Q57,13,FALSE) -> ↷ | ER16: =VLOOKUP(EY16,'EMO and PHY YR'!D2:Q57,14,FALSE) -> ⇉ | ES16: =VLOOKUP(EY16,'EMO and PHY YR'!D2:Q57,7,FALSE) -> -- | ET16: =VLOOKUP(EY16,'EMO and PHY YR'!D2:Q57,11,FALSE) -> 2 | EU16: =VLOOKUP(EW16*360,$M$108:$N$171,2,TRUE) -> ID | EV16: =IF(AND(EW16>0.125,EW16<0.375),2,IF(AND(EW16>0.375,EW16<0.625),3,IF(AND(EW16>0.625,EW16<0.875),4,1))) -> 2 | EW16: =IF(EN16="LR",VLOOKUP(DY16,'Macro Phase'!C3:M58,11,TRUE)+(30*(((DY16-VLOOKUP(DY16,'Macro Phase'!C3:M58,1,TRUE))/(100/48))*100)/1440)-(2/60/60/24),IF(VLOOKUP(DY16,'Macro Phase'!C3:N58,12,TRUE)-(30*(((DY16-VLOOKUP(DY16,'Macro Phase'!C3:N58,1,TRUE))/(100/48))*100)/1440)<0,VLOOKUP(DY16,'Macro Phase'!C3:N58,12,TRUE)-(30*(((DY16-VLOOKUP(DY16,'Macro Phase'!C3:N58,1,TRUE))/(100/48))*100)/1440)+1+(2/60/60/24),VLOOKUP(DY16,'Macro Phase'!C3:N58,12,TRUE)-(30*(((DY16-VLOOKUP(DY16,'Macro Phase'!C3:N58,1,TRUE))/(100/48))*100)/1440)+(2/60/60/24))) -> 05:48:41.168 | EX16: =IF(EY17<0,VLOOKUP((360+EY17),$M$108:$N$171,2,TRUE),VLOOKUP(EY17,$M$108:$N$171,2,TRUE)) -> D | EY16: =IF(ED16="LR",(VLOOKUP(DY16,N51:P98,3,TRUE)),(VLOOKUP(DY16,N51:S98,6,TRUE))) -> 8-8 | EZ16: =VLOOKUP(EY16,'EMO and PHY YR'!D2:E57,2,FALSE) -> W
C17: Mental | E17: (USER) | F17: N | G17: 360 | H17: Mind | I17: Current (Left) | J17: User (Right) | M17: date | N17: Legth of Season | O17: % thru season | R17: 1 | S17: 2 | T17: 3 | U17: 4 | V17: 5 | W17: 6 | X17: 7 | Y17: 8 | Z17: Mental | AC17: =IF(OR(J18>330,J18<30),"",J18-30) ->  | AE17: =_xlfn._xlws.SORT(_xlfn.UNIQUE(FullNames)) -> 0, 0 | AF17: =IF(C11=1,VLOOKUP(Home!AB3,Family!$B$14:$H$67,6,FALSE),VLOOKUP(#REF!,Family!$B$14:$H$67,6,FALSE)) -> 1974-12-24T19:15:00 | AH17: -1 | AS17: MACRO | DF17: =IF((VLOOKUP(DG16,F17:G32,2,0)=0),360+(VLOOKUP(DG16,F17:G32,2,0)-22.5*DY4),VLOOKUP(DG16,F17:G32,2,0)-22.5*DY4) -> 343.4139286 | DG17: =IF(AND(DF17<=135,DF17>45),2,IF(AND(DF17<=315,DF17>225),4,IF(AND(DF17<=225,DF17>135),3,1))) -> 1 | DI17: =VLOOKUP(DI16,B56:F63,5,FALSE) -> 2 | EK17: =VLOOKUP(EK16,B56:F63,5,FALSE) -> 2 | EP17: =IF(OR(EP16="↖",EP16="↘"),1,2) -> 2 | ER17: =IF(OR(ER16="⇄",ER16="⇆"),1,2) -> 2 | ES17: =IF(OR(ES16="-+",ES16="+-"),1,2) -> 2 | EU17: =VLOOKUP(EU16,B56:F63,5,FALSE) -> 2 | EX17: =VLOOKUP(EX16,B56:F63,5,FALSE) -> 3 | EY17: =IF(VLOOKUP(EZ16,F17:G32,2,0)-((DY16-FLOOR(DY16,100/48/100))/(100/48/100))*22.5<0,360-VLOOKUP(EZ16,F17:G32,2,0)-((DY16-FLOOR(DY16,100/48/100))/(100/48/100))*22.5,VLOOKUP(EZ16,F17:G32,2,0)-((DY16-FLOOR(DY16,100/48/100))/(100/48/100))*22.5) -> 261.4896 | EZ17: =IF(AND(EY17<=135,EY17>45),2,IF(AND(EY17<=315,EY17>225),4,IF(AND(EY17<=225,EY17>135),3,1))) -> 4
C18: M Position | D18: =IF(B26=FALSE,NA(),IF((VLOOKUP(O5,F17:G32,2,0)=0),356+(VLOOKUP(O5,F17:G32,2,0)-22.5*AE5),VLOOKUP(O5,F17:G32,2,0)-22.5*AE5)) -> 287.4733798 | E18: =IF(B25=FALSE,NA(),IF((VLOOKUP(O4,F17:G32,2,0)=0),360+(VLOOKUP(O4,F17:G32,2,0)-22.5*AE4),VLOOKUP(O4,F17:G32,2,0)-22.5*AE4)) -> 157.3227 | F18: NNE | G18: 22.5 | H18: M Position | I18: =AS5 -> 13:36:42.130 | J18: =IF(B25=FALSE,NA(),AS4) -> 08:30:14.184 | K18: =M5-1 -> 2024 | L18: Fall | M18: =HLOOKUP(M5-1,'AW1899-2149'!A:IQ,548,FALSE)+VLOOKUP(F5,'Time Zones'!$C:$D,2,0)/24 -> 2024-09-22T08:43:00 | N18: =M19-M18 -> 89.85902778 | Q18: 1 | R18: G | S18: G | T18: Y | U18: Y | V18: R | W18: R | X18: Y | Y18: Y | Z18: MACRO | AA18: =IF(OR(E18>330,E18<30),"",E18-30) -> 127.3227 | AB18: =IF(E18>330,ABS(E18+30-360),IF(E18<30,E18+30,"")) ->  | AC18: =IF(OR(J18>1-1/12,J18<1/12),"",J18-1/12) -> 0.2709975 | AD18: =IF(J18>1-1/12,ABS(J18+1/12-1),IF(J18<1/12,J18+1/12,"")) ->  | AE18: Baier, Barb | AF18: Time Zone | AH18: -2 | AS18: =IF(OR(E18>330,E18<30),"",E18-30) -> 127.3227 | AT18: =IF(E18>330,ABS(E18+30-360),IF(E18<30,E18,"")) ->  | AV18: =IF(OR(J18*360>330,J18*360<30),"",J18*360-30) -> 97.5591 | AW18: =IF(J18*360>330,ABS(J18*360+30-360),IF(J18*360<30,J18*360,"")) ->  | BC18: Mental Macro | BD18: =IF(AJ5="LR","è","ç") -> è | DF18: =IF(ABS(DF17-DF9)>180,180-(ABS(DF17-DF9)-180),ABS(DF17-DF9)) -> 132.7934609 | EY18: =IF(ABS(EY17-EY9)>180,180-(ABS(EY17-EY9)-180),ABS(EY17-EY9)) -> 38.29284803
C19: M Hand Width | D19: =IF(B26=TRUE,3,NA()) -> 3 | E19: =IF(B25=FALSE,NA(),4) -> 4 | F19: NE | G19: 45 | I19: =IF(B26=FALSE,NA(),AS5) -> 0.567154278 | J19: =IF(B25=FALSE,NA(),AS4) -> 0.3543308333 | K19: =M5 -> 2025 | L19: winter | M19: =HLOOKUP(M5,'AW1899-2149'!A:IQ,2,FALSE)+VLOOKUP(F5,'Time Zones'!$C:$D,2,0)/24 -> 2024-12-21T05:20:00 | N19: =M20-M19 -> 88.98680556 | O19: =IF(($D$5+$E$5)>M20,1,IF($D$5+$E$5<=M19,0,(($D$5+$E$5)-M19)/N19)) -> 0.8936213754 | Q19: 2 | R19: G | S19: G | T19: Y | U19: Y | V19: R | W19: R | X19: Y | Y19: Y | AA19: =IF(OR(E18>330,E18<30),"",60) -> 60 | AB19: =IF(E18>330,E18-30,IF(E18<30,AB18+300,"")) ->  | AC19: =IF(OR(J18>1-1/12,J18<1/12),"",1/6) -> 0.1666666667 | AD19: =IF(J18>11/12,J18-1/12,IF(J18<1/12,AD18+5/6,"")) ->  | AE19: Baier, Beth | AF19: =IF(C11=1,VLOOKUP(Home!AB3,Family!$B$14:$H$67,7,FALSE),VLOOKUP(#REF!,Family!$B$14:$H$67,7,FALSE)) -> (GMT-06:00) Central Time (US and Canada) | AH19: -3 | AS19: =IF(OR(E18>330,E18<30),"",30) -> 30 | AT19: =IF(E18>330,300,IF(E18<30,1,"")) ->  | AV19: =IF(OR(J18*360>330,J18*360<30),"",30) -> 30 | AW19: =IF(J18*360>330,300,IF(J18*360<30,1,"")) ->  | BC19: Mental Micro | BD19: =IF(AT5="LR","è","ç") -> è | DF19: =TRUNC(DF18,2) -> 132.79 | DG19: =IF(DG17=DG9,"G",IF(ISODD(DG17+DG9),"Y","R")) -> R | DI19: =VLOOKUP(DI17,V40:AD47,DI9+1,FALSE) -> Y | EK19: =VLOOKUP(EK17,V40:AD47,EK9+1,FALSE) -> Y | EX19: =VLOOKUP(EX17,V40:AD47,EX9+1,FALSE) -> R | EY19: =TRUNC(EY18,2) -> 38.29 | EZ19: =IF(EZ17=EZ9,"G",IF(ISODD(EZ17+EZ9),"Y","R")) -> G
C20: M Blank Area | D20: =360-D18-D19 -> 69.52662024 | E20: =360-E18-E19 -> 198.6773 | F20: ENE | G20: 67.5 | H20: M Hand Width | I20: =IF(B26=TRUE,0.005,NA()) -> 0.005 | J20: =IF(B25=FALSE,NA(),0.012) -> 0.012 | K20: =M5 -> 2025 | L20: spring | M20: =HLOOKUP(M5,'AW1899-2149'!A:IQ,184,FALSE)+VLOOKUP(F5,'Time Zones'!$C:$D,2,0)/24 -> 2025-03-20T05:01:00 | N20: =M21-M20 -> 92.73680556 | O20: =IF(($D$5+$E$5)>M21,1,IF($D$5+$E$5<=M20,0,(($D$5+$E$5)-M20)/N20)) -> 0 | Q20: 3 | R20: Y | S20: Y | T20: G | U20: G | V20: Y | W20: Y | X20: R | Y20: R | AA20: =IF(OR(E18>330,E18<30),"",360-AA18-AA19) -> 172.6773 | AB20: =IF(E18>330,360-AB19,IF(E18<30,360-AB19,"")) ->  | AC20: =IF(OR(J18>1-1/12,J18<1/12),"",1-AC18-AC19) -> 0.5623358333 | AD20: =IF(J18>11/12,1-AD19,IF(J18<1/12,1-AD19,"")) ->  | AE20: Bryant, Kobe | AH20: -4 | AS20: =IF(OR(E18>330,E18<30),"",1) -> 1 | AT20: =IF(E18>330,29,IF(E18<30,30,"")) ->  | AV20: =IF(OR(J18*360>330,J18*360<30),"",1) -> 1 | AW20: =IF(J18*360>330,29,IF(J18*360<30,30,"")) ->  | BC20: Emo Macro | BD20: =IF(CH5="LR","è","ç") -> è
C21: m Position | D21: =IF(B26=FALSE,NA(),IF(VLOOKUP(BF5,F17:G32,2,0)-((AE5-FLOOR(AE5,100/48/100))/(100/48/100))*22.5<0,360+VLOOKUP(BF5,F17:G32,2,0)-((AE5-FLOOR(AE5,100/48/100))/(100/48/100))*22.5,VLOOKUP(BF5,F17:G32,2,0)-((AE5-FLOOR(AE5,100/48/100))/(100/48/100))*22.5)) -> 28.72222864 | E21: =IF(B25=FALSE,NA(),IF(VLOOKUP(BF4,F17:G32,2,0)-((AE4-FLOOR(AE4,100/48/100))/(100/48/100))*22.5<0,360+VLOOKUP(BF4,F17:G32,2,0)-((AE4-FLOOR(AE4,100/48/100))/(100/48/100))*22.5,VLOOKUP(BF4,F17:G32,2,0)-((AE4-FLOOR(AE4,100/48/100))/(100/48/100))*22.5)) -> 261.4896 | F21: E | G21: 90 | H21: M Blank Area | I21: =IF(B26=FALSE,NA(),1-I20-I19) -> 0.427845722 | J21: =1-J20-J19 -> 0.6336691667 | K21: =M5 -> 2025 | L21: summer | M21: =HLOOKUP(M5,'AW1899-2149'!A:IQ,366,FALSE)+VLOOKUP(F5,'Time Zones'!$C:$D,2,0)/24 -> 2025-06-20T22:42:00 | N21: 93.65069444 | O21: =IF(($D$5+$E$5)>M22,1,IF($D$5+$E$5<=M21,0,(($D$5+$E$5)-M21)/N21)) -> 0 | Q21: 4 | R21: Y | S21: Y | T21: G | U21: G | V21: Y | W21: Y | X21: R | Y21: R | Z21: micro | AA21: =IF(OR(E21>330,E21<30),"",E21-30) -> 231.4896 | AB21: =IF(E21>330,ABS(E21+30-360),IF(E21<30,E21+30,"")) ->  | AC21: =IF(OR(J22>1-1/12,J22<1/12),"",J22-1/12) -> 0.1745466667 | AD21: =IF(J22>1-1/12,ABS(J22+1/12-1),IF(J22<1/12,J22+1/12,"")) ->  | AE21: Clayton, Stephanie | AH21: -5 | AS21: =IF(OR(E18>330,E18<30),"",29) -> 29 | AT21: =IF(E18>330,1,IF(E18<30,300,"")) ->  | AV21: =IF(OR(J18*360>330,J18*360<30),"",29) -> 29 | AW21: =IF(J18*360>330,1,IF(J18*360<30,300,"")) ->  | BC21: Emo Micro | BD21: =IF(CR5="LR","è","ç") -> è | CW21: =DU4+DW4*CE4 -> 1974-12-24T15:46:40.549 | CX21: =CW21-G4/24 -> 1974-12-24T21:46:40.549 | CY21: =MAX(IF('AW1899-2149'!A2:IQ730<CX21,'AW1899-2149'!A2:IQ730)) -> 27387.6916 | CZ21: =MIN(IF('AW1899-2149'!A2:IQ729>CX21,'AW1899-2149'!A2:IQ729)) -> 27388.18062 | DA21: =ADDRESS(MIN(IF(NOT(ISERROR(FIND(CY21,'AW1899-2149'!$A$1:$IQ$729,1))),ROW('AW1899-2149'!$A$1:$IQ$729)," ")),1) -> $A$7 | DB21: =MIN(IF(NOT(ISERROR(FIND(CY21,'AW1899-2149'!$A$1:$IQ$729,1))),ROW('AW1899-2149'!$A$1:$IQ$729)," "))-1 -> 6 | DC21: =IF(AND(DB21<25,MONTH(CX21)=12),YEAR(CX21)+1,YEAR(CX21)) -> 1975 | DF21: =VLOOKUP(DB21,'EMO and PHY YR'!A2:E730,4) -> 2-8 | DN21: =IF(DY21<12.5%,8,IF(AND(DY21>=12.5%,DY21<25%),1,IF(AND(DY21>=25%,DY21<37.5%),2,IF(AND(DY21>=37.5%,DY21<50%),3,IF(AND(DY21>=50%,DY21<62.5%),4,IF(AND(DY21>=62.5%,DY21<75%),5,IF(AND(DY21>=75%,DY21<87.5%),6,IF(DY21>=87.5%,7,"uffda")))))))) -> 3 | DS21: =VLOOKUP(DY21,A66:C105,3,TRUE) -> 3 | DT21: =IF(DB21<2,HLOOKUP(DC21-1,'AW1899-2149'!A:IQ,DB21+728,0),HLOOKUP(DC21,'AW1899-2149'!A:IQ,DB21,0)+VLOOKUP(F4,'Time Zones'!$C:$D,2,0)/24) -> 1974-12-23T22:51:43.516 | DU21: =HLOOKUP(DC21,'AW1899-2149'!A:IQ,DB21+1,0)+VLOOKUP(F4,'Time Zones'!$C:$D,2,0)/24 -> 1974-12-24T10:35:54.396 | DV21: =HLOOKUP(DC21,'AW1899-2149'!A:IQ,DB21+2,0)+VLOOKUP(F4,'Time Zones'!$C:$D,2,0)/24 -> 1974-12-24T22:20:05.275 | DW21: =DV21-DU21 -> 0.4890148046 | DX21: =CX21+VLOOKUP(F4,'Time Zones'!$C:$D,2,0)/24-DU21 -> 0.2158119658 | DY21: =DX21/DW21 -> 0.4413199023 | ED21: =VLOOKUP(DF21,'EMO and PHY YR'!D2:K57,8,FALSE) -> RL | EN21: =VLOOKUP(EY21,'EMO and PHY YR'!D2:K57,8,FALSE) -> RL | EP21: =VLOOKUP(EY21,'EMO and PHY YR'!D2:Q57,10,FALSE) -> ↙ | EQ21: =VLOOKUP(EY21,'EMO and PHY YR'!D2:Q57,13,FALSE) -> ↷ | ER21: =VLOOKUP(EY21,'EMO and PHY YR'!D2:Q57,14,FALSE) -> ⇄ | ES21: =VLOOKUP(EY21,'EMO and PHY YR'!D2:Q57,7,FALSE) -> +- | ET21: =VLOOKUP(EY21,'EMO and PHY YR'!D2:Q57,11,FALSE) -> 4 | EU21: =VLOOKUP(EW21*360,$M$108:$N$171,2,TRUE) -> IO | EV21: =IF(AND(EW21>0.125,EW21<0.375),2,IF(AND(EW21>0.375,EW21<0.625),3,IF(AND(EW21>0.625,EW21<0.875),4,1))) -> 4 | EW21: =IF(EN21="LR",VLOOKUP(DY21,'Macro Phase'!C3:M58,11,TRUE)+(30*(((DY21-VLOOKUP(DY21,'Macro Phase'!C3:M58,1,TRUE))/(100/48))*100)/1440)-(2/60/60/24),IF(VLOOKUP(DY21,'Macro Phase'!C3:N58,12,TRUE)-(30*(((DY21-VLOOKUP(DY21,'Macro Phase'!C3:N58,1,TRUE))/(100/48))*100)/1440)<0,VLOOKUP(DY21,'Macro Phase'!C3:N58,12,TRUE)-(30*(((DY21-VLOOKUP(DY21,'Macro Phase'!C3:N58,1,TRUE))/(100/48))*100)/1440)+1+(2/60/60/24),VLOOKUP(DY21,'Macro Phase'!C3:N58,12,TRUE)-(30*(((DY21-VLOOKUP(DY21,'Macro Phase'!C3:N58,1,TRUE))/(100/48))*100)/1440)+(2/60/60/24))) -> 19:24:31.960 | EX21: =IF(EY22<0,VLOOKUP((360+EY22),$M$108:$N$171,2,TRUE),VLOOKUP(EY22,$M$108:$N$171,2,TRUE)) -> DC | EY21: =IF(ED21="LR",(VLOOKUP(DY21,N51:P98,3,TRUE)),(VLOOKUP(DY21,N51:S98,6,TRUE))) -> 3-4 | EZ21: =VLOOKUP(EY21,'EMO and PHY YR'!D2:E57,2,FALSE) -> SSE
B22: 15:16:48 | C22: m HandWidth | D22: =IF(B26=TRUE,2.5,NA()) -> 2.5 | E22: 3 | F22: ESE | G22: 112.5 | H22: m Position | I22: =BC5 -> 11:21:42.222 | J22: =IF(B25=FALSE,NA(),BC4) -> 06:11:20.832 | K22: =M5 -> 2025 | L22: fall | M22: =HLOOKUP(M5,'AW1899-2149'!A:IQ,548,FALSE)+VLOOKUP(F5,'Time Zones'!$C:$D,2,0)/24 -> 2025-09-22T14:19:00 | N22: 89.86388889 | O22: =IF(($D$5+$E$5)>M23,1,IF($D$5+$E$5<=M22,0,(($D$5+$E$5)-M22)/N22)) -> 0 | Q22: 5 | R22: R | S22: R | T22: Y | U22: Y | V22: G | W22: G | X22: Y | Y22: Y | AA22: =IF(OR(E21>330,E21<30),"",60) -> 60 | AB22: =IF(E21>330,E21-30,IF(E21<30,AB21+300,"")) ->  | AC22: =IF(OR(J22>1-1/12,J22<1/12),"",1/6) -> 0.1666666667 | AD22: =IF(J22>11/12,J22-1/12,IF(J22<1/12,AD21+5/6,"")) ->  | AE22: Durbin, Steven | AH22: -6 | AS22: =IF(OR(E18>330,E18<30),"",360-AS21-AS20-AS19-AS18) -> 172.6773 | AT22: =IF(E18>330,29-AT18,IF(E18<30,29-AT18,"")) ->  | AV22: =IF(OR(J18*360>330,J18*360<30),"",360-AV21-AV20-AV19-AV18) -> 202.4409 | AW22: =IF(J18*360>330,29-AW18,IF(J18*360<30,29-AW18,"")) ->  | BC22: Phy Macro | BD22: =IF(ED5="LR","è","ç") -> è | EP22: =IF(OR(EP21="↖",EP21="↘"),1,2) -> 2 | ER22: =IF(OR(ER21="⇄",ER21="⇆"),1,2) -> 1 | ES22: =IF(OR(ES21="-+",ES21="+-"),1,2) -> 1 | EU22: =VLOOKUP(EU21,B56:F63,5,FALSE) -> 8 | EX22: =VLOOKUP(EX21,B56:F63,5,FALSE) -> 4 | EY22: =IF(VLOOKUP(EZ21,F17:G32,2,0)-((DY21-FLOOR(DY21,100/48/100))/(100/48/100))*22.5<0,360-VLOOKUP(EZ21,F17:G32,2,0)-((DY21-FLOOR(DY21,100/48/100))/(100/48/100))*22.5,VLOOKUP(EZ21,F17:G32,2,0)-((DY21-FLOOR(DY21,100/48/100))/(100/48/100))*22.5) -> 153.3745055 | EZ22: =IF(AND(EY22<=135,EY22>45),2,IF(AND(EY22<=315,EY22>225),4,IF(AND(EY22<=225,EY22>135),3,1))) -> 3
A23: For Coordinate Compass | C23: m Blank Area | D23: =360-D21-D22 -> 328.7777714 | E23: =360-E21-E22 -> 95.5104 | F23: SE | G23: 135 | I23: =IF(B26=FALSE,NA(),BC5) -> 0.4734053439 | J23: =IF(B25=FALSE,NA(),BC4) -> 0.25788 | K23: =M5+1 -> 2026 | L23: winter | M23: =HLOOKUP(M5+1,'AW1899-2149'!A:IQ,2,FALSE)+VLOOKUP(F5,'Time Zones'!$C:$D,2,0)/24 -> 2025-12-21T11:03:00 | N23: 88.9875 | Q23: 6 | R23: R | S23: R | T23: Y | U23: Y | V23: G | W23: G | X23: Y | Y23: Y | AA23: =IF(OR(E21>330,E21<30),"",360-AA21-AA22) -> 68.5104 | AB23: =IF(E21>330,360-AB22,IF(E21<30,360-AB22,"")) ->  | AC23: =IF(OR(J22>1-1/12,J22<1/12),"",1-AC21-AC22) -> 0.6587866667 | AD23: =IF(J22>11/12,1-AD22,IF(J22<1/12,1-AD22,"")) ->  | AE23: Evans, Justin | AH23: -7 | AS23: micro | BC23: Phy Micro | BD23: =IF(EN5="LR","è","ç") -> è
A24: to turn on and off | C24: Emotional | F24: SSE | G24: 157.5 | H24: m HandWidth | I24: =IF(B26=TRUE,0.012,NA()) -> 0.012 | J24: =IF(B25=FALSE,NA(),0.012) -> 0.012 | K24: =M5+1 -> 2026 | L24: Spring | M24: =HLOOKUP(M5+1,'AW1899-2149'!A:IQ,184,FALSE)+VLOOKUP(F5,'Time Zones'!$C:$D,2,0)/24 -> 2026-03-20T10:45:00 | Q24: 7 | R24: Y | S24: Y | T24: R | U24: R | V24: Y | W24: Y | X24: G | Y24: G | Z24: Emotional | AE24: Geldhof, Cynthia | AH24: -8 | AS24: =IF(OR(E21>330,E21<30),"",E21-30) -> 231.4896 | AT24: =IF(E21>330,ABS(E21+30-360),IF(E21<30,E21,"")) ->  | AV24: =IF(OR(J22*360>330,J22*360<30),"",J22*360-30) -> 62.8368 | AW24: =IF(J22*360>330,ABS(J22*360+30-360),IF(J22*360<30,J22*360,"")) -> 
A25: Toggle User | B25: TRUE | C25: M Position | D25: =IF(B26=FALSE,NA(),IF((VLOOKUP(BM5,F17:G32,2,0)=0),356+(VLOOKUP(BM5,F17:G32,2,0)-22.5*CE5),VLOOKUP(BM5,F17:G32,2,0)-22.5*CE5)) -> 146.0092667 | E25: =IF(B25=FALSE,NA(),IF((VLOOKUP(BM4,F17:G32,2,0)=0),360+(VLOOKUP(BM4,F17:G32,2,0)-22.5*CE4),VLOOKUP(BM4,F17:G32,2,0)-22.5*CE4)) -> 35.0703022 | F25: S | G25: 180 | H25: m Blank Area | I25: =1-I24-I23 -> 0.5145946561 | J25: =1-J24-J23 -> 0.73012 | K25: percent thru the year based on Season Completion: | O25: =SUM(O19:O22)/4 -> 0.2234053439 | Q25: 8 | R25: Y | S25: Y | T25: R | U25: R | V25: Y | W25: Y | X25: G | Y25: G | Z25: MACRO | AA25: =IF(OR(E25>330,E25<30),"",E25-30) -> 5.070302198 | AB25: =IF(E25>330,ABS(E25+30-360),IF(E25<30,E25+30,"")) ->  | AC25: =IF(OR(J27>1-1/12,J27<1/12),"",J27-1/12) -> 0.0508608313 | AD25: =IF(J27>1-1/12,ABS(J27+1/12-1),IF(J27<1/12,J27+1/12,"")) ->  | AE25: Guy, Chris | AH25: -9 | AS25: =IF(OR(E21>330,E21<30),"",30) -> 30 | AT25: =IF(E21>330,300,IF(E21<30,1,"")) ->  | AV25: =IF(OR(J22*360>330,J22*360<30),"",30) -> 30 | AW25: =IF(J22*360>330,300,IF(J22*360<30,1,"")) -> 
A26: Toggle Time | B26: TRUE | C26: M Hand Width | D26: =IF(B26=TRUE,3,NA()) -> 3 | E26: =IF(B25=FALSE,NA(),3) -> 3 | F26: SSW | G26: 202.5 | H26: Emotion | L26: Previous Phy Aware | M26: Next Phy Aware | N26: Previous Emo | O26: Next Emo | P26: Used to determin ZONE match and color | AA26: =IF(OR(E25>330,E25<30),"",60) -> 60 | AB26: =IF(E25>330,E25-30,IF(E25<30,AB25+300,"")) ->  | AC26: =IF(OR(J27>1-1/12,J27<1/12),"",1/6) -> 0.1666666667 | AD26: =IF(J27>11/12,J27-1/12,IF(J27<1/12,AD25+5/6,"")) ->  | AE26: Hoverson, Allen | AH26: -10 | AS26: =IF(OR(E21>330,E21<30),"",1) -> 1 | AT26: =IF(E21>330,29,IF(E21<30,30,"")) ->  | AV26: =IF(OR(J22*360>330,J22*360<30),"",1) -> 1 | AW26: =IF(J22*360>330,29,IF(J22*360<30,30,"")) -> 
C27: M Blank Area | D27: =360-SUM(D25:D26) -> 210.9907333 | E27: =360-E25-E26 -> 321.9296978 | F27: SW | G27: 225 | H27: M Position | I27: =CQ5 -> 08:45:19.259 | J27: =IF(B25=FALSE,NA(),CQ4) -> 03:13:14.376 | K27: Date | L27: =INT(DT5) -> 2025-03-09 | M27: =INT(DV5) -> 2025-03-10 | N27: =INT(CA5-1/1440) -> 2025-03-07 | O27: =INT(CB5) -> 2025-03-13 | R27: Slave | AA27: =IF(OR(E25>330,E25<30),"",360-AA25-AA26) -> 294.9296978 | AB27: =IF(E25>330,360-AB26,IF(E25<30,360-AB26,"")) ->  | AC27: =IF(OR(J27>1-1/12,J27<1/12),"",1-AC25-AC26) -> 0.782472502 | AD27: =IF(J27>11/12,1-AD26,IF(J27<1/12,1-AD26,"")) ->  | AE27: Hoverson, Anne | AH27: -11 | AS27: =IF(OR(E21>330,E21<30),"",29) -> 29 | AT27: =IF(E21>330,1,IF(E21<30,300,"")) ->  | AV27: =IF(OR(J22*360>330,J22*360<30),"",29) -> 29 | AW27: =IF(J22*360>330,1,IF(J22*360<30,300,"")) -> 
C28: m Position | D28: =IF(B26=FALSE,NA(),IF(VLOOKUP(DD5,F17:G32,2,0)-((CE5-FLOOR(CE5,100/48/100))/(100/48/100))*22.5<0,360+VLOOKUP(DD5,F17:G32,2,0)-((CE5-FLOOR(CE5,100/48/100))/(100/48/100))*22.5,VLOOKUP(DD5,F17:G32,2,0)-((CE5-FLOOR(CE5,100/48/100))/(100/48/100))*22.5)) -> 78.4448037 | E28: =IF(B25=FALSE,NA(),VLOOKUP(DD4,F17:G32,2,0)-((CE4-FLOOR(CE4,100/48/100))/(100/48/100))*22.5) -> 153.3745055 | F28: WSW | G28: 247.5 | I28: =IF(B26=FALSE,NA(),CQ5) -> 0.3648062345 | J28: =IF(B25=FALSE,NA(),CQ4) -> 0.1341941646 | K28: Time | L28: =DT5-INT(DT5) -> 22:35:30 | M28: =DV5-INT(DV5)+1/86400 -> 22:03:39.571 | N28: =CA5-INT(CA5)-1/1440 -> 11:54:08.571 | O28: =CB5-INT(CB5) -> 20:28:04.286 | P28: Master | R28: 1 | S28: 2 | T28: 3 | U28: 4 | V28: 5 | W28: 6 | X28: 7 | Y28: 8 | Z28: micro | AA28: =IF(OR(E28>330,E28<30),"",E28-30) -> 123.3745055 | AB28: =IF(E28>330,ABS(E28+30-360),IF(E28<30,E28+30,"")) ->  | AC28: =IF(OR(J31>1-1/12,J31<1/12),"",J31-1/12) -> 0.7253467644 | AD28: =IF(J31>1-1/12,ABS(J31+1/12-1),IF(J31<1/12,J31+1/12,"")) ->  | AE28: Hoverson, Charlie | AH28: -12 | AS28: =IF(OR(E21>330,E21<30),"",360-AS27-AS26-AS25-AS24) -> 68.5104 | AT28: =IF(E21>330,29-AT24,IF(E21<30,29-AT24,"")) ->  | AV28: =IF(OR(J22*360>330,J22*360<30),"",360-AV27-AV26-AV25-AV24) -> 237.1632 | AW28: =IF(J22*360>330,29-AW24,IF(J22*360<30,29-AW24,"")) -> 
C29: m HandWidth | D29: =IF(B26=TRUE,2.5,NA()) -> 2.5 | E29: 2.25 | F29: W | G29: 270 | H29: M Hand Width | I29: =IF(B26=TRUE,0.005,NA()) -> 0.005 | J29: =IF(B25=FALSE,NA(),0.008) -> 0.008 | Q29: 1 | R29: G | S29: G | T29: Y | U29: Y | V29: R | W29: R | X29: Y | Y29: Y | AA29: =IF(OR(E28>330,E28<30),"",60) -> 60 | AB29: =IF(E28>330,E28-30,IF(E28<30,AB28+300,"")) ->  | AC29: =IF(OR(J31>1-1/12,J31<1/12),"",1/6) -> 0.1666666667 | AD29: =IF(J31>11/12,J31-1/12,IF(J31<1/12,AD28+5/6,"")) ->  | AE29: Hoverson, Curtis | AH29: 1 | AS29: MACRO
C30: m Blank Area | D30: =360-D28-D29 -> 279.0551963 | E30: =360-E28-E29 -> 204.3754945 | F30: WNW | G30: 292.5 | H30: M Blank Area | I30: =1-I29-I28 -> 0.6301937655 | J30: =1-J29-J28 -> 0.8578058354 | M30: date | N30: Legth of Season | O30: % thru season | Q30: 2 | R30: G | S30: G | T30: Y | U30: Y | V30: R | W30: R | X30: Y | Y30: Y | AA30: =IF(OR(E28>330,E28<30),"",360-AA28-AA29) -> 176.6254945 | AB30: =IF(E28>330,360-AB29,IF(E28<30,360-AB29,"")) ->  | AC30: =IF(OR(J31>1-1/12,J31<1/12),"",1-AC28-AC29) -> 0.107986569 | AD30: =IF(J31>11/12,1-AD29,IF(J31<1/12,1-AD29,"")) ->  | AE30: Hoverson, Hayden | AH30: 2 | AS30: =IF(OR(E25>330,E25<30),"",E25-30) -> 5.070302198 | AT30: =IF(E25>330,ABS(E25+30-360),IF(E25<30,E25,"")) ->  | AV30: =IF(OR(J27*360>330,J27*360<30),"",J27*360-30) -> 18.30989927 | AW30: =IF(J27*360>330,ABS(J27*360+30-360),IF(J27*360<30,J27*360,"")) -> 
C31: Physical | F31: NW | G31: 315 | H31: m Position | I31: =DA5 -> 18:15:24.416 | J31: =IF(B25=FALSE,NA(),DA4) -> 19:24:29.960 | K31: =M4-1 -> 1974 | L31: Fall | M31: =HLOOKUP(M4-1,'AW1899-2149'!A:IQ,548,FALSE)+VLOOKUP(F4,'Time Zones'!$C:$D,2,0)/24 -> 1974-09-23T03:58:00 | N31: =M32-M31 -> 89.83125 | Q31: 3 | R31: Y | S31: Y | T31: G | U31: G | V31: Y | W31: Y | X31: R | Y31: R | Z31: Physical | AE31: Hoverson, Holten | AH31: 3 | AS31: =IF(OR(E25>330,E25<30),"",30) -> 30 | AT31: =IF(E25>330,300,IF(E25<30,1,"")) ->  | AV31: =IF(OR(J27*360>330,J27*360<30),"",30) -> 30 | AW31: =IF(J27*360>330,300,IF(J27*360<30,1,"")) -> 
C32: M Position | D32: =IF(B26=FALSE,NA(),VLOOKUP(DG5,F17:G32,2,0)-22.5*DY5) -> 210.6204677 | E32: =IF(B25=FALSE,NA(),VLOOKUP(DG4,F17:G32,2,0)-22.5*DY4) -> 343.4139286 | F32: NNW | G32: 337.5 | I32: =IF(B26=FALSE,NA(),DA5) -> 0.7606992558 | J32: =IF(B25=FALSE,NA(),DA4) -> 0.8086800977 | K32: =M4 -> 1975 | L32: winter | M32: =HLOOKUP(M4,'AW1899-2149'!A:IQ,2,FALSE)+VLOOKUP(F4,'Time Zones'!$C:$D,2,0)/24 -> 1974-12-21T23:55:00 | N32: =M33-M32 -> 89.00069444 | O32: =IF(($D$4+$E$4)>M33,1,IF($D$4+$E$4<=M32,0,(($D$4+$E$4)-M32)/N32)) -> 0.03152285017 | Q32: 4 | R32: Y | S32: Y | T32: G | U32: G | V32: Y | W32: Y | X32: R | Y32: R | Z32: MACRO | AA32: =IF(OR(E32>330,E32<30),"",E32-30) ->  | AB32: =IF(E32>330,ABS(E32+30-360),IF(E32<30,E32+30,"")) -> 13.41392857 | AC32: =IF(OR(J36>1-1/12,J36<1/12),"",J36-1/12) ->  | AD32: =IF(J36>1-1/12,ABS(J36+1/12-1),IF(J36<1/12,J36+1/12,"")) -> 0.06797585979 | AE32: Hoverson, Julie | AH32: 4 | AS32: =IF(OR(E25>330,E25<30),"",1) -> 1 | AT32: =IF(E25>330,29,IF(E25<30,30,"")) ->  | AV32: =IF(OR(J27*360>330,J27*360<30),"",1) -> 1 | AW32: =IF(J27*360>330,29,IF(J27*360<30,30,"")) -> 
C33: M Hand Width | D33: =IF(B26=TRUE,3,NA()) -> 3 | E33: =IF(B25=FALSE,NA(),2) -> 2 | F33: Red, Yellow, Green | G33: #C6E0B4 | H33: m HandWidth | I33: =IF(B26=TRUE,0.012,NA()) -> 0.012 | J33: =IF(B25=FALSE,NA(),0.008) -> 0.008 | K33: =M4 -> 1975 | L33: spring | M33: =HLOOKUP(M4,'AW1899-2149'!A:IQ,184,FALSE)+VLOOKUP(F4,'Time Zones'!$C:$D,2,0)/24 -> 1975-03-20T23:56:00 | N33: 92.77083333 | O33: =IF(($D$4+$E$4)>M34,1,IF($D$4+$E$4<=M33,0,(($D$4+$E$4)-M33)/N33)) -> 0 | Q33: 5 | R33: R | S33: R | T33: Y | U33: Y | V33: G | W33: G | X33: Y | Y33: Y | AA33: =IF(OR(E32>330,E32<30),"",60) ->  | AB33: =IF(E32>330,E32-30,IF(E32<30,AB32+300,"")) -> 313.4139286 | AC33: =IF(OR(J36>1-1/12,J36<1/12),"",1/6) ->  | AD33: =IF(J36>11/12,J36-1/12,IF(J36<1/12,AD32+5/6,"")) -> 0.9013091931 | AE33: Hoverson, Kara | AH33: 5 | AS33: =IF(OR(E25>330,E25<30),"",29) -> 29 | AT33: =IF(E25>330,1,IF(E25<30,300,"")) ->  | AV33: =IF(OR(J27*360>330,J27*360<30),"",29) -> 29 | AW33: =IF(J27*360>330,1,IF(J27*360<30,300,"")) -> 
C34: M Blank Area | D34: =360-SUM(D32:D33) -> 146.3795323 | E34: =360-E32-E33 -> 14.58607143 | G34: #FFE699 | H34: m Blank Area | I34: =1-I33-I32 -> 0.2273007442 | J34: =1-J33-J32 -> 0.1833199023 | K34: =M4 -> 1975 | L34: summer | M34: =HLOOKUP(M4,'AW1899-2149'!A:IQ,366,FALSE)+VLOOKUP(F4,'Time Zones'!$C:$D,2,0)/24 -> 1975-06-21T18:26:00 | N34: 93.64513889 | O34: =IF(($D$4+$E$4)>M35,1,IF($D$4+$E$4<=M34,0,(($D$4+$E$4)-M34)/N34)) -> 0 | Q34: 6 | R34: R | S34: R | T34: Y | U34: Y | V34: G | W34: G | X34: Y | Y34: Y | AA34: =IF(OR(E32>330,E32<30),"",360-AA32-AA33) ->  | AB34: =IF(E32>330,360-AB33,IF(E32<30,360-AB33,"")) -> 46.58607143 | AC34: =IF(OR(J36>1-1/12,J36<1/12),"",1-AC32-AC33) ->  | AD34: =IF(J36>11/12,1-AD33,IF(J36<1/12,1-AD33,"")) -> 0.09869080688 | AE34: Hoverson, Kathy | AH34: 6 | AS34: =IF(OR(E25>330,E25<30),"",360-AS33-AS32-AS31-AS30) -> 294.9296978 | AT34: =IF(E25>330,29-AT30,IF(E25<30,29-AT30,"")) ->  | AV34: =IF(OR(J27*360>330,J27*360<30),"",360-AV33-AV32-AV31-AV30) -> 281.6901007 | AW34: =IF(J27*360>330,29-AW30,IF(J27*360<30,29-AW30,"")) -> 
C35: m Position | D35: =IF(B26=FALSE,NA(),VLOOKUP(EZ5,F17:G32,2,0)-((DY5-FLOOR(DY5,100/48/100))/(100/48/100))*22.5) -> 299.782448 | E35: =IF(B25=FALSE,NA(),VLOOKUP(EZ4,F17:G32,2,0)-((DY4-FLOOR(DY4,100/48/100))/(100/48/100))*22.5) -> 193.8685716 | G35: #F78D8D | H35: Physical | K35: =M4 -> 1975 | L35: fall | M35: =HLOOKUP(M4,'AW1899-2149'!A:IQ,548,FALSE)+VLOOKUP(F4,'Time Zones'!$C:$D,2,0)/24 -> 1975-09-23T09:55:00 | N35: 89.82638889 | O35: =IF(($D$4+$E$4)>M36,1,IF($D$4+$E$4<=M35,0,(($D$4+$E$4)-M35)/N35)) -> 0 | Q35: 7 | R35: Y | S35: Y | T35: R | U35: R | V35: Y | W35: Y | X35: G | Y35: G | Z35: micro | AA35: =IF(OR(E35>330,E35<30),"",E35-30) -> 163.8685716 | AB35: =IF(E35>330,ABS(E35+30-360),IF(E35<30,E35+30,"")) ->  | AC35: =IF(OR(J40>1-1/12,J40<1/12),"",J40-1/12) -> 0.4295310848 | AD35: =IF(J40>1-1/12,ABS(J40+1/12-1),IF(J40<1/12,J40+1/12,"")) ->  | AE35: Hoverson, Kyle | AH35: 7 | AS35: micro | BC35: =IF(DA4*360>330,ABS(DA4*360+30-360),IF(DA4*360<30,DA4*360,"")) -> 
C36: m HandWidth | D36: =IF(B26=TRUE,4,NA()) -> 4 | E36: 1.5 | F36: Quadrants | G36: #79FF79 | H36: M Position | I36: =EM5 -> 23:19:10.363 | J36: =IF(B25=FALSE,NA(),EM4) -> 23:37:53.114 | K36: =M4+1 -> 1976 | L36: winter | M36: =HLOOKUP(M4+1,'AW1899-2149'!A:IQ,2,FALSE)+VLOOKUP(F4,'Time Zones'!$C:$D,2,0)/24 -> 1975-12-22T05:45:00 | N36: 89.00277778 | Q36: 8 | R36: Y | S36: Y | T36: R | U36: R | V36: Y | W36: Y | X36: G | Y36: G | AA36: =IF(OR(E35>330,E35<30),"",60) -> 60 | AB36: =IF(E35>330,E35-30,IF(E35<30,AB35+300,"")) ->  | AC36: =IF(OR(J40>1-1/12,J40<1/12),"",1/6) -> 0.1666666667 | AD36: =IF(J40>11/12,J40-1/12,IF(J40<1/12,AD35+5/6,"")) ->  | AE36: Hoverson, Loree | AH36: 8 | AS36: =IF(OR(E28>330,E28<30),"",E28-30) -> 123.3745055 | AT36: =IF(E28>330,ABS(E28+30-360),IF(E28<30,E28,"")) ->  | AV36: =IF(OR(J31*360>330,J31*360<30),"",J31*360-30) -> 261.1248352 | AW36: =IF(J31*360>330,ABS(J31*360+30-360),IF(J31*360<30,J31*360,"")) ->  | BC36: =DA4 -> 19:24:29.960
C37: m Blank Area | D37: =360-D35-D36 -> 56.21755197 | E37: =360-E35-E36 -> 164.6314284 | G37: #FFC043 | I37: =IF(B26=FALSE,NA(),EM5) -> 0.9716477151 | J37: =IF(B25=FALSE,NA(),EM4) -> 0.9846425265 | K37: =M4+1 -> 1976 | L37: Spring | M37: =HLOOKUP(M4+1,'AW1899-2149'!A:IQ,184,FALSE)+VLOOKUP(F4,'Time Zones'!$C:$D,2,0)/24 -> 1976-03-20T05:49:00 | P37: PHASES | Q37: Waves are both even or odd | AA37: =IF(OR(E35>330,E35<30),"",360-AA35-AA36) -> 136.1314284 | AB37: =IF(E35>330,360-AB36,IF(E35<30,360-AB36,"")) ->  | AC37: =IF(OR(J40>1-1/12,J40<1/12),"",1-AC35-AC36) -> 0.4038022486 | AD37: =IF(J40>11/12,1-AD36,IF(J40<1/12,1-AD36,"")) ->  | AE37: Hoverson, Randy | AH37: 9 | AS37: =IF(OR(E28>330,E28<30),"",30) -> 30 | AT37: =IF(E28>330,300,IF(E28<30,1,"")) ->  | AV37: =IF(OR(J31*360>330,J31*360<30),"",30) -> 30 | AW37: =IF(J31*360>330,300,IF(J31*360<30,1,"")) -> 
A38: Direction | B38: Start | C38: Middle | D38: Finish | G38: #FF6D4B | H38: M Hand Width | I38: =IF(B26=TRUE,0.005,NA()) -> 0.005 | J38: =IF(B25=FALSE,NA(),0.006) -> 0.006 | K38: percent thru the year based on Season Completion: | O38: =ROUND(SUM(O32:O35)/4,5) -> 0.00788 | Q38: 1 | R38: 2 | S38: 3 | T38: 4 | U38: 5 | V38: Used to determin Micro Shape Compatibility | AE38: Hoverson, Ryan | AH38: 10 | AS38: =IF(OR(E28>330,E28<30),"",1) -> 1 | AT38: =IF(E28>330,29,IF(E28<30,30,"")) ->  | AV38: =IF(OR(J31*360>330,J31*360<30),"",1) -> 1 | AW38: =IF(J31*360>330,29,IF(J31*360<30,30,"")) -> 
A39: N | B39: ID | C39: D | D39: DC | E39: #79FF79 | G39: #FFFF81 | H39: M Blank Area | I39: =1-I38-I37 -> 0.02335228488 | J39: =IF(B25=FALSE,NA(),1-J38-J37) -> 0.009357473542 | P39: 1 | Q39: G | R39: Y | S39: Y | T39: Y | U39: R | W39: 1 | X39: 2 | Y39: 3 | Z39: 4 | AA39: 5 | AB39: 6 | AC39: 7 | AD39: 8 | AE39: Hoverson, Tara | AH39: 11 | AS39: =IF(OR(E28>330,E28<30),"",29) -> 29 | AT39: =IF(E28>330,1,IF(E28<30,300,"")) ->  | AV39: =IF(OR(J31*360>330,J31*360<30),"",29) -> 29 | AW39: =IF(J31*360>330,1,IF(J31*360<30,300,"")) -> 
A40: NNW | B40: DC | C40: C | D40: OC | E40: #FFC043 | F40: 06:59:19 | H40: m Position | I40: =EW5 -> 21:20:15.404 | J40: =IF(B25=FALSE,NA(),EW4) -> 12:18:31.486 | K40: Dial for Coordinate Cross | P40: 2 | Q40: Y | R40: G | S40: Y | T40: R | U40: Y | V40: 1 | W40: G | X40: Y | Y40: Y | Z40: Y | AA40: R | AB40: Y | AC40: Y | AD40: Y | AE40: Hoverson, Trey | AH40: 12 | AS40: =IF(OR(E28>330,E28<30),"",360-AS39-AS38-AS37-AS36) -> 176.6254945 | AT40: =IF(E28>330,29-AT36,IF(E28<30,29-AT36,"")) ->  | AV40: =IF(OR(J31*360>330,J31*360<30),"",360-AV39-AV38-AV37-AV36) -> 38.87516483 | AW40: =IF(J31*360>330,29-AW36,IF(J31*360<30,29-AW36,"")) -> 
A41: NW | B41: OC | C41: O | D41: IO | E41: #FF6D4B | F41: =TODAY() -> 2025-03-17 | I41: =IF(B26=FALSE,NA(),EW5) -> 0.8890671778 | J41: =IF(B25=FALSE,NA(),EW4) -> 0.5128644181 | L41: Mind | M41: Emotion | N41: Physical | P41: 3 | Q41: Y | R41: Y | S41: G | T41: Y | U41: Y | V41: 2 | W41: Y | X41: G | Y41: Y | Z41: Y | AA41: Y | AB41: R | AC41: Y | AD41: Y | AE41: Ivy, C.J. | AS41: MACRO
A42: WNW | B42: IO | C42: I | D42: ID | E42: #FFFF81 | F42: =F41+F40 -> 2025-03-17T06:59:19 | H42: m HandWidth | I42: =IF(B26=TRUE,0.012,NA()) -> 0.012 | J42: =IF(B25=FALSE,NA(),0.006) -> 0.006 | P42: 4 | Q42: Y | R42: R | S42: Y | T42: G | U42: Y | V42: 3 | W42: Y | X42: Y | Y42: G | Z42: Y | AA42: Y | AB42: Y | AC42: R | AD42: Y | AE42: Ivy, Marc | AS42: =IF(OR(E32>330,E32<30),"",E32-30) ->  | AT42: =IF(E32>330,ABS(E32+30-360),IF(E32<30,E32,"")) -> 13.41392857 | AV42: =IF(OR(J36*360>330,J36*360<30),"",J36*360-30) ->  | AW42: =IF(J36*360>330,ABS(J36*360+30-360),IF(J36*360<30,J36*360,"")) -> 24.47130952
A43: W | B43: ID | C43: D | D43: DC | H43: m Blank Area | I43: =1-I42-I41 -> 0.09893282225 | J43: =1-J42-J41 -> 0.4811355819 | K43: Position | L43: =IF(IF(AJ5="LR",AE5+0.125,(1-AE5)-0.125)>1,IF(AJ5="LR",AE5+0.125,(1-AE5)-0.125)-1,IF(AJ5="LR",AE5+0.125,(1-AE5)-0.125)) -> 0.3484053439 | M43: =IF(IF(CH5="LR",CE5+0.125,(1-CE5)-0.125)>1,IF(CH5="LR",CE5+0.125,(1-CE5)-0.125)-1,IF(CH5="LR",CE5+0.125,(1-CE5)-0.125)) -> 0.6356992558 | N43: =IF(IF(ED5="LR",DY5+0.125,(1-DY5)-0.125)>1,IF(ED5="LR",DY5+0.125,(1-DY5)-0.125)-1,IF(ED5="LR",DY5+0.125,(1-DY5)-0.125)) -> 0.7640903259 | P43: 5 | Q43: R | R43: Y | S43: Y | T43: Y | U43: G | V43: 4 | W43: Y | X43: Y | Y43: Y | Z43: G | AA43: Y | AB43: Y | AC43: Y | AD43: R | AE43: Jackmack, Robin | AS43: =IF(OR(E32>330,E32<30),"",30) ->  | AT43: =IF(E32>330,300,IF(E32<30,1,"")) -> 300 | AV43: =IF(OR(J36*360>330,J36*360<30),"",30) ->  | AW43: =IF(J36*360>330,300,IF(J36*360<30,1,"")) -> 300
A44: WSW | B44: DC | C44: C | D44: OC | G44: Phase Color | K44: Hand Width | L44: 0.009 | M44: 0.007 | N44: 0.005 | Q44: One wave is even and the other is odd | V44: 5 | W44: R | X44: Y | Y44: Y | Z44: Y | AA44: G | AB44: Y | AC44: Y | AD44: Y | AE44: Lee, Jac | AS44: =IF(OR(E32>330,E32<30),"",1) ->  | AT44: =IF(E32>330,29,IF(E32<30,30,"")) -> 29 | AV44: =IF(OR(J36*360>330,J36*360<30),"",1) ->  | AW44: =IF(J36*360>330,29,IF(J36*360<30,30,"")) -> 29
A45: SW | B45: OC | C45: O | D45: IO | E45: 1 | F45: #FF0000 | H45: Red Zone | I45: Yellow Zone | J45: Green Zone | K45: Blank Area | L45: =1-L43-L44 -> 0.6425946561 | M45: =1-M43-M44 -> 0.3573007442 | N45: =1-N43-N44 -> 0.2309096741 | P45: 1 | Q45: R | R45: Y | S45: Y | T45: Y | U45: G | V45: 6 | W45: Y | X45: R | Y45: Y | Z45: Y | AA45: Y | AB45: G | AC45: Y | AD45: Y | AE45: McFadden, Daniel | AS45: =IF(OR(E32>330,E32<30),"",29) ->  | AT45: =IF(E32>330,1,IF(E32<30,300,"")) -> 1 | AV45: =IF(OR(J36*360>330,J36*360<30),"",29) ->  | AW45: =IF(J36*360>330,1,IF(J36*360<30,300,"")) -> 1
A46: SSW | B46: IO | C46: I | D46: ID | E46: 2 | F46: #FFC000 | G46: Mind | H46: =IF(OR(AE5<2.5%,AND(10%<AE5,AE5<15%),AND(22.5%<AE5,AE5<27.5%),AND(35%<AE5,AE5<40%),AND(47.5%<AE5,AE5<52.5%),AND(60%<AE5,AE5<65%),AND(72.5%<AE5,AE5<77.5%),AND(85%<AE5,AE5<90%),AE5>97.5%),1,"Nope ") -> Nope | I46: =IF(OR(AND(2.5%<=AE5,AE5<5%),AND(7.5%<AE5,AE5<=10%),AND(15%<=AE5,AE5<17.5%),AND(20%<AE5,AE5<=22.5%),AND(27.5%<=AE5,AE5<30%),AND(32.5%<AE5,AE5<=35%),AND(40%<=AE5,AE5<45.5%),AND(45%<AE5,AE5<=47.5%),AND(52.5%<=AE5,AE5<55%),AND(57.5%<AE5,AE5<=60%),AND(65%<=AE5,AE5<67.5%),AND(70%<AE5,AE5<=72.5%),AND(77.5%<=AE5,AE5<80%),AND(82.5%<AE5,AE5<=85%),AND(90%<=AE5,AE5<92.5%),AND(95%<AE5,AE5<=97.5%)),1,"Nope") -> 1 | J46: =IF(OR(AND(AE5>=5%,AE5<=7.5%),AND(AE5>=17.5%,AE5<=20%),AND(AE5>=30%,AE5<=32.5%),AND(AE5>=42.5%,AE5<=45%),AND(AE5>=55%,AE5<=57.5%),AND(AE5>=67.5%,AE5<=70%),AND(AE5>=80%,AE5<=82.5%),AND(AE5>=92.5%,AE5<=95%)),1,"Nope") -> Nope | P46: 2 | Q46: Y | R46: R | S46: Y | T46: G | U46: Y | V46: 7 | W46: Y | X46: Y | Y46: R | Z46: Y | AA46: Y | AB46: Y | AC46: G | AD46: Y | AE46: McFadden, Kevin | AS46: =IF(OR(E32>330,E32<30),"",360-AS45-AS44-AS43-AS42) ->  | AT46: =IF(E32>330,29-AT42,IF(E32<30,29-AT42,"")) -> 15.58607143 | AV46: =IF(OR(J36*360>330,J36*360<30),"",360-AV45-AV44-AV43-AV42) ->  | AW46: =IF(J36*360>330,29-AW42,IF(J36*360<30,29-AW42,"")) -> 4.528690475
A47: S | B47: ID | C47: D | D47: DC | E47: 3 | F47: #FFFF00 | G47: Emo | H47: =IF(OR(CE5<2.5%,AND(10%<CE5,CE5<15%),AND(22.5%<CE5,CE5<27.5%),AND(35%<CE5,CE5<40%),AND(47.5%<CE5,CE5<52.5%),AND(60%<CE5,CE5<65%),AND(72.5%<CE5,CE5<77.5%),AND(85%<CE5,CE5<90%),CE5>97.5%),1,"Nope ") -> 1 | I47: =IF(OR(AND(2.5%<=CE5,CE5<5%),AND(7.5%<CE5,CE5<=10%),AND(15%<=CE5,CE5<17.5%),AND(20%<CE5,CE5<=22.5%),AND(27.5%<=CE5,CE5<30%),AND(32.5%<CE5,CE5<=35%),AND(40%<=CE5,CE5<45.5%),AND(45%<CE5,CE5<=47.5%),AND(52.5%<=CE5,CE5<55%),AND(57.5%<CE5,CE5<=60%),AND(65%<=CE5,CE5<67.5%),AND(70%<CE5,CE5<=72.5%),AND(77.5%<=CE5,CE5<80%),AND(82.5%<CE5,CE5<=85%),AND(90%<=CE5,CE5<92.5%),AND(95%<CE5,CE5<=97.5%)),1,"Nope") -> Nope | J47: =IF(OR(AND(CE5>=5%,CE5<=7.5%),AND(CE5>=17.5%,CE5<=20%),AND(CE5>=30%,CE5<=32.5%),AND(CE5>=42.5%,CE5<=45%),AND(CE5>=55%,CE5<=57.5%),AND(CE5>=67.5%,CE5<=70%),AND(CE5>=80%,CE5<=82.5%),AND(CE5>=92.5%,CE5<=95%)),1,"Nope") -> Nope | P47: 3 | Q47: Y | R47: Y | S47: G | T47: Y | U47: Y | V47: 8 | W47: Y | X47: Y | Y47: Y | Z47: R | AA47: Y | AB47: Y | AC47: Y | AD47: G | AE47: Naul, Bryan | AS47: micro
A48: SSE | B48: DC | C48: C | D48: OC | E48: 4 | F48: #00FF00 | G48: Phy | H48: =IF(OR(DY5<2.5%,AND(10%<DY5,DY5<15%),AND(22.5%<DY5,DY5<27.5%),AND(35%<DY5,DY5<40%),AND(47.5%<DY5,DY5<52.5%),AND(60%<DY5,DY5<65%),AND(72.5%<DY5,DY5<77.5%),AND(85%<DY5,DY5<90%),DY5>97.5%),1,"Nope ") -> 1 | I48: =IF(OR(AND(2.5%<=DY5,DY5<5%),AND(7.5%<DY5,DY5<=10%),AND(15%<=DY5,DY5<17.5%),AND(20%<DY5,DY5<=22.5%),AND(27.5%<=DY5,DY5<30%),AND(32.5%<DY5,DY5<=35%),AND(40%<=DY5,DY5<45.5%),AND(45%<DY5,DY5<=47.5%),AND(52.5%<=DY5,DY5<55%),AND(57.5%<DY5,DY5<=60%),AND(65%<=DY5,DY5<67.5%),AND(70%<DY5,DY5<=72.5%),AND(77.5%<=DY5,DY5<80%),AND(82.5%<DY5,DY5<=85%),AND(90%<=DY5,DY5<92.5%),AND(95%<DY5,DY5<=97.5%)),1,"Nope") -> Nope | J48: =IF(OR(AND(DY5>=5%,DY5<=7.5%),AND(DY5>=17.5%,DY5<=20%),AND(DY5>=30%,DY5<=32.5%),AND(DY5>=42.5%,DY5<=45%),AND(DY5>=55%,DY5<=57.5%),AND(DY5>=67.5%,DY5<=70%),AND(DY5>=80%,DY5<=82.5%),AND(DY5>=92.5%,DY5<=95%)),1,"Nope") -> Nope | P48: 4 | Q48: Y | R48: G | S48: Y | T48: R | U48: Y | AE48: Network, Murphy | AS48: =IF(OR(E35>330,E35<30),"",E35-30) -> 163.8685716 | AT48: =IF(E35>330,ABS(E35+30-360),IF(E35<30,E35,"")) ->  | AV48: =IF(OR(J40*360>330,J40*360<30),"",J40*360-30) -> 154.6311905 | AW48: =IF(J40*360>330,ABS(J40*360+30-360),IF(J40*360<30,J40*360,"")) -> 
A49: SE | B49: OC | C49: O | D49: IO | E49: 5 | F49: #00B0F0 | G49: ⇄⇉⇇⇆↺↻↶↷⇖⇙⇒⇐⇓⇑⇊⇈⇗⇘⇜⇝⇨⇦⇚⇛⇧⇩⇱⇲▼●▲◍◀▶▷◁◄►◅▻◂▸◃▹♂♀ | P49: 5 | Q49: G | R49: Y | S49: Y | T49: Y | U49: R | AE49: Obiwon, Jack | AS49: =IF(OR(E35>330,E35<30),"",30) -> 30 | AT49: =IF(E35>330,300,IF(E35<30,1,"")) ->  | AV49: =IF(OR(J40*360>330,J40*360<30),"",30) -> 30 | AW49: =IF(J40*360>330,300,IF(J40*360<30,1,"")) -> 
A50: ESE | B50: IO | C50: I | D50: ID | E50: 6 | F50: #0070C0 | H50: Phase buttons | M50: Micro Awareness | U50: Check Boxes on Dashboard | AE50: Schultz, Amy | AS50: =IF(OR(E35>330,E35<30),"",1) -> 1 | AT50: =IF(E35>330,29,IF(E35<30,30,"")) ->  | AV50: =IF(OR(J40*360>330,J40*360<30),"",1) -> 1 | AW50: =IF(J40*360>330,29,IF(J40*360<30,30,"")) -> 
A51: E | B51: ID | C51: D | D51: DC | E51: 7 | F51: #E52FF9 | I51: Previous Emo Phase Start | J51: Current EMO Phase Start | K51: Next EMO Phase Start | L51: Length of EMO Phase (hrs) | M51: 0 | N51: 0 | O51: 06:00:00 | P51: 7-7 | R51: 06:00:00 | S51: 8-8 | U51: Macro Data: | W51: TRUE | X51: To show Average Average Line on Shareable/Simple Page | Z51: FALSE | AE51: Schultz, Caleb | AS51: =IF(OR(E35>330,E35<30),"",29) -> 29 | AT51: =IF(E35>330,1,IF(E35<30,300,"")) ->  | AV51: =IF(OR(J40*360>330,J40*360<30),"",29) -> 29 | AW51: =IF(J40*360>330,1,IF(J40*360<30,300,"")) -> 
A52: ENE | B52: DC | C52: C | D52: OC | E52: 8 | F52: #E52FF9 | H52: Date and Time | I52: =(CA5+CC5*((VLOOKUP(CE5,A66:D105,4,TRUE)-2)*0.025))+1/86400 -> 2025-03-10T12:22:48.036 | J52: =(CA5+CC5*((VLOOKUP(CE5,A66:D105,4,TRUE)-1)*0.025))+1/86400 -> 2025-03-10T16:11:37.429 | K52: =(CA5+CC5*((VLOOKUP(CE5,A66:D105,4,TRUE))*0.025))+1/86400 -> 2025-03-10T20:00:26.821 | L52: =(CC5/40)*24 -> 3.813720238 | M52: 1 | N52: =M52/48 -> 0.02083333333 | O52: 06:30:00 | P52: 8-7 | R52: 05:30:00 | S52: 8-7 | T52: Next | U52: Micro Data: | W52: TRUE | X52: To Show PHY/EMO Separation | Z52: TRUE | AE52: Schultz, Isaac | AS52: =IF(OR(E35>330,E35<30),"",360-AS51-AS50-AS49-AS48) -> 136.1314284 | AT52: =IF(E35>330,29-AT48,IF(E35<30,29-AT48,"")) ->  | AV52: =IF(OR(J40*360>330,J40*360<30),"",360-AV51-AV50-AV49-AV48) -> 145.3688095 | AW52: =IF(J40*360>330,29-AW48,IF(J40*360<30,29-AW48,"")) -> 
A53: NE | B53: OC | C53: O | D53: IO | H53: date | I53: =INT(I52) -> 2025-03-10 | J53: =INT(J52) -> 2025-03-10 | K53: =INT(K52) -> 2025-03-10 | M53: 2 | N53: =M53/48 -> 0.04166666667 | O53: 07:00:00 | P53: 8-6 | Q53: Next | R53: 05:00:00 | S53: 8-6 | U53: Average Data | W53: TRUE | X53: to show EMO jumps / steps | Z53: TRUE | AE53: Schultz, Scott
A54: NNE | B54: IO | C54: I | D54: ID | F54: #F78D8D | H54: Time | I54: =I52-I53 -> 12:22:48.036 | J54: =J52-J53 -> 16:11:37.429 | K54: =K52-K53 -> 20:00:26.821 | M54: 3 | N54: =M54/48 -> 0.0625 | O54: 07:30:00 | P54: 8-5 | R54: 04:30:00 | S54: 8-5 | T54: Next | U54: Mental | V54: FALSE | W54: =IF(V54=TRUE,"M","") ->  | X54: to show average line | Z54: TRUE | AE54: Selig, Jeff
A55: Find Shape | I55: Previous Phy Phase Start | J55: Current Phy Phase Start | K55: Next Phy Phase Start | L55: Lenth of Phy Phase (min) | M55: 4 | N55: 0.08333333333 | O55: 08:00:00 | P55: 8-4 | Q55: Next | R55: 04:00:00 | S55: 8-4 | U55: Emotional | V55: FALSE | W55: =IF(V55=TRUE,"E","") ->  | X55: to show Average Trend Line | Z55: TRUE | AE55: Selig, Jeremy
A56: Icosahedron | B56: I | D56: World | E56: Mother | F56: 1 | H56: Date and Time | I56: =(DU5+DW5*((VLOOKUP(DY5,A66:D105,4,TRUE)-2)*0.025))+1/86400 -> 2025-03-10T17:22:01.857 | J56: =(DU5+DW5*((VLOOKUP(DY5,A66:D105,4,TRUE)-1)*0.025))+1/86400 -> 2025-03-10T17:39:37.964 | K56: =(DU5+DW5*((VLOOKUP(DY5,A66:D105,4,TRUE))*0.025))+1/86400 -> 2025-03-10T17:57:14.071 | L56: =(DW5/40)*24*60 -> 17.60178571 | M56: 5 | N56: 0.1041666667 | O56: 08:30:00 | P56: 8-3 | R56: 03:30:00 | S56: 8-3 | T56: Next | U56: Pysical | V56: TRUE | W56: =IF(V56=TRUE,"P","") -> P | X56: to show emo step times on linear graph or phy peaks | Z56: FALSE | AE56: Selig, Linda
A57: Dodecahedron | B57: D | D57: Nation | E57: Father | F57: 3 | G57: =INDEX($C$56:$C$63,MATCH($G$58,$B$56:$B$63,0)) -> 0 | H57: Date | I57: =INT(I56) -> 2025-03-10 | J57: =INT(J56) -> 2025-03-10 | K57: =INT(K56) -> 2025-03-10 | M57: 6 | N57: 0.125 | O57: 09:00:00 | P57: 1-1 | R57: 03:00:00 | S57: 8-2 | U57: Strength of event | W57: 3 | X57: Toggle Labesl on Dials | Z57: TRUE | AE57: Selig, Madilyn
A58: Octahedron | B58: O | D58: Family | E58: Daughter | F58: 7 | G58: D | H58: Time | I58: =I56-I57 -> 17:22:01.857 | J58: =J56-J57 -> 17:39:37.964 | K58: =K56-K57 -> 17:57:14.071 | M58: 7 | N58: 0.1458333333 | O58: 09:30:00 | P58: 1-2 | Q58: Next | R58: 02:30:00 | S58: 1-2 | U58: For Basic Awarness Page | Z58: =IF(Z57=TRUE,"Mother","") -> Mother | AE58: Selig, Max
A59: cube | B59: C | D59: Individual | E59: Son | F59: 5 | I59: Previous Mind Phase | J59: Current Mind Phase | K59: Next Mind Phase | L59: Length of Mind Phase (Days) | M59: 8 | N59: 0.1666666667 | O59: 10:00:00 | P59: 1-3 | R59: 02:00:00 | S59: 1-3 | T59: Next | U59: 1=Space,2=Time,3=Combo | V59: 3 | Z59: =IF(Z57=TRUE,"Father","") -> Father | AE59: space macro N, test1
A60: Icosahedron & Dodecahedron | B60: ID | F60: 2 | H60: Date and Time | I60: =VLOOKUP(AE5-0.025,A117:D158,4,TRUE)+1/86400 -> 2025-02-21T12:18:43 | J60: =VLOOKUP(AE5,A117:D158,4,TRUE)+1/86400 -> 2025-03-02T09:52:49 | K60: =VLOOKUP(AE5+0.025,A117:D159,4,TRUE)+1/86400 -> 2025-03-11T07:26:55 | L60: =K60-J60 -> 8.898680556 | M60: 9 | N60: 0.1875 | O60: 10:30:00 | P60: 1-4 | Q60: Next | R60: 01:30:00 | S60: 1-4 | U60: Macro Data: | V60: TRUE | Z60: =IF(Z57=TRUE,"Daughter","") -> Daughter | AE60: Space micro cone N, test 5
A61: Octahedron & Icosahedron | B61: IO | F61: 8 | H61: Date | I61: =INT(I60) -> 2025-02-21 | J61: =INT(J60) -> 2025-03-02 | K61: =INT(K60) -> 2025-03-11 | M61: 10 | N61: 0.2083333333 | O61: 11:00:00 | P61: 1-5 | R61: 01:00:00 | S61: 1-5 | T61: Next | U61: Micro Data: | V61: TRUE | Z61: =IF(Z57=TRUE,"Son","") -> Son | AE61: St, Tatiana
A62: Dodecahedron & Cube | B62: DC | F62: 4 | H62: Time | I62: =I60-I61 -> 12:18:43 | J62: =J60-J61 -> 09:52:49 | K62: 07:26:55 | M62: 11 | N62: 0.2291666667 | O62: 11:30:00 | P62: 1-6 | Q62: Next | R62: 00:30:00 | S62: 1-6 | U62: Average Data | V62: TRUE | Z62: =IF(Z57=TRUE,"World","") -> World | AE62: test, 2
A63: Cube & Octahedron | B63: OC | F63: 6 | M63: 12 | N63: =M63/48 -> 0.25 | O63: 12:00:00 | P63: 1-7 | R63: 00:00:00 | S63: 2-8 | U63: Used for "Boosted" check mark on dashboard | Z63: =IF(Z57=TRUE,"Nation","") -> Nation | AE63: test, 3
A64: Phase Number | M64: 13 | N64: =M64/48 -> 0.2708333333 | O64: 12:30:00 | P64: 2-7 | R64: 23:30:00 | S64: 2-7 | T64: Next | U64: Physical | V64: TRUE | W64: =IF(V64=TRUE,"CNS","TIME") -> CNS | Z64: =IF(Z57=TRUE,"Family","") -> Family | AE64: test, 4
A65: % into wave | B65: Color | C65: Phase | D65: Phase Mulitiply | E65: Now Functions | H65: Wave Buttons | M65: 14 | N65: 0.2916666667 | O65: 13:00:00 | P65: 2-6 | Q65: Next | R65: 23:00:00 | S65: 2-6 | U65: Emotional | V65: TRUE | W65: =IF(V65=TRUE,"CNS","TIME") -> CNS | Z65: =IF(Z57=TRUE,"Individual","") -> Individual | AE65: test, 5
A66: 0 | B66: red | C66: 1 | D66: 1 | F66: =NOW() -> 2025-03-17T15:29:07.680 | I66: Previous Emo Wave | J66: Current Emo Wave | K66: Next Emo Wave | L66: Length of Emo Wave (hrs) | M66: 15 | N66: 0.3125 | O66: 13:30:00 | P66: 2-5 | R66: 22:30:00 | S66: 2-5 | T66: Next | U66: Mental | V66: FALSE | W66: =IF(V66=TRUE,"CNS","TIME") -> TIME | Z66: =IF(Z57=TRUE,"W+","") -> W+ | AE66: Time macro N, Test4
A67: 0.025 | B67: yellow | C67: 2 | D67: 2 | E67: Date | F67: =DATEVALUE(TEXT(F66,"MM-DD-YYYY")) -> 45733 | H67: Date and Time | I67: =(J67-CC5*0.125)+1/86400 -> 2025-03-09T21:07:31.464 | J67: =(CA5+CC5*FLOOR(CE5,0.125))+1/86400 -> 2025-03-10T16:11:37.429 | K67: =(CA5+CC5*CEILING(CE5,0.125))+1/86400 -> 2025-03-11T11:15:44.393 | L67: =(CC5*0.125)*24 -> 19.06860119 | M67: 16 | N67: 0.3333333333 | O67: 14:00:00 | P67: 2-4 | Q67: Next | R67: 22:00:00 | S67: 2-4 | U67: used to swtich large graphs y-axis | V67: =IF(V59=1,"180 -",IF(V59=2,"12:00 -","100%")) -> 100% | Z67: =IF(Z57=TRUE,"W-","") -> W- | AE67: Uribe, Andrea
A68: 0.05 | B68: green | C68: 3 | D68: 3 | E68: Time | F68: =TIMEVALUE(TEXT(F66,"HH:MM")) -> 0.6451388889 | H68: Date | I68: =INT(I67) -> 2025-03-09 | J68: =INT(J67) -> 2025-03-10 | K68: 2025-03-11 | M68: 17 | N68: 0.3541666667 | O68: 14:30:00 | P68: 2-3 | R68: 21:30:00 | S68: 2-3 | T68: Next | V68: =IF(V59=1,"135 -",IF(V59=2,"9:00 -","75%")) -> 75% | Z68: =IF(Z57=TRUE,"S+","") -> S+ | AE68: User, Joe
A69: 0.075 | B69: yellow | C69: 4 | D69: 4 | H69: Time | I69: =I67-I68 -> 21:07:31.464 | J69: =J67-J68 -> 16:11:37.429 | K69: 11:15:44.393 | M69: 18 | N69: 0.375 | O69: 15:00:00 | P69: 3-1 | R69: 21:00:00 | S69: 2-2 | V69: =IF(V59=1,"90 -",IF(V59=2,"6:00 -","50%")) -> 50% | Z69: =IF(Z57=TRUE,"S-","") -> S- | AE69: Williams, Jeannie
A70: 0.1 | B70: red | C70: 5 | D70: 5 | E70: Mind Waves | I70: Previous Phy Wave | J70: Current PHY Wave | K70: Next Phy Wave | L70: Length of Phy Wave (min) | M70: 19 | N70: 0.3958333333 | O70: 15:30:00 | P70: 3-2 | Q70: Next | R70: 20:30:00 | S70: 3-2 | V70: =IF(V59=1,"45 -",IF(V59=2,"3:00 -","25%")) -> 25% | Z70: #B0D498 | AB70: #FFDE75 | AD70: #FFC38F | AE70: Williams, Kurt | AF70: #FFA7A9
A71: 0.125 | B71: red | C71: 1 | D71: 6 | E71: fall | F71: -0.25 | G71: =M18 -> 2024-09-22T08:43:00 | H71: Date and Time | I71: =J71-DW5*0.125 -> 2025-03-10T16:11:37.429 | J71: =(DU5+DW5*FLOOR(DY5,0.125))+1/86400 -> 2025-03-10T17:39:37.964 | K71: =(DU5+DW5*CEILING(DY5,0.125))+1/86400 -> 2025-03-10T19:07:38.500 | L71: =DW5*0.125*24*60 -> 88.00892857 | M71: 20 | N71: 0.4166666667 | O71: 16:00:00 | P71: 3-3 | R71: 20:00:00 | S71: 3-3 | T71: Next | V71: =IF(V59=1,"Offset in Degrees",IF(V59=2,"Offset in Hours","In Percentage")) -> In Percentage
A72: 0.15 | B72: yellow | C72: 2 | D72: 7 | E72: =N18 -> 89.85902778 | F72: -0.125 | G72: =G71+E72*0.5 -> 2024-11-06T07:01:30 | H72: Date | I72: =INT(I71) -> 2025-03-10 | J72: =INT(J71) -> 2025-03-10 | K72: 2025-03-10 | M72: 21 | N72: 0.4375 | O72: 16:30:00 | P72: 3-4 | Q72: Next | R72: 19:30:00 | S72: 3-4 | U72: Basic Thought Grade | V72: 2 | W72: ="" -> 
A73: 0.175 | B73: green | C73: 3 | D73: 8 | E73: Winter | F73: 0 | G73: =M19 -> 2024-12-21T05:20:00 | H73: Time | I73: =I71-I72 -> 16:11:37.429 | J73: =J71-J72 -> 17:39:37.964 | K73: 19:07:38.500 | M73: 22 | N73: 0.4583333333 | O73: 17:00:00 | P73: 3-5 | R73: 19:00:00 | S73: 3-5 | T73: Next | U73: Adv Thought Grade | V73: 4 | W73: =V73 -> 4
A74: 0.2 | B74: yellow | C74: 4 | D74: 9 | E74: =N19 -> 88.98680556 | F74: 0.125 | G74: =G73+E74*0.5 -> 2025-02-03T17:10:30 | I74: Previous Mind Wave | J74: Current Mind Wave | K74: Next Mind Wave | L74: length of Mind Wave (days) | M74: 23 | N74: 0.4791666667 | O74: 17:30:00 | P74: 3-6 | Q74: Next | R74: 18:30:00 | S74: 3-6
A75: 0.225 | B75: red | C75: 5 | D75: 10 | E75: Spring | F75: 0.25 | G75: =M20 -> 2025-03-20T05:01:00 | H75: Date and Time | I75: =VLOOKUP(FLOOR(AE5,0.125)-0.125,F72:G82,2)+1/86400 -> 2024-12-21T05:20:01 | J75: =VLOOKUP(FLOOR(AE5,0.125),F72:G82,2)+1/86400 -> 2025-02-03T17:10:31 | K75: =VLOOKUP(CEILING(AE5+1/86400,0.125),F72:G82,2)+1/86400 -> 2025-03-20T05:01:01 | L75: =K75-J75 -> 44.49340278 | M75: 24 | N75: 0.5 | O75: 18:00:00 | P75: 3-7 | R75: 18:00:00 | S75: 4-8 | U75: For Speedo Graphs on Basic Page
A76: 0.25 | B76: red | C76: 1 | D76: 11 | E76: =N20 -> 92.73680556 | F76: 0.375 | G76: =G75+E76*0.5 -> 2025-05-05T13:51:30 | H76: Date | I76: =INT(I75) -> 2024-12-21 | J76: =INT(J75) -> 2025-02-03 | K76: 2025-03-20 | M76: 25 | N76: 0.5208333333 | O76: 18:30:00 | P76: 4-7 | R76: 17:30:00 | S76: 4-7 | T76: Next | U76: Red | V76: 25
A77: 0.275 | B77: yellow | C77: 2 | D77: 12 | E77: Summer | F77: 0.5 | G77: =M21 -> 2025-06-20T22:42:00 | H77: Time | I77: =I75-I76 -> 05:20:01 | J77: =J75-J76 -> 17:10:31 | K77: 05:01:01 | M77: 26 | N77: 0.5416666667 | O77: 19:00:00 | P77: 4-6 | Q77: Next | R77: 17:00:00 | S77: 4-6 | U77: Yello | V77: 50
A78: 0.3 | B78: green | C78: 3 | D78: 13 | E78: =N21 -> 93.65069444 | F78: 0.625 | G78: =G77+E78*0.5 -> 2025-08-06T18:30:30 | H78: MICRO Awarness Buttons | M78: 27 | N78: 0.5625 | O78: 19:30:00 | P78: 4-5 | R78: 16:30:00 | S78: 4-5 | T78: Next | U78: Green | V78: 25
A79: 0.325 | B79: yellow | C79: 4 | D79: 14 | E79: Fall | F79: 0.75 | G79: =M22 -> 2025-09-22T14:19:00 | I79: Previous Phy MICRO | J79: Current Phy MICRO | K79: Next Phy MICRO | L79: Length Of Phy Micro | M79: 28 | N79: 0.5833333333 | O79: 20:00:00 | P79: 4-4 | Q79: Next | R79: 16:00:00 | S79: 4-4 | U79: Ommitted | V79: 100
A80: 0.35 | B80: red | C80: 5 | D80: 15 | E80: =N22 -> 89.86388889 | F80: 0.875 | G80: =G79+E80*0.5 -> 2025-11-06T12:41:00 | H80: Date and Time | I80: =CEILING(J80-DW5*100/48/100,"0:00:01") -> 2025-03-10T17:24:57 | J80: =CEILING((DU5+DW5*FLOOR(DY5,100/48/100)),"0:00:01") -> 2025-03-10T17:39:37 | K80: =CEILING(J80+DW5*100/48/100,"0:00:01") -> 2025-03-10T17:54:18 | L80: =K80-J80 -> 0.01019675926 | M80: 29 | N80: 0.6041666667 | O80: 20:30:00 | P80: 4-3 | R80: 15:30:00 | S80: 4-3 | T80: Next | V80: 200
A81: 0.375 | B81: red | C81: 1 | D81: 16 | E81: Winter | F81: 1 | G81: =M23 -> 2025-12-21T11:03:00 | H81: Date | I81: =INT(I80) -> 2025-03-10 | J81: =INT(J80) -> 2025-03-10 | K81: 2025-03-10 | M81: 30 | N81: 0.625 | O81: 21:00:00 | P81: 5-1 | R81: 15:00:00 | S81: 4-2 | V81: MENTAL | X81: EMOTIONAL | Z81: PHYSICAL
A82: 0.4 | B82: yellow | C82: 2 | D82: 17 | E82: =N23 -> 88.9875 | F82: 1.125 | G82: =G81+E82*0.5 -> 2026-02-03T22:54:00 | H82: Time | I82: =I80-I81 -> 17:24:57 | J82: =J80-J81 -> 17:39:37 | K82: 17:54:18 | M82: 31 | N82: 0.6458333333 | O82: 21:30:00 | P82: 5-2 | Q82: Next | R82: 14:30:00 | S82: 5-2 | U82: Actual | V82: =50+(V100+V102)*(50/13) -> 53.84615385 | W82: =50+(W100+W102)*(50/13) -> 50 | X82: =50+(X100+X102)*(50/13) -> 38.46153846 | Y82: =50+(Y100+Y102)*(50/13) -> 46.15384615 | Z82: 61.53846154 | AA82: 65.38461538
A83: 0.425 | B83: green | C83: 3 | D83: 18 | I83: Previous Emo MICRO | J83: Current Emo MICRO | K83: Next Emo MICRO | M83: 32 | N83: 0.6666666667 | O83: 22:00:00 | P83: 5-3 | R83: 14:00:00 | S83: 5-3 | T83: Next | U83: Needle | V83: 1 | W83: 0.5 | X83: 1 | Y83: 0.5 | Z83: 1 | AA83: 0.5
A84: 0.45 | B84: yellow | C84: 4 | D84: 19 | E84: N | F84: 360 | G84: =F84-11.25 -> 348.75 | H84: Date and Time | I84: =CEILING(J84-CC5*100/48/100,"0:00:01") -> 2025-03-10T13:00:56 | J84: =CEILING((CA5+CC5*FLOOR(CE5,100/48/100)),"0:00:01") -> 2025-03-10T16:11:37 | K84: =CEILING(J84+CC5*100/48/100,"0:00:01") -> 2025-03-10T19:22:19 | L84: =K84-J84 -> 0.1324305556 | M84: 33 | N84: 0.6875 | O84: 22:30:00 | P84: 5-4 | Q84: Next | R84: 13:30:00 | S84: 5-4 | U84: Balance | V84: =V85-V83-V82 -> 145.1538462 | W84: =W85-W83-W82 -> 149.5 | X84: =X85-X82-X83 -> 160.5384615 | Y84: =Y85-Y83-Y82 -> 153.3461538 | Z84: =Z85-Z83-Z82 -> 137.4615385 | AA84: =AA85-AA83-AA82 -> 134.1153846
A85: 0.475 | B85: red | C85: 5 | D85: 20 | E85: NNE | F85: 22.5 | G85: 11.25 | H85: Date | I85: =INT(I84) -> 2025-03-10 | J85: =INT(J84) -> 2025-03-10 | K85: 2025-03-10 | M85: 34 | N85: 0.7083333333 | O85: 23:00:00 | P85: 5-5 | R85: 13:00:00 | S85: 5-5 | T85: Next | U85: total | V85: 200 | W85: 200 | X85: 200 | Y85: 200 | Z85: 200 | AA85: 200
A86: 0.5 | B86: red | C86: 1 | D86: 21 | E86: NE | F86: 45 | G86: 33.75 | H86: Time | I86: =I84-I85 -> 13:00:56 | J86: =J84-J85 -> 16:11:37 | K86: 19:22:19 | M86: 35 | N86: 0.7291666667 | O86: 23:30:00 | P86: 5-6 | Q86: Next | R86: 12:30:00 | S86: 5-6 | U86: FEELOMETER | V86: MACRO | W86: Micro | X86: MACRO | Y86: Micro | Z86: MACRO | AA86: MICRO
A87: 0.525 | B87: yellow | C87: 2 | D87: 22 | E87: ENE | F87: 67.5 | G87: 56.25 | I87: Previous Mind MICRO | J87: Current Mind MICRO | K87: Next Mind MICRO | M87: 36 | N87: 0.75 | O87: 1 | P87: 5-7 | R87: 12:00:00 | S87: 6-8 | U87: Degree Offset | V87: =IF(N11<45,"G",IF(N11>135,"R","Y")) -> Y | W87: =IF(BE11<45,"G",IF(BE11>135,"R","Y")) -> Y | X87: =IF(BL11<45,"G",IF(BL11>135,"R","Y")) -> Y | Y87: =IF(DC11<45,"G",IF(DC11>135,"R","Y")) -> Y | Z87: =IF(DF11<45,"G",IF(DF11>135,"R","Y")) -> Y | AA87: =IF(EY11<45,"G",IF(EY11>135,"R","Y")) -> Y
A88: 0.55 | B88: green | C88: 3 | D88: 23 | E88: E | F88: 90 | G88: 78.75 | H88: Date and Time | I88: =VLOOKUP(AE5-100/48/100,E108:H169,4)+1/86400 -> 2025-02-25T23:05:46 | J88: =CEILING(VLOOKUP(AE5,E108:H169,4),"0:00:01") -> 2025-03-05T09:04:10 | K88: =VLOOKUP(AE5+100/48/100,E108:H169,4)+1/86400 -> 2025-03-12T19:02:36 | L88: =K88-J88 -> 7.415578704 | M88: 37 | N88: 0.7708333333 | O88: 1.020833333 | P88: 6-7 | R88: 11:30:00 | S88: 6-7 | T88: Next | U88: Time Offset | V88: =IF(AS10<0.125,"G",IF(AS10>0.375,"R","Y")) -> Y | W88: =IF(BC10<0.125,"G",IF(BC10>0.375,"R","Y")) -> Y | X88: =IF(CQ10<0.125,"G",IF(CQ10>0.375,"R","Y")) -> Y | Y88: =IF(DA10<0.125,"G",IF(DA10>0.375,"R","Y")) -> G | Z88: =IF(EM10<0.125,"G",IF(EM10>0.375,"R","Y")) -> G | AA88: =IF(EW10<0.125,"G",IF(EW10>0.375,"R","Y")) -> R
A89: 0.575 | B89: yellow | C89: 4 | D89: 24 | E89: ESE | F89: 112.5 | G89: 101.25 | H89: Date | I89: =INT(I88) -> 2025-02-25 | J89: =INT(J88) -> 2025-03-05 | K89: 2025-03-12 | M89: 38 | N89: 0.7916666667 | O89: 1.041666667 | P89: 6-6 | Q89: Next | R89: 11:00:00 | S89: 6-6 | U89: Space Quadrant | V89: =O11 -> Y | W89: =BF11 -> Y | X89: =BM11 -> R | Y89: =DD11 -> Y | Z89: =DG11 -> R | AA89: =EZ11 -> Y
A90: 0.6 | B90: red | C90: 5 | D90: 25 | E90: SE | F90: 135 | G90: 123.75 | H90: Time | I90: =I88-I89 -> 23:05:46 | J90: =J88-J89 -> 09:04:10 | K90: 19:02:36 | M90: 39 | N90: 0.8125 | O90: 1.0625 | P90: 6-5 | R90: 10:30:00 | S90: 6-5 | T90: Next | U90: Space Shape | V90: =Q11 -> R | W90: =BD11 -> R | X90: =BO11 -> Y | Y90: =DB11 -> Y | Z90: =DI11 -> R | AA90: =EX11 -> Y
A91: 0.625 | B91: red | C91: 1 | D91: 26 | E91: SSE | F91: 157.5 | G91: 146.25 | M91: 40 | N91: 0.8333333333 | O91: 1.083333333 | P91: 6-4 | Q91: Next | R91: 10:00:00 | S91: 6-4 | U91: Time Shape | V91: =AQ11 -> Y | W91: =BA11 -> Y | X91: =CO11 -> G | Y91: =CY11 -> Y | Z91: =EK11 -> Y | AA91: =EU11 -> R
A92: 0.65 | B92: yellow | C92: 2 | D92: 27 | E92: S | F92: 180 | G92: 168.75 | M92: 41 | N92: 0.8541666667 | O92: 1.104166667 | P92: 6-3 | R92: 09:30:00 | S92: 6-3 | T92: Next | U92: Wave | V92: =S11 -> Y | W92: =T11 -> Y | X92: =BS11 -> G | Y92: =BT11 -> G | Z92: =DM11 -> R | AA92: =DN11 -> G
A93: 0.675 | B93: green | C93: 3 | D93: 28 | E93: SSW | F93: 202.5 | G93: 191.25 | M93: 42 | N93: 0.875 | O93: 1.125 | P93: 7-1 | R93: 09:00:00 | S93: 6-2 | U93: Phase | V93: =U11 -> Y | W93: =Y11 -> Y | X93: =BU11 -> G | Y93: =BY11 -> Y | Z93: =DO11 -> Y | AA93: =DS11 -> R
A94: 0.7 | B94: yellow | C94: 4 | D94: 29 | E94: SW | F94: 225 | G94: 213.75 | M94: 43 | N94: 0.8958333333 | O94: 1.145833333 | P94: 7-2 | Q94: Next | R94: 08:30:00 | S94: 7-2 | U94: Direction | V94: =AL11 -> Y | W94: =AV11 -> Y | X94: =CJ11 -> G | Y94: =CT11 -> Y | Z94: =EF11 -> Y | AA94: =EP11 -> Y
A95: 0.725 | B95: red | C95: 5 | D95: 30 | E95: WSW | F95: 247.5 | G95: 236.25 | M95: 44 | N95: 0.9166666667 | O95: 1.166666667 | P95: 7-3 | R95: 08:00:00 | S95: 7-3 | T95: Next | U95: Orbit | V95: =AN11 -> Y | W95: =AX11 -> G | X95: =CL11 -> Y | Y95: =CV11 -> Y | Z95: =EH11 -> Y | AA95: =ER11 -> R
A96: 0.75 | B96: red | C96: 1 | D96: 31 | E96: W | F96: 270 | G96: 258.75 | M96: 45 | N96: 0.9375 | O96: 1.1875 | P96: 7-4 | Q96: Next | R96: 07:30:00 | S96: 7-4 | U96: Rotaion | V96: =AM11 -> R | W96: =AW11 -> R | X96: =CK11 -> R | Y96: =CU11 -> R | Z96: =EG11 -> R | AA96: =EQ11 -> R
A97: 0.775 | B97: yellow | C97: 2 | D97: 32 | E97: WNW | F97: 292.5 | G97: 281.25 | M97: 46 | N97: 0.9583333333 | O97: 1.208333333 | P97: 7-5 | R97: 07:00:00 | S97: 7-5 | T97: Next | U97: Polartiy | V97: =AO11 -> G | W97: =AY11 -> Y | X97: =CM11 -> Y | Y97: =CW11 -> R | Z97: =EI11 -> R | AA97: =ES11 -> Y
A98: 0.8 | B98: green | C98: 3 | D98: 33 | E98: NW | F98: 315 | G98: 303.75 | M98: 47 | N98: 0.9791666667 | O98: 1.229166667 | P98: 7-6 | Q98: Next | R98: 06:30:00 | S98: 7-6 | U98: zone | V98: =AP11 -> Y | W98: =AZ11 -> G | X98: =CN11 -> Y | Y98: =CX11 -> Y | Z98: =EJ11 -> Y | AA98: =ET11 -> G
A99: 0.825 | B99: yellow | C99: 4 | D99: 34 | E99: NNW | F99: 337.5 | G99: 326.25 | U99: Time Quadrant | V99: =AR11 -> Y | W99: =BB11 -> Y | X99: =CP11 -> G | Y99: =CZ11 -> G | Z99: =EL11 -> G | AA99: =EV11 -> R
A100: 0.85 | B100: red | C100: 5 | D100: 35 | U100: Total R | V100: =COUNTIF(V87:V99,"R") -> 2 | W100: =COUNTIF(W87:W99,"R") -> 2 | X100: =COUNTIF(X87:X99,"R") -> 2 | Y100: 2 | Z100: 5 | AA100: 6
A101: 0.875 | B101: red | C101: 1 | D101: 36 | U101: Total Y | V101: =COUNTIF(V87:V99,"Y") -> 10 | W101: =COUNTIF(W87:W99,"Y") -> 9 | X101: 6 | Y101: 8 | Z101: 6 | AA101: 5
A102: 0.9 | B102: yellow | C102: 2 | D102: 37 | U102: Total G | V102: =0-COUNTIF(V87:V99,"G") -> -1 | W102: =0-COUNTIF(W87:W99,"G") -> -2 | X102: -5 | Y102: -3 | Z102: -2 | AA102: -2
A103: 0.925 | B103: green | C103: 3 | D103: 38 | I103: Micro Awarness for User
A104: 0.95 | B104: yellow | C104: 4 | D104: 39 | I104: Previous Mind MICRO | J104: Current Mind MICRO | K104: Next Mind MICRO
A105: 0.975 | B105: red | C105: 5 | D105: 40 | I105: =VLOOKUP(AE4+0.0001-100/48/100,I108:L169,4)+1/86400 -> 1974-12-14T12:15:16 | J105: =CEILING(VLOOKUP(AE4+0.0001,I108:L169,4),"0:00:01") -> 1974-12-21T23:55:00 | K105: =VLOOKUP(AE4+100/48/100+0.0001,I108:L169,4)+1/86400 -> 1974-12-29T09:55:06 | L105: =K105-J105 -> 7.416736111
A106: Mind Phases | E106: Mind Micro Awarnesses | M106: Shapes Based on Degree | P106: Quadrant
C107: Length of Season | F107: Current/entered Time (leftside) | J107: User (Right) Side | P107: 1 | R107: 2 | T107: 3 | V107: 4
B108: fall | C108: =N18 -> 89.85902778 | D108: =M18 -> 2024-09-22T08:43:00 | E108: -0.25 | F108: Fall | G108: =N18 -> 89.85902778 | H108: =M18 -> 2024-09-22T08:43:00 | I108: -0.25 | J108: Fall | K108: =N31 -> 89.83125 | L108: =M31 -> 1974-09-23T03:58:00 | M108: 0 | N108: ID | P108: Front | Q108: Back | R108: Front | S108: Back | T108: Front | U108: Back | V108: Front | W108: Back
D109: =D108+$C$108/10 -> 2024-10-01T08:22:42 | E109: -0.2291666667 | H109: =H108+$G$108/12 -> 2024-09-29T20:26:05 | I109: -0.2291666667 | L109: =L108+$K$108/12 -> 1974-09-30T15:37:45 | M109: 5.625 | N109: I | O109: M Space | P109: =IF(AND(O9=1,AK5="♂"),1,0) -> 0 | Q109: =IF(AND(O9=1,AK5="♀"),1,0) -> 0 | R109: =IF(AND(O9=2,AK5="♂"),1,0) -> 0 | S109: =IF(AND(O9=2,AK5="♀"),1,0) -> 0 | T109: =IF(AND(O9=3,AK5="♂"),1,0) -> 0 | U109: =IF(AND(O9=3,AK5="♀"),1,0) -> 0 | V109: =IF(AND(O9=4,AK5="♂"),1,0) -> 1 | W109: =IF(AND(O9=4,AK5="♀"),1,0) -> 0 | X109: =SUM(P109:W109) -> 1
D110: 2024-10-10T08:02:24 | E110: -0.2083333333 | H110: 2024-10-07T08:09:10 | I110: -0.2083333333 | L110: =L109+$K$108/12 -> 1974-10-08T03:17:30 | M110: 11.25 | N110: I | O110: m Space | P110: =IF(AND(BF9=1,AU5="♂"),1,0) -> 1 | Q110: =IF(AND(BF9=1,AU5="♀"),1,0) -> 0 | R110: =IF(AND(BF9=2,AU5="♂"),1,0) -> 0 | S110: =IF(AND(BF9=2,AU5="♀"),1,0) -> 0 | T110: =IF(AND(BF9=3,AU5="♂"),1,0) -> 0 | U110: =IF(AND(BF9=3,AU5="♀"),1,0) -> 0 | V110: =IF(AND(BF9=4,AU5="♂"),1,0) -> 0 | W110: =IF(AND(BF9=4,AU5="♀"),1,0) -> 0 | X110: 1
D111: 2024-10-19T07:42:06 | E111: -0.1875 | H111: 2024-10-14T19:52:15 | I111: -0.1875 | L111: 1974-10-15T14:57:15 | M111: 16.875 | N111: IO | O111: M Time | P111: =IF(AND(AR5=1,AK5="♂"),1,0) -> 0 | Q111: =IF(AND(AR5=1,AK5="♀"),1,0) -> 0 | R111: =IF(AND(AR5=2,AK5="♂"),1,0) -> 0 | S111: =IF(AND(AR5=2,AK5="♀"),1,0) -> 0 | T111: =IF(AND(AR5=3,AK5="♂"),1,0) -> 1 | U111: =IF(AND(AR5=3,AK5="♀"),1,0) -> 0 | V111: =IF(AND(AR5=4,AK5="♂"),1,0) -> 0 | W111: =IF(AND(AR5=4,AK5="♀"),1,0) -> 0 | X111: 1
D112: 2024-10-28T07:21:48 | E112: -0.1666666667 | H112: 2024-10-22T07:35:20 | I112: -0.1666666667 | L112: 1974-10-23T02:37:00 | M112: 22.5 | N112: IO | O112: m Time | P112: =IF(AND(BB5=1,AU5="♂"),1,0) -> 0 | Q112: =IF(AND(BB5=1,AU5="♀"),1,0) -> 0 | R112: =IF(AND(BB5=2,AU5="♂"),1,0) -> 0 | S112: =IF(AND(BB5=2,AU5="♀"),1,0) -> 0 | T112: =IF(AND(BB5=3,AU5="♂"),1,0) -> 1 | U112: =IF(AND(BB5=3,AU5="♀"),1,0) -> 0 | V112: =IF(AND(BB5=4,AU5="♂"),1,0) -> 0 | W112: =IF(AND(BB5=4,AU5="♀"),1,0) -> 0 | X112: 1
D113: 2024-11-06T07:01:30 | E113: -0.1458333333 | H113: 2024-10-29T19:18:25 | I113: -0.1458333333 | L113: 1974-10-30T14:16:45 | M113: 28.125 | N113: O | O113: E Space | P113: =IF(AND(BM9=1,CI5="♂"),1,0) -> 0 | Q113: =IF(AND(BM9=1,CI5="♀"),1,0) -> 0 | R113: =IF(AND(BM9=2,CI5="♂"),1,0) -> 0 | S113: =IF(AND(BM9=2,CI5="♀"),1,0) -> 0 | T113: =IF(AND(BM9=3,CI5="♂"),1,0) -> 1 | U113: =IF(AND(BM9=3,CI5="♀"),1,0) -> 0 | V113: =IF(AND(BM9=4,CI5="♂"),1,0) -> 0 | W113: =IF(AND(BM9=4,CI5="♀"),1,0) -> 0 | X113: 1
D114: 2024-11-15T06:41:12 | E114: -0.125 | H114: 2024-11-06T07:01:30 | I114: -0.125 | L114: 1974-11-07T01:56:30 | M114: 33.75 | N114: O | O114: eSpace | P114: =IF(AND(DD9=1,CS5="♂"),1,0) -> 0 | Q114: =IF(AND(DD9=1,CS5="♀"),1,0) -> 0 | R114: =IF(AND(DD9=2,CS5="♂"),1,0) -> 1 | S114: =IF(AND(DD9=2,CS5="♀"),1,0) -> 0 | T114: =IF(AND(DD9=3,CS5="♂"),1,0) -> 0 | U114: =IF(AND(DD9=3,CS5="♀"),1,0) -> 0 | V114: =IF(AND(DD9=4,CS5="♂"),1,0) -> 0 | W114: =IF(AND(DD9=4,CS5="♀"),1,0) -> 0 | X114: 1
D115: 2024-11-24T06:20:54 | E115: -0.1041666667 | H115: 2024-11-13T18:44:35 | I115: -0.1041666667 | L115: 1974-11-14T13:36:15 | M115: 39.375 | N115: OC | O115: E Time | P115: =IF(AND(CP5=1,CI5="♂"),1,0) -> 0 | Q115: =IF(AND(CP5=1,CI5="♀"),1,0) -> 0 | R115: =IF(AND(CP5=2,CI5="♂"),1,0) -> 1 | S115: =IF(AND(CP5=2,CI5="♀"),1,0) -> 0 | T115: =IF(AND(CP5=3,CI5="♂"),1,0) -> 0 | U115: =IF(AND(CP5=3,CI5="♀"),1,0) -> 0 | V115: =IF(AND(CP5=4,CI5="♂"),1,0) -> 0 | W115: =IF(AND(CP5=4,CI5="♀"),1,0) -> 0 | X115: 1
D116: 2024-12-03T06:00:36 | E116: -0.08333333333 | H116: 2024-11-21T06:27:40 | I116: -0.08333333333 | L116: 1974-11-22T01:16:00 | M116: 45 | N116: OC | O116: eTime | P116: =IF(AND(CZ5=1,CS5="♂"),1,0) -> 0 | Q116: =IF(AND(CZ5=1,CS5="♀"),1,0) -> 0 | R116: =IF(AND(CZ5=2,CS5="♂"),1,0) -> 0 | S116: =IF(AND(CZ5=2,CS5="♀"),1,0) -> 0 | T116: =IF(AND(CZ5=3,CS5="♂"),1,0) -> 0 | U116: =IF(AND(CZ5=3,CS5="♀"),1,0) -> 0 | V116: =IF(AND(CZ5=4,CS5="♂"),1,0) -> 1 | W116: =IF(AND(CZ5=4,CS5="♀"),1,0) -> 0 | X116: 1
A117: -0.025 | D117: 2024-12-12T05:40:18 | E117: -0.0625 | H117: 2024-11-28T18:10:45 | I117: -0.0625 | L117: 1974-11-29T12:55:45 | M117: 50.625 | N117: C | O117: P Space | P117: =IF(AND(DG9=1,EE5="♂"),1,0) -> 0 | Q117: =IF(AND(DG9=1,EE5="♀"),1,0) -> 0 | R117: =IF(AND(DG9=2,EE5="♂"),1,0) -> 0 | S117: =IF(AND(DG9=2,EE5="♀"),1,0) -> 0 | T117: =IF(AND(DG9=3,EE5="♂"),1,0) -> 1 | U117: =IF(AND(DG9=3,EE5="♀"),1,0) -> 0 | V117: =IF(AND(DG9=4,EE5="♂"),1,0) -> 0 | W117: =IF(AND(DG9=4,EE5="♀"),1,0) -> 0 | X117: 1
A118: 0 | B118: Winter | C118: =N19 -> 88.98680556 | D118: =M19 -> 2024-12-21T05:20:00 | E118: -0.04166666667 | H118: 2024-12-06T05:53:50 | I118: -0.04166666667 | L118: 1974-12-07T00:35:30 | M118: 56.25 | N118: C | O118: p Space | P118: =IF(AND(EZ9=1,EO5="♂"),1,0) -> 0 | Q118: =IF(AND(EZ9=1,EO5="♀"),1,0) -> 0 | R118: =IF(AND(EZ9=2,EO5="♂"),1,0) -> 0 | S118: =IF(AND(EZ9=2,EO5="♀"),1,0) -> 0 | T118: =IF(AND(EZ9=3,EO5="♂"),1,0) -> 0 | U118: =IF(AND(EZ9=3,EO5="♀"),1,0) -> 0 | V118: =IF(AND(EZ9=4,EO5="♂"),1,0) -> 1 | W118: =IF(AND(EZ9=4,EO5="♀"),1,0) -> 0 | X118: 1
A119: 0.025 | D119: =D118+$C$118/10 -> 2024-12-30T02:54:06 | E119: -0.02083333333 | H119: 2024-12-13T17:36:55 | I119: -0.02083333333 | L119: 1974-12-14T12:15:15 | M119: 61.875 | N119: DC | O119: P Time | P119: =IF(AND(EL5=1,EE5="♂"),1,0) -> 1 | Q119: =IF(AND(EL5=1,EE5="♀"),1,0) -> 0 | R119: =IF(AND(EL5=2,EE5="♂"),1,0) -> 0 | S119: =IF(AND(EL5=2,EE5="♀"),1,0) -> 0 | T119: =IF(AND(EL5=3,EE5="♂"),1,0) -> 0 | U119: =IF(AND(EL5=3,EE5="♀"),1,0) -> 0 | V119: =IF(AND(EL5=4,EE5="♂"),1,0) -> 0 | W119: =IF(AND(EL5=4,EE5="♀"),1,0) -> 0 | X119: 1
A120: 0.05 | D120: 2025-01-08T00:28:12 | E120: 0 | F120: Winter | G120: =N19 -> 88.98680556 | H120: =M19 -> 2024-12-21T05:20:00 | I120: 0 | J120: Winter | K120: =N32 -> 89.00069444 | L120: =M32 -> 1974-12-21T23:55:00 | M120: 67.5 | N120: DC | O120: p Time | P120: =IF(AND(EV5=1,EO5="♂"),1,0) -> 1 | Q120: =IF(AND(EV5=1,EO5="♀"),1,0) -> 0 | R120: =IF(AND(EV5=2,EO5="♂"),1,0) -> 0 | S120: =IF(AND(EV5=2,EO5="♀"),1,0) -> 0 | T120: =IF(AND(EV5=3,EO5="♂"),1,0) -> 0 | U120: =IF(AND(EV5=3,EO5="♀"),1,0) -> 0 | V120: =IF(AND(EV5=4,EO5="♂"),1,0) -> 0 | W120: =IF(AND(EV5=4,EO5="♀"),1,0) -> 0 | X120: 1
A121: 0.075 | D121: 2025-01-16T22:02:18 | E121: 0.02083333333 | H121: =H120+$G$120/12 -> 2024-12-28T15:18:25 | I121: 0.02083333333 | L121: =L120+$K$120/12 -> 1974-12-29T09:55:05 | M121: 73.125 | N121: D | P121: =SUM(P109:P120) -> 3 | Q121: =SUM(Q109:Q120) -> 0 | R121: 2 | S121: 0 | T121: 4 | U121: 0 | V121: 3 | W121: 0 | X121: =SUM(P121:W121) -> 12
A122: 0.1 | D122: 2025-01-25T19:36:24 | E122: 0.04166666667 | H122: 2025-01-05T01:16:50 | I122: 0.04166666667 | L122: =L121+$K$120/12 -> 1975-01-05T19:55:10 | M122: 78.75 | N122: D | P122: =P121+Q121 -> 3 | R122: =R121+S121 -> 2 | T122: =T121+U121 -> 4 | V122: =V121+W121 -> 3 | X122: =SUM(P122:W122) -> 12
A123: 0.125 | D123: 2025-02-03T17:10:30 | E123: 0.0625 | H123: 2025-01-12T11:15:15 | I123: 0.0625 | L123: 1975-01-13T05:55:15 | M123: 84.375 | N123: ID
A124: 0.15 | D124: 2025-02-12T14:44:36 | E124: 0.08333333333 | H124: 2025-01-19T21:13:40 | I124: 0.08333333333 | L124: 1975-01-20T15:55:20 | M124: 90 | N124: ID | O124: Micro Polarity Shifts | T124: SPACE MACRO POLARITY SHIFTS
A125: 0.175 | D125: 2025-02-21T12:18:42 | E125: 0.1041666667 | H125: 2025-01-27T07:12:05 | I125: 0.1041666667 | L125: 1975-01-28T01:55:25 | M125: 95.625 | N125: I | O125: Polarity Shift | P125: Space | U125: Angle | V125: Rounded | W125: ABS | X125: Polartiy?
A126: 0.2 | D126: 2025-03-02T09:52:48 | E126: 0.125 | H126: 2025-02-03T17:10:30 | I126: 0.125 | L126: 1975-02-04T11:55:30 | M126: 101.25 | N126: I | O126: Mental Macro | P126: =AE5 -> 0.2234053439 | Q126: =IF(OR(AND(AE5>0,AE5<0.0125),AND(AE5>0.2375,AE5<0.2625),AND(AE5>0.4875,AE5<0.5125),AND(AE5>0.7375,AE5<0.7625),AND(AE5>0.9875,AE5<1)),1,0) -> 0 | T126: Mental MACRO | U126: =N9 -> 287.4733798 | V126: =MROUND(U126,22.5) -> 292.5 | W126: =ABS(U126-V126) -> 5.026620237 | X126: =IF(OR(W126<2.8125,W126>22.5-2.8125),1,0) -> 0
A127: 0.225 | D127: 2025-03-11T07:26:54 | E127: 0.1458333333 | H127: 2025-02-11T03:08:55 | I127: 0.1458333333 | L127: 1975-02-11T21:55:35 | M127: 106.875 | N127: IO | O127: Mental Micro | P127: =BK5 -> 0.7234553758 | Q127: =IF(OR(AND(BK5>0,BK5<0.0125),AND(BK5>0.2375,BK5<0.2625),AND(BK5>0.4875,BK5<0.5125),AND(BK5>0.7375,BK5<0.7625),AND(BK5>0.9875,BK5<1)),1,0) -> 0 | T127: Mental micro | U127: =BE9 -> 28.72222864 | V127: =MROUND(U127,22.5) -> 22.5 | W127: =ABS(U127-V127) -> 6.222228639 | X127: =IF(OR(W127<2.8125,W127>22.5-2.8125),1,0) -> 0
A128: 0.25 | B128: Spring | C128: =N20 -> 92.73680556 | D128: =M20 -> 2025-03-20T05:01:00 | E128: 0.1666666667 | H128: 2025-02-18T13:07:20 | I128: 0.1666666667 | L128: 1975-02-19T07:55:40 | M128: 112.5 | N128: IO | O128: Emo MACRO | P128: =CE5 -> 0.5106992558 | Q128: =IF(OR(AND(CE5>0,CE5<0.0125),AND(CE5>0.2375,CE5<0.2625),AND(CE5>0.4875,CE5<0.5125),AND(CE5>0.7375,CE5<0.7625),AND(CE5>0.9875,CE5<1)),1,0) -> 1 | T128: EMO MACRO | U128: =BL9 -> 146.0092667 | V128: 135 | W128: 11.00926674 | X128: 0
A129: 0.275 | D129: =D128+$C$128/10 -> 2025-03-29T11:35:06 | E129: 0.1875 | H129: 2025-02-25T23:05:45 | I129: 0.1875 | L129: 1975-02-26T17:55:45 | M129: 118.125 | N129: O | O129: Emo micro | P129: =DE5 -> 0.5134766649 | Q129: =IF(OR(AND(DE5>0,DE5<0.0125),AND(DE5>0.2375,DE5<0.2625),AND(DE5>0.4875,DE5<0.5125),AND(DE5>0.7375,DE5<0.7625),AND(DE5>0.9875,DE5<1)),1,0) -> 0 | T129: EMO micro | U129: =DC9 -> 78.4448037 | V129: 67.5 | W129: 10.9448037 | X129: 0
A130: 0.3 | D130: 2025-04-07T18:09:12 | E130: 0.2083333333 | H130: 2025-03-05T09:04:10 | I130: 0.2083333333 | L130: 1975-03-06T03:55:50 | M130: 123.75 | N130: O | O130: Physical MACRO | P130: =DY5 -> 0.6390903259 | Q130: =IF(OR(AND(DY5>0,DY5<0.0125),AND(DY5>0.2375,DY5<0.2625),AND(DY5>0.4875,DY5<0.5125),AND(DY5>0.7375,DY5<0.7625),AND(DY5>0.9875,DY5<1)),1,0) -> 0 | T130: PHY MACRO | U130: =DF9 -> 210.6204677 | V130: 202.5 | W130: 8.120467667 | X130: 0
A131: 0.325 | D131: 2025-04-17T00:43:18 | E131: 0.2291666667 | H131: 2025-03-12T19:02:35 | I131: 0.2291666667 | L131: 1975-03-13T13:55:55 | M131: 129.375 | N131: OC | O131: Phy micro | P131: =FA5 -> 0.6755959138 | Q131: =IF(OR(AND(FA5>0,FA5<0.0125),AND(FA5>0.2375,FA5<0.2625),AND(FA5>0.4875,FA5<0.5125),AND(FA5>0.7375,FA5<0.7625),AND(FA5>0.9875,FA5<1)),1,0) -> 0 | T131: PHY micro | U131: =EY9 -> 299.782448 | V131: 292.5 | W131: 7.28244803 | X131: 0
A132: 0.35 | D132: 2025-04-26T07:17:24 | E132: 0.25 | F132: Spring | G132: =N20 -> 92.73680556 | H132: =M20 -> 2025-03-20T05:01:00 | I132: 0.25 | J132: Spring | K132: =N33 -> 92.77083333 | L132: =M33 -> 1975-03-20T23:56:00 | M132: 135 | N132: OC
A133: 0.375 | D133: 2025-05-05T13:51:30 | E133: 0.2708333333 | H133: =H132+$G$132/12 -> 2025-03-27T22:29:25 | I133: 0.2708333333 | L133: =L132+$K$132/12 -> 1975-03-28T17:28:30 | M133: 140.625 | N133: C | O133: Time Macro Pol | Q133: =1/64*0.0125 -> 0.0001953125 | R133: =1/64-Q133 -> 0.0154296875 | T133: TIME MACRO POLARITY SHIFTS
A134: 0.4 | D134: 2025-05-14T20:25:36 | E134: 0.2916666667 | H134: 2025-04-04T15:57:50 | I134: 0.2916666667 | L134: =L133+$K$132/12 -> 1975-04-05T11:01:00 | M134: 146.25 | N134: C | O134: Mental | P134: =AS5 -> 0.567154278 | Q134: =MROUND(AS5,1/64) -> 0.5625 | R134: =ABS(P134-Q134) -> 0.004654277997 | S134: =IF(OR(R134>R133,R134<Q133),1,0) -> 0
A135: 0.425 | D135: 2025-05-24T02:59:42 | E135: 0.3125 | H135: 2025-04-12T09:26:15 | I135: 0.3125 | L135: 1975-04-13T04:33:30 | M135: 151.875 | N135: DC | O135: EMO | P135: =CQ5 -> 0.3648062345 | Q135: =MROUND(CQ5,1/64) -> 0.359375 | R135: =ABS(P135-Q135) -> 0.005431234497 | S135: =IF(OR(R135>R133,R135<Q133),1,0) -> 0 | T135: Mental MACRO | U135: =AS5 -> 0.567154278 | V135: =MROUND(U135,0.0625) -> 0.5625 | W135: =ABS(U135-V135) -> 0.004654277997 | X135: =IF(OR(W135<0.0078125,W135>0.0625-0.0078125),1,0) -> 1
A136: 0.45 | D136: 2025-06-02T09:33:48 | E136: 0.3333333333 | H136: 2025-04-20T02:54:40 | I136: 0.3333333333 | L136: 1975-04-20T22:06:00 | M136: 157.5 | N136: DC | O136: PHY | P136: =EM5 -> 0.9716477151 | Q136: =MROUND(EM5,1/64) -> 0.96875 | R136: 0.002897715123 | S136: =IF(OR(R136>R133,R136<Q133),1,0) -> 0 | T136: Mental micro | U136: =BC5 -> 11:21:42.222 | V136: =MROUND(U136,0.0625) -> 0.5 | W136: =ABS(U136-V136) -> 0.02659465615 | X136: =IF(OR(W136<0.0078125,W136>0.0625-0.0078125),1,0) -> 0
A137: 0.475 | D137: 2025-06-11T16:07:54 | E137: 0.3541666667 | H137: 2025-04-27T20:23:05 | I137: 0.3541666667 | L137: 1975-04-28T15:38:30 | M137: 163.125 | N137: D | T137: EMO MACRO | U137: =CQ5 -> 08:45:19.259 | V137: 0.375 | W137: 0.0101937655 | X137: 0
A138: 0.5 | B138: Summer | C138: =N21 -> 93.65069444 | D138: =M21 -> 2025-06-20T22:42:00 | E138: 0.375 | H138: 2025-05-05T13:51:30 | I138: 0.375 | L138: 1975-05-06T09:11:00 | M138: 168.75 | N138: D | Q138: =P139*0.0125 -> 0.0001953125 | T138: EMO micro | U138: =DA5 -> 18:15:24.416 | V138: 0.75 | W138: 0.01069925584 | X138: 0
A139: 0.525 | D139: =D138+$C$138/10 -> 2025-06-30T07:27:42 | E139: 0.3958333333 | H139: 2025-05-13T07:19:55 | I139: 0.3958333333 | L139: 1975-05-14T02:43:30 | M139: 174.375 | N139: ID | P139: =1/64 -> 0.015625 | Q139: =P139+$Q$138 -> 0.0158203125 | R139: =P139-$Q$138 -> 0.0154296875 | T139: PHY MACRO | U139: =EM5 -> 23:19:10.363 | V139: 1 | W139: 0.02835228488 | X139: 0
A140: 0.55 | D140: 2025-07-09T16:13:24 | E140: 0.4166666667 | H140: 2025-05-21T00:48:20 | I140: 0.4166666667 | L140: 1975-05-21T20:16:00 | M140: 180 | N140: ID | O140: 2 | P140: =O140/64 -> 0.03125 | Q140: =P140+$Q$138 -> 0.0314453125 | R140: =P140-$Q$138 -> 0.0310546875 | T140: PHY micro | U140: =EW5 -> 21:20:15.404 | V140: 0.875 | W140: 0.01406717775 | X140: 0
A141: 0.575 | D141: 2025-07-19T00:59:06 | E141: 0.4375 | H141: 2025-05-28T18:16:45 | I141: 0.4375 | L141: 1975-05-29T13:48:30 | M141: 185.625 | N141: I | O141: 3 | P141: =O141/64 -> 0.046875 | Q141: 0.0470703125 | R141: 0.0466796875
A142: 0.6 | D142: 2025-07-28T09:44:48 | E142: 0.4583333333 | H142: 2025-06-05T11:45:10 | I142: 0.4583333333 | L142: 1975-06-06T07:21:00 | M142: 191.25 | N142: I | O142: 4 | P142: 0.0625 | Q142: 0.0626953125 | R142: 0.0623046875 | U142: =0 -> 00:00:00 | W142: =1/32*0.125 -> 0.00390625 | X142: =U142+$W$142 -> 00:05:37.500 | Y142: =U142-$W$142+1 -> 23:54:22.500
A143: 0.625 | D143: 2025-08-06T18:30:30 | E143: 0.4791666667 | H143: 2025-06-13T05:13:35 | I143: 0.4791666667 | L143: 1975-06-14T00:53:30 | M143: 196.875 | N143: IO | O143: 5 | P143: 0.078125 | Q143: 0.0783203125 | R143: 0.0779296875 | U143: =U142+1/16 -> 01:30:00 | X143: =U143+$W$142 -> 01:35:37.500 | Y143: =U143-$W$142 -> 01:24:22.500
A144: 0.65 | D144: 2025-08-16T03:16:12 | E144: 0.5 | F144: Summer | G144: =N21 -> 93.65069444 | H144: =M21 -> 2025-06-20T22:42:00 | I144: 0.5 | J144: Summer | K144: =N34 -> 93.64513889 | L144: =M34 -> 1975-06-21T18:26:00 | M144: 202.5 | N144: IO | O144: 6 | P144: 0.09375 | Q144: 0.0939453125 | R144: 0.0935546875 | U144: 03:00:00 | X144: 03:05:37.500 | Y144: =U144-$W$142 -> 02:54:22.500
A145: 0.675 | D145: 2025-08-25T12:01:54 | E145: 0.5208333333 | H145: =H144+$G$144/12 -> 2025-06-28T18:00:05 | I145: 0.5208333333 | L145: =L144+$K$144/12 -> 1975-06-29T13:43:25 | M145: 208.125 | N145: O | O145: 7 | P145: 0.109375 | Q145: 0.1095703125 | R145: 0.1091796875 | U145: 04:30:00 | X145: 04:35:37.500 | Y145: 04:24:22.500
A146: 0.7 | D146: 2025-09-03T20:47:36 | E146: 0.5416666667 | H146: 2025-07-06T13:18:10 | I146: 0.5416666667 | L146: =L145+$K$144/12 -> 1975-07-07T09:00:50 | M146: 213.75 | N146: O | O146: 8 | P146: 0.125 | Q146: 0.1251953125 | R146: 0.1248046875 | U146: 06:00:00 | X146: 06:05:37.500 | Y146: 05:54:22.500
A147: 0.725 | D147: 2025-09-13T05:33:18 | E147: 0.5625 | H147: 2025-07-14T08:36:15 | I147: 0.5625 | L147: 1975-07-15T04:18:15 | M147: 219.375 | N147: OC | O147: 9 | P147: 0.140625 | Q147: 0.1408203125 | R147: 0.1404296875 | U147: 07:30:00 | X147: 07:35:37.500 | Y147: 07:24:22.500
A148: 0.75 | B148: Fall | C148: =N22 -> 89.86388889 | D148: =M22 -> 2025-09-22T14:19:00 | E148: 0.5833333333 | H148: 2025-07-22T03:54:20 | I148: 0.5833333333 | L148: 1975-07-22T23:35:40 | M148: 225 | N148: OC | O148: 10 | P148: 0.15625 | Q148: 0.1564453125 | R148: 0.1560546875 | U148: 09:00:00 | X148: 09:05:37.500 | Y148: 08:54:22.500
A149: 0.775 | D149: =D148+$C$148/10 -> 2025-10-01T13:59:24 | E149: 0.6041666667 | H149: 2025-07-29T23:12:25 | I149: 0.6041666667 | L149: 1975-07-30T18:53:05 | M149: 230.625 | N149: C | O149: 11 | P149: 0.171875 | Q149: 0.1720703125 | R149: 0.1716796875 | U149: 10:30:00 | X149: 10:35:37.500 | Y149: 10:24:22.500
A150: 0.8 | D150: 2025-10-10T13:39:48 | E150: 0.625 | H150: 2025-08-06T18:30:30 | I150: 0.625 | L150: 1975-08-07T14:10:30 | M150: 236.25 | N150: C | O150: 12 | P150: 0.1875 | Q150: 0.1876953125 | R150: 0.1873046875 | U150: 12:00:00 | X150: 12:05:37.500 | Y150: 11:54:22.500
A151: 0.825 | D151: 2025-10-19T13:20:12 | E151: 0.6458333333 | H151: 2025-08-14T13:48:35 | I151: 0.6458333333 | L151: 1975-08-15T09:27:55 | M151: 241.875 | N151: DC | O151: 13 | P151: 0.203125 | Q151: 0.2033203125 | R151: 0.2029296875 | U151: 13:30:00 | X151: 13:35:37.500 | Y151: 13:24:22.500
A152: 0.85 | D152: 2025-10-28T13:00:36 | E152: 0.6666666667 | H152: 2025-08-22T09:06:40 | I152: 0.6666666667 | L152: 1975-08-23T04:45:20 | M152: 247.5 | N152: DC | O152: 14 | P152: 0.21875 | Q152: 0.2189453125 | R152: 0.2185546875 | U152: 15:00:00 | X152: 15:05:37.500 | Y152: 14:54:22.500
A153: 0.875 | D153: 2025-11-06T12:41:00 | E153: 0.6875 | H153: 2025-08-30T04:24:45 | I153: 0.6875 | L153: 1975-08-31T00:02:45 | M153: 253.125 | N153: D | O153: 15 | P153: 0.234375 | Q153: 0.2345703125 | R153: 0.2341796875 | U153: 16:30:00 | X153: 16:35:37.500 | Y153: 16:24:22.500
A154: 0.9 | D154: 2025-11-15T12:21:24 | E154: 0.7083333333 | H154: 2025-09-06T23:42:50 | I154: 0.7083333333 | L154: 1975-09-07T19:20:10 | M154: 258.75 | N154: D | O154: 16 | P154: 0.25 | Q154: 0.2501953125 | R154: 0.2498046875 | U154: 18:00:00 | X154: 18:05:37.500 | Y154: 17:54:22.500
A155: 0.925 | D155: 2025-11-24T12:01:48 | E155: 0.7291666667 | H155: 2025-09-14T19:00:55 | I155: 0.7291666667 | L155: 1975-09-15T14:37:35 | M155: 264.375 | N155: ID | O155: 17 | P155: 0.265625 | Q155: 0.2658203125 | R155: 0.2654296875 | U155: 19:30:00 | X155: 19:35:37.500 | Y155: 19:24:22.500
A156: 0.95 | D156: 2025-12-03T11:42:12 | E156: 0.75 | F156: Fall | G156: =N22 -> 89.86388889 | H156: =M22 -> 2025-09-22T14:19:00 | I156: 0.75 | J156: Fall | K156: =N35 -> 89.82638889 | L156: =M35 -> 1975-09-23T09:55:00 | M156: 270 | N156: ID | O156: 18 | P156: 0.28125 | Q156: 0.2814453125 | R156: 0.2810546875 | U156: 21:00:00 | X156: 21:05:37.500 | Y156: 20:54:22.500
A157: 0.975 | D157: 2025-12-12T11:22:36 | E157: 0.7708333333 | H157: =H156+$G$156/12 -> 2025-09-30T02:02:40 | I157: 0.7708333333 | L157: =L156+$K$156/12 -> 1975-09-30T21:34:10 | M157: 275.625 | N157: I | O157: 19 | P157: 0.296875 | Q157: 0.2970703125 | R157: 0.2966796875 | U157: 22:30:00 | X157: 22:35:37.500 | Y157: 22:24:22.500
A158: 1 | B158: Winter | C158: =N23 -> 88.9875 | D158: =M23 -> 2025-12-21T11:03:00 | E158: 0.7916666667 | H158: 2025-10-07T13:46:20 | I158: 0.7916666667 | L158: =L157+$K$156/12 -> 1975-10-08T09:13:20 | M158: 281.25 | N158: I | O158: 20 | P158: 0.3125 | Q158: 0.3126953125 | R158: 0.3123046875
A159: 1.025 | D159: =D158+C158/10 -> 2025-12-30T08:37:12 | E159: 0.8125 | H159: 2025-10-15T01:30:00 | I159: 0.8125 | L159: 1975-10-15T20:52:30 | M159: 286.875 | N159: IO | O159: 21 | P159: 0.328125 | Q159: 0.3283203125 | R159: 0.3279296875
E160: 0.8333333333 | H160: 2025-10-22T13:13:40 | I160: 0.8333333333 | L160: 1975-10-23T08:31:40 | M160: 292.5 | N160: IO | O160: 22 | P160: 0.34375 | Q160: 0.3439453125 | R160: 0.3435546875
E161: 0.8541666667 | H161: 2025-10-30T00:57:20 | I161: 0.8541666667 | L161: 1975-10-30T20:10:50 | M161: 298.125 | N161: O | O161: 23 | P161: 0.359375 | Q161: 0.3595703125 | R161: 0.3591796875
E162: 0.875 | H162: 2025-11-06T12:41:00 | I162: 0.875 | L162: 1975-11-07T07:50:00 | M162: 303.75 | N162: O | O162: 24 | P162: 0.375 | Q162: 0.3751953125 | R162: 0.3748046875 | T162: 241.875 | U162: DC
E163: 0.8958333333 | H163: 2025-11-14T00:24:40 | I163: 0.8958333333 | L163: 1975-11-14T19:29:10 | M163: 309.375 | N163: OC | O163: 25 | P163: 0.390625 | Q163: 0.3908203125 | R163: 0.3904296875
E164: 0.9166666667 | H164: 2025-11-21T12:08:20 | I164: 0.9166666667 | L164: 1975-11-22T07:08:20 | M164: 315 | N164: OC | O164: 26 | P164: 0.40625 | Q164: 0.4064453125 | R164: 0.4060546875 | T164: 247.5 | U164: DC
E165: 0.9375 | H165: 2025-11-28T23:52:00 | I165: 0.9375 | L165: 1975-11-29T18:47:30 | M165: 320.625 | N165: C | O165: 27 | P165: 0.421875 | Q165: 0.4220703125 | R165: 0.4216796875
E166: 0.9583333333 | H166: 2025-12-06T11:35:40 | I166: 0.9583333333 | L166: 1975-12-07T06:26:40 | M166: 326.25 | N166: C | O166: 28 | P166: 0.4375 | Q166: 0.4376953125 | R166: 0.4373046875 | T166: 253.125 | U166: D
E167: 0.9791666667 | H167: 2025-12-13T23:19:20 | I167: 0.9791666667 | L167: 1975-12-14T18:05:50 | M167: 331.875 | N167: DC | O167: 29 | P167: 0.453125 | Q167: 0.4533203125 | R167: 0.4529296875
E168: 1 | F168: Winter | G168: =N23 -> 88.9875 | H168: =M23 -> 2025-12-21T11:03:00 | I168: 1 | J168: Winter | K168: =N36 -> 89.00277778 | L168: =M36 -> 1975-12-22T05:45:00 | M168: 337.5 | N168: DC | O168: 30 | P168: 0.46875 | Q168: 0.4689453125 | R168: 0.4685546875 | T168: 258.75 | U168: D
E169: 1.020833333 | H169: =H168+G168/12 -> 2025-12-28T21:01:30 | I169: 1.020833333 | L169: =L168+K168/12 -> 1975-12-29T15:45:20 | M169: 343.125 | N169: D | O169: 31 | P169: 0.484375 | Q169: 0.4845703125 | R169: 0.4841796875
M170: 348.75 | N170: D | O170: 32 | P170: 0.5 | Q170: 0.5001953125 | R170: 0.4998046875 | T170: 264.375 | U170: ID
M171: 354.375 | N171: ID | O171: 33 | P171: 0.515625 | Q171: 0.5158203125 | R171: 0.5154296875
O172: 34 | P172: 0.53125 | Q172: 0.5314453125 | R172: 0.5310546875 | T172: 270 | U172: ID
O173: 35 | P173: 0.546875 | Q173: 0.5470703125 | R173: 0.5466796875
O174: 36 | P174: 0.5625 | Q174: 0.5626953125 | R174: 0.5623046875 | T174: 275.625 | U174: I
O175: 37 | P175: 0.578125 | Q175: 0.5783203125 | R175: 0.5779296875
O176: 38 | P176: 0.59375 | Q176: 0.5939453125 | R176: 0.5935546875 | T176: 281.25 | U176: I
O177: 39 | P177: 0.609375 | Q177: 0.6095703125 | R177: 0.6091796875
O178: 40 | P178: 0.625 | Q178: 0.6251953125 | R178: 0.6248046875 | T178: 286.875 | U178: OI
O179: 41 | P179: 0.640625 | Q179: 0.6408203125 | R179: 0.6404296875
O180: 42 | P180: 0.65625 | Q180: 0.6564453125 | R180: 0.6560546875 | T180: 292.5 | U180: OI
O181: 43 | P181: 0.671875 | Q181: 0.6720703125 | R181: 0.6716796875
O182: 44 | P182: 0.6875 | Q182: 0.6876953125 | R182: 0.6873046875 | T182: 298.125 | U182: O
O183: 45 | P183: 0.703125 | Q183: 0.7033203125 | R183: 0.7029296875
O184: 46 | P184: 0.71875 | Q184: 0.7189453125 | R184: 0.7185546875
O185: 47 | P185: 0.734375 | Q185: 0.7345703125 | R185: 0.7341796875
O186: 48 | P186: 0.75 | Q186: 0.7501953125 | R186: 0.7498046875
O187: 49 | P187: 0.765625 | Q187: 0.7658203125 | R187: 0.7654296875
O188: 50 | P188: 0.78125 | Q188: 0.7814453125 | R188: 0.7810546875
O189: 51 | P189: 0.796875 | Q189: 0.7970703125 | R189: 0.7966796875
O190: 52 | P190: 0.8125 | Q190: 0.8126953125 | R190: 0.8123046875
O191: 53 | P191: 0.828125 | Q191: 0.8283203125 | R191: 0.8279296875
O192: 54 | P192: 0.84375 | Q192: 0.8439453125 | R192: 0.8435546875
O193: 55 | P193: 0.859375 | Q193: 0.8595703125 | R193: 0.8591796875
O194: 56 | P194: 0.875 | Q194: 0.8751953125 | R194: 0.8748046875
O195: 57 | P195: 0.890625 | Q195: 0.8908203125 | R195: 0.8904296875
O196: 58 | P196: 0.90625 | Q196: 0.9064453125 | R196: 0.9060546875
O197: 59 | P197: 0.921875 | Q197: 0.9220703125 | R197: 0.9216796875
O198: 60 | P198: 0.9375 | Q198: 0.9376953125 | R198: 0.9373046875
O199: 61 | P199: 0.953125 | Q199: 0.9533203125 | R199: 0.9529296875
O200: 62 | P200: 0.96875 | Q200: 0.9689453125 | R200: 0.9685546875
... 2 more rows

Sheet Home
G3: 2025-03-10 | AB3: Selig, Jeremy
G4: 17:49:32.200 | AB4: =Calculations!AF17 -> 1974-12-24T19:15:00
G5: (GMT-04:00) Eastern Time (US and Canada) *DST* | AB5: =Calculations!AF19 -> (GMT-06:00) Central Time (US and Canada)
AC7: 0
B14: <iframe width="700" height="900" frameborder="0" scrolling="no" src="https://onedrive.live.com/embed?resid=D62AE68801EA336E%211385&authkey=%21AAnzfxMR084QC8M&em=2&wdAllowInteractivity=False&Item='Simple%20Awarness'!Print_Area&wdInConfigurator=True&wdInConfigurator=True"></iframe>
K15: =TODAY() -> 2025-03-17
K16: =NOW()-TODAY() -> 15:29:07.670
I17: next Phy MACRO | K17: =Calculations!DV5 -> 2025-03-10T22:03:38.571
K18: =INT(K17) -> 2025-03-10
K19: =K17-K18+(1/24/60/60) -> 22:03:39.571
N20: Previous Phy MACRO | P20: =Calculations!DT5 -> 2025-03-09T22:35:30
K21: =INT(P20) -> 2025-03-09
K22: =P20-K21+1/24/60/60 -> 22:35:31
P23: Next and Previous Phy MICRO
K24: =Calculations!K81 -> 2025-03-10
K25: =Calculations!K82 -> 17:54:18
K26: =Calculations!I81 -> 2025-03-10 | W26: =IF(Calculations!AK5="♀",0,Calculations!AE5) -> 0.2234053439
K27: =Calculations!I82 -> 17:24:57 | V27: M | W27: =Calculations!Q5 -> IO | X27: =IF(Calculations!AK5="♀",Calculations!N5,Calculations!AK5) -> ♂ | Y27: =IF(Calculations!AK5="♀",Calculations!AK5,Calculations!N5) -> 2-5 | Z27: =Calculations!AQ5 -> IO | AA27: M
M28: Next $ Previous EMO MICRO
K29: =Calculations!K85 -> 2025-03-10 | W29: =IF(Calculations!AK5="♀",Calculations!AE5,0) -> 0
K30: =Calculations!K86 -> 19:22:19
K31: =Calculations!I85 -> 2025-03-10
K32: =Calculations!I86 -> 13:00:56 | W32: =IF(Calculations!AU5="♀",0,Calculations!BK5) -> 0.7234553758
P33: Next and Previous Mental micro | V33: m | W33: =Calculations!BD5 -> O | X33: =IF(Calculations!AU5="♀",Calculations!BE5,Calculations!AU5) -> ♂ | Y33: =IF(Calculations!AU5="♀",Calculations!AU5,Calculations!BE5) -> 1-5 | Z33: =Calculations!BA5 -> D | AA33: m
K34: =Calculations!K89 -> 2025-03-12
K35: =Calculations!K90 -> 19:02:36 | W35: =IF(Calculations!AU5="♀",Calculations!BK5,0) -> 0
K36: =Calculations!I89 -> 2025-02-25
K37: =Calculations!I90 -> 23:05:46
N38: Next EMO Macro | P38: =Calculations!CB5 -> 45729.85283 | W38: =IF(Calculations!CI5="♀",0,Calculations!CE5) -> 0.5106992558
K39: =INT(P38) -> 45729 | V39: E | W39: =Calculations!BO5 -> C | X39: =IF(Calculations!CI5="♀",Calculations!BL5,Calculations!CI5) -> ♂ | Y39: =IF(Calculations!CI5="♀",Calculations!CI5,Calculations!BL5) -> 8-3 | Z39: =Calculations!CO5 -> OC | AA39: E
K40: =P38-K39+1/24/60/60 -> 0.8528389546
N41: Previous Emo Macro | P41: =Calculations!BZ5 -> 45717.14043 | W41: =IF(Calculations!CI5="♀",Calculations!CE5,0) -> 0
K42: =INT(P41) -> 45717
K43: =P41-K42+1/24/60/60 -> 0.140438161
K44: Next & Pre Mental MACRO | W44: =IF(Calculations!CS5="♀",0,Calculations!DE5) -> 0.5134766649
K45: =Calculations!AB5 -> 46012.46042 | V45: e | W45: =Calculations!DB5 -> D | X45: =IF(Calculations!CS5="♀",Calculations!DC5,Calculations!CS5) -> ♂ | Y45: =IF(Calculations!CS5="♀",Calculations!CS5,Calculations!DC5) -> 3-7 | Z45: =Calculations!CY5 -> ID | AA45: e
K46: =INT(K45) -> 46012
K47: =K45-K46+1/86400 -> 0.4604282407 | W47: =IF(Calculations!CS5="♀",Calculations!DE5,0) -> 0
K48: =Calculations!Z5 -> 45281.97708
K49: =INT(K48) -> 45281
K50: =K48-K49+1/86400 -> 0.9770949074 | W50: =IF(Calculations!EE5="♀",0,Calculations!DY5) -> 0.6390903259
V51: P | W51: =Calculations!DI5 -> O | X51: =IF(Calculations!EE5="♀",Calculations!DF5,Calculations!EE5) -> ♂ | Y51: =IF(Calculations!EE5="♀",Calculations!EE5,Calculations!DF5) -> 5-5 | Z51: =Calculations!EK5 -> D | AA51: P
W53: =IF(Calculations!EE5="♀",Calculations!DY5,0) -> 0
W56: =IF(Calculations!EO5="♀",0,Calculations!FA5) -> 0.6755959138
V57: p | W57: =Calculations!EX5 -> O | X57: =IF(Calculations!EO5="♀",Calculations!EY5,Calculations!EO5) -> ♂ | Y57: =IF(Calculations!EO5="♀",Calculations!EO5,Calculations!EY5) -> 5-1 | Z57: =Calculations!EU5 -> OC | AA57: p
W59: =IF(Calculations!EO5="♀",Calculations!FA5,0) -> 0

Sheet Sheet1
U1: Space | Y1: Time | AD1: SPACE | AE1: TIME
T2: Mm | U2: ='Awarness Alignments'!BP404 ->  | V2: =INT(U2) ->  | W2: =MROUND((U2-V2)*60,5) ->  | Y2: ='Awarness Alignments'!JX404 ->  | Z2: =INT(Y2) ->  | AA2: =MROUND((Y2-Z2)*60,5) ->  | AD2: =IF(U2<0.5,"",IF(U2<1,W2&"min",V2&"hrs "&W2&"min")) ->  | AE2: =IF(Y2<0.5,"",IF(Y2<1,AA2&"min",Z2&"hrs "&AA2&"min")) -> 
T3: ME | U3: ='Awarness Alignments'!BD404 ->  | Y3: ='Awarness Alignments'!JL404 -> 
T4: MP | U4: ='Awarness Alignments'!AI404 ->  | V4: =INT(U4) ->  | W4: =MROUND((U4-V4)*60,5) ->  | Y4: ='Awarness Alignments'!IQ404 ->  | Z4: =INT(Y4) ->  | AA4: =MROUND((Y4-Z4)*60,5) -> 
K5: Largest Total Daily Polarity: | L5: =LARGE('Awarness Alignments'!TT17:TT400,1) -> 6 | T5: Me | U5: ='Awarness Alignments'!BJ404 ->  | V5: =INT(U5) ->  | Y5: ='Awarness Alignments'!JR404 ->  | AA5: =MROUND((Y5-Z5)*60,5) -> 
K6: Largest Total Weekly Polarity: | L6: =LARGE('Awarness Alignments'!TT17:TT2512,1) -> 8 | T6: Mp | V6: 0 | W6: 0 | Z6: 0 | AA6: 0
T7: mE | U7: ='Awarness Alignments'!BG404 ->  | Y7: ='Awarness Alignments'!JO404 -> 
T8: mP | U8: ='Awarness Alignments'!AL404 ->  | Y8: ='Awarness Alignments'!IT404 -> 
T9: me | U9: ='Awarness Alignments'!BM404 ->  | Y9: ='Awarness Alignments'!JU404 -> 
T10: mp | V10: 0 | W10: 0 | Z10: 0 | AA10: 0
T11: EP | U11: ='Awarness Alignments'!AC404 ->  | Y11: ='Awarness Alignments'!IK404 -> 
T12: Ee | U12: ='Awarness Alignments'!BA404 ->  | Y12: ='Awarness Alignments'!JI404 -> 
T13: Ep | V13: 0 | W13: 0 | Z13: 0 | AA13: 0
T14: Pe | U14: ='Awarness Alignments'!AF404 ->  | Y14: ='Awarness Alignments'!IN404 -> 
T15: Pp | V15: 0 | W15: 0 | Z15: 0 | AA15: 0
T16: ep | V16: 0 | W16: 0 | Z16: 0 | AA16: 0
K27: \

Sheet Family
C13: First Name | D13: Last Name | E13: Birth Day | F13: Birth Time | I13: Email
B14: =D14&", "&C14 -> 0, 0 | C14: =G5 -> 0 | D14: =G6 -> 0 | E14: =G7 -> 00:00:00 | F14: =G8 -> 00:00:00 | G14: =E14+F14 -> 00:00:00 | H14: =G9 -> 00:00:00 | I14: =G10 -> 0
B15: Obiwon, Jack | C15: Jack | D15: Obiwon | E15: 1973-02-23 | F15: 20:35:00 | G15: 1973-02-23T20:35:00 | H15: (GMT-05:00) Eastern Time (US and Canada) | I15: 0
B16: User, Joe | C16: Joe | D16: User | E16: 1973-02-23 | F16: 20:35:00 | G16: 1973-02-23T20:35:00 | H16: (GMT-05:00) Eastern Time (US and Canada) | I16: 0
B17: test, 5 | C17: 5 | D17: test | E17: 2024-04-07 | F17: 05:27:00 | G17: 2024-04-07T05:27:00 | H17: (GMT-06:00) Central Time (US and Canada) | I17: 0
B18: test, 4 | C18: 4 | D18: test | E18: 2024-04-11 | F18: 08:58:00 | G18: 2024-04-11T08:58:00 | H18: (GMT-06:00) Central Time (US and Canada) | I18: 0
B19: test, 3 | C19: 3 | D19: test | E19: 2024-04-03 | F19: 18:40:00 | G19: 2024-04-03T18:40:00 | H19: (GMT-06:00) Central Time (US and Canada) | I19: 0
B20: test, 2 | C20: 2 | D20: test | E20: 2024-04-04 | F20: 08:03:00 | G20: 2024-04-04T08:03:00 | H20: (GMT-06:00) Central America | I20: 0
B21: Space micro cone N, test 5 | C21: test 5 | D21: Space micro cone N | E21: 2024-03-19 | F21: 08:23:00 | G21: 2024-03-19T20:19:00 | H21: (GMT-06:00) Central Time (US and Canada) | I21: 0
B22: Time macro N, Test4 | C22: Test4 | D22: Time macro N | E22: 2044-04-21 | F22: 22:09:00 | G22: 2044-04-21T22:09:00 | H22: (GMT-06:00) Central Time (US and Canada) | I22: 0
B23: space macro N, test1 | C23: test1 | D23: space macro N | E23: 2035-01-07 | F23: 16:13:00 | G23: 2035-01-07T16:13:00 | H23: (GMT-06:00) Central Time (US and Canada) | I23: 0
B24: Durbin, Steven | C24: Steven | D24: Durbin | E24: 1975-04-29 | F24: 23:11:00 | G24: 1975-04-29T23:11:00 | H24: (GMT-06:00) Mountain Time (US and Canada) *DST* | I24: 0
B25: McFadden, Daniel | C25: Daniel | D25: McFadden | E25: 1975-04-12 | F25: 15:00:00 | G25: 1975-04-12T15:00:00 | H25: (UTC-07:00) Pacific Time (US and Canada); Tijuana *DST* | I25: 0
B26: Bryant, Kobe | C26: Kobe | D26: Bryant | E26: 1978-08-23 | F26: 17:00:00 | G26: 1978-08-23T17:00:00 | H26: (GMT-04:00) Eastern Time (US and Canada) *DST*
B27: Network, Murphy | C27: Murphy | D27: Network | E27: 1974-06-24 | F27: 07:03:00 | G27: 1974-06-24T07:03:00 | H27: (UTC-07:00) Pacific Time (US and Canada); Tijuana *DST*
B28: McFadden, Kevin | C28: Kevin | D28: McFadden | E28: 1979-06-24 | F28: 19:07:00 | G28: 1979-06-24T19:07:00 | H28: (UTC-07:00) Pacific Time (US and Canada); Tijuana *DST*
B29: Evans, Justin | C29: Justin | D29: Evans | E29: 2000-01-13 | F29: 07:00:00 | G29: 2000-01-13T07:00:00 | H29: (GMT-05:00) Eastern Time (US and Canada)
B30: Naul, Bryan | C30: Bryan | D30: Naul | E30: 1995-11-28 | F30: 07:57:00 | G30: 1995-11-28T07:57:00 | H30: (GMT-06:00) Central Time (US and Canada)
B31: Clayton, Stephanie | C31: Stephanie | D31: Clayton | E31: 1973-11-15 | F31: 05:55:00 | G31: 1973-11-15T05:55:00 | H31: (GMT-06:00) Central Time (US and Canada)
B32: Williams, Kurt | C32: Kurt | D32: Williams | E32: 1953-01-31 | F32: 19:47:00 | G32: 1953-01-31T19:47:00 | H32: (GMT-05:00) Central Time (US and Canada) *DST*
B33: Williams, Jeannie | C33: Jeannie | D33: Williams | E33: 1960-12-20 | F33: 07:18:00 | G33: 1960-12-20T07:18:00 | H33: (GMT-06:00) Central Time (US and Canada)
B34: Schultz, Caleb | C34: Caleb | D34: Schultz | E34: 1999-10-28 | F34: 16:00:00 | G34: 1999-10-28T16:00:00 | H34: (GMT-05:00) Central Time (US and Canada) *DST*
B35: Schultz, Isaac | C35: Isaac | D35: Schultz | E35: 2003-01-02 | F35: 06:52:00 | G35: 2003-01-02T06:52:00 | H35: (GMT-06:00) Central Time (US and Canada)
B36: Hoverson, Charlie | C36: Charlie | D36: Hoverson | E36: 1981-04-10 | F36: 01:04:00 | G36: 1981-04-10T01:04:00 | H36: (GMT-05:00) Central Time (US and Canada) *DST*
B37: Schultz, Scott | C37: Scott | D37: Schultz | E37: 1971-09-24 | F37: 10:42:00 | G37: 1971-09-24T10:42:00 | H37: (GMT-05:00) Central Time (US and Canada) *DST*
B38: Hoverson, Ryan | C38: Ryan | D38: Hoverson | E38: 1987-09-09 | F38: 07:26:00 | G38: 1987-09-09T07:26:00 | H38: (GMT-05:00) Central Time (US and Canada) *DST*
B39: Hoverson, Randy | C39: Randy | D39: Hoverson | E39: 1957-10-31 | F39: 10:52:00 | G39: 1957-10-31T10:52:00 | H39: (GMT-05:00) Central Time (US and Canada) *DST*
B40: Hoverson, Loree | C40: Loree | D40: Hoverson | E40: 1963-01-07 | F40: 01:07:00 | G40: 1963-01-07T01:07:00 | H40: (GMT-06:00) Central Time (US and Canada)
B41: Hoverson, Kyle | C41: Kyle | D41: Hoverson | E41: 1990-10-15 | F41: 17:25:00 | G41: 1990-10-15T17:25:00 | H41: (GMT-05:00) Central Time (US and Canada) *DST*
B42: Geldhof, Cynthia | C42: Cynthia | D42: Geldhof | E42: 1947-07-17 | F42: 02:30:00 | G42: 1947-07-17T02:30:00 | H42: (GMT-04:00) Eastern Time (US and Canada) *DST*
B43: Guy, Chris | C43: Chris | D43: Guy | E43: 1990-04-07 | F43: 11:15:00 | G43: 1990-04-07T11:15:00 | H43: (GMT-04:00) Eastern Time (US and Canada) *DST*
B44: Hoverson, Curtis | C44: Curtis | D44: Hoverson | E44: 1985-10-01 | F44: 21:25:00 | G44: 1985-10-01T21:25:00 | H44: (GMT-05:00) Central Time (US and Canada) *DST*
B45: Schultz, Amy | C45: Amy | D45: Schultz | E45: 1970-10-17 | F45: 12:12:00 | G45: 1970-10-17T12:12:00 | H45: (GMT-05:00) Central Time (US and Canada) *DST*
B46: Ivy, C.J. | C46: C.J. | D46: Ivy | E46: 2019-12-12 | F46: 12:14:00 | G46: 2019-12-12T12:14:00 | H46: (GMT-05:00) Eastern Time (US and Canada)
B47: Ivy, Marc | C47: Marc | D47: Ivy | E47: 1980-01-17 | F47: 22:49:00 | G47: 1980-01-17T22:49:00 | H47: (GMT-05:00) Eastern Time (US and Canada)
B48: Lee, Jac | C48: Jac | D48: Lee | E48: 1991-01-31 | F48: 09:31:00 | G48: 1991-01-31T09:31:00 | H48: (GMT-05:00) Eastern Time (US and Canada)
B49: Baier, Beth | C49: Beth | D49: Baier | E49: 1982-02-18 | F49: 02:16:00 | G49: 1982-02-18T02:16:00 | H49: (GMT-05:00) Eastern Time (US and Canada)
B50: Baier, Barb | C50: Barb | D50: Baier | E50: 1951-12-27 | F50: 18:00:00 | G50: 1951-12-27T18:00:00 | H50: (GMT-05:00) Eastern Time (US and Canada)
B51: Selig, Linda | C51: Linda | D51: Selig | E51: 1943-04-04 | F51: 12:00:00 | G51: =E51+F51 -> 1943-04-04T12:00:00 | H51: (GMT-06:00) Central Time (US and Canada)
B52: Hoverson, Kara | C52: Kara | D52: Hoverson | E52: 1982-09-16 | F52: 16:12:00 | G52: 1982-09-16T16:12:00 | H52: (GMT-05:00) Central Time (US and Canada) *DST*
B53: Hoverson, Anne | C53: Anne | D53: Hoverson | E53: 1976-02-12 | F53: 15:35:00 | G53: 1976-02-12T15:35:00 | H53: (GMT-06:00) Central Time (US and Canada)
B54: Hoverson, Julie | C54: Julie | D54: Hoverson | E54: 1951-08-17 | F54: 16:54:00 | G54: 1951-08-17T16:54:00 | H54: (GMT-05:00) Central Time (US and Canada) *DST*
B55: Hoverson, Kathy | C55: Kathy | D55: Hoverson | E55: 1951-07-24 | F55: 04:55:00 | G55: 1951-07-24T04:55:00 | H55: (GMT-05:00) Central Time (US and Canada) *DST*
B56: Hoverson, Allen | C56: Allen | D56: Hoverson | E56: 1951-07-24 | F56: 08:21:00 | G56: 1951-07-24T08:21:00 | H56: (GMT-05:00) Central Time (US and Canada) *DST*
B57: Hoverson, Holten | C57: Holten | D57: Hoverson | E57: 2007-09-05 | F57: 22:11:00 | G57: 2007-09-05T22:11:00 | H57: (GMT-04:00) Eastern Time (US and Canada) *DST*
B58: Hoverson, Hayden | C58: Hayden | D58: Hoverson | E58: 2004-12-28 | F58: 07:41:00 | G58: 2004-12-28T07:41:00 | H58: (GMT-06:00) Central Time (US and Canada)
B59: Hoverson, Tara | C59: Tara | D59: Hoverson | E59: 1978-06-18 | F59: 06:15:00 | G59: 1978-06-18T06:15:00 | H59: (GMT-05:00) Central Time (US and Canada) *DST*
B60: Hoverson, Trey | C60: Trey | D60: Hoverson | E60: 1979-02-25 | F60: 14:46:00 | G60: 1979-02-25T14:46:00 | H60: (GMT-05:00) Eastern Time (US and Canada)
B61: =D61&", "&C61 -> Selig, Max | C61: Max | D61: Selig | E61: 1943-04-14 | F61: 04:43:00 | G61: 1943-04-14T04:43:00 | H61: (GMT-06:00) Central Time (US and Canada)
B62: Selig, Jeff | C62: Jeff | D62: Selig | E62: 1972-03-19 | F62: 16:28:00 | G62: 1972-03-19T16:28:00 | H62: (GMT-07:00) Mountain Time (US and Canada)
B63: Selig, Jeremy | C63: Jeremy | D63: Selig | E63: 1974-12-24 | F63: 19:15:00 | G63: 1974-12-24T19:15:00 | H63: (GMT-06:00) Central Time (US and Canada)
B64: Selig, Madilyn | C64: Madilyn | D64: Selig | E64: 2009-01-27 | F64: 07:08:00 | G64: 2009-01-27T07:08:00 | H64: (GMT-05:00) Eastern Time (US and Canada)
B65: Uribe, Andrea | C65: Andrea | D65: Uribe | E65: 1983-12-03 | F65: 09:10:00 | G65: 1983-12-03T09:10:00 | H65: (GMT-05:00) Eastern Time (US and Canada)
B66: Jackmack, Robin | C66: Robin | D66: Jackmack | E66: 1969-12-22 | F66: 06:51:00 | G66: 1969-12-22T06:51:00 | H66: (UTC-08:00) Pacific Time (US and Canada); Tijuana
B67: St, Tatiana | C67: Tatiana | D67: St | E67: 1977-07-29 | F67: 18:50:00 | G67: 1977-07-29T18:50:00 | H67: (GMT+12:00) Fiji Islands, Kamchatka, Marshall Islands

Sheet Awarness Alignments
RN1: 1am | RO1: =1/24 -> 0.04166666667 | RP1: =INDEX(RL17:RL400,MATCH(MIN(ABS(RL17:RL400-RO1)),ABS(RL17:RL400-RO1),0)) -> 00:59:40 | RQ1: --
J2: Start of CurrentEMO Awarness | K2: =VLOOKUP(B17,'Emotional Data Set'!$B$4:$D$2691,3,TRUE)-VLOOKUP(B17,'Emotional Data Set'!$B$4:$E$2691,4,TRUE) -> 577 | L2: Start of EMO | M2: =VLOOKUP(K2,'Emotional Data Set'!A:B,2,FALSE) -> 2025-03-07T11:55:08.571 | N2: =M3-M2 -> 6.356200397 | U2: Date | V2: Length | RN2: 2am | RO2: =2/24 -> 0.08333333333 | RP2: =INDEX(RL17:RL400,MATCH(MIN(ABS(RL17:RL400-RO2)),ABS(RL17:RL400-RO2),0)) -> 01:58:20 | RQ2: --
M3: =VLOOKUP(K2+48,'Emotional Data Set'!A:B,2,FALSE) -> 2025-03-13T20:28:04.286 | N3: =M4-M3 -> 6.356200399 | T3: Start of MENTAL | U3: =Calculations!AA5 -> 2024-12-21T05:20:00 | V3: =U4-U3 -> 365.2381944 | W3: =VLOOKUP(YEAR(U3)+1,Years.Mind!A:B,2,0) -> 2-5 | NB3: #29C7FF | RN3: 4am | RO3: =1/6 -> 0.1666666667 | RP3: =INDEX(RL17:RL400,MATCH(MIN(ABS(RL17:RL400-RO3)),ABS(RL17:RL400-RO3),0)) -> 03:59:21 | RQ3: -- | RS3: Day Lines for 4 day graph
M4: =VLOOKUP(K2+96,'Emotional Data Set'!A:B,2,FALSE) -> 2025-03-20T05:01:00 | N4: 6.62405754 | U4: =Calculations!AB5 -> 2025-12-21T11:03:00 | V4: =U5-U4 -> 365.2409722 | W4: =VLOOKUP(YEAR(U4)+1,Years.Mind!A:B,2,0) -> 4-6 | RN4: 5am | RO4: =5/24 -> 0.2083333333 | RP4: =INDEX(RL17:RL400,MATCH(MIN(ABS(RL17:RL400-RO4)),ABS(RL17:RL400-RO4),0)) -> 05:01:41 | RQ4: -- | RS4: 0 | RT4: 384
A5: Now | B5: =Calculations!D5+Calculations!E5 -> 2025-03-10T17:49:32.200 | E5: Time Indicator | I5: TRUE | M5: =VLOOKUP(K2+144,'Emotional Data Set'!A:B,2,FALSE) -> 2025-03-26T19:59:38.571 | N5: 6.62405754 | U5: =HLOOKUP(Calculations!M5+2,'AW1899-2149'!A:IQ,2,FALSE)+VLOOKUP(Calculations!$F$5,'Time Zones'!$C:$D,2,0)/24 -> 2026-12-21T16:50:00 | RK5: 12am | RL5: =INDEX(RL17:RL400,MATCH(MIN(ABS(RL17:RL400-1)),ABS(RL17:RL400-1),0)) -> 23:57:19 | RN5: 7am | RO5: =7/24 -> 0.2916666667 | RP5: =INDEX(RL17:RL400,MATCH(MIN(ABS(RL17:RL400-RO5)),ABS(RL17:RL400-RO5),0)) -> 06:59:02 | RS5: 8 | RT5: 384
A6: Physical Data Set Line | B6: =VLOOKUP(B5,'Physical Data Set'!B:H,7) -> 7807 | E6: =((((Calculations!D5+Calculations!E5)-B17)/(B401-B17))*384)+1 -> 123.7053449 | F6: 0 | G6: 0 | H6: =IF(I5=TRUE,0,"") -> 0 | I6: =IF(I5=TRUE,E6,"") -> 123.7053449 | M6: =VLOOKUP(K2+192,'Emotional Data Set'!A:B,2,FALSE) -> 2025-04-02T10:58:17.143 | N6: 6.62405754 | AE6: Waves with current Alignments | HR6: The | IM6: Current Waves with Alignments | RK6: 6am | RL6: =INDEX(RL17:RL400,MATCH(MIN(ABS(RL17:RL400-0.25)),ABS(RL17:RL400-0.25),0)) -> 06:00:21 | RN6: 8am | RO6: =2/6 -> 0.3333333333 | RP6: =INDEX(RL17:RL400,MATCH(MIN(ABS(RL17:RL400-RO6)),ABS(RL17:RL400-RO6),0)) -> 08:01:22 | RQ6: -- | RS6: 0 | RT6: 768
A7: Start of Current Awareness | B7: =VLOOKUP(B5,'Physical Data Set'!B:H,7)-VLOOKUP(B6,'Physical Data Set'!A:I,9,FALSE) -> 7777 | E7: =((((Calculations!D5+Calculations!E5)-B17)/(B401-B17))*384)+1 -> 123.7053449 | F7: 6.5 | G7: 15 | H7: =IF(I5=TRUE,8,"") -> 8 | I7: =IF(I5=TRUE,E6,"") -> 123.7053449 | M7: =VLOOKUP(K2+240,'Emotional Data Set'!A:B,2,FALSE) -> 2025-04-09T01:56:55.714 | N7: 6.62405754 | AE7: M | AF7: =IF(AND(BO14="",BI14="",BC14="",AT14="",AH14=""),0,1) -> 0 | AR7: =IF(OR(Y17>0,AB17>0,AE17>0,AH17>0,AK17>0),2,0) -> 2 | AS7: =IF(OR(Z17>0,AC17>0,AF17>0,AI17>0,AL17>0),2,0) -> 2 | AT7: =IF(OR(AA17>1,AD17>0,AG17>0,AJ17>0,AM17>0),1,0) ->  | IM7: M | IN7: =IF(AND(IP14="",JB14="",JK14="",JQ14="",JW14=""),0,1) -> 0 | RK7: 12pm | RL7: =INDEX(RL17:RL400,MATCH(MIN(ABS(RL17:RL400-0.5)),ABS(RL17:RL400-0.5),0)) -> 11:58:35 | RN7: 10am | RO7: =10/24 -> 0.4166666667 | RP7: =INDEX(RL17:RL400,MATCH(MIN(ABS(RL17:RL400-RO7)),ABS(RL17:RL400-RO7),0)) -> 09:44:03 | RQ7: -- | RS7: 15 | RT7: 768
A8: Start of Current Awarness | B8: =VLOOKUP(B7,'Physical Data Set'!$A:$B,2,FALSE) -> 2025-03-10T10:19:34.285 | H8: =IF(I5=TRUE,0,"") -> 0 | I8: =IF(I5=TRUE,382,"") -> 382 | M8: =VLOOKUP(K2+288,'Emotional Data Set'!A:B,2,FALSE) -> 2025-04-15T16:55:34.286 | N8: 6.62405754 | AE8: m | AF8: =IF(AND(BO14="",BL14="",BF14="",AW14="",AK14=""),0,1) -> 0 | AR8: =IF(Y17=1.5,1,0) -> 0 | IM8: m | IN8: =IF(AND(IS14="",JE14="",JN14="",JT14="",JW14=""),0,1) -> 0 | RK8: 6pm | RL8: =INDEX(RL17:RL400,MATCH(MIN(ABS(RL17:RL400-0.75)),ABS(RL17:RL400-0.75),0)) -> 18:01:37 | RN8: 11am | RO8: =11/24 -> 0.4583333333 | RP8: =INDEX(RL17:RL400,MATCH(MIN(ABS(RL17:RL400-RO8)),ABS(RL17:RL400-RO8),0)) -> 10:59:55 | RQ8: -- | RT8: 1152
A9: End of Current Awareness | B9: =VLOOKUP(B7+48,'Physical Data Set'!$A:$B,2,FALSE) -> 2025-03-10T22:03:38.571 | H9: =IF(I5=TRUE,15,"") -> 15 | I9: =IF(I5=TRUE,382,"") -> 382 | M9: =VLOOKUP(K2+336,'Emotional Data Set'!A:B,2,FALSE) -> 2025-04-22T07:54:12.857 | N9: -45769.32932 | AE9: E | AF9: =IF(AND(AZ14="",BF14="",BC14="",AN14="",AB14=""),0,1) -> 0 | IM9: E | IN9: =IF(AND(IV14="",JN14="",JK14="",IJ14="",JH14=""),0,1) -> 0 | RK9: 3am | RL9: =INDEX(RL17:RL400,MATCH(MIN(ABS(RL17:RL400-0.125)),ABS(RL17:RL400-0.125),0)) -> 03:00:40 | RN9: 1pm | RO9: =13/24 -> 0.5416666667 | RP9: =INDEX(RL17:RL400,MATCH(MIN(ABS(RL17:RL400-RO9)),ABS(RL17:RL400-RO9),0)) -> 13:00:55 | RQ9: -- | RT9: 1152
A10: Length of Current Awareness (hrs) | B10: =(B9-B8)*24 -> 11.73452381 | E10: =VLOOKUP(OQ17,$C$150:$E$165,2,FALSE) -> 1900-08-12 | I10: FALSE | AE10: e | AF10: =IF(AND(BL14="",BI14="",AZ14="",AQ14="",AE14=""),0,1) -> 0 | HG10: Emotional | HQ10: =HQ79*360 -> 206.25 | IM10: e | IN10: =IF(AND(IM14="",IY14="",JH14="",JQ14="",JT14=""),0,1) -> 0 | RK10: 9am | RL10: =INDEX(RL17:RL400,MATCH(MIN(ABS(RL17:RL400-0.375)),ABS(RL17:RL400-0.375),0)) -> 09:00:03 | RN10: 2pm | RO10: =14/24 -> 0.5833333333 | RP10: =INDEX(RL17:RL400,MATCH(MIN(ABS(RL17:RL400-RO10)),ABS(RL17:RL400-RO10),0)) -> 13:59:36 | RQ10: --
A11: Length into(hrs) | B11: =(B5-B8)*24 -> 7.499420787 | H11: =IF(I10=TRUE,0,"") ->  | I11: =IF(I10=TRUE,382,"") ->  | AE11: P | AF11: =IF(AND(Y14="",AB14="",AE14="",AK14="",AH14=""),0,1) -> 0 | HA11: 25% of an awarnesses 30min | HG11: Start of Current | HH11: ='EMO Predictor'!D33 -> 2025-03-07T11:55:08.571 | HI11: ='EMO Predictor'!F33 -> 6.356200397 | IM11: P | IN11: =IF(AND(IP14="",IS14="",IM14="",IJ14="",IG14=""),0,1) -> 0 | QH11: =VLOOKUP(B17,$U$3:$W$4,3) -> 2-5 | RK11: 3pm | RL11: =INDEX(RL17:RL400,MATCH(MIN(ABS(RL17:RL400-0.625)),ABS(RL17:RL400-0.625),0)) -> 14:58:16 | RN11: 4pm | RO11: 0.6666666667 | RP11: =INDEX(RL17:RL400,MATCH(MIN(ABS(RL17:RL400-RO11)),ABS(RL17:RL400-RO11),0)) -> 16:00:36 | RQ11: --
A12: % thru | B12: =B11/B10 -> 0.639090338 | H12: =IF(I10=TRUE,15,"") ->  | I12: =IF(I10=TRUE,382,"") ->  | AE12: p | AF12: =IF(AND(AW14="",AQ14="",AN14="",AT14="",Y14=""),0,1) -> 0 | HA12: =15/2880 -> 0.005208333333 | HB12: 7.5 min | HG12: Start of Next | HH12: ='EMO Predictor'!E33 -> 2025-03-13T20:28:04.286 | HI12: ='EMO Predictor'!O33 -> 6.356200399 | HN12: Calc on page | HQ12: calc on page | HW12: calc on page | IM12: p | IN12: =IF(AND(IG14="",IV14="",IY14="",JB14="",JE14=""),0,1) -> 0 | RI12: 0 | RK12: 9pm | RL12: =INDEX(RL17:RL400,MATCH(MIN(ABS(RL17:RL400-0.875)),ABS(RL17:RL400-0.875),0)) -> 21:01:18 | RN12: 5pm | RO12: =17/24 -> 0.7083333333 | RP12: =INDEX(RL17:RL400,MATCH(MIN(ABS(RL17:RL400-RO12)),ABS(RL17:RL400-RO12),0)) -> 16:59:17
A13: End of Next Awarness | B13: =VLOOKUP(B7+96,'Physical Data Set'!$A:$B,2,FALSE) -> 2025-03-11T09:47:42.857 | F13: Space | Y13: 1.5 | AB13: 5.5 | AE13: 2.5 | AH13: 12.5 | AK13: 8.5 | AN13: 3.5 | AQ13: 0.5 | AT13: 10.5 | AW13: 6.5 | AZ13: 4.5 | BC13: 13.5 | BF13: 9.5 | BI13: 11.5 | BL13: 7.5 | BO13: 14.5 | BT13: User vs Awarnesses (space) | HE13: *added .0000001% to make sure it catches the correc awarness | HH13: ='EMO Predictor'!N33 -> 2025-03-20T05:01:00 | HN13: Time | IG13: =SUM(#REF!)/1.5 ->  | IH13: 0 | IJ13: =SUM(#REF!)/5.5 ->  | IK13: =COUNTIF(#REF!,"=1") ->  | IM13: =SUM(#REF!)/4.5 ->  | IN13: =COUNTIF(#REF!,"=1") ->  | IP13: =SUM(#REF!)/12.5 ->  | IQ13: =COUNTIF(#REF!,"=1") ->  | IS13: =SUM(#REF!)/5.5 ->  | IT13: =COUNTIF(#REF!,"=1") ->  | IV13: =SUM(#REF!)/3.5 ->  | IW13: =COUNTIF(#REF!,"=1") ->  | IY13: =SUM(#REF!)/0.5 ->  | IZ13: =COUNTIF(#REF!,"=1") ->  | JB13: =SUM(#REF!)/10.5 ->  | JC13: =COUNTIF(#REF!,"=1") ->  | JE13: =SUM(#REF!)/6.5 ->  | JF13: =COUNTIF(#REF!,"=1") ->  | JH13: =SUM(#REF!)/4.5 ->  | JI13: =COUNTIF(#REF!,"=1") ->  | JK13: =SUM(#REF!)/13.5 ->  | JL13: =COUNTIF(#REF!,"=1") ->  | JN13: =SUM(#REF!)/9.5 ->  | JO13: =COUNTIF(#REF!,"=1") ->  | JQ13: =SUM(#REF!)/11.5 ->  | JR13: =COUNTIF(#REF!,"=1") ->  | JT13: =SUM(#REF!)/7.5 ->  | JU13: =COUNTIF(#REF!,"=1") ->  | JW13: =SUM(#REF!)/14.5 ->  | JX13: =COUNTIF(#REF!,"=1") ->  | JZ13: =IG13+IJ13+IM13+IP13+IS13+IV13+IY13+JB13+JE13+JH13+JK13+JN13+JQ13+JT13+JW13 ->  | KB13: User vs Awarnesses (time) | OW13: =1.56/2.08 -> 0.75 | PZ13: Space | QL13: Time | QS13: Right Arm | RI13: 12 | RK13: 12am | RL13: =INDEX(RL17:RL400,MATCH(MIN(ABS(RL17:RL400-0)),ABS(RL17:RL400-0),0)) -> 00:00:59 | RN13: 7pm | RO13: =19/24 -> 0.7916666667 | RP13: =INDEX(RL17:RL400,MATCH(MIN(ABS(RL17:RL400-RO13)),ABS(RL17:RL400-RO13),0)) -> 19:00:17 | SO13: POLARTIY | TF13: Blue or Purple (direction of wave)
A14: Length of Micro | B14: =B21-B19 -> 0.005093109292 | F14: Phy | L14: Emo | R14: Mental | Y14: =VLOOKUP(B5,B17:BR400,24,TRUE) ->  | AB14: =VLOOKUP(B5,B17:BR400,27,TRUE) ->  | AE14: =VLOOKUP(B5,B17:BR400,30,TRUE) ->  | AH14: =VLOOKUP(B5,B17:BR400,33,TRUE) ->  | AK14: =VLOOKUP(B5,B17:BR400,36,TRUE) ->  | AN14: =VLOOKUP(B5,B17:BR400,39,TRUE) ->  | AQ14: =VLOOKUP(B5,B17:BR400,42,TRUE) ->  | AT14: =VLOOKUP(B5,B17:BR400,45,TRUE) ->  | AW14: =VLOOKUP(B5,B17:BR400,48,TRUE) ->  | AZ14: =VLOOKUP(B5,B17:BR400,51,TRUE) ->  | BC14: =VLOOKUP(B5,B17:BR400,54,TRUE) ->  | BF14: =VLOOKUP(B5,B17:BR400,57,TRUE) ->  | BI14: =VLOOKUP(B5,B17:BR400,60,TRUE) ->  | BL14: =VLOOKUP(B5,B17:BR400,63,TRUE) ->  | BO14: =VLOOKUP(B5,B17:BR400,66,TRUE) ->  | BT14: Phy MACRO User vs Current | CN14: Phy micro User vs Current | DH14: EMO MACRO User vs Current | EB14: EMO micro User vs Current | EV14: Mental MACRO User vs Current | FP14: Mental micro User vs Current | HA14: Physical | HN14: Phy | HT14: Emo | HZ14: Mental | IG14: =VLOOKUP(B5,B17:JZ400,240,TRUE) ->  | IJ14: =VLOOKUP(B5,B17:JZ400,243,TRUE) ->  | IM14: =VLOOKUP(B5,B17:JZ400,246,TRUE) ->  | IP14: =VLOOKUP(B5,B17:JZ400,249,TRUE) ->  | IS14: =VLOOKUP(B5,B17:JZ400,252,TRUE) ->  | IV14: =VLOOKUP(B5,B17:JZ400,255,TRUE) ->  | IY14: =VLOOKUP(B5,B17:JZ400,258,TRUE) ->  | JB14: =VLOOKUP(B5,B17:JZ400,261,TRUE) ->  | JE14: =VLOOKUP(B5,B17:JZ400,264,TRUE) ->  | JH14: =VLOOKUP(B5,B17:JZ400,267,TRUE) ->  | JK14: =VLOOKUP(B5,B17:JZ400,270,TRUE) ->  | JN14: =VLOOKUP(B5,B17:JZ400,273,TRUE) ->  | JQ14: =VLOOKUP(B5,B17:JZ400,276,TRUE) ->  | JT14: =VLOOKUP(B5,B17:JZ400,279,TRUE) ->  | JW14: =VLOOKUP(B5,B17:JZ400,282,TRUE) ->  | JZ14: =VLOOKUP(B5,B17:JZ400,285,TRUE) -> 0 | KB14: Phy MACRO User vs Current | KV14: Phy micro User vs Current | LP14: EMO MACRO User vs Current | MJ14: EMO micro User vs Current | ND14: Mental MACRO User vs Current | NX14: Mental micro User vs Current | OW14: =3.65/4.16 -> 0.8774038462 | PZ14: Phy | QD14: EMO | QH14: Mental | QL14: Phy | QN14: EMO | QP14: Mental | QS14: Space | QY14: TIme | RN14: 8pm | RO14: =5/6 -> 0.8333333333 | RP14: =INDEX(RL17:RL400,MATCH(MIN(ABS(RL17:RL400-RO14)),ABS(RL17:RL400-RO14),0)) -> 19:58:58 | RT14: EMO Space Mega Calulations | RY14: Mental Space Mega Calulations | SO14: Space | SW14: Time | TF14: Space | TL14: TIME
C15: Key | F15: User: | G15: =VLOOKUP(Calculations!DF8,C17:E143,2,TRUE) -> D | H15: =VLOOKUP(Calculations!DF8,C17:E143,3,TRUE) -> G | I15: User: | J15: =VLOOKUP(Calculations!EY8,C17:E143,2,TRUE) -> I | K15: =VLOOKUP(Calculations!EY8,C17:E143,3,TRUE) -> R | L15: User: | M15: =VLOOKUP(Calculations!BL8,C17:E143,2,TRUE) -> O | N15: =VLOOKUP(Calculations!BL8,C17:E143,3,TRUE) -> G | O15: User: | P15: =VLOOKUP(Calculations!DC8,C17:E143,2,TRUE) -> DC | Q15: =VLOOKUP(Calculations!DC8,C17:E143,3,TRUE) -> R | R15: User: | S15: =VLOOKUP(Calculations!N8,C17:E143,2,TRUE) -> DC | T15: =VLOOKUP(Calculations!N8,C17:E143,3,TRUE) -> R | U15: User: | V15: =VLOOKUP(Calculations!BE8,C17:E143,2,TRUE) -> D | W15: =VLOOKUP(Calculations!BE8,C17:E143,3,TRUE) -> Y | Y15: Space Alignments Current Time alignments | BT15: Shape: | BZ15: =VLOOKUP(Calculations!DF8,C17:E143,2,TRUE) -> D | CF15: Quad: | CL15: =VLOOKUP(Calculations!DF8,C17:E143,3,TRUE) -> G | CN15: Shape: | CT15: =VLOOKUP(Calculations!EY8,C17:E143,2,TRUE) -> I | CZ15: Quad: | DF15: =VLOOKUP(Calculations!EY8,C17:E143,3,TRUE) -> R | DH15: Shape: | DN15: =VLOOKUP(Calculations!BL8,C17:E143,2,TRUE) -> O | DT15: Quad: | DZ15: =VLOOKUP(Calculations!BL8,C17:E143,3,TRUE) -> G | EB15: Shape: | EH15: =VLOOKUP(Calculations!DC8,C17:E143,2,TRUE) -> DC | EN15: Quad: | ET15: =VLOOKUP(Calculations!DC8,C17:E143,3,TRUE) -> R | EV15: Shape: | FB15: =VLOOKUP(Calculations!N8,C17:E143,2,TRUE) -> DC | FH15: Quad: | FN15: =VLOOKUP(Calculations!N8,C17:E143,3,TRUE) -> R | FP15: Shape: | FV15: =VLOOKUP(Calculations!BE8,C17:E143,2,TRUE) -> D | GB15: Quad: | GH15: =VLOOKUP(Calculations!BE8,C17:E143,3,TRUE) -> Y | GJ15: Space Alignements between current awarnesses by Degree | HA15: Macro P Awarness | HC15: Micro | HG15: Macro Emotional | HJ15: micro Emotional | HN15: User: | HO15: =VLOOKUP(Calculations!EM4*360,$C$17:$E$143,2,TRUE) -> ID | HP15: =VLOOKUP(Calculations!EM4*360,$C$17:$E$143,3,TRUE) -> G | HQ15: User: | HR15: =VLOOKUP(Calculations!EW4*360,$C$17:$E$143,2,TRUE) -> ID | HS15: =VLOOKUP(Calculations!EW4*360,$C$17:$E$143,3,TRUE) -> R | HT15: User: | HU15: =VLOOKUP(Calculations!CQ4*360,$C$17:$E$143,2,TRUE) -> CO1 | HV15: =VLOOKUP(Calculations!CQ4*360,$C$17:$E$143,3,TRUE) -> O | HW15: User: | HX15: =VLOOKUP(Calculations!DA4*360,$C$17:$E$143,2,TRUE) -> OI | HY15: =VLOOKUP(Calculations!DA4*360,$C$17:$E$143,3,TRUE) -> Y | HZ15: User: | IA15: =VLOOKUP(Calculations!AS4*360,$C$17:$E$143,2,TRUE) -> O | IB15: =VLOOKUP(Calculations!AS4*360,$C$17:$E$143,3,TRUE) -> O | IC15: User: | ID15: =VLOOKUP(Calculations!BC4*360,$C$17:$E$143,2,TRUE) -> ID | IE15: =VLOOKUP(Calculations!BC4*360,$C$17:$E$143,3,TRUE) -> O | IG15: Time Alignments | KB15: Shape: | KH15: =VLOOKUP(Calculations!EM4*360,$C$17:$E$143,2,TRUE) -> ID | KN15: Quad: | KT15: =VLOOKUP(Calculations!EM4*360,$C$17:$E$143,3,TRUE) -> G | KV15: Shape: | LB15: =VLOOKUP(Calculations!EW4*360,$C$17:$E$143,2,TRUE) -> ID | LH15: Quad: | LN15: =VLOOKUP(Calculations!EW4*360,$C$17:$E$143,3,TRUE) -> R | LP15: Shape: | LV15: =VLOOKUP(Calculations!CQ4*360,$C$17:$E$143,2,TRUE) -> CO1 | MB15: Quad: | MH15: =VLOOKUP(Calculations!CQ4*360,$C$17:$E$143,3,TRUE) -> O | MJ15: Shape: | MP15: =VLOOKUP(Calculations!DA4*360,$C$17:$E$143,2,TRUE) -> OI | MV15: Quad: | NB15: =VLOOKUP(Calculations!DA4*360,$C$17:$E$143,3,TRUE) -> Y | ND15: Shape: | NJ15: =VLOOKUP(Calculations!AS4*360,$C$17:$E$143,2,TRUE) -> O | NP15: Quad: | NV15: =VLOOKUP(Calculations!AS4*360,$C$17:$E$143,3,TRUE) -> O | NX15: Shape: | OD15: =VLOOKUP(Calculations!BC4*360,$C$17:$E$143,2,TRUE) -> ID | OJ15: Quad: | OP15: =VLOOKUP(Calculations!BC4*360,$C$17:$E$143,3,TRUE) -> O | OQ15: Physical MACRO Space | OS15: Physical Micro Space | OW15: Space Alignments % | PC15: Time Alignments % | PI15: Time Alignements between current awarnesses by Degree | PZ15: Macro | QB15: Micro | QD15: Macro | QF15: Micro | QH15: Macro | QJ15: Micro | QL15: Macro | QM15: Micro | QN15: Macro | QO15: Micro | QP15: Macro | QQ15: Micro | QS15: Phy | QU15: Emo | QW15: Mental | QY15: Phy | RA15: Emo | RC15: Mental | RF15: 1 | RG15: 2 | RH15: 3 | RI15: 4 | RN15: 10pm | RO15: =22/24 -> 0.9166666667 | RP15: =INDEX(RL17:RL400,MATCH(MIN(ABS(RL17:RL400-RO15)),ABS(RL17:RL400-RO15),0)) -> 21:59:59 | RT15: MACRO | RW15: micro | RY15: Macro | SH15: micro | SO15: Phy | SQ15: emo | SS15: Mental | SW15: Phy | SY15: EMO | TA15: Mental | TF15: Phy | TH15: EMO | TJ15: Mental | TL15: Phy | TN15: EMO | TP15: Mental
B16: Date and Time | C16: Degree | D16: Shape | E16: Quadrant | F16: MACRO | G16: Shape | H16: Quad | I16: micro | J16: Shape | K16: Quad | L16: MACRO | M16: Shape | N16: Quad | O16: micro | P16: Shape | Q16: Quad | R16: MACRO | S16: Shape | T16: Quad | U16: micro | V16: Shape | W16: Quad | Y16: Pp | AB16: PE | AE16: Pe | AH16: PM | AK16: Pm | AN16: pE | AQ16: pe | AT16: pM | AW16: pm | AZ16: Ee | BC16: EM | BF16: Em | BI16: eM | BL16: em | BO16: Mm | BT16: UP | BW16: Up | BZ16: UE | CC16: Ue | CF16: UM | CI16: Um | CL16: Total | CN16: uP | CQ16: up | CT16: uE | CW16: ue | CZ16: uM | DC16: um | DF16: Total | DH16: UP | DK16: Up | DN16: UE | DQ16: Ue | DT16: UM | DW16: Um | DZ16: Total | EB16: uP | EE16: up | EH16: uE | EK16: ue | EN16: uM | EQ16: um | ET16: Total | EV16: UP | EY16: Up | FB16: UE | FE16: Ue | FH16: UM | FK16: Um | FN16: Total | FP16: uP | FS16: up | FV16: uE | FY16: ue | GB16: uM | GE16: um | GH16: Total | GJ16: Pp | GK16: PE | GL16: Pe | GM16: PM | GN16: Pm | GO16: pE | GP16: pe | GQ16: pM | GR16: pm | GS16: Ee | GT16: EM | GU16: Em | GV16: eM | GW16: em | GX16: Mm | HA16: Macro Awarness | HG16: Start of Current M Awarness | HJ16: m Awarness | HK16: m Direction | HN16: MACRO | HO16: Shape | HP16: Quad | HQ16: micro | HR16: Shape | HS16: Quad | HT16: MACRO | HU16: Shape | HV16: Quad | HW16: micro | HX16: Shape | HY16: Quad | HZ16: MACRO | IA16: Shape | IB16: Quad | IC16: micro | ID16: Shape | IE16: Quad | IG16: Pp | IJ16: PE | IM16: Pe | IP16: PM | IS16: Pm | IV16: pE | IY16: pe | JB16: pM | JE16: pm | JH16: Ee | JK16: EM | JN16: Em | JQ16: eM | JT16: em | JW16: Mm | JZ16: Total | KB16: UP | KE16: Up | KH16: UE | KK16: Ue | KN16: UM | KQ16: Um | KT16: Total | KV16: uP | KY16: up | LB16: uE | LE16: ue | LH16: uM | LK16: um | LN16: Total | LP16: UP | LS16: Up | LV16: UE | LY16: Ue | MB16: UM | ME16: Um | MH16: Total | MJ16: uP | MM16: up | MP16: uE | MS16: ue | MV16: uM | MY16: um | NB16: Total | ND16: UP | NG16: Up | NJ16: UE | NM16: Ue | NP16: UM | NS16: Um | NV16: Total | NX16: uP | OA16: up | OD16: uE | OG16: ue | OJ16: uM | OM16: um | OP16: Total | OQ16: Dircetion | OR16: %thru | OS16: Direction | OT16: Lenth In | OU16: % thru | OW16: PHY | OX16: phy | OY16: EMO | OZ16: emo | PA16: MENTAL | PB16: mental | PC16: PHY | PD16: phy | PE16: EMO | PF16: emo | PG16: MENTAL | PH16: mental | PI16: Pp | PJ16: PE | PK16: Pe | PL16: PM | PM16: Pm | PN16: pE | PO16: pe | PP16: pM | PQ16: pm | PR16: Ee | PS16: EM | PT16: Em | PU16: eM | PV16: em | PW16: Mm | PZ16: Quad | QA16: Dirction | QB16: Quad | QC16: Direction | QD16: Quad | QE16: Dirction | QF16: Quad | QG16: Direction | QH16: Quad | QI16: Dirction | QJ16: Quad | QK16: Direction | QS16: Macro | QT16: Micro | QU16: Macro | QV16: Micro | QW16: Macro | QX16: Micro | QY16: Macro | QZ16: Micro | RA16: Macro | RB16: Micro | RC16: Macro | RD16: Micro | RF16: Upper Right | RG16: Upper Left | RH16: Lower Right | RI16: Lower Left | RJ16: Total | RN16: 11pm | RO16: =23/24 -> 0.9583333333 | RP16: =INDEX(RL17:RL400,MATCH(MIN(ABS(RL17:RL400-RO16)),ABS(RL17:RL400-RO16),0)) -> 22:58:39 | RS16: Awarness | RT16: Start of Awarness | RV16: Direction | RY16: Start of Awarness | RZ16: Awarness | SA16: Direction | SB16: Winter | SC16: Spring | SD16: Winter | SE16: Fall | SF16: Total % | SG16: Macro Direc | SH16: Awarnes | SI16: Direction | SJ16: % thru | SK16: micro direc | SO16: Macro | SP16: micro | SQ16: Macro | SR16: micro | SS16: Macro | ST16: micro | SW16: Macro | SX16: Micros | SY16: Macro | SZ16: Micro | TA16: Macro | TB16: micro | TF16: Macro | TG16: micro | TH16: Macro | TI16: micro | TJ16: Macro | TK16: micro | TL16: Macro | TM16: micro | TN16: Macro | TO16: micro | TP16: Macro | TQ16: micro | TR16: Masculine | TS16: Feminine | TT16: Total
A17: 1 | B17: =VLOOKUP($B$7+(A17-1),'Physical Data Set'!$A:$B,2,FALSE) -> 2025-03-10T10:19:34.285 | C17: 0 | D17: ID | E17: G | F17: =VLOOKUP(OQ17,$C$150:$E$165,2,FALSE)-22.5*OR17 -> 224.999775 | G17: =VLOOKUP(F17,$C$17:$E$143,2,TRUE) -> CO3 | H17: =VLOOKUP(F17,$C$17:$E$143,3,TRUE) -> R | I17: =OV17-0.001 -> 269.998775 | J17: =VLOOKUP(I17,$C$17:$E$143,2,TRUE) -> ID | K17: =VLOOKUP(I17,$C$17:$E$143,3,TRUE) -> Y | L17: =VLOOKUP(RV17,$C$150:$E$165,2,FALSE)-22.5*RU17 -> 147.1153846 | M17: =VLOOKUP(L17,$C$17:$E$143,2,TRUE) -> C | N17: =VLOOKUP(L17,$C$17:$E$143,3,TRUE) -> R | O17: =VLOOKUP(RW17,$C$150:$E$165,2,FALSE)-22.5*RX17 -> 131.5384623 | P17: =VLOOKUP(O17,$C$17:$E$143,2,TRUE) -> CO2 | Q17: =VLOOKUP(O17,$C$17:$E$143,3,TRUE) -> O | R17: =VLOOKUP(SA17,$C$150:$E$165,2,FALSE)-22.5*SF17 -> 287.4931319 | S17: =VLOOKUP(R17,$C$17:$E$143,2,TRUE) -> OI | T17: =VLOOKUP(R17,$C$17:$E$143,3,TRUE) -> Y | U17: =VLOOKUP(SI17,$C$150:$E$165,2,FALSE)-22.5*SJ17 -> 29.67032969 | V17: =VLOOKUP(U17,$C$17:$E$143,2,TRUE) -> O | W17: =VLOOKUP(U17,$C$17:$E$143,3,TRUE) -> G | Y17: =IF(AND(G17=J17,H17=K17),1.5,IF(OR(AND(G17="CO1",J17="CO1"),AND(G17="CO2",J17="CO2"),AND(G17="CO3",J17="CO3"),AND(G17="CO4",J17="CO4")),1.5,"")) ->  | Z17: =IF(Y17="","",1) ->  | AA17: =IF(Y17="",NA(),Y17) ->  | AB17: =IF(AND(G17=M17,H17=N17),5.5,IF(OR(AND(G17="CO1",M17="CO1"),AND(G17="CO2",M17="CO2"),AND(G17="CO3",M17="CO3"),AND(G17="CO4",M17="CO4")),5.5,"")) ->  | AC17: =IF(AB17="","",1) ->  | AD17: =IF(AB17="",NA(),AB17) ->  | AE17: =IF(AND(G17=P17,H17=Q17),2.5,IF(OR(AND(G17="CO1",P17="CO1"),AND(G17="CO2",P17="CO2"),AND(G17="CO3",P17="CO3"),AND(G17="CO4",P17="CO4")),2.5,"")) ->  | AF17: =IF(AE17="","",1) ->  | AG17: =IF(AE17="",NA(),AE17) ->  | AH17: =IF(AND(G17=S17,H17=T17),12.5,IF(OR(AND(G17="CO1",S17="CO1"),AND(G17="CO2",S17="CO2"),AND(G17="CO3",S17="CO3"),AND(G17="CO4",S17="CO4")),12.5,"")) ->  | AI17: =IF(AH17="","",1) ->  | AJ17: =IF(AH17="",NA(),AH17) ->  | AK17: =IF(AND(G17=V17,H17=W17),8.5,IF(OR(AND(G17="CO1",V17="CO1"),AND(G17="CO2",V17="CO2"),AND(G17="CO3",V17="CO3"),AND(G17="CO4",V17="CO4")),8.5,"")) ->  | AL17: =IF(AK17="","",1) ->  | AM17: =IF(AK17="",NA(),AK17) ->  | AN17: =IF(AND(J17=M17,K17=N17),3.5,IF(OR(AND(J17="CO1",M17="CO1"),AND(J17="CO2",M17="CO2"),AND(J17="CO3",M17="CO3"),AND(J17="CO4",M17="CO4")),3.5,"")) ->  | AO17: =IF(AN17="","",1) ->  | AP17: =IF(AN17="",NA(),AN17) ->  | AQ17: =IF(AND(J17=P17,K17=Q17),0.5,IF(OR(AND(J17="CO1",P17="CO1"),AND(J17="CO2",P17="CO2"),AND(J17="CO3",P17="CO3"),AND(J17="CO4",P17="CO4")),0.5,"")) ->  | AR17: =IF(AQ17="","",1) ->  | AS17: =IF(AQ17="",NA(),AQ17) ->  | AT17: =IF(AND(J17=S17,K17=T17),10.5,IF(OR(AND(J17="CO1",S17="CO1"),AND(J17="CO2",S17="CO2"),AND(J17="CO3",S17="CO3"),AND(J17="CO4",S17="CO4")),10.5,"")) ->  | AV17: =IF(AT17="",NA(),AT17) ->  | AW17: =IF(AND(J17=V17,K17=W17),6.5,IF(OR(AND(J17="CO1",V17="CO1"),AND(J17="CO2",V17="CO2"),AND(J17="CO3",V17="CO3"),AND(J17="CO4",V17="CO4")),6.5,"")) ->  | AX17: =IF(AW17="","",1) ->  | AY17: =IF(AW17="",NA(),AW17) ->  | AZ17: =IF(AND(M17=P17,N17=Q17),4.5,IF(OR(AND(M17="CO1",P17="CO1"),AND(M17="CO2",P17="CO2"),AND(M17="CO3",P17="CO3"),AND(M17="CO4",P17="CO4")),4.5,"")) ->  | BA17: =IF(AZ17="","",1) ->  | BB17: =IF(AZ17="",NA(),AZ17) ->  | BC17: =IF(AND(M17=S17,N17=T17),13.5,IF(OR(AND(M17="CO1",S17="CO1"),AND(M17="CO2",S17="CO2"),AND(M17="CO3",S17="CO3"),AND(M17="CO4",S17="CO4")),13.5,"")) ->  | BD17: =IF(BC17="","",1) ->  | BE17: =IF(BC17="",NA(),BC17) ->  | BF17: =IF(AND(M17=V17,N17=W17),9.5,IF(OR(AND(M17="CO1",V17="CO1"),AND(M17="CO2",V17="CO2"),AND(M17="CO3",V17="CO3"),AND(M17="CO4",V17="CO4")),9.5,"")) ->  | BG17: =IF(BF17="","",1) ->  | BH17: =IF(BF17="",NA(),BF17) ->  | BI17: =IF(AND(P17=S17,Q17=T17),11.5,IF(OR(AND(P17="CO1",S17="CO1"),AND(P17="CO2",S17="CO2"),AND(P17="CO3",S17="CO3"),AND(P17="CO4",S17="CO4")),11.5,"")) ->  | BJ17: =IF(BI17="","",1) ->  | BK17: =IF(BI17="",NA(),BI17) ->  | BL17: =IF(AND(P17=V17,Q17=W17),7.5,IF(OR(AND(P17="CO1",V17="CO1"),AND(P17="CO2",V17="CO2"),AND(P17="CO3",V17="CO3"),AND(P17="CO4",V17="CO4")),7.5,"")) ->  | BM17: =IF(BL17="","",1) ->  | BN17: =IF(BL17="",NA(),BL17) ->  | BO17: =IF(AND(S17=V17,T17=W17),14.5,IF(OR(AND(S17="CO1",V17="CO1"),AND(S17="CO2",V17="CO2"),AND(S17="CO3",V17="CO3"),AND(S17="CO4",V17="CO4")),14.5,"")) ->  | BP17: =IF(BO17="","",1) ->  | BQ17: =IF(BO17="",NA(),BO17) ->  | BT17: =IF(AND($G$15=G17,$H$15=H17),4,"") ->  | BU17: =IF(BT17="","",1) ->  | BV17: =IF(BT17="",NA(),BT17) ->  | BW17: =IF(AND($G$15=J17,$H$15=K17),1,"") ->  | BX17: =IF(BW17="","",1) ->  | BY17: =IF(BW17="",NA(),BW17) ->  | BZ17: =IF(AND($G$15=M17,$H$15=N17),5,"") ->  | CA17: =IF(BZ17="","",1) ->  | CB17: =IF(BZ17="",NA(),BZ17) ->  | CC17: =IF(AND($G$15=P17,$H$15=Q17),2,"") ->  | CD17: =IF(CC17="","",1) ->  | CE17: =IF(CC17="",NA(),CC17) ->  | CF17: =IF(AND($G$15=S17,$H$15=T17),6,"") ->  | CG17: =IF(CF17="","",1) ->  | CH17: =IF(CF17="",NA(),CF17) ->  | CI17: =IF(AND($G$15=V17,$H$15=W17),3,"") ->  | CJ17: =IF(CI17="","",1) ->  | CK17: =IF(CI17="",NA(),CI17) ->  | CL17: =COUNTIF(BT17:CJ17,">0")/2 -> 0 | CN17: =IF(AND($J$15=G17,$K$15=H17),4,"") ->  | CO17: =IF(CN17="","",1) ->  | CP17: =IF(CN17="",NA(),CN17) ->  | CQ17: =IF(AND($J$15=J17,$K$15=K17),1,"") ->  | CR17: =IF(CQ17="","",1) ->  | CS17: =IF(CQ17="",NA(),CQ17) ->  | CT17: =IF(AND($J$15=M17,$K$15=N17),5,"") ->  | CU17: =IF(CT17="","",1) ->  | CV17: =IF(CT17="",NA(),CT17) ->  | CW17: =IF(AND($J$15=P17,$K$15=Q17),2,"") ->  | CX17: =IF(CW17="","",1) ->  | CY17: =IF(CW17="",NA(),CW17) ->  | CZ17: =IF(AND($J$15=S17,$K$15=T17),6,"") ->  | DA17: =IF(CZ17="","",1) ->  | DB17: =IF(CZ17="",NA(),CZ17) ->  | DC17: =IF(AND($J$15=V17,$K$15=W17),3,"") ->  | DD17: =IF(DC17="","",1) ->  | DE17: =IF(DC17="",NA(),DC17) ->  | DF17: =COUNTIF(CN17:DD17,">0")/2 -> 0 | DH17: =IF(AND($M$15=G17,$N$15=H17),4,"") ->  | DI17: =IF(DH17="","",1) ->  | DJ17: =IF(DH17="",NA(),DH17) ->  | DK17: =IF(AND($M$15=J17,$N$15=K17),1,"") ->  | DL17: =IF(DK17="","",1) ->  | DM17: =IF(DK17="",NA(),DK17) ->  | DN17: =IF(AND($M$15=M17,$N$15=N17),5,"") ->  | DO17: =IF(DN17="","",1) ->  | DP17: =IF(DN17="",NA(),DN17) ->  | DQ17: =IF(AND($M$15=P17,$N$15=Q17),2,"") ->  | DR17: =IF(DQ17="","",1) ->  | DS17: =IF(DQ17="",NA(),DQ17) ->  | DT17: =IF(AND($M$15=S17,$N$15=T17),6,"") ->  | DU17: =IF(DT17="","",1) ->  | DV17: =IF(DT17="",NA(),DT17) ->  | DW17: =IF(AND($M$15=V17,$N$15=W17),3,"") -> 3 | DX17: =IF(DW17="","",1) -> 1 | DY17: =IF(DW17="",NA(),DW17) -> 3 | DZ17: =COUNTIF(DH17:DX17,">0")/2 -> 1 | EB17: =IF(AND($P$15=G17,$Q$15=H17),4,"") ->  | EC17: =IF(EB17="","",1) ->  | ED17: =IF(EB17="",NA(),EB17) ->  | EE17: =IF(AND($P$15=J17,$Q$15=K17),1,"") ->  | EF17: =IF(EE17="","",1) ->  | EG17: =IF(EE17="",NA(),EE17) ->  | EH17: =IF(AND($P$15=M17,$Q$15=N17),5,"") ->  | EI17: =IF(EH17="","",1) ->  | EJ17: =IF(EH17="",NA(),EH17) ->  | EK17: =IF(AND($P$15=P17,$Q$15=Q17),2,"") ->  | EL17: =IF(EK17="","",1) ->  | EM17: =IF(EK17="",NA(),EK17) ->  | EN17: =IF(AND($P$15=S17,$Q$15=T17),6,"") ->  | EO17: =IF(EN17="","",1) ->  | EP17: =IF(EN17="",NA(),EN17) ->  | EQ17: =IF(AND($P$15=V17,$Q$15=W17),3,"") ->  | ER17: =IF(EQ17="","",1) ->  | ES17: =IF(EQ17="",NA(),EQ17) ->  | ET17: =COUNTIF(EB17:ER17,">0")/2 -> 0 | EV17: =IF(AND($S$15=G17,$T$15=H17),4,"") ->  | EW17: =IF(EV17="","",1) ->  | EX17: =IF(EV17="",NA(),EV17) ->  | EY17: =IF(AND($S$15=J17,$T$15=K17),1,"") ->  | EZ17: =IF(EY17="","",1) ->  | FA17: =IF(EY17="",NA(),EY17) ->  | FB17: =IF(AND($S$15=M17,$T$15=N17),5,"") ->  | FC17: =IF(FB17="","",1) ->  | FD17: =IF(FB17="",NA(),FB17) ->  | FE17: =IF(AND($S$15=P17,$T$15=Q17),2,"") ->  | FF17: =IF(FE17="","",1) ->  | FG17: =IF(FE17="",NA(),FE17) ->  | FH17: =IF(AND($S$15=S17,$T$15=T17),6,"") ->  | FI17: =IF(FH17="","",1) ->  | FJ17: =IF(FH17="",NA(),FH17) ->  | FK17: =IF(AND($S$15=V17,$T$15=W17),3,"") ->  | FL17: =IF(FK17="","",1) ->  | FM17: =IF(FK17="",NA(),FK17) ->  | FN17: =COUNTIF(EV17:FL17,">0")/2 -> 0 | FP17: =IF(AND($V$15=G17,$W$15=H17),4,"") ->  | FQ17: =IF(FP17="","",1) ->  | FR17: =IF(FP17="",NA(),FP17) ->  | FS17: =IF(AND($V$15=J17,$W$15=K17),1,"") ->  | FT17: =IF(FS17="","",1) ->  | FU17: =IF(FS17="",NA(),FS17) ->  | FV17: =IF(AND($V$15=M17,$W$15=N17),5,"") ->  | FW17: =IF(FV17="","",1) ->  | FX17: =IF(FV17="",NA(),FV17) ->  | FY17: =IF(AND($V$15=P17,$W$15=Q17),2,"") ->  | FZ17: =IF(FY17="","",1) ->  | GA17: =IF(FY17="",NA(),FY17) ->  | GB17: =IF(AND($V$15=S17,$W$15=T17),6,"") ->  | GC17: =IF(GB17="","",1) ->  | GD17: =IF(GB17="",NA(),GB17) ->  | GE17: =IF(AND($V$15=V17,$W$15=W17),3,"") ->  | GF17: =IF(GE17="","",1) ->  | GG17: =IF(GE17="",NA(),GE17) ->  | GH17: =COUNTIF(FP17:GF17,">0")/2 -> 0 | GJ17: =ABS(F17-I17) -> 44.999 | GK17: =ABS(F17-L17) -> 77.88439037 | GL17: =ABS(F17-O17) -> 93.46131272 | GM17: =ABS(F17-R17) -> 62.49335687 | GN17: =ABS(F17-U17) -> 195.3294453 | GO17: =ABS(I17-L17) -> 122.8833904 | GP17: =ABS(I17-O17) -> 138.4603127 | GQ17: =ABS(I17-R17) -> 17.49435687 | GR17: =ABS(I17-U17) -> 240.3284453 | GS17: =ABS(L17-O17) -> 15.57692235 | GT17: =ABS(L17-R17) -> 140.3777472 | GU17: =ABS(L17-U17) -> 117.4450549 | GV17: =ABS(O17-R17) -> 155.9546696 | GW17: =ABS(O17-U17) -> 101.8681326 | GX17: =ABS(R17-U17) -> 257.8228022 | HA17: =VLOOKUP(B17,'Physical Data Set'!B:Q,9) -> 5-5 | HB17: =VLOOKUP(HA17,'EMO and PHY YR'!$D$2:$K$57,8,FALSE) -> LR | HC17: =IF(HB17="LR",(VLOOKUP(HE17,Calculations!$N$51:$P$98,3,TRUE)),(VLOOKUP(HE17,Calculations!$N$51:$S$98,6,TRUE))) -> 7-7 | HD17: =VLOOKUP(HC17,'EMO and PHY YR'!$D$2:$K$57,8,FALSE) -> LR | HE17: 0 | HF17: 0 | HG17: =IF(HH11>B17,HH11,VLOOKUP(B17,$HH$11:$HH$13,1,TRUE)) -> 2025-03-07T11:55:08.571 | HH17: =(B17-HG17)/VLOOKUP(HG17,$HH$11:$HJ$13,2) -> 0.4615384609 | HI17: =VLOOKUP(B17,'Emotional Data Set'!$B$4:$R$2740,9,TRUE) -> LR | HJ17: =VLOOKUP(B17,'Emotional Data Set'!$B$4:$P$2740,13,TRUE) -> 3-5 | HK17: =VLOOKUP(B17,'Emotional Data Set'!$B$4:$R$2740,17,TRUE) -> LR | HL17: =(HH17-FLOOR(HH17,1/48))/(1/48) -> 0.153846121 | HM17: =IF(AND(SK17="RL",VLOOKUP(SH17,'Macro Phase'!$B$3:$N$58,13,FALSE)=0),VLOOKUP(SH17,'Macro Phase'!$B$3:$N$58,13,FALSE)-(30*SJ17)/24/60+1,IF(SK17="LR",VLOOKUP(SH17,'Macro Phase'!$B$3:$N$58,12,FALSE)+(30*SJ17)/24/60,VLOOKUP(SH17,'Macro Phase'!$B$3:$N$58,13,FALSE)-(30*SJ17)/24/60)) -> 0.4725274725 | HN17: =IF(HB17="LR",(VLOOKUP(HA17,'Macro Phase'!$B$3:$N$58,12,FALSE)+(30*HE17)/24/60),IF((VLOOKUP(HA17,'Macro Phase'!$B$3:$N$58,13,FALSE))-(30*HE17)/24/60<0,1+(VLOOKUP(HA17,'Macro Phase'!$B$3:$N$58,13,FALSE))-(30*HE17)/24/60,(VLOOKUP(HA17,'Macro Phase'!$B$3:$N$58,13,FALSE))-(30*HE17)/24/60)) -> 0.9583333333 | HO17: =VLOOKUP(HN17*360,$C$17:$E$143,2,TRUE) -> D | HP17: =VLOOKUP(HN17*360,$C$17:$E$143,3,TRUE) -> G | HQ17: =IF(AND(HD17="RL",VLOOKUP(HC17,'Macro Phase'!$B$3:$N$58,13,FALSE)=0),VLOOKUP(HC17,'Macro Phase'!$B$3:$N$58,13,FALSE)-$HA$12*HF17+1,IF(HD17="LR",VLOOKUP(HC17,'Macro Phase'!$B$3:$N$58,12,FALSE)+$HA$12*HF17,VLOOKUP(HC17,'Macro Phase'!$B$3:$N$58,13,FALSE)-$HA$12*HF17)) -> 06:00:00 | HR17: =VLOOKUP(HQ17*360,$C$17:$E$143,2,TRUE) -> ID | HS17: =VLOOKUP(HQ17*360,$C$17:$E$143,3,TRUE) -> O | HT17: =IF(HI17="LR",(VLOOKUP(RS17,'Macro Phase'!$B$3:$N$58,12,FALSE)+(30*RU17)/24/60),IF(RS17="2-8",(VLOOKUP(BJ40,'Macro Phase'!$B$3:$N$58,13,FALSE))-(30*RU17)/24/60+1,(VLOOKUP(RS17,'Macro Phase'!$B$3:$N$58,13,FALSE))-(30*RU17)/24/60)) -> 0.3637820513 | HU17: =VLOOKUP(HT17*360,$C$17:$E$143,2,TRUE) -> CO2 | HV17: =VLOOKUP(HT17*360,$C$17:$E$143,3,TRUE) -> O | HW17: =IF(AND(HK17="RL",VLOOKUP(HJ17,'Macro Phase'!$B$3:$N$58,13,FALSE)=0),(VLOOKUP(HJ17,'Macro Phase'!$B$3:$N$58,13,FALSE)-((30*HL17)/24/60))+1,IF(HK17="LR",VLOOKUP(HJ17,'Macro Phase'!$B$3:$N$58,12,FALSE)+((30*HL17)/24/60),VLOOKUP(HJ17,'Macro Phase'!$B$3:$N$58,13,FALSE)-((30*HL17)/24/60))) -> 0.7115384609 | HX17: =VLOOKUP(HW17*360,$C$17:$E$143,2,TRUE) -> D | HY17: =VLOOKUP(HW17*360,$C$17:$E$143,3,TRUE) -> Y | HZ17: =IF(SG17="LR",(VLOOKUP(RZ17,'Macro Phase'!$B$3:$N$58,12,FALSE)+(30*SF17)/24/60),IF(CN40="2-8",(VLOOKUP(RZ17,'Macro Phase'!$B$3:$N$58,13,FALSE))-(30*SF17)/24/60+1,VLOOKUP(RZ17,'Macro Phase'!$B$3:$N$58,13,FALSE))-(30*SF17)/24/60) -> 0.567135989 | IA17: =VLOOKUP(HZ17*360,$C$17:$E$143,2,TRUE) -> OI | IB17: =VLOOKUP(HZ17*360,$C$17:$E$143,3,TRUE) -> R | IC17: =IF(AND(SK17="RL",VLOOKUP(SH17,'Macro Phase'!$B$3:$N$58,13,FALSE)=0),VLOOKUP(SH17,'Macro Phase'!$B$3:$N$58,13,FALSE)-(30*SJ17)/24/60+1,IF(SK17="LR",VLOOKUP(SH17,'Macro Phase'!$B$3:$N$58,12,FALSE)+(30*SJ17)/24/60,VLOOKUP(SH17,'Macro Phase'!$B$3:$N$58,13,FALSE)-(30*SJ17)/24/60)) -> 0.4725274725 | ID17: =VLOOKUP(IC17*360,$C$17:$E$143,2,TRUE) -> D | IE17: =VLOOKUP(IC17*360,$C$17:$E$143,3,TRUE) -> R | IF17: 1 | IG17: =IF(AND(HO17=HR17,HP17=HS17),1.5,IF(OR(AND(HO17="CO1",HR17="CO1"),AND(HO17="CO2",HR17="CO2"),AND(HO17="CO3",HR17="CO3"),AND(HO17="CO4",HR17="CO4")),1.5,"")) ->  | IH17: =IF(IG17="","",1) ->  | II17: =IF(IG17="",NA(),IG17) ->  | IJ17: =IF(AND(HO17=HU17,HP17=HV17),5.5,IF(OR(AND(HO17="CO1",HU17="CO1"),AND(HO17="CO2",HU17="CO2"),AND(HO17="CO3",HU17="CO3"),AND(HO17="CO4",HU17="CO4")),5.5,"")) ->  | IK17: =IF(IJ17="","",1) ->  | IL17: =IF(IJ17="",NA(),IJ17) ->  | IM17: =IF(AND(HO17=HX17,HP17=HY17),2.5,IF(OR(AND(HO17="CO1",HX17="CO1"),AND(HO17="CO2",HX17="CO2"),AND(HO17="CO3",HX17="CO3"),AND(HO17="CO4",HX17="CO4")),2.5,"")) ->  | IN17: =IF(IM17="","",1) ->  | IO17: =IF(IM17="",NA(),IM17) ->  | IP17: =IF(AND(HO17=IA17,HP17=IB17),12.5,IF(OR(AND(HO17="CO1",IA17="CO1"),AND(HO17="CO2",IA17="CO2"),AND(HO17="CO3",IA17="CO3"),AND(HO17="CO4",IA17="CO4")),12.5,"")) ->  | IQ17: =IF(IP17="","",1) ->  | IR17: =IF(IP17="",NA(),IP17) ->  | IS17: =IF(AND(HO17=ID17,HP17=IE17),8.5,IF(OR(AND(HO17="CO1",ID17="CO1"),AND(HO17="CO2",ID17="CO2"),AND(HO17="CO3",ID17="CO3"),AND(HO17="CO4",ID17="CO4")),8.5,"")) ->  | IT17: =IF(IS17="","",1) ->  | IU17: =IF(IS17="",NA(),IS17) ->  | IV17: =IF(AND(HR17=HU17,HS17=HV17),3.5,IF(OR(AND(HR17="CO1",HU17="CO1"),AND(HR17="CO2",HU17="CO2"),AND(HR17="CO3",HU17="CO3"),AND(HR17="CO4",HU17="CO4")),3.5,"")) ->  | IW17: =IF(IV17="","",1) ->  | IX17: =IF(IV17="",NA(),IV17) ->  | IY17: =IF(AND(HR17=HX17,HS17=HY17),0.5,IF(OR(AND(HR17="CO1",HX17="CO1"),AND(HR17="CO2",HX17="CO2"),AND(HR17="CO3",HX17="CO3"),AND(HR17="CO4",HX17="CO4")),0.5,"")) ->  | IZ17: =IF(IY17="","",1) ->  | JA17: =IF(IY17="",NA(),IY17) ->  | JB17: =IF(AND(HR17=IA17,HS17=IB17),10.5,IF(OR(AND(HR17="CO1",IA17="CO1"),AND(HR17="CO2",IA17="CO2"),AND(HR17="CO3",IA17="CO3"),AND(HR17="CO4",IA17="CO4")),10.5,"")) ->  | JC17: =IF(JB17="","",1) ->  | JD17: =IF(JB17="",NA(),JB17) ->  | JE17: =IF(AND(HR17=ID17,HS17=IE17),6.5,IF(OR(AND(HR17="CO1",ID17="CO1"),AND(HR17="CO2",ID17="CO2"),AND(HR17="CO3",ID17="CO3"),AND(HR17="CO4",ID17="CO4")),6.5,"")) ->  | JF17: =IF(JE17="","",1) ->  | JG17: =IF(JE17="",NA(),JE17) ->  | JH17: =IF(AND(HU17=HX17,HV17=HY17),4.5,IF(OR(AND(HU17="CO1",HX17="CO1"),AND(HU17="CO2",HX17="CO2"),AND(HU17="CO3",HX17="CO3"),AND(HU17="CO4",HX17="CO4")),4.5,"")) ->  | JI17: =IF(JH17="","",1) ->  | JJ17: =IF(JH17="",NA(),JH17) ->  | JK17: =IF(AND(HU17=IA17,HV17=IB17),13.5,IF(OR(AND(HU17="CO1",HV17="CO1"),AND(HU17="CO2",HV17="CO2"),AND(HU17="CO3",HV17="CO3"),AND(HU17="CO4",HV17="CO4")),13.5,"")) ->  | JL17: =IF(JK17="","",1) ->  | JM17: =IF(JK17="",NA(),JK17) ->  | JN17: =IF(AND(HU17=ID17,HV17=IE17),9.5,IF(OR(AND(HU17="CO1",ID17="CO1"),AND(HU17="CO2",ID17="CO2"),AND(HU17="CO3",ID17="CO3"),AND(HU17="CO4",ID17="CO4")),9.5,"")) ->  | JO17: =IF(JN17="","",1) ->  | JP17: =IF(JN17="",NA(),JN17) ->  | JQ17: =IF(AND(HX17=IA17,HY17=IB17),11.5,IF(OR(AND(HX17="CO1",IA17="CO1"),AND(HX17="CO2",IA17="CO2"),AND(HX17="CO3",IA17="CO3"),AND(HX17="CO4",IA17="CO4")),11.5,"")) ->  | JR17: =IF(JQ17="","",1) ->  | JS17: =IF(JQ17="",NA(),JQ17) ->  | JT17: =IF(AND(HX17=ID17,HY17=IE17),7.5,IF(OR(AND(HX17="CO1",ID17="CO1"),AND(HX17="CO2",ID17="CO2"),AND(HX17="CO3",ID17="CO3"),AND(HX17="CO4",ID17="CO4")),7.5,"")) ->  | JU17: =IF(JT17="","",1) ->  | JV17: =IF(JT17="",NA(),JT17) ->  | JW17: =IF(AND(IA17=ID17,IB17=IE17),14.5,IF(OR(AND(IA17="CO1",ID17="CO1"),AND(IA17="CO2",ID17="CO2"),AND(IA17="CO3",ID17="CO3"),AND(IA17="CO4",ID17="CO4")),14.5,"")) ->  | JX17: =IF(JW17="","",1) ->  | JY17: =IF(JW17="",NA(),JW17) ->  | JZ17: =COUNTIF(IG17:JY17,">0")/3 -> 0 | KB17: =IF(AND($HO$15=HO17,$HP$15=HP17),4,"") ->  | KC17: =IF(KB17="","",1) ->  | KD17: =IF(KB17="",NA(),KB17) ->  | KE17: =IF(AND($HO$15=HR17,$HP$15=HS17),1,"") ->  | KF17: =IF(KE17="","",1) ->  | KG17: =IF(KE17="",NA(),KE17) ->  | KH17: =IF(AND($HO$15=HU17,$HP$15=HV17),5,"") ->  | KI17: =IF(KH17="","",1) ->  | KJ17: =IF(KH17="",NA(),KH17) ->  | KK17: =IF(AND($HO$15=HX17,$HP$15=HY17),2,"") ->  | KL17: =IF(KK17="","",1) ->  | KM17: =IF(KK17="",NA(),KK17) ->  | KN17: =IF(AND($HO$15=IA17,$HP$15=IB17),6,"") ->  | KO17: =IF(KN17="","",1) ->  | KP17: =IF(KN17="",NA(),KN17) ->  | KQ17: =IF(AND($HO$15=ID17,$HP$15=IE17),3,"") ->  | KR17: =IF(KQ17="","",1) ->  | KS17: =IF(KQ17="",NA(),KQ17) ->  | KT17: =COUNTIF(KB17:KS17,">0")/3 -> 0 | KV17: =IF(AND($HR$15=HO17,$HS$15=HP17),4,"") ->  | KW17: =IF(KV17="","",1) ->  | KX17: =IF(KV17="",NA(),KV17) ->  | KY17: =IF(AND($HR$15=HR17,$HS$15=HS17),1,"") ->  | KZ17: =IF(KY17="","",1) ->  | LA17: =IF(KY17="",NA(),KY17) ->  | LB17: =IF(AND($HR$15=HU17,$HS$15=HV17),5,"") ->  | LC17: =IF(LB17="","",1) ->  | LD17: =IF(LB17="",NA(),LB17) ->  | LE17: =IF(AND($HR$15=HX17,$HS$15=HY17),2,"") ->  | LF17: =IF(LE17="","",1) ->  | LG17: =IF(LE17="",NA(),LE17) ->  | LH17: =IF(AND($HR$15=IA17,$HS$15=IB17),6,"") ->  | LI17: =IF(LH17="","",1) ->  | LJ17: =IF(LH17="",NA(),LH17) ->  | LK17: =IF(AND($HR$15=ID17,$HS$15=IE17),3,"") ->  | LL17: =IF(LK17="","",1) ->  | LM17: =IF(LK17="",NA(),LK17) ->  | LN17: =COUNTIF(KV17:LM17,">0")/3 -> 0 | LP17: =IF(AND($HU$15=HO17,$HV$15=HP17),4,"") ->  | LQ17: =IF(LP17="","",1) ->  | LR17: =IF(LP17="",NA(),LP17) ->  | LS17: =IF(AND($HU$15=HR17,$HV$15=HS17),1,"") ->  | LT17: =IF(LS17="","",1) ->  | LU17: =IF(LS17="",NA(),LS17) ->  | LV17: =IF(AND($HU$15=HU17,$HV$15=HV17),5,"") ->  | LW17: =IF(LV17="","",1) ->  | LX17: =IF(LV17="",NA(),LV17) ->  | LY17: =IF(AND($HU$15=HX17,$HV$15=HY17),2,"") ->  | LZ17: =IF(LY17="","",1) ->  | MA17: =IF(LY17="",NA(),LY17) ->  | MB17: =IF(AND($HU$15=IA17,$HV$15=IB17),6,"") ->  | MC17: =IF(MB17="","",1) ->  | MD17: =IF(MB17="",NA(),MB17) ->  | ME17: =IF(AND($HU$15=ID17,$HV$15=IE17),3,"") ->  | MF17: =IF(ME17="","",1) ->  | MG17: =IF(ME17="",NA(),ME17) ->  | MH17: =COUNTIF(LP17:MG17,">0")/3 -> 0 | MJ17: =IF(AND($HX$15=HO17,$HY$15=HP17),4,"") ->  | MK17: =IF(MJ17="","",1) ->  | ML17: =IF(MJ17="",NA(),MJ17) ->  | MM17: =IF(AND($HX$15=HR17,$HY$15=HS17),1,"") ->  | MN17: =IF(MM17="","",1) ->  | MO17: =IF(MM17="",NA(),MM17) ->  | MP17: =IF(AND($HX$15=HU17,$HY$15=HV17),5,"") ->  | MQ17: =IF(MP17="","",1) ->  | MR17: =IF(MP17="",NA(),MP17) ->  | MS17: =IF(AND($HX$15=HX17,$HY$15=HY17),2,"") ->  | MT17: =IF(MS17="","",1) ->  | MU17: =IF(MS17="",NA(),MS17) ->  | MV17: =IF(AND($HX$15=IA17,$HY$15=IB17),6,"") ->  | MW17: =IF(MV17="","",1) ->  | MX17: =IF(MV17="",NA(),MV17) ->  | MY17: =IF(AND($HX$15=ID17,$HY$15=IE17),3,"") ->  | MZ17: =IF(MY17="","",1) ->  | NA17: =IF(MY17="",NA(),MY17) ->  | NB17: =COUNTIF(MJ17:MZ17,">0")/3 -> 0 | ND17: =IF(AND($IA$15=HO17,$IB$15=HP17),4,"") ->  | NE17: =IF(ND17="","",1) ->  | NF17: =IF(ND17="",NA(),ND17) ->  | NG17: =IF(AND($IA$15=HR17,$IB$15=HS17),1,"") ->  | NH17: =IF(NG17="","",1) ->  | NI17: =IF(NG17="",NA(),NG17) ->  | NJ17: =IF(AND($IA$15=HU17,$IB$15=HV17),5,"") ->  | NK17: =IF(NJ17="","",1) ->  | NL17: =IF(NJ17="",NA(),NJ17) ->  | NM17: =IF(AND($IA$15=HX17,$IB$15=HY17),2,"") ->  | NN17: =IF(NM17="","",1) ->  | NO17: =IF(NM17="",NA(),NM17) ->  | NP17: =IF(AND($IA$15=IA17,$IB$15=IB17),6,"") ->  | NQ17: =IF(NP17="","",1) ->  | NR17: =IF(NP17="",NA(),NP17) ->  | NS17: =IF(AND($IA$15=ID17,$IB$15=IE17),3,"") ->  | NT17: =IF(NS17="","",1) ->  | NU17: =IF(NS17="",NA(),NS17) ->  | NV17: =COUNTIF(ND17:NU17,">0")/3 -> 0 | NX17: =IF(AND($ID$15=HO17,$IE$15=HP17),4,"") ->  | NY17: =IF(NX17="","",1) ->  | NZ17: =IF(NX17="",NA(),NX17) ->  | OA17: =IF(AND($ID$15=HR17,$IE$15=HS17),1,"") -> 1 | OB17: =IF(OA17="","",1) -> 1 | OC17: =IF(OA17="",NA(),OA17) -> 1 | OD17: =IF(AND($ID$15=HU17,$IE$15=HV17),5,"") ->  | OE17: =IF(OD17="","",1) ->  | OF17: =IF(OD17="",NA(),OD17) ->  | OG17: =IF(AND($ID$15=HX17,$IE$15=HY17),2,"") ->  | OH17: =IF(OG17="","",1) ->  | OI17: =IF(OG17="",NA(),OG17) ->  | OJ17: =IF(AND($ID$15=IA17,$IE$15=IB17),6,"") ->  | OK17: =IF(OJ17="","",1) ->  | OL17: =IF(OJ17="",NA(),OJ17) ->  | OM17: =IF(AND($ID$15=ID17,$IE$15=IE17),3,"") ->  | ON17: =IF(OM17="","",1) ->  | OO17: =IF(OM17="",NA(),OM17) ->  | OP17: =COUNTIF(NX17:OO17,">0")/3 -> 1 | OQ17: =VLOOKUP(B17,'Physical Data Set'!$B$4:$K$35043,10,TRUE) -> SW | OR17: 1e-05 | OS17: =VLOOKUP(B17+1/1440,'Physical Data Set'!$B$4:$S$35043,18,TRUE) -> W | OT17: =(B17-$B$8)*24 -> 0 | OU17: 1e-05 | OV17: =VLOOKUP(OS17,Calculations!$E$84:$G$99,2,FALSE)-22.5*OU17 -> 269.999775 | OW17: =IF(OR(Y17=1.5,AB17=5.5,AE17=2.5,AH17=12.5,AK17=8.5),1,0) -> 0 | OX17: =IF(OR(Y17=1.5,AN17=3.5,AQ17=0.5,AT17=10.5,AW17=6.5),1,0) -> 0 | OY17: =IF(OR(AB17=5.5,AN17=3.5,AZ17=4.5,BC17=13.5,BF17=9.5),1,0) -> 0 | OZ17: =IF(OR(AE17=2.5,AQ17=0.5,AZ17=4.5,BI17=11.5,BL17=7.5),1,0) -> 0 | PA17: =IF(OR(AH17=12.5,AT17=10.5,BC17=13.5,BI17=11.5,BO17=14.5),1,0) -> 0 | PB17: =IF(OR(AK17=8.5,AW17=6.5,BF17=9.5,BL17=7.5,BO17=14.5),1,0) -> 0 | PC17: =IF(OR(IG17=1.5,IJ17=5.5,IM17=2.5,IP17=12.5,IS17=8.5),1,0) -> 0 | PD17: =IF(OR(IG17=1.5,IV17=3.5,IY17=0.5,JB17=10.5,JE17=6.5),1,0) -> 0 | PE17: =IF(OR(IJ17=5.5,IV17=3.5,JH17=4.5,JK17=13.5,JN17=9.5),1,0) -> 0 | PF17: =IF(OR(IM17=2.5,IY17=0.5,JH17=4.5,JQ17=11.5,JT17=7.5),1,0) -> 0 | PG17: =IF(OR(IP17=12.5,JB17=10.5,JK17=13.5,JQ17=11.5,JW17=14.5),1,0) -> 0 | PH17: =IF(OR(IS17=8.5,JE17=6.5,JN17=9.5,JT17=7.5,JW17=14.5),1,0) -> 0 | PI17: =ABS(HN17-HQ17) -> 0.7083333333 | PJ17: =ABS(HN17-HT17) -> 0.5945512821 | PK17: =ABS(HN17-HW17) -> 0.2467948725 | PL17: =ABS(HN17-HZ17) -> 0.3911973443 | PM17: =ABS(HN17-IC17) -> 0.4858058608 | PN17: =ABS(HQ17-HT17) -> 0.1137820513 | PO17: =ABS(HQ17-HW17) -> 0.4615384609 | PP17: =ABS(HQ17-HZ17) -> 0.317135989 | PQ17: =ABS(HQ17-IC17) -> 0.2225274725 | PR17: =ABS(HT17-HW17) -> 0.3477564096 | PS17: =ABS(HT17-HZ17) -> 0.2033539377 | PT17: =ABS(HT17-IC17) -> 0.1087454212 | PU17: =ABS(HW17-HZ17) -> 0.1444024718 | PV17: =ABS(HW17-IC17) -> 0.2390109883 | PW17: =ABS(HZ17-IC17) -> 0.0946085165 | PZ17: =H17 -> R | QA17: =HB17 -> LR | QB17: =K17 -> Y | QC17: =HD17 -> LR | QD17: =N17 -> R | QE17: =HI17 -> LR | QF17: =Q17 -> O | QG17: =HK17 -> LR | QH17: =T17 -> Y | QI17: =VLOOKUP(VLOOKUP(B17,$U$3:$W$4,3),'EMO and PHY YR'!$D$2:$K$57,8,FALSE) -> LR | QJ17: =W17 -> G | QK17: =VLOOKUP(SH17,'EMO and PHY YR'!$D$2:$K$57,8,FALSE) -> LR | QL17: =HP17 -> G | QM17: =HS17 -> O | QN17: =HV17 -> O | QO17: =HY17 -> Y | QP17: =IB17 -> R | QQ17: =IE17 -> R | QS17: =IF(AND(PZ17="G",QA17="RL"),1,IF(AND(PZ17="G",QA17="LR"),2,IF(AND(PZ17="Y",QA17="RL"),2,IF(AND(PZ17="Y",QA17="LR"),1,IF(AND(PZ17="R",QA17="RL"),4,IF(AND(PZ17="R",QA17="LR"),3,IF(AND(PZ17="O",QA17="RL"),3,IF(AND(PZ17="O",QA17="LR"),4,"ERROR")))))))) -> 3 | QT17: =IF(AND(QB17="G",QC17="RL"),1,IF(AND(QB17="G",QC17="LR"),2,IF(AND(QB17="Y",QC17="RL"),2,IF(AND(QB17="Y",QC17="LR"),1,IF(AND(QB17="R",QC17="RL"),4,IF(AND(QB17="R",QC17="LR"),3,IF(AND(QB17="O",QC17="RL"),3,IF(AND(QB17="O",QC17="LR"),4,"ERROR")))))))) -> 1 | QU17: =IF(AND(QD17="G",QE17="RL"),1,IF(AND(QD17="G",QE17="LR"),2,IF(AND(QD17="Y",QE17="RL"),2,IF(AND(QD17="Y",QE17="LR"),1,IF(AND(QD17="R",QE17="RL"),4,IF(AND(QD17="R",QE17="LR"),3,IF(AND(QD17="O",QE17="RL"),3,IF(AND(QD17="O",QE17="LR"),4,"ERROR")))))))) -> 3 | QV17: =IF(AND(QF17="G",QG17="RL"),1,IF(AND(QF17="G",QG17="LR"),2,IF(AND(QF17="Y",QG17="RL"),2,IF(AND(QF17="Y",QG17="LR"),1,IF(AND(QF17="R",QG17="RL"),4,IF(AND(QF17="R",QG17="LR"),3,IF(AND(QF17="O",QG17="RL"),3,IF(AND(QF17="O",QG17="LR"),4,"ERROR")))))))) -> 4 | QW17: =IF(AND(QH17="G",QI17="RL"),1,IF(AND(QH17="G",QI17="LR"),2,IF(AND(QH17="Y",QI17="RL"),2,IF(AND(QH17="Y",QI17="LR"),1,IF(AND(QH17="R",QI17="RL"),4,IF(AND(QH17="R",QI17="LR"),3,IF(AND(QH17="O",QI17="RL"),3,IF(AND(QH17="O",QI17="LR"),4,"ERROR")))))))) -> 1 | QX17: =IF(AND(QJ17="G",QK17="RL"),1,IF(AND(QJ17="G",QK17="LR"),2,IF(AND(QJ17="Y",QK17="RL"),2,IF(AND(QJ17="Y",QK17="LR"),1,IF(AND(QJ17="R",QK17="RL"),4,IF(AND(QJ17="R",QK17="LR"),3,IF(AND(QJ17="O",QK17="RL"),3,IF(AND(QJ17="O",QK17="LR"),4,"ERROR")))))))) -> 2 | QY17: =IF(AND(QL17="G",QA17="RL"),1,IF(AND(QL17="G",QA17="LR"),2,IF(AND(QL17="Y",QA17="RL"),2,IF(AND(QL17="Y",QA17="LR"),1,IF(AND(QL17="R",QA17="RL"),4,IF(AND(QL17="R",QA17="LR"),3,IF(AND(QL17="O",QA17="RL"),3,IF(AND(QL17="O",QA17="LR"),4,"ERROR")))))))) -> 2 | QZ17: =IF(AND(QM17="G",QC17="RL"),1,IF(AND(QM17="G",QC17="LR"),2,IF(AND(QM17="Y",QC17="RL"),2,IF(AND(QM17="Y",QC17="LR"),1,IF(AND(QM17="R",QC17="RL"),4,IF(AND(QM17="R",QC17="LR"),3,IF(AND(QM17="O",QC17="RL"),3,IF(AND(QM17="O",QC17="LR"),4,"ERROR")))))))) -> 4 | RA17: =IF(AND(QN17="G",QE17="RL"),1,IF(AND(QN17="G",QE17="LR"),2,IF(AND(QN17="Y",QE17="RL"),2,IF(AND(QN17="Y",QE17="LR"),1,IF(AND(QN17="R",QE17="RL"),4,IF(AND(QN17="R",QE17="LR"),3,IF(AND(QN17="O",QE17="RL"),3,IF(AND(QN17="O",QE17="LR"),4,"ERROR")))))))) -> 4 | RB17: =IF(AND(QO17="G",QG17="RL"),1,IF(AND(QO17="G",QG17="LR"),2,IF(AND(QO17="Y",QG17="RL"),2,IF(AND(QO17="Y",QG17="LR"),1,IF(AND(QO17="R",QG17="RL"),4,IF(AND(QO17="R",QG17="LR"),3,IF(AND(QO17="O",QG17="RL"),3,IF(AND(QO17="O",QG17="LR"),4,"ERROR")))))))) -> 1 | RC17: =IF(AND(QP17="G",QI17="RL"),1,IF(AND(QP17="G",QI17="LR"),2,IF(AND(QP17="Y",QI17="RL"),2,IF(AND(QP17="Y",QI17="LR"),1,IF(AND(QP17="R",QI17="RL"),4,IF(AND(QP17="R",QI17="LR"),3,IF(AND(QP17="O",QI17="RL"),3,IF(AND(QP17="O",QI17="LR"),4,"ERROR")))))))) -> 3 | RD17: =IF(AND(QQ17="G",QK17="RL"),1,IF(AND(QQ17="G",QK17="LR"),2,IF(AND(QQ17="Y",QK17="RL"),2,IF(AND(QQ17="Y",QK17="LR"),1,IF(AND(QQ17="R",QK17="RL"),4,IF(AND(QQ17="R",QK17="LR"),3,IF(AND(QQ17="O",QK17="RL"),3,IF(AND(QQ17="O",QK17="LR"),4,"ERROR")))))))) -> 3 | RF17: =COUNTIF(QS17:RD17,1) -> 3 | RG17: =COUNTIF(QS17:RD17,2) -> 2 | RH17: =COUNTIF(QS17:RD17,3) -> 4 | RI17: =COUNTIF(QS17:RD17,4) -> 3 | RJ17: =SUM(RF17:RI17) -> 12 | RK17: =IF(RK16<>"","",IF(RL17=$RP$1,"--",IF(RL17=$RP$2,"--",IF(RL17=$RP$3,"--",IF(RL17=$RP$4,"--",IF(RL17=$RP$5,"--",IF(RL17=$RP$6,"--",IF(RL17=$RP$7,"--",IF(RL17=$RP$8,"--",IF(RL17=$RP$9,"--",IF(RL17=$RP$10,"--",IF(RL17=$RP$11,"--",IF(RL17=$RP$12,"--",IF(RL17=$RP$13,"--",IF(RL17=$RP$14,"--",IF(RL17=$RP$15,"--",IF(RL17=$RP$16,"--",""))))))))))))))))) ->  | RL17: =TIME(HOUR(B17),MINUTE(B17),SECOND(B17)) -> 10:19:34 | RM17: =IF(RM16<>"","",IF(RL17=$RL$13,0,IF(RL17=$RL$9,0.125,IF(RL17=$RL$6,0.25,IF(RL17=RL$10,0.375,IF(RL17=$RL$7,0.5,IF(RL17=$RL$11,0.625,IF(RL17=$RL$8,0.75,IF(RL17=$RL$12,0.875,IF(RL17=$RL$5,0,"")))))))))) ->  | RN17: 0 | RO17: =IF(RM17="",""," -") ->  | RP17: =B17 -> 2025-03-10T10:19:34.285 | RQ17: -- | RR17: 0 | RS17: =VLOOKUP(B17+1/1440,'Emotional Data Set'!$B$4:$G$2740,5,TRUE) -> 8-3 | RT17: =VLOOKUP(B17,$M$2:$M$9,1) -> 2025-03-07T11:55:08.571 | RU17: =(B17-RT17)/VLOOKUP(RT17,$M$2:$N$9,2) -> 0.4615384609 | RV17: =VLOOKUP(B17+1/1440,'Emotional Data Set'!$B$4:$G$2740,6,TRUE) -> SSE | RW17: =VLOOKUP(B17,'Emotional Data Set'!$B$4:$P$2740,14,TRUE) -> SE | RX17: =(RU17-FLOOR(RU17,1/48))/(1/48) -> 0.153846121 | RY17: =VLOOKUP(B17,$U$3:$U$5,1,TRUE) -> 45647.22222 | RZ17: =VLOOKUP(RY17,$U$3:$W$5,3,TRUE) -> 2-5 | SA17: =VLOOKUP(RZ17,'EMO and PHY YR'!$D$2:$E$57,2,FALSE) -> WNW | SB17: =IF(B17>'Mind Data Set'!$BC$11,1,IF(B17<='Mind Data Set'!$BC$10,0,(B17-'Mind Data Set'!$BC$10)/'Mind Data Set'!$BD$10)) -> 0.89010989 | SC17: =IF(B17>'Mind Data Set'!$BC$12,1,IF(B17<='Mind Data Set'!$BC$11,0,(B17-'Mind Data Set'!$BC$11)/'Mind Data Set'!$BD$11)) -> 0 | SD17: =IF(B17>'Mind Data Set'!$BC$13,1,IF(B17<='Mind Data Set'!$BC$12,0,(B17-'Mind Data Set'!$BC$12)/'Mind Data Set'!$BD$12)) -> 0 | SE17: =IF(B17>'Mind Data Set'!$BC$14,1,IF(B17<='Mind Data Set'!$BC$13,0,(B17-'Mind Data Set'!$BC$13)/'Mind Data Set'!$BD$13)) -> 0 | SF17: =SUM(SB17:SE17)/4 -> 0.2225274725 | SG17: =VLOOKUP(RZ17,'EMO and PHY YR'!$D$2:$K$57,8,FALSE) -> LR | SH17: =IF(SG17="LR",VLOOKUP(VLOOKUP(B17,'Mind Data Set'!$B$4:$C$99,2),Calculations!$M$51:$T$98,4,FALSE),VLOOKUP(VLOOKUP(B17,'Mind Data Set'!$B$4:$C$99,2),Calculations!$M$51:$T$98,7,FALSE)) -> 1-5 | SI17: =VLOOKUP(SH17,'EMO and PHY YR'!$D$2:$E$57,2,FALSE) -> NE | SJ17: =(SF17-FLOOR(SF17,1/48))/(1/48) -> 0.6813186805 | SK17: =VLOOKUP(SH17,'EMO and PHY YR'!$D$2:$K$57,8,FALSE) -> LR | SM17: 0 | SO17: =IF(OR(ABS(F17-MROUND(F17,22.5))<2.8125,ABS(F17-MROUND(F17,22.5))>22.5-2.8125),1,0) -> 1 | SP17: =IF(OR(ABS(I17-MROUND(I17,22.5))<2.8125,ABS(I17-MROUND(I17,22.5))>22.5-2.8125),1,0) -> 1 | SQ17: =IF(OR(ABS(L17-MROUND(L17,22.5))<2.8125,ABS(L17-MROUND(L17,22.5))>22.5-2.8125),1,0) -> 0 | SR17: =IF(OR(ABS(O17-MROUND(O17,22.5))<2.8125,ABS(O17-MROUND(O17,22.5))>22.5-2.8125),1,0) -> 0 | SS17: =IF(OR(ABS(R17-MROUND(R17,22.5))<2.8125,ABS(R17-MROUND(R17,22.5))>22.5-2.8125),1,0) -> 0 | ST17: =IF(OR(ABS(U17-MROUND(U17,22.5))<2.8125,ABS(U17-MROUND(U17,22.5))>22.5-2.8125),1,0) -> 0 | SW17: =IF(OR(ABS(HN17-MROUND(HN17,0.0625))<0.0078125,ABS(HN17-MROUND(HN17,0.0625))>0.0625-0.0078125),1,0) -> 0 | SX17: =IF(OR(ABS(HQ17-MROUND(HQ17,0.0625))<0.0078125,ABS(HQ17-MROUND(HQ17,0.0625))>0.0625-0.0078125),1,0) -> 1 | SY17: =IF(OR(ABS(HT17-MROUND(HT17,0.0625))<0.0078125,ABS(HT17-MROUND(HT17,0.0625))>0.0625-0.0078125),1,0) -> 0 | SZ17: =IF(OR(ABS(HW17-MROUND(HW17,0.0625))<0.0078125,ABS(HW17-MROUND(HW17,0.0625))>0.0625-0.0078125),1,0) -> 0 | TA17: =IF(OR(ABS(HZ17-MROUND(HZ17,0.0625))<0.0078125,ABS(HZ17-MROUND(HZ17,0.0625))>0.0625-0.0078125),1,0) -> 1 | TB17: =IF(OR(ABS(IC17-MROUND(IC17,0.0625))<0.0078125,ABS(IC17-MROUND(IC17,0.0625))>0.0625-0.0078125),1,0) -> 0 | TF17: =IF(AND(SO17=1,QA17="LR"),1,IF(AND(SO17=1,QA17="RL"),2,0)) -> 1 | TG17: =IF(AND(SP17=1,QC17="LR"),1,IF(AND(SP17=1,QC17="RL"),2,0)) -> 1 | TH17: =IF(AND(SQ17=1,QE17="LR"),1,IF(AND(SQ17=1,QE17="RL"),2,0)) -> 0 | TI17: =IF(AND(SR17=1,QG17="LR"),1,IF(AND(SR17=1,QG17="RL"),2,0)) -> 0 | TJ17: =IF(AND(SS17=1,QI17="LR"),1,IF(AND(SS17=1,QI17="RL"),2,0)) -> 0 | TK17: =IF(AND(ST17=1,QK17="LR"),1,IF(AND(ST17=1,QK17="RL"),2,0)) -> 0 | TL17: =IF(AND(SW17=1,QA17="LR"),1,IF(AND(SW17=1,QA17="RL"),2,0)) -> 0 | TM17: =IF(AND(SX17=1,QC17="LR"),1,IF(AND(SX17=1,QC17="RL"),2,0)) -> 1 | TN17: =IF(AND(SY17=1,QE17="LR"),1,IF(AND(SY17=1,QE17="RL"),2,0)) -> 0 | TO17: =IF(AND(SZ17=1,QG17="LR"),1,IF(AND(SZ17=1,QG17="RL"),2,0)) -> 0 | TP17: =IF(AND(TA17=1,QI17="LR"),1,IF(AND(TA17=1,QI17="RL"),2,0)) -> 1 | TQ17: =IF(AND(TB17=1,QK17="LR"),1,IF(AND(TB17=1,QK17="RL"),2,0)) -> 0 | TR17: =COUNTIF(TF17:TQ17,1) -> 4 | TS17: =COUNTIF(TF17:TQ17,2) -> 0 | TT17: =SUM(TR17:TS17) -> 4
B18: =(B17+B19)/2 -> 2025-03-10T10:23:14.307 | F18: =VLOOKUP(OQ18,$C$150:$E$165,2,FALSE)-22.5*OR18 -> 224.8828125 | G18: =VLOOKUP(F18,$C$17:$E$143,2,TRUE) -> CO3 | H18: =VLOOKUP(F18,$C$17:$E$143,3,TRUE) -> R | I18: 264.374 | J18: D | K18: =VLOOKUP(I18,$C$17:$E$143,3,TRUE) -> Y | L18: =VLOOKUP(RV18,$C$150:$E$165,2,FALSE)-22.5*RU18 -> 147.1063702 | M18: =VLOOKUP(L18,$C$17:$E$143,2,TRUE) -> C | N18: =VLOOKUP(L18,$C$17:$E$143,3,TRUE) -> R | O18: =VLOOKUP(RW18,$C$150:$E$165,2,FALSE)-22.5*RX18 -> 131.10577 | P18: =VLOOKUP(O18,$C$17:$E$143,2,TRUE) -> CO2 | Q18: =VLOOKUP(O18,$C$17:$E$143,3,TRUE) -> O | R18: =VLOOKUP(SA18,$C$150:$E$165,2,FALSE)-22.5*SF18 -> 287.4929709 | S18: =VLOOKUP(R18,$C$17:$E$143,2,TRUE) -> OI | T18: =VLOOKUP(R18,$C$17:$E$143,3,TRUE) -> Y | U18: =VLOOKUP(SI18,$C$150:$E$165,2,FALSE)-22.5*SJ18 -> 29.66260304 | V18: =VLOOKUP(U18,$C$17:$E$143,2,TRUE) -> O | W18: =VLOOKUP(U18,$C$17:$E$143,3,TRUE) -> G | Y18: =IF(AND(G18=J18,H18=K18),1.5,IF(OR(AND(G18="CO1",J18="CO1"),AND(G18="CO2",J18="CO2"),AND(G18="CO3",J18="CO3"),AND(G18="CO4",J18="CO4")),1.5,"")) ->  | Z18: =(IF(Y18="","",IF(Y17="",1,Z17+1))) ->  | AA18: =IF(Y18="",NA(),Y18) ->  | AB18: =IF(AND(G18=M18,H18=N18),5.5,IF(OR(AND(G18="CO1",M18="CO1"),AND(G18="CO2",M18="CO2"),AND(G18="CO3",M18="CO3"),AND(G18="CO4",M18="CO4")),5.5,"")) ->  | AC18: =(IF(AB18="","",IF(AB17="",1,AC17+1))) ->  | AD18: =IF(AB18="",NA(),AB18) ->  | AE18: =IF(AND(G18=P18,H18=Q18),2.5,IF(OR(AND(G18="CO1",P18="CO1"),AND(G18="CO2",P18="CO2"),AND(G18="CO3",P18="CO3"),AND(G18="CO4",P18="CO4")),2.5,"")) ->  | AF18: =(IF(AE18="","",IF(AE17="",1,AF17+1))) ->  | AG18: =IF(AE18="",NA(),AE18) ->  | AH18: =IF(AND(G18=S18,H18=T18),12.5,IF(OR(AND(G18="CO1",S18="CO1"),AND(G18="CO2",S18="CO2"),AND(G18="CO3",S18="CO3"),AND(G18="CO4",S18="CO4")),12.5,"")) ->  | AI18: =(IF(AH18="","",IF(AH17="",1,AI17+1))) ->  | AJ18: =IF(AH18="",NA(),AH18) ->  | AK18: =IF(AND(G18=V18,H18=W18),8.5,IF(OR(AND(G18="CO1",V18="CO1"),AND(G18="CO2",V18="CO2"),AND(G18="CO3",V18="CO3"),AND(G18="CO4",V18="CO4")),8.5,"")) ->  | AL18: =(IF(AK18="","",IF(AK17="",1,AL17+1))) ->  | AM18: =IF(AK18="",NA(),AK18) ->  | AN18: =IF(AND(J18=M18,K18=N18),3.5,IF(OR(AND(J18="CO1",M18="CO1"),AND(J18="CO2",M18="CO2"),AND(J18="CO3",M18="CO3"),AND(J18="CO4",M18="CO4")),3.5,"")) ->  | AO18: =(IF(AN18="","",IF(AN17="",1,AO17+1))) ->  | AP18: =IF(AN18="",NA(),AN18) ->  | AQ18: =IF(AND(J18=P18,K18=Q18),0.5,IF(OR(AND(J18="CO1",P18="CO1"),AND(J18="CO2",P18="CO2"),AND(J18="CO3",P18="CO3"),AND(J18="CO4",P18="CO4")),0.5,"")) ->  | AR18: =(IF(AQ18="","",IF(AQ17="",1,AR17+1))) ->  | AS18: =IF(AQ18="",NA(),AQ18) ->  | AT18: =IF(AND(J18=S18,K18=T18),10.5,IF(OR(AND(J18="CO1",S18="CO1"),AND(J18="CO2",S18="CO2"),AND(J18="CO3",S18="CO3"),AND(J18="CO4",S18="CO4")),10.5,"")) ->  | AU18: =(IF(AT18="","",IF(AT17="",1,AU17+1))) ->  | AV18: =IF(AT18="",NA(),AT18) ->  | AW18: =IF(AND(J18=V18,K18=W18),6.5,IF(OR(AND(J18="CO1",V18="CO1"),AND(J18="CO2",V18="CO2"),AND(J18="CO3",V18="CO3"),AND(J18="CO4",V18="CO4")),6.5,"")) ->  | AX18: =(IF(AW18="","",IF(AW17="",1,AX17+1))) ->  | AY18: =IF(AW18="",NA(),AW18) ->  | AZ18: =IF(AND(M18=P18,N18=Q18),4.5,IF(OR(AND(M18="CO1",P18="CO1"),AND(M18="CO2",P18="CO2"),AND(M18="CO3",P18="CO3"),AND(M18="CO4",P18="CO4")),4.5,"")) ->  | BA18: =(IF(AZ18="","",IF(AZ17="",1,BA17+1))) ->  | BB18: =IF(AZ18="",NA(),AZ18) ->  | BC18: =IF(AND(M18=S18,N18=T18),13.5,IF(OR(AND(M18="CO1",S18="CO1"),AND(M18="CO2",S18="CO2"),AND(M18="CO3",S18="CO3"),AND(M18="CO4",S18="CO4")),13.5,"")) ->  | BD18: =(IF(BC18="","",IF(BC17="",1,BD17+1))) ->  | BE18: =IF(BC18="",NA(),BC18) ->  | BF18: =IF(AND(M18=V18,N18=W18),9.5,IF(OR(AND(M18="CO1",V18="CO1"),AND(M18="CO2",V18="CO2"),AND(M18="CO3",V18="CO3"),AND(M18="CO4",V18="CO4")),9.5,"")) ->  | BG18: =(IF(BF18="","",IF(BF17="",1,BG17+1))) ->  | BH18: =IF(BF18="",NA(),BF18) ->  | BI18: =IF(AND(P18=S18,Q18=T18),11.5,IF(OR(AND(P18="CO1",S18="CO1"),AND(P18="CO2",S18="CO2"),AND(P18="CO3",S18="CO3"),AND(P18="CO4",S18="CO4")),11.5,"")) ->  | BJ18: =(IF(BI18="","",IF(BI17="",1,BJ17+1))) ->  | BK18: =IF(BI18="",NA(),BI18) ->  | BL18: =IF(AND(P18=V18,Q18=W18),7.5,IF(OR(AND(P18="CO1",V18="CO1"),AND(P18="CO2",V18="CO2"),AND(P18="CO3",V18="CO3"),AND(P18="CO4",V18="CO4")),7.5,"")) ->  | BM18: =(IF(BL18="","",IF(BL17="",1,BM17+1))) ->  | BN18: =IF(BL18="",NA(),BL18) ->  | BO18: =IF(AND(S18=V18,T18=W18),14.5,IF(OR(AND(S18="CO1",V18="CO1"),AND(S18="CO2",V18="CO2"),AND(S18="CO3",V18="CO3"),AND(S18="CO4",V18="CO4")),14.5,"")) ->  | BP18: =(IF(BO18="","",IF(BO17="",1,BP17+1))) ->  | BQ18: =IF(BO18="",NA(),BO18) ->  | BT18: =IF(AND($G$15=G18,$H$15=H18),4,"") ->  | BU18: =(IF(BT18="","",IF(BT17="",1,BU17+1))) ->  | BV18: =IF(BT18="",NA(),BT18) ->  | BW18: =IF(AND($G$15=J18,$H$15=K18),1,"") ->  | BX18: =(IF(BW18="","",IF(BW17="",1,BX17+1))) ->  | BY18: =IF(BW18="",NA(),BW18) ->  | BZ18: =IF(AND($G$15=M18,$H$15=N18),5,"") ->  | CA18: =(IF(BZ18="","",IF(BZ17="",1,CA17+1))) ->  | CB18: =IF(BZ18="",NA(),BZ18) ->  | CC18: =IF(AND($G$15=P18,$H$15=Q18),2,"") ->  | CD18: =(IF(CC18="","",IF(CC17="",1,CD17+1))) ->  | CE18: =IF(CC18="",NA(),CC18) ->  | CF18: =IF(AND($G$15=S18,$H$15=T18),6,"") ->  | CG18: =(IF(CF18="","",IF(CF17="",1,CG17+1))) ->  | CH18: =IF(CF18="",NA(),CF18) ->  | CI18: =IF(AND($G$15=V18,$H$15=W18),3,"") ->  | CK18: =IF(CI18="",NA(),CI18) ->  | CN18: =IF(AND($J$15=G18,$K$15=H18),4,"") ->  | CO18: =(IF(CN18="","",IF(CN17="",1,CO17+1))) ->  | CP18: =IF(CN18="",NA(),CN18) ->  | CQ18: =IF(AND($J$15=J18,$K$15=K18),1,"") ->  | CR18: =(IF(CQ18="","",IF(CQ17="",1,CR17+1))) ->  | CS18: =IF(CQ18="",NA(),CQ18) ->  | CT18: =IF(AND($J$15=M18,$K$15=N18),5,"") ->  | CU18: =(IF(CT18="","",IF(CT17="",1,CU17+1))) ->  | CV18: =IF(CT18="",NA(),CT18) ->  | CW18: =IF(AND($J$15=P18,$K$15=Q18),2,"") ->  | CX18: =(IF(CW18="","",IF(CW17="",1,CX17+1))) ->  | CY18: =IF(CW18="",NA(),CW18) ->  | CZ18: =IF(AND($J$15=S18,$K$15=T18),6,"") ->  | DA18: =(IF(CZ18="","",IF(CZ17="",1,DA17+1))) ->  | DB18: =IF(CZ18="",NA(),CZ18) ->  | DC18: =IF(AND($J$15=V18,$K$15=W18),3,"") ->  | DD18: =(IF(DC18="","",IF(DC17="",1,DD17+1))) ->  | DE18: =IF(DC18="",NA(),DC18) ->  | DH18: =IF(AND($M$15=G18,$N$15=H18),4,"") ->  | DI18: =(IF(DH18="","",IF(DH17="",1,DI17+1))) ->  | DJ18: =IF(DH18="",NA(),DH18) ->  | DK18: =IF(AND($M$15=J18,$N$15=K18),1,"") ->  | DL18: =(IF(DK18="","",IF(DK17="",1,DL17+1))) ->  | DM18: =IF(DK18="",NA(),DK18) ->  | DN18: =IF(AND($M$15=M18,$N$15=N18),5,"") ->  | DO18: =(IF(DN18="","",IF(DN17="",1,DO17+1))) ->  | DP18: =IF(DN18="",NA(),DN18) ->  | DQ18: =IF(AND($M$15=P18,$N$15=Q18),2,"") ->  | DR18: =(IF(DQ18="","",IF(DQ17="",1,DR17+1))) ->  | DS18: =IF(DQ18="",NA(),DQ18) ->  | DT18: =IF(AND($M$15=S18,$N$15=T18),6,"") ->  | DU18: =(IF(DT18="","",IF(DT17="",1,DU17+1))) ->  | DV18: =IF(DT18="",NA(),DT18) ->  | DW18: =IF(AND($M$15=V18,$N$15=W18),3,"") -> 3 | DX18: =(IF(DW18="","",IF(DW17="",1,DX17+1))) -> 2 | DY18: =IF(DW18="",NA(),DW18) -> 3 | EB18: =IF(AND($P$15=G18,$Q$15=H18),4,"") ->  | EC18: =(IF(EB18="","",IF(EB17="",1,EC17+1))) ->  | ED18: =IF(EB18="",NA(),EB18) ->  | EE18: =IF(AND($P$15=J18,$Q$15=K18),1,"") ->  | EF18: =(IF(EE18="","",IF(EE17="",1,EF17+1))) ->  | EG18: =IF(EE18="",NA(),EE18) ->  | EH18: =IF(AND($P$15=M18,$Q$15=N18),5,"") ->  | EI18: =(IF(EH18="","",IF(EH17="",1,EI17+1))) ->  | EJ18: =IF(EH18="",NA(),EH18) ->  | EK18: =IF(AND($P$15=P18,$Q$15=Q18),2,"") ->  | EL18: =(IF(EK18="","",IF(EK17="",1,EL17+1))) ->  | EM18: =IF(EK18="",NA(),EK18) ->  | EN18: =IF(AND($P$15=S18,$Q$15=T18),6,"") ->  | EO18: =(IF(EN18="","",IF(EN17="",1,EO17+1))) ->  | EP18: =IF(EN18="",NA(),EN18) ->  | EQ18: =IF(AND($P$15=V18,$Q$15=W18),3,"") ->  | ER18: =(IF(EQ18="","",IF(EQ17="",1,ER17+1))) ->  | ES18: =IF(EQ18="",NA(),EQ18) ->  | EV18: =IF(AND($S$15=G18,$T$15=H18),4,"") ->  | EW18: =(IF(EV18="","",IF(EV17="",1,EW17+1))) ->  | EX18: =IF(EV18="",NA(),EV18) ->  | EY18: =IF(AND($S$15=J18,$T$15=K18),1,"") ->  | EZ18: =(IF(EY18="","",IF(EY17="",1,EZ17+1))) ->  | FA18: =IF(EY18="",NA(),EY18) ->  | FB18: =IF(AND($S$15=M18,$T$15=N18),5,"") ->  | FD18: =IF(FB18="",NA(),FB18) ->  | FE18: =IF(AND($S$15=P18,$T$15=Q18),2,"") ->  | FF18: =(IF(FE18="","",IF(FE17="",1,FF17+1))) ->  | FG18: =IF(FE18="",NA(),FE18) ->  | FH18: =IF(AND($S$15=S18,$T$15=T18),6,"") ->  | FI18: =(IF(FH18="","",IF(FH17="",1,FI17+1))) ->  | FJ18: =IF(FH18="",NA(),FH18) ->  | FK18: =IF(AND($S$15=V18,$T$15=W18),3,"") ->  | FL18: =(IF(FK18="","",IF(FK17="",1,FL17+1))) ->  | FM18: =IF(FK18="",NA(),FK18) ->  | FP18: =IF(AND($V$15=G18,$W$15=H18),4,"") ->  | FQ18: =(IF(FP18="","",IF(FP17="",1,FQ17+1))) ->  | FR18: =IF(FP18="",NA(),FP18) ->  | FS18: =IF(AND($V$15=J18,$W$15=K18),1,"") -> 1 | FT18: =(IF(FS18="","",IF(FS17="",1,FT17+1))) -> 1 | FU18: =IF(FS18="",NA(),FS18) -> 1 | FV18: =IF(AND($V$15=M18,$W$15=N18),5,"") ->  | FW18: =(IF(FV18="","",IF(FV17="",1,FW17+1))) ->  | FX18: =IF(FV18="",NA(),FV18) ->  | FY18: =IF(AND($V$15=P18,$W$15=Q18),2,"") ->  | FZ18: =(IF(FY18="","",IF(FY17="",1,FZ17+1))) ->  | GA18: =IF(FY18="",NA(),FY18) ->  | GB18: =IF(AND($V$15=S18,$W$15=T18),6,"") ->  | GC18: =(IF(GB18="","",IF(GB17="",1,GC17+1))) ->  | GD18: =IF(GB18="",NA(),GB18) ->  | GE18: =IF(AND($V$15=V18,$W$15=W18),3,"") ->  | GF18: =(IF(GE18="","",IF(GE17="",1,GF17+1))) ->  | GG18: =IF(GE18="",NA(),GE18) ->  | HA18: =VLOOKUP(B18,'Physical Data Set'!B:Q,9) -> 5-5 | HB18: =VLOOKUP(HA18,'EMO and PHY YR'!$D$2:$K$57,8,FALSE) -> LR | HC18: =IF(HB18="LR",(VLOOKUP(HE18,Calculations!$N$51:$P$98,3,TRUE)),(VLOOKUP(HE18,Calculations!$N$51:$S$98,6,TRUE))) -> 7-7 | HD18: =VLOOKUP(HC18,'EMO and PHY YR'!$D$2:$K$57,8,FALSE) -> LR | HE18: =(HE17+1/192)+0.0000001 -> 0.005208433333 | HF18: 1 | HG18: =VLOOKUP(B18,$HH$11:$HH$13,1,TRUE) -> 2025-03-07T11:55:08.571 | HH18: =(B18-HG18)/VLOOKUP(HG18,$HH$11:$HJ$13,2) -> 0.4619391019 | HI18: =VLOOKUP(B18,'Emotional Data Set'!$B$4:$R$2740,9,TRUE) -> LR | HJ18: =VLOOKUP(B18,'Emotional Data Set'!$B$4:$P$2740,13,TRUE) -> 3-5 | HK18: =VLOOKUP(B18,'Emotional Data Set'!$B$4:$R$2740,17,TRUE) -> LR | HL18: =(HH18-FLOOR(HH18,1/48))/(1/48) -> 0.1730768902 | HM18: =IF(AND(SK18="RL",VLOOKUP(SH18,'Macro Phase'!$B$3:$N$58,13,FALSE)=0),VLOOKUP(SH18,'Macro Phase'!$B$3:$N$58,13,FALSE)-(30*SJ18)/24/60+1,IF(SK18="LR",VLOOKUP(SH18,'Macro Phase'!$B$3:$N$58,12,FALSE)+(30*SJ18)/24/60,VLOOKUP(SH18,'Macro Phase'!$B$3:$N$58,13,FALSE)-(30*SJ18)/24/60)) -> 0.4725346268 | HN18: =IF(HB18="LR",(VLOOKUP(HA18,'Macro Phase'!$B$3:$N$58,12,FALSE)+(30*HE18)/24/60),IF((VLOOKUP(HA18,'Macro Phase'!$B$3:$N$58,13,FALSE))-(30*HE18)/24/60<0,1+(VLOOKUP(HA18,'Macro Phase'!$B$3:$N$58,13,FALSE))-(30*HE18)/24/60,(VLOOKUP(HA18,'Macro Phase'!$B$3:$N$58,13,FALSE))-(30*HE18)/24/60)) -> 0.9584418424 | HO18: =VLOOKUP(HN18*360,$C$17:$E$143,2,TRUE) -> D | HP18: =VLOOKUP(HN18*360,$C$17:$E$143,3,TRUE) -> G | HQ18: =IF(AND(HD18="RL",VLOOKUP(HC18,'Macro Phase'!$B$3:$N$58,13,FALSE)=0),VLOOKUP(HC18,'Macro Phase'!$B$3:$N$58,13,FALSE)-$HA$12*HF18+1,IF(HD18="LR",VLOOKUP(HC18,'Macro Phase'!$B$3:$N$58,12,FALSE)+$HA$12*HF18,VLOOKUP(HC18,'Macro Phase'!$B$3:$N$58,13,FALSE)-$HA$12*HF18)) -> 06:07:30 | HR18: =VLOOKUP(HQ18*360,$C$17:$E$143,2,TRUE) -> ID | HS18: =VLOOKUP(HQ18*360,$C$17:$E$143,3,TRUE) -> O | HT18: =IF(HI18="LR",(VLOOKUP(RS18,'Macro Phase'!$B$3:$N$58,12,FALSE)+(30*RU18)/24/60),IF(RS18="2-8",(VLOOKUP(BJ41,'Macro Phase'!$B$3:$N$58,13,FALSE))-(30*RU18)/24/60+1,(VLOOKUP(RS18,'Macro Phase'!$B$3:$N$58,13,FALSE))-(30*RU18)/24/60)) -> 0.363790398 | HU18: =VLOOKUP(HT18*360,$C$17:$E$143,2,TRUE) -> CO2 | HV18: =VLOOKUP(HT18*360,$C$17:$E$143,3,TRUE) -> O | HW18: =IF(AND(HK18="RL",VLOOKUP(HJ18,'Macro Phase'!$B$3:$N$58,13,FALSE)=0),(VLOOKUP(HJ18,'Macro Phase'!$B$3:$N$58,13,FALSE)-((30*HL18)/24/60))+1,IF(HK18="LR",VLOOKUP(HJ18,'Macro Phase'!$B$3:$N$58,12,FALSE)+((30*HL18)/24/60),VLOOKUP(HJ18,'Macro Phase'!$B$3:$N$58,13,FALSE)-((30*HL18)/24/60))) -> 0.7119391019 | HX18: =VLOOKUP(HW18*360,$C$17:$E$143,2,TRUE) -> D | HY18: =VLOOKUP(HW18*360,$C$17:$E$143,3,TRUE) -> Y | HZ18: =IF(SG18="LR",(VLOOKUP(RZ18,'Macro Phase'!$B$3:$N$58,12,FALSE)+(30*SF18)/24/60),IF(CN41="2-8",(VLOOKUP(RZ18,'Macro Phase'!$B$3:$N$58,13,FALSE))-(30*SF18)/24/60+1,VLOOKUP(RZ18,'Macro Phase'!$B$3:$N$58,13,FALSE))-(30*SF18)/24/60) -> 0.5671361381 | IA18: =VLOOKUP(HZ18*360,$C$17:$E$143,2,TRUE) -> OI | IB18: =VLOOKUP(HZ18*360,$C$17:$E$143,3,TRUE) -> R | IC18: =IF(AND(SK18="RL",VLOOKUP(SH18,'Macro Phase'!$B$3:$N$58,13,FALSE)=0),VLOOKUP(SH18,'Macro Phase'!$B$3:$N$58,13,FALSE)-(30*SJ18)/24/60+1,IF(SK18="LR",VLOOKUP(SH18,'Macro Phase'!$B$3:$N$58,12,FALSE)+(30*SJ18)/24/60,VLOOKUP(SH18,'Macro Phase'!$B$3:$N$58,13,FALSE)-(30*SJ18)/24/60)) -> 0.4725346268 | ID18: =VLOOKUP(IC18*360,$C$17:$E$143,2,TRUE) -> D | IE18: =VLOOKUP(IC18*360,$C$17:$E$143,3,TRUE) -> R | IG18: =IF(AND(HO18=HR18,HP18=HS18),1.5,IF(OR(AND(HO18="CO1",HR18="CO1"),AND(HO18="CO2",HR18="CO2"),AND(HO18="CO3",HR18="CO3"),AND(HO18="CO4",HR18="CO4")),1.5,"")) ->  | IH18: =(IF(IG18="","",IF(IG17="",1,IH17+1))) ->  | II18: =IF(IG18="",NA(),IG18) ->  | IJ18: =IF(AND(HO18=HU18,HP18=HV18),5.5,IF(OR(AND(HO18="CO1",HU18="CO1"),AND(HO18="CO2",HU18="CO2"),AND(HO18="CO3",HU18="CO3"),AND(HO18="CO4",HU18="CO4")),5.5,"")) ->  | IK18: =(IF(IJ18="","",IF(IJ17="",1,IK17+1))) ->  | IL18: =IF(IJ18="",NA(),IJ18) ->  | IM18: =IF(AND(HO18=HX18,HP18=HY18),2.5,IF(OR(AND(HO18="CO1",HX18="CO1"),AND(HO18="CO2",HX18="CO2"),AND(HO18="CO3",HX18="CO3"),AND(HO18="CO4",HX18="CO4")),2.5,"")) ->  | IN18: =(IF(IM18="","",IF(IM17="",1,IN17+1))) ->  | IO18: =IF(IM18="",NA(),IM18) ->  | IP18: =IF(AND(HO18=IA18,HP18=IB18),12.5,IF(OR(AND(HO18="CO1",IA18="CO1"),AND(HO18="CO2",IA18="CO2"),AND(HO18="CO3",IA18="CO3"),AND(HO18="CO4",IA18="CO4")),12.5,"")) ->  | IQ18: =(IF(IP18="","",IF(IP17="",1,IQ17+1))) ->  | IR18: =IF(IP18="",NA(),IP18) ->  | IS18: =IF(AND(HO18=ID18,HP18=IE18),8.5,IF(OR(AND(HO18="CO1",ID18="CO1"),AND(HO18="CO2",ID18="CO2"),AND(HO18="CO3",ID18="CO3"),AND(HO18="CO4",ID18="CO4")),8.5,"")) ->  | IT18: =(IF(IS18="","",IF(IS17="",1,IT17+1))) ->  | IU18: =IF(IS18="",NA(),IS18) ->  | IV18: =IF(AND(HR18=HU18,HS18=HV18),3.5,IF(OR(AND(HR18="CO1",HU18="CO1"),AND(HR18="CO2",HU18="CO2"),AND(HR18="CO3",HU18="CO3"),AND(HR18="CO4",HU18="CO4")),3.5,"")) ->  | IW18: =(IF(IV18="","",IF(IV17="",1,IW17+1))) ->  | IX18: =IF(IV18="",NA(),IV18) ->  | IY18: =IF(AND(HR18=HX18,HS18=HY18),0.5,IF(OR(AND(HR18="CO1",HX18="CO1"),AND(HR18="CO2",HX18="CO2"),AND(HR18="CO3",HX18="CO3"),AND(HR18="CO4",HX18="CO4")),0.5,"")) ->  | IZ18: =(IF(IY18="","",IF(IY17="",1,IZ17+1))) ->  | JA18: =IF(IY18="",NA(),IY18) ->  | JB18: =IF(AND(HR18=IA18,HS18=IB18),10.5,IF(OR(AND(HR18="CO1",IA18="CO1"),AND(HR18="CO2",IA18="CO2"),AND(HR18="CO3",IA18="CO3"),AND(HR18="CO4",IA18="CO4")),10.5,"")) ->  | JC18: =(IF(JB18="","",IF(JB17="",1,JC17+1))) ->  | JD18: =IF(JB18="",NA(),JB18) ->  | JE18: =IF(AND(HR18=ID18,HS18=IE18),6.5,IF(OR(AND(HR18="CO1",ID18="CO1"),AND(HR18="CO2",ID18="CO2"),AND(HR18="CO3",ID18="CO3"),AND(HR18="CO4",ID18="CO4")),6.5,"")) ->  | JF18: =(IF(JE18="","",IF(JE17="",1,JF17+1))) ->  | JG18: =IF(JE18="",NA(),JE18) ->  | JH18: =IF(AND(HU18=HX18,HV18=HY18),4.5,IF(OR(AND(HU18="CO1",HX18="CO1"),AND(HU18="CO2",HX18="CO2"),AND(HU18="CO3",HX18="CO3"),AND(HU18="CO4",HX18="CO4")),4.5,"")) ->  | JI18: =(IF(JH18="","",IF(JH17="",1,JI17+1))) ->  | JJ18: =IF(JH18="",NA(),JH18) ->  | JK18: =IF(AND(HU18=IA18,HV18=IB18),13.5,IF(OR(AND(HU18="CO1",HV18="CO1"),AND(HU18="CO2",HV18="CO2"),AND(HU18="CO3",HV18="CO3"),AND(HU18="CO4",HV18="CO4")),13.5,"")) ->  | JL18: =(IF(JK18="","",IF(JK17="",1,JL17+1))) ->  | JM18: =IF(JK18="",NA(),JK18) ->  | JN18: =IF(AND(HU18=ID18,HV18=IE18),9.5,IF(OR(AND(HU18="CO1",ID18="CO1"),AND(HU18="CO2",ID18="CO2"),AND(HU18="CO3",ID18="CO3"),AND(HU18="CO4",ID18="CO4")),9.5,"")) ->  | JO18: =(IF(JN18="","",IF(JN17="",1,JO17+1))) ->  | JP18: =IF(JN18="",NA(),JN18) ->  | JQ18: =IF(AND(HX18=IA18,HY18=IB18),11.5,IF(OR(AND(HX18="CO1",IA18="CO1"),AND(HX18="CO2",IA18="CO2"),AND(HX18="CO3",IA18="CO3"),AND(HX18="CO4",IA18="CO4")),11.5,"")) ->  | JR18: =(IF(JQ18="","",IF(JQ17="",1,JR17+1))) ->  | JS18: =IF(JQ18="",NA(),JQ18) ->  | JT18: =IF(AND(HX18=ID18,HY18=IE18),7.5,IF(OR(AND(HX18="CO1",ID18="CO1"),AND(HX18="CO2",ID18="CO2"),AND(HX18="CO3",ID18="CO3"),AND(HX18="CO4",ID18="CO4")),7.5,"")) ->  | JU18: =(IF(JT18="","",IF(JT17="",1,JU17+1))) ->  | JV18: =IF(JT18="",NA(),JT18) ->  | JW18: =IF(AND(IA18=ID18,IB18=IE18),14.5,IF(OR(AND(IA18="CO1",ID18="CO1"),AND(IA18="CO2",ID18="CO2"),AND(IA18="CO3",ID18="CO3"),AND(IA18="CO4",ID18="CO4")),14.5,"")) ->  | JX18: =(IF(JW18="","",IF(JW17="",1,JX17+1))) ->  | JY18: =IF(JW18="",NA(),JW18) ->  | JZ18: =COUNTIF(IG18:JY18,">0")/3 -> 0 | KB18: =IF(AND($HO$15=HO18,$HP$15=HP18),4,"") ->  | KC18: =(IF(KB18="","",IF(KB17="",1,KC17+1))) ->  | KD18: =IF(KB18="",NA(),KB18) ->  | KE18: =IF(AND($HO$15=HR18,$HP$15=HS18),1,"") ->  | KF18: =(IF(KE18="","",IF(KE17="",1,KF17+1))) ->  | KG18: =IF(KE18="",NA(),KE18) ->  | KH18: =IF(AND($HO$15=HU18,$HP$15=HV18),5,"") ->  | KI18: =(IF(KH18="","",IF(KH17="",1,KI17+1))) ->  | KJ18: =IF(KH18="",NA(),KH18) ->  | KK18: =IF(AND($HO$15=HX18,$HP$15=HY18),2,"") ->  | KL18: =(IF(KK18="","",IF(KK17="",1,KL17+1))) ->  | KM18: =IF(KK18="",NA(),KK18) ->  | KN18: =IF(AND($HO$15=IA18,$HP$15=IB18),6,"") ->  | KO18: =(IF(KN18="","",IF(KN17="",1,KO17+1))) ->  | KP18: =IF(KN18="",NA(),KN18) ->  | KQ18: =IF(AND($HO$15=ID18,$HP$15=IE18),3,"") ->  | KR18: =(IF(KQ18="","",IF(KQ17="",1,KR17+1))) ->  | KS18: =IF(KQ18="",NA(),KQ18) ->  | KT18: =COUNTIF(KB18:KS18,">0")/3 -> 0 | KV18: =IF(AND($HR$15=HO18,$HS$15=HP18),4,"") ->  | KW18: =(IF(KV18="","",IF(KV17="",1,KW17+1))) ->  | KX18: =IF(KV18="",NA(),KV18) ->  | KY18: =IF(AND($HR$15=HR18,$HS$15=HS18),1,"") ->  | KZ18: =(IF(KY18="","",IF(KY17="",1,KZ17+1))) ->  | LA18: =IF(KY18="",NA(),KY18) ->  | LB18: =IF(AND($HR$15=HU18,$HS$15=HV18),5,"") ->  | LC18: =(IF(LB18="","",IF(LB17="",1,LC17+1))) ->  | LD18: =IF(LB18="",NA(),LB18) ->  | LE18: =IF(AND($HR$15=HX18,$HS$15=HY18),2,"") ->  | LF18: =(IF(LE18="","",IF(LE17="",1,LF17+1))) ->  | LG18: =IF(LE18="",NA(),LE18) ->  | LH18: =IF(AND($HR$15=IA18,$HS$15=IB18),6,"") ->  | LI18: =(IF(LH18="","",IF(LH17="",1,LI17+1))) ->  | LJ18: =IF(LH18="",NA(),LH18) ->  | LK18: =IF(AND($HR$15=ID18,$HS$15=IE18),3,"") ->  | LL18: =(IF(LK18="","",IF(LK17="",1,LL17+1))) ->  | LM18: =IF(LK18="",NA(),LK18) ->  | LN18: =COUNTIF(KV18:LM18,">0")/3 -> 0 | LP18: =IF(AND($HU$15=HO18,$HV$15=HP18),4,"") ->  | LQ18: =(IF(LP18="","",IF(LP17="",1,LQ17+1))) ->  | LR18: =IF(LP18="",NA(),LP18) ->  | LS18: =IF(AND($HU$15=HR18,$HV$15=HS18),1,"") ->  | LT18: =(IF(LS18="","",IF(LS17="",1,LT17+1))) ->  | LU18: =IF(LS18="",NA(),LS18) ->  | LV18: =IF(AND($HU$15=HU18,$HV$15=HV18),5,"") ->  | LW18: =(IF(LV18="","",IF(LV17="",1,LW17+1))) ->  | LX18: =IF(LV18="",NA(),LV18) ->  | LY18: =IF(AND($HU$15=HX18,$HV$15=HY18),2,"") ->  | LZ18: =(IF(LY18="","",IF(LY17="",1,LZ17+1))) ->  | MA18: =IF(LY18="",NA(),LY18) ->  | MB18: =IF(AND($HU$15=IA18,$HV$15=IB18),6,"") ->  | MC18: =(IF(MB18="","",IF(MB17="",1,MC17+1))) ->  | MD18: =IF(MB18="",NA(),MB18) ->  | ME18: =IF(AND($HU$15=ID18,$HV$15=IE18),3,"") ->  | MF18: =(IF(ME18="","",IF(ME17="",1,MF17+1))) ->  | MG18: =IF(ME18="",NA(),ME18) ->  | MH18: =COUNTIF(LP18:MG18,">0")/3 -> 0 | MJ18: =IF(AND($HX$15=HO18,$HY$15=HP18),4,"") ->  | MK18: =(IF(MJ18="","",IF(MJ17="",1,MK17+1))) ->  | ML18: =IF(MJ18="",NA(),MJ18) ->  | MM18: =IF(AND($HX$15=HR18,$HY$15=HS18),1,"") ->  | MN18: =(IF(MM18="","",IF(MM17="",1,MN17+1))) ->  | MO18: =IF(MM18="",NA(),MM18) ->  | MP18: =IF(AND($HX$15=HU18,$HY$15=HV18),5,"") ->  | MQ18: =(IF(MP18="","",IF(MP17="",1,MQ17+1))) ->  | MR18: =IF(MP18="",NA(),MP18) ->  | MS18: =IF(AND($HX$15=HX18,$HY$15=HY18),2,"") ->  | MT18: =(IF(MS18="","",IF(MS17="",1,MT17+1))) ->  | MU18: =IF(MS18="",NA(),MS18) ->  | MV18: =IF(AND($HX$15=IA18,$HY$15=IB18),6,"") ->  | MW18: =(IF(MV18="","",IF(MV17="",1,MW17+1))) ->  | MX18: =IF(MV18="",NA(),MV18) ->  | MY18: =IF(AND($HX$15=ID18,$HY$15=IE18),3,"") ->  | MZ18: =(IF(MY18="","",IF(MY17="",1,MZ17+1))) ->  | NA18: =IF(MY18="",NA(),MY18) ->  | NB18: =COUNTIF(MJ18:MZ18,">0")/3 -> 0 | ND18: =IF(AND($IA$15=HO18,$IB$15=HP18),4,"") ->  | NE18: =(IF(ND18="","",IF(ND17="",1,NE17+1))) ->  | NF18: =IF(ND18="",NA(),ND18) ->  | NG18: =IF(AND($IA$15=HR18,$IB$15=HS18),1,"") ->  | NH18: =(IF(NG18="","",IF(NG17="",1,NH17+1))) ->  | NI18: =IF(NG18="",NA(),NG18) ->  | NJ18: =IF(AND($IA$15=HU18,$IB$15=HV18),5,"") ->  | NK18: =(IF(NJ18="","",IF(NJ17="",1,NK17+1))) ->  | NL18: =IF(NJ18="",NA(),NJ18) ->  | NM18: =IF(AND($IA$15=HX18,$IB$15=HY18),2,"") ->  | NN18: =(IF(NM18="","",IF(NM17="",1,NN17+1))) ->  | NO18: =IF(NM18="",NA(),NM18) ->  | NP18: =IF(AND($IA$15=IA18,$IB$15=IB18),6,"") ->  | NQ18: =(IF(NP18="","",IF(NP17="",1,NQ17+1))) ->  | NR18: =IF(NP18="",NA(),NP18) ->  | NS18: =IF(AND($IA$15=ID18,$IB$15=IE18),3,"") ->  | NT18: =(IF(NS18="","",IF(NS17="",1,NT17+1))) ->  | NU18: =IF(NS18="",NA(),NS18) ->  | NV18: =COUNTIF(ND18:NU18,">0")/3 -> 0 | NX18: =IF(AND($ID$15=HO18,$IE$15=HP18),4,"") ->  | NY18: =(IF(NX18="","",IF(NX17="",1,NY17+1))) ->  | NZ18: =IF(NX18="",NA(),NX18) ->  | OA18: =IF(AND($ID$15=HR18,$IE$15=HS18),1,"") -> 1 | OB18: =(IF(OA18="","",IF(OA17="",1,OB17+1))) -> 2 | OC18: =IF(OA18="",NA(),OA18) -> 1 | OD18: =IF(AND($ID$15=HU18,$IE$15=HV18),5,"") ->  | OE18: =(IF(OD18="","",IF(OD17="",1,OE17+1))) ->  | OF18: =IF(OD18="",NA(),OD18) ->  | OG18: =IF(AND($ID$15=HX18,$IE$15=HY18),2,"") ->  | OH18: =(IF(OG18="","",IF(OG17="",1,OH17+1))) ->  | OI18: =IF(OG18="",NA(),OG18) ->  | OJ18: =IF(AND($ID$15=IA18,$IE$15=IB18),6,"") ->  | OK18: =(IF(OJ18="","",IF(OJ17="",1,OK17+1))) ->  | OL18: =IF(OJ18="",NA(),OJ18) ->  | OM18: =IF(AND($ID$15=ID18,$IE$15=IE18),3,"") ->  | ON18: =(IF(OM18="","",IF(OM17="",1,ON17+1))) ->  | OO18: =IF(OM18="",NA(),OM18) ->  | OP18: =COUNTIF(NX18:OO18,">0")/3 -> 1 | OQ18: =VLOOKUP(B18,'Physical Data Set'!$B$4:$K$35043,10,TRUE) -> SW | OR18: 0.005208333333 | OS18: =VLOOKUP(B18+1/1440,'Physical Data Set'!$B$4:$S$35043,18,TRUE) -> W | OT18: =(B18-$B$8)*24 -> 0.06111731142 | OU18: 0.25 | OV18: =VLOOKUP(OS18,Calculations!$E$84:$G$99,2,FALSE)-22.5*OU18 -> 264.375 | OW18: =IF(OR(Y18=1.5,AB18=5.5,AE18=2.5,AH18=12.5,AK18=8.5),1,0) -> 0 | OX18: =IF(OR(Y18=1.5,AN18=3.5,AQ18=0.5,AT18=10.5,AW18=6.5),1,0) -> 0 | OY18: =IF(OR(AB18=5.5,AN18=3.5,AZ18=4.5,BC18=13.5,BF18=9.5),1,0) -> 0 | OZ18: =IF(OR(AE18=2.5,AQ18=0.5,AZ18=4.5,BI18=11.5,BL18=7.5),1,0) -> 0 | PA18: =IF(OR(AH18=12.5,AT18=10.5,BC18=13.5,BI18=11.5,BO18=14.5),1,0) -> 0 | PB18: =IF(OR(AK18=8.5,AW18=6.5,BF18=9.5,BL18=7.5,BO18=14.5),1,0) -> 0 | PC18: =IF(OR(IG18=1.5,IJ18=5.5,IM18=2.5,IP18=12.5,IS18=8.5),1,0) -> 0 | PD18: =IF(OR(IG18=1.5,IV18=3.5,IY18=0.5,JB18=10.5,JE18=6.5),1,0) -> 0 | PE18: =IF(OR(IJ18=5.5,IV18=3.5,JH18=4.5,JK18=13.5,JN18=9.5),1,0) -> 0 | PF18: =IF(OR(IM18=2.5,IY18=0.5,JH18=4.5,JQ18=11.5,JT18=7.5),1,0) -> 0 | PG18: =IF(OR(IP18=12.5,JB18=10.5,JK18=13.5,JQ18=11.5,JW18=14.5),1,0) -> 0 | PH18: =IF(OR(IS18=8.5,JE18=6.5,JN18=9.5,JT18=7.5,JW18=14.5),1,0) -> 0 | PZ18: =H18 -> R | QA18: =HB18 -> LR | QB18: =K18 -> Y | QC18: =HD18 -> LR | QD18: =N18 -> R | QE18: =HI18 -> LR | QF18: =Q18 -> O | QG18: =HK18 -> LR | QH18: =T18 -> Y | QI18: =VLOOKUP(VLOOKUP(B18,$U$3:$W$4,3),'EMO and PHY YR'!$D$2:$K$57,8,FALSE) -> LR | QJ18: =W18 -> G | QK18: =VLOOKUP(SH18,'EMO and PHY YR'!$D$2:$K$57,8,FALSE) -> LR | QL18: =HP18 -> G | QM18: =HS18 -> O | QN18: =HV18 -> O | QO18: =HY18 -> Y | QP18: =IB18 -> R | QQ18: =IE18 -> R | QS18: =IF(AND(PZ18="G",QA18="RL"),1,IF(AND(PZ18="G",QA18="LR"),2,IF(AND(PZ18="Y",QA18="RL"),2,IF(AND(PZ18="Y",QA18="LR"),1,IF(AND(PZ18="R",QA18="RL"),4,IF(AND(PZ18="R",QA18="LR"),3,IF(AND(PZ18="O",QA18="RL"),3,IF(AND(PZ18="O",QA18="LR"),4,"ERROR")))))))) -> 3 | QT18: =IF(AND(QB18="G",QC18="RL"),1,IF(AND(QB18="G",QC18="LR"),2,IF(AND(QB18="Y",QC18="RL"),2,IF(AND(QB18="Y",QC18="LR"),1,IF(AND(QB18="R",QC18="RL"),4,IF(AND(QB18="R",QC18="LR"),3,IF(AND(QB18="O",QC18="RL"),3,IF(AND(QB18="O",QC18="LR"),4,"ERROR")))))))) -> 1 | QU18: =IF(AND(QD18="G",QE18="RL"),1,IF(AND(QD18="G",QE18="LR"),2,IF(AND(QD18="Y",QE18="RL"),2,IF(AND(QD18="Y",QE18="LR"),1,IF(AND(QD18="R",QE18="RL"),4,IF(AND(QD18="R",QE18="LR"),3,IF(AND(QD18="O",QE18="RL"),3,IF(AND(QD18="O",QE18="LR"),4,"ERROR")))))))) -> 3 | QV18: =IF(AND(QF18="G",QG18="RL"),1,IF(AND(QF18="G",QG18="LR"),2,IF(AND(QF18="Y",QG18="RL"),2,IF(AND(QF18="Y",QG18="LR"),1,IF(AND(QF18="R",QG18="RL"),4,IF(AND(QF18="R",QG18="LR"),3,IF(AND(QF18="O",QG18="RL"),3,IF(AND(QF18="O",QG18="LR"),4,"ERROR")))))))) -> 4 | QW18: =IF(AND(QH18="G",QI18="RL"),1,IF(AND(QH18="G",QI18="LR"),2,IF(AND(QH18="Y",QI18="RL"),2,IF(AND(QH18="Y",QI18="LR"),1,IF(AND(QH18="R",QI18="RL"),4,IF(AND(QH18="R",QI18="LR"),3,IF(AND(QH18="O",QI18="RL"),3,IF(AND(QH18="O",QI18="LR"),4,"ERROR")))))))) -> 1 | QX18: =IF(AND(QJ18="G",QK18="RL"),1,IF(AND(QJ18="G",QK18="LR"),2,IF(AND(QJ18="Y",QK18="RL"),2,IF(AND(QJ18="Y",QK18="LR"),1,IF(AND(QJ18="R",QK18="RL"),4,IF(AND(QJ18="R",QK18="LR"),3,IF(AND(QJ18="O",QK18="RL"),3,IF(AND(QJ18="O",QK18="LR"),4,"ERROR")))))))) -> 2 | QY18: =IF(AND(QL18="G",QA18="RL"),1,IF(AND(QL18="G",QA18="LR"),2,IF(AND(QL18="Y",QA18="RL"),2,IF(AND(QL18="Y",QA18="LR"),1,IF(AND(QL18="R",QA18="RL"),4,IF(AND(QL18="R",QA18="LR"),3,IF(AND(QL18="O",QA18="RL"),3,IF(AND(QL18="O",QA18="LR"),4,"ERROR")))))))) -> 2 | QZ18: =IF(AND(QM18="G",QC18="RL"),1,IF(AND(QM18="G",QC18="LR"),2,IF(AND(QM18="Y",QC18="RL"),2,IF(AND(QM18="Y",QC18="LR"),1,IF(AND(QM18="R",QC18="RL"),4,IF(AND(QM18="R",QC18="LR"),3,IF(AND(QM18="O",QC18="RL"),3,IF(AND(QM18="O",QC18="LR"),4,"ERROR")))))))) -> 4 | RA18: =IF(AND(QN18="G",QE18="RL"),1,IF(AND(QN18="G",QE18="LR"),2,IF(AND(QN18="Y",QE18="RL"),2,IF(AND(QN18="Y",QE18="LR"),1,IF(AND(QN18="R",QE18="RL"),4,IF(AND(QN18="R",QE18="LR"),3,IF(AND(QN18="O",QE18="RL"),3,IF(AND(QN18="O",QE18="LR"),4,"ERROR")))))))) -> 4 | RB18: =IF(AND(QO18="G",QG18="RL"),1,IF(AND(QO18="G",QG18="LR"),2,IF(AND(QO18="Y",QG18="RL"),2,IF(AND(QO18="Y",QG18="LR"),1,IF(AND(QO18="R",QG18="RL"),4,IF(AND(QO18="R",QG18="LR"),3,IF(AND(QO18="O",QG18="RL"),3,IF(AND(QO18="O",QG18="LR"),4,"ERROR")))))))) -> 1 | RC18: =IF(AND(QP18="G",QI18="RL"),1,IF(AND(QP18="G",QI18="LR"),2,IF(AND(QP18="Y",QI18="RL"),2,IF(AND(QP18="Y",QI18="LR"),1,IF(AND(QP18="R",QI18="RL"),4,IF(AND(QP18="R",QI18="LR"),3,IF(AND(QP18="O",QI18="RL"),3,IF(AND(QP18="O",QI18="LR"),4,"ERROR")))))))) -> 3 | RD18: =IF(AND(QQ18="G",QK18="RL"),1,IF(AND(QQ18="G",QK18="LR"),2,IF(AND(QQ18="Y",QK18="RL"),2,IF(AND(QQ18="Y",QK18="LR"),1,IF(AND(QQ18="R",QK18="RL"),4,IF(AND(QQ18="R",QK18="LR"),3,IF(AND(QQ18="O",QK18="RL"),3,IF(AND(QQ18="O",QK18="LR"),4,"ERROR")))))))) -> 3 | RF18: =COUNTIF(QS18:RD18,1) -> 3 | RG18: =COUNTIF(QS18:RD18,2) -> 2 | RH18: =COUNTIF(QS18:RD18,3) -> 4 | RI18: =COUNTIF(QS18:RD18,4) -> 3 | RJ18: =SUM(RF18:RI18) -> 12 | RK18: =IF(RK17<>"","",IF(RL18=$RP$1,"--",IF(RL18=$RP$2,"--",IF(RL18=$RP$3,"--",IF(RL18=$RP$4,"--",IF(RL18=$RP$5,"--",IF(RL18=$RP$6,"--",IF(RL18=$RP$7,"--",IF(RL18=$RP$8,"--",IF(RL18=$RP$9,"--",IF(RL18=$RP$10,"--",IF(RL18=$RP$11,"--",IF(RL18=$RP$12,"--",IF(RL18=$RP$13,"--",IF(RL18=$RP$14,"--",IF(RL18=$RP$15,"--",IF(RL18=$RP$16,"--",""))))))))))))))))) ->  | RL18: =TIME(HOUR(B18),MINUTE(B18),SECOND(B18)) -> 10:23:14 | RN18: 0 | RR18: 0 | RS18: =VLOOKUP(B18,'Emotional Data Set'!$B$4:$G$2740,5,TRUE) -> 8-3 | RT18: =VLOOKUP(B18,$M$2:$M$9,1) -> 2025-03-07T11:55:08.571 | RU18: =(B18-RT18)/VLOOKUP(RT18,$M$2:$N$9,2) -> 0.4619391019 | RV18: =VLOOKUP(B18+1/1440,'Emotional Data Set'!$B$4:$G$2740,6,TRUE) -> SSE | RW18: =VLOOKUP(B18,'Emotional Data Set'!$B$4:$P$2740,14,TRUE) -> SE | RX18: =(RU18-FLOOR(RU18,1/48))/(1/48) -> 0.1730768902 | RY18: =VLOOKUP(B18,$U$3:$U$5,1,TRUE) -> 45647.22222 | RZ18: =VLOOKUP(RY18,$U$3:$W$5,3,TRUE) -> 2-5 | SA18: =VLOOKUP(RZ18,'EMO and PHY YR'!$D$2:$E$57,2,FALSE) -> WNW | SB18: =IF(B18>'Mind Data Set'!$BC$11,1,IF(B18<='Mind Data Set'!$BC$10,0,(B18-'Mind Data Set'!$BC$10)/'Mind Data Set'!$BD$10)) -> 0.8901385073 | SC18: =IF(B18>'Mind Data Set'!$BC$12,1,IF(B18<='Mind Data Set'!$BC$11,0,(B18-'Mind Data Set'!$BC$11)/'Mind Data Set'!$BD$11)) -> 0 | SD18: =IF(B18>'Mind Data Set'!$BC$13,1,IF(B18<='Mind Data Set'!$BC$12,0,(B18-'Mind Data Set'!$BC$12)/'Mind Data Set'!$BD$12)) -> 0 | SE18: =IF(B18>'Mind Data Set'!$BC$14,1,IF(B18<='Mind Data Set'!$BC$13,0,(B18-'Mind Data Set'!$BC$13)/'Mind Data Set'!$BD$13)) -> 0 | SF18: =SUM(SB18:SE18)/4 -> 0.2225346268 | SG18: =VLOOKUP(RZ18,'EMO and PHY YR'!$D$2:$K$57,8,FALSE) -> LR | SH18: =IF(SG18="LR",VLOOKUP(VLOOKUP(B18,'Mind Data Set'!$B$4:$C$99,2),Calculations!$M$51:$T$98,4,FALSE),VLOOKUP(VLOOKUP(B18,'Mind Data Set'!$B$4:$C$99,2),Calculations!$M$51:$T$98,7,FALSE)) -> 1-5 | SI18: =VLOOKUP(SH18,'EMO and PHY YR'!$D$2:$E$57,2,FALSE) -> NE | SJ18: =(SF18-FLOOR(SF18,1/48))/(1/48) -> 0.6816620871 | SK18: =VLOOKUP(SH18,'EMO and PHY YR'!$D$2:$K$57,8,FALSE) -> LR | SM18: 0 | SO18: =IF(OR(ABS(F18-MROUND(F18,22.5))<2.8125,ABS(F18-MROUND(F18,22.5))>22.5-2.8125),1,0) -> 1 | SP18: =IF(OR(ABS(I18-MROUND(I18,22.5))<2.8125,ABS(I18-MROUND(I18,22.5))>22.5-2.8125),1,0) -> 0 | SQ18: =IF(OR(ABS(L18-MROUND(L18,22.5))<2.8125,ABS(L18-MROUND(L18,22.5))>22.5-2.8125),1,0) -> 0 | SR18: =IF(OR(ABS(O18-MROUND(O18,22.5))<2.8125,ABS(O18-MROUND(O18,22.5))>22.5-2.8125),1,0) -> 0 | SS18: =IF(OR(ABS(R18-MROUND(R18,22.5))<2.8125,ABS(R18-MROUND(R18,22.5))>22.5-2.8125),1,0) -> 0 | ST18: =IF(OR(ABS(U18-MROUND(U18,22.5))<2.8125,ABS(U18-MROUND(U18,22.5))>22.5-2.8125),1,0) -> 0 | SW18: =IF(OR(ABS(HN18-MROUND(HN18,0.0625))<0.0078125,ABS(HN18-MROUND(HN18,0.0625))>0.0625-0.0078125),1,0) -> 0 | SX18: =IF(OR(ABS(HQ18-MROUND(HQ18,0.0625))<0.0078125,ABS(HQ18-MROUND(HQ18,0.0625))>0.0625-0.0078125),1,0) -> 1 | SY18: =IF(OR(ABS(HT18-MROUND(HT18,0.0625))<0.0078125,ABS(HT18-MROUND(HT18,0.0625))>0.0625-0.0078125),1,0) -> 0 | SZ18: =IF(OR(ABS(HW18-MROUND(HW18,0.0625))<0.0078125,ABS(HW18-MROUND(HW18,0.0625))>0.0625-0.0078125),1,0) -> 0 | TA18: =IF(OR(ABS(HZ18-MROUND(HZ18,0.0625))<0.0078125,ABS(HZ18-MROUND(HZ18,0.0625))>0.0625-0.0078125),1,0) -> 1 | TB18: =IF(OR(ABS(IC18-MROUND(IC18,0.0625))<0.0078125,ABS(IC18-MROUND(IC18,0.0625))>0.0625-0.0078125),1,0) -> 0 | TF18: =IF(AND(SO18=1,QA18="LR"),1,IF(AND(SO18=1,QA18="RL"),2,0)) -> 1 | TG18: =IF(AND(SP18=1,QC18="LR"),1,IF(AND(SP18=1,QC18="RL"),2,0)) -> 0 | TH18: =IF(AND(SQ18=1,QE18="LR"),1,IF(AND(SQ18=1,QE18="RL"),2,0)) -> 0 | TI18: =IF(AND(SR18=1,QG18="LR"),1,IF(AND(SR18=1,QG18="RL"),2,0)) -> 0 | TJ18: =IF(AND(SS18=1,QI18="LR"),1,IF(AND(SS18=1,QI18="RL"),2,0)) -> 0 | TK18: =IF(AND(ST18=1,QK18="LR"),1,IF(AND(ST18=1,QK18="RL"),2,0)) -> 0 | TL18: =IF(AND(SW18=1,QA18="LR"),1,IF(AND(SW18=1,QA18="RL"),2,0)) -> 0 | TM18: =IF(AND(SX18=1,QC18="LR"),1,IF(AND(SX18=1,QC18="RL"),2,0)) -> 1 | TN18: =IF(AND(SY18=1,QE18="LR"),1,IF(AND(SY18=1,QE18="RL"),2,0)) -> 0 | TO18: =IF(AND(SZ18=1,QG18="LR"),1,IF(AND(SZ18=1,QG18="RL"),2,0)) -> 0 | TP18: =IF(AND(TA18=1,QI18="LR"),1,IF(AND(TA18=1,QI18="RL"),2,0)) -> 1 | TQ18: =IF(AND(TB18=1,QK18="LR"),1,IF(AND(TB18=1,QK18="RL"),2,0)) -> 0 | TR18: =COUNTIF(TF18:TQ18,1) -> 3 | TS18: =COUNTIF(TF18:TQ18,2) -> 0 | TT18: =SUM(TR18:TS18) -> 3
B19: =(B17+B21)/2 -> 2025-03-10T10:26:54.330 | C19: 5.625 | D19: I | E19: G | F19: 224.765625 | G19: =VLOOKUP(F19,$C$17:$E$143,2,TRUE) -> CO3 | H19: =VLOOKUP(F19,$C$17:$E$143,3,TRUE) -> R | I19: 258.749 | J19: D | K19: Y | L19: 147.0973558 | M19: C | N19: R | O19: 130.6730777 | P19: CO2 | Q19: O | R19: 287.4928099 | S19: OI | T19: Y | U19: 29.65487639 | V19: O | W19: G | Z19: =(IF(Y19="","",IF(Y18="",1,Z18+1))) ->  | AA19: =IF(Y19="",NA(),Y19) ->  | AC19: =(IF(AB19="","",IF(AB18="",1,AC18+1))) ->  | AD19: =IF(AB19="",NA(),AB19) ->  | AF19: =(IF(AE19="","",IF(AE18="",1,AF18+1))) ->  | AG19: =IF(AE19="",NA(),AE19) ->  | AI19: =(IF(AH19="","",IF(AH18="",1,AI18+1))) ->  | AJ19: =IF(AH19="",NA(),AH19) ->  | AK19: =IF(AND(G19=V19,H19=W19),8.5,IF(OR(AND(G19="CO1",V19="CO1"),AND(G19="CO2",V19="CO2"),AND(G19="CO3",V19="CO3"),AND(G19="CO4",V19="CO4")),8.5,"")) ->  | AL19: =(IF(AK19="","",IF(AK18="",1,AL18+1))) ->  | AM19: =IF(AK19="",NA(),AK19) ->  | AO19: =(IF(AN19="","",IF(AN18="",1,AO18+1))) ->  | AP19: =IF(AN19="",NA(),AN19) ->  | AR19: =(IF(AQ19="","",IF(AQ18="",1,AR18+1))) ->  | AS19: =IF(AQ19="",NA(),AQ19) ->  | AU19: =(IF(AT19="","",IF(AT18="",1,AU18+1))) ->  | AV19: =IF(AT19="",NA(),AT19) ->  | AX19: =(IF(AW19="","",IF(AW18="",1,AX18+1))) ->  | AY19: =IF(AW19="",NA(),AW19) ->  | BA19: =(IF(AZ19="","",IF(AZ18="",1,BA18+1))) ->  | BB19: =IF(AZ19="",NA(),AZ19) ->  | BD19: =(IF(BC19="","",IF(BC18="",1,BD18+1))) ->  | BE19: =IF(BC19="",NA(),BC19) ->  | BG19: =(IF(BF19="","",IF(BF18="",1,BG18+1))) ->  | BH19: =IF(BF19="",NA(),BF19) ->  | BJ19: =(IF(BI19="","",IF(BI18="",1,BJ18+1))) ->  | BK19: =IF(BI19="",NA(),BI19) ->  | BM19: =(IF(BL19="","",IF(BL18="",1,BM18+1))) ->  | BN19: =IF(BL19="",NA(),BL19) ->  | BP19: =(IF(BO19="","",IF(BO18="",1,BP18+1))) ->  | BQ19: =IF(BO19="",NA(),BO19) ->  | BT19: =IF(AND($G$15=G19,$H$15=H19),4,"") ->  | BU19: =(IF(BT19="","",IF(BT18="",1,BU18+1))) ->  | BV19: =IF(BT19="",NA(),BT19) ->  | BW19: =IF(AND($G$15=J19,$H$15=K19),1,"") ->  | BX19: =(IF(BW19="","",IF(BW18="",1,BX18+1))) ->  | BY19: =IF(BW19="",NA(),BW19) ->  | BZ19: =IF(AND($G$15=M19,$H$15=N19),5,"") ->  | CA19: =(IF(BZ19="","",IF(BZ18="",1,CA18+1))) ->  | CB19: =IF(BZ19="",NA(),BZ19) ->  | CC19: =IF(AND($G$15=P19,$H$15=Q19),2,"") ->  | CD19: =(IF(CC19="","",IF(CC18="",1,CD18+1))) ->  | CE19: =IF(CC19="",NA(),CC19) ->  | CF19: =IF(AND($G$15=S19,$H$15=T19),6,"") ->  | CG19: =(IF(CF19="","",IF(CF18="",1,CG18+1))) ->  | CH19: =IF(CF19="",NA(),CF19) ->  | CI19: =IF(AND($G$15=V19,$H$15=W19),3,"") ->  | CK19: =IF(CI19="",NA(),CI19) ->  | CL19: =COUNTIF(BT19:CJ19,">0")/2 -> 0 | CN19: =IF(AND($J$15=G19,$K$15=H19),4,"") ->  | CO19: =(IF(CN19="","",IF(CN18="",1,CO18+1))) ->  | CP19: =IF(CN19="",NA(),CN19) ->  | CQ19: =IF(AND($J$15=J19,$K$15=K19),1,"") ->  | CR19: =(IF(CQ19="","",IF(CQ18="",1,CR18+1))) ->  | CS19: =IF(CQ19="",NA(),CQ19) ->  | CT19: =IF(AND($J$15=M19,$K$15=N19),5,"") ->  | CU19: =(IF(CT19="","",IF(CT18="",1,CU18+1))) ->  | CV19: =IF(CT19="",NA(),CT19) ->  | CW19: =IF(AND($J$15=P19,$K$15=Q19),2,"") ->  | CX19: =(IF(CW19="","",IF(CW18="",1,CX18+1))) ->  | CY19: =IF(CW19="",NA(),CW19) ->  | CZ19: =IF(AND($J$15=S19,$K$15=T19),6,"") ->  | DA19: =(IF(CZ19="","",IF(CZ18="",1,DA18+1))) ->  | DB19: =IF(CZ19="",NA(),CZ19) ->  | DC19: =IF(AND($J$15=V19,$K$15=W19),3,"") ->  | DD19: =(IF(DC19="","",IF(DC18="",1,DD18+1))) ->  | DE19: =IF(DC19="",NA(),DC19) ->  | DF19: =COUNTIF(CN19:DD19,">0")/2 -> 0 | DH19: =IF(AND($M$15=G19,$N$15=H19),4,"") ->  | DI19: =(IF(DH19="","",IF(DH18="",1,DI18+1))) ->  | DJ19: =IF(DH19="",NA(),DH19) ->  | DK19: =IF(AND($M$15=J19,$N$15=K19),1,"") ->  | DL19: =(IF(DK19="","",IF(DK18="",1,DL18+1))) ->  | DM19: =IF(DK19="",NA(),DK19) ->  | DN19: =IF(AND($M$15=M19,$N$15=N19),5,"") ->  | DO19: =(IF(DN19="","",IF(DN18="",1,DO18+1))) ->  | DP19: =IF(DN19="",NA(),DN19) ->  | DQ19: =IF(AND($M$15=P19,$N$15=Q19),2,"") ->  | DR19: =(IF(DQ19="","",IF(DQ18="",1,DR18+1))) ->  | DS19: =IF(DQ19="",NA(),DQ19) ->  | DT19: =IF(AND($M$15=S19,$N$15=T19),6,"") ->  | DU19: =(IF(DT19="","",IF(DT18="",1,DU18+1))) ->  | DV19: =IF(DT19="",NA(),DT19) ->  | DW19: =IF(AND($M$15=V19,$N$15=W19),3,"") -> 3 | DX19: =(IF(DW19="","",IF(DW18="",1,DX18+1))) -> 3 | DY19: =IF(DW19="",NA(),DW19) -> 3 | DZ19: =COUNTIF(DH19:DX19,">0")/2 -> 1 | EB19: =IF(AND($P$15=G19,$Q$15=H19),4,"") ->  | EC19: =(IF(EB19="","",IF(EB18="",1,EC18+1))) ->  | ED19: =IF(EB19="",NA(),EB19) ->  | EE19: =IF(AND($P$15=J19,$Q$15=K19),1,"") ->  | EF19: =(IF(EE19="","",IF(EE18="",1,EF18+1))) ->  | EG19: =IF(EE19="",NA(),EE19) ->  | EH19: =IF(AND($P$15=M19,$Q$15=N19),5,"") ->  | EI19: =(IF(EH19="","",IF(EH18="",1,EI18+1))) ->  | EJ19: =IF(EH19="",NA(),EH19) ->  | EK19: =IF(AND($P$15=P19,$Q$15=Q19),2,"") ->  | EL19: =(IF(EK19="","",IF(EK18="",1,EL18+1))) ->  | EM19: =IF(EK19="",NA(),EK19) ->  | EN19: =IF(AND($P$15=S19,$Q$15=T19),6,"") ->  | EO19: =(IF(EN19="","",IF(EN18="",1,EO18+1))) ->  | EP19: =IF(EN19="",NA(),EN19) ->  | EQ19: =IF(AND($P$15=V19,$Q$15=W19),3,"") ->  | ER19: =(IF(EQ19="","",IF(EQ18="",1,ER18+1))) ->  | ES19: =IF(EQ19="",NA(),EQ19) ->  | ET19: =COUNTIF(EB19:ER19,">0")/2 -> 0 | EV19: =IF(AND($S$15=G19,$T$15=H19),4,"") ->  | EW19: =(IF(EV19="","",IF(EV18="",1,EW18+1))) ->  | EX19: =IF(EV19="",NA(),EV19) ->  | EY19: =IF(AND($S$15=J19,$T$15=K19),1,"") ->  | EZ19: =(IF(EY19="","",IF(EY18="",1,EZ18+1))) ->  | FA19: =IF(EY19="",NA(),EY19) ->  | FB19: =IF(AND($S$15=M19,$T$15=N19),5,"") ->  | FD19: =IF(FB19="",NA(),FB19) ->  | FE19: =IF(AND($S$15=P19,$T$15=Q19),2,"") ->  | FF19: =(IF(FE19="","",IF(FE18="",1,FF18+1))) ->  | FG19: =IF(FE19="",NA(),FE19) ->  | FH19: =IF(AND($S$15=S19,$T$15=T19),6,"") ->  | FI19: =(IF(FH19="","",IF(FH18="",1,FI18+1))) ->  | FJ19: =IF(FH19="",NA(),FH19) ->  | FK19: =IF(AND($S$15=V19,$T$15=W19),3,"") ->  | FL19: =(IF(FK19="","",IF(FK18="",1,FL18+1))) ->  | FM19: =IF(FK19="",NA(),FK19) ->  | FN19: =COUNTIF(EV19:FL19,">0")/2 -> 0 | FP19: =IF(AND($V$15=G19,$W$15=H19),4,"") ->  | FQ19: =(IF(FP19="","",IF(FP18="",1,FQ18+1))) ->  | FR19: =IF(FP19="",NA(),FP19) ->  | FS19: =IF(AND($V$15=J19,$W$15=K19),1,"") -> 1 | FT19: =(IF(FS19="","",IF(FS18="",1,FT18+1))) -> 2 | FU19: =IF(FS19="",NA(),FS19) -> 1 | FV19: =IF(AND($V$15=M19,$W$15=N19),5,"") ->  | FW19: =(IF(FV19="","",IF(FV18="",1,FW18+1))) ->  | FX19: =IF(FV19="",NA(),FV19) ->  | FY19: =IF(AND($V$15=P19,$W$15=Q19),2,"") ->  | FZ19: =(IF(FY19="","",IF(FY18="",1,FZ18+1))) ->  | GA19: =IF(FY19="",NA(),FY19) ->  | GB19: =IF(AND($V$15=S19,$W$15=T19),6,"") ->  | GC19: =(IF(GB19="","",IF(GB18="",1,GC18+1))) ->  | GD19: =IF(GB19="",NA(),GB19) ->  | GE19: =IF(AND($V$15=V19,$W$15=W19),3,"") ->  | GF19: =(IF(GE19="","",IF(GE18="",1,GF18+1))) ->  | GG19: =IF(GE19="",NA(),GE19) ->  | GH19: =COUNTIF(FP19:GF19,">0")/2 -> 1.5 | HA19: =VLOOKUP(B19,'Physical Data Set'!B:Q,9) -> 5-5 | HB19: =VLOOKUP(HA19,'EMO and PHY YR'!$D$2:$K$57,8,FALSE) -> LR | HC19: =IF(HB19="LR",(VLOOKUP(HE19,Calculations!$N$51:$P$98,3,TRUE)),(VLOOKUP(HE19,Calculations!$N$51:$S$98,6,TRUE))) -> 7-7 | HD19: =VLOOKUP(HC19,'EMO and PHY YR'!$D$2:$K$57,8,FALSE) -> LR | HE19: =HE18+1/192 -> 0.01041676667 | HF19: 2 | HG19: 2025-03-07T11:55:08.571 | HH19: 0.4623397429 | HI19: =VLOOKUP(B19,'Emotional Data Set'!$B$4:$R$2740,9,TRUE) -> LR | HJ19: =VLOOKUP(B19,'Emotional Data Set'!$B$4:$P$2740,13,TRUE) -> 3-5 | HK19: =VLOOKUP(B19,'Emotional Data Set'!$B$4:$R$2740,17,TRUE) -> LR | HL19: =(HH19-FLOOR(HH19,1/48))/(1/48) -> 0.1923076594 | HM19: =IF(AND(SK19="RL",VLOOKUP(SH19,'Macro Phase'!$B$3:$N$58,13,FALSE)=0),VLOOKUP(SH19,'Macro Phase'!$B$3:$N$58,13,FALSE)-(30*SJ19)/24/60+1,IF(SK19="LR",VLOOKUP(SH19,'Macro Phase'!$B$3:$N$58,12,FALSE)+(30*SJ19)/24/60,VLOOKUP(SH19,'Macro Phase'!$B$3:$N$58,13,FALSE)-(30*SJ19)/24/60)) -> 0.4725417811 | HN19: =IF(HB19="LR",(VLOOKUP(HA19,'Macro Phase'!$B$3:$N$58,12,FALSE)+(30*HE19)/24/60),IF((VLOOKUP(HA19,'Macro Phase'!$B$3:$N$58,13,FALSE))-(30*HE19)/24/60<0,1+(VLOOKUP(HA19,'Macro Phase'!$B$3:$N$58,13,FALSE))-(30*HE19)/24/60,(VLOOKUP(HA19,'Macro Phase'!$B$3:$N$58,13,FALSE))-(30*HE19)/24/60)) -> 0.9585503493 | HO19: D | HP19: G | HQ19: =IF(AND(HD19="RL",VLOOKUP(HC19,'Macro Phase'!$B$3:$N$58,13,FALSE)=0),VLOOKUP(HC19,'Macro Phase'!$B$3:$N$58,13,FALSE)-$HA$12*HF19+1,IF(HD19="LR",VLOOKUP(HC19,'Macro Phase'!$B$3:$N$58,12,FALSE)+$HA$12*HF19,VLOOKUP(HC19,'Macro Phase'!$B$3:$N$58,13,FALSE)-$HA$12*HF19)) -> 06:15:00 | HR19: ID | HS19: O | HT19: =IF(HI19="LR",(VLOOKUP(RS19,'Macro Phase'!$B$3:$N$58,12,FALSE)+(30*RU19)/24/60),IF(RS19="2-8",(VLOOKUP(BJ42,'Macro Phase'!$B$3:$N$58,13,FALSE))-(30*RU19)/24/60+1,(VLOOKUP(RS19,'Macro Phase'!$B$3:$N$58,13,FALSE))-(30*RU19)/24/60)) -> 0.3637987446 | HU19: CO2 | HV19: O | HW19: =IF(AND(HK19="RL",VLOOKUP(HJ19,'Macro Phase'!$B$3:$N$58,13,FALSE)=0),(VLOOKUP(HJ19,'Macro Phase'!$B$3:$N$58,13,FALSE)-((30*HL19)/24/60))+1,IF(HK19="LR",VLOOKUP(HJ19,'Macro Phase'!$B$3:$N$58,12,FALSE)+((30*HL19)/24/60),VLOOKUP(HJ19,'Macro Phase'!$B$3:$N$58,13,FALSE)-((30*HL19)/24/60))) -> 0.7123397429 | HX19: D | HY19: Y | HZ19: =IF(SG19="LR",(VLOOKUP(RZ19,'Macro Phase'!$B$3:$N$58,12,FALSE)+(30*SF19)/24/60),IF(CN42="2-8",(VLOOKUP(RZ19,'Macro Phase'!$B$3:$N$58,13,FALSE))-(30*SF19)/24/60+1,VLOOKUP(RZ19,'Macro Phase'!$B$3:$N$58,13,FALSE))-(30*SF19)/24/60) -> 0.5671362871 | IA19: OI | IB19: R | IC19: =IF(AND(SK19="RL",VLOOKUP(SH19,'Macro Phase'!$B$3:$N$58,13,FALSE)=0),VLOOKUP(SH19,'Macro Phase'!$B$3:$N$58,13,FALSE)-(30*SJ19)/24/60+1,IF(SK19="LR",VLOOKUP(SH19,'Macro Phase'!$B$3:$N$58,12,FALSE)+(30*SJ19)/24/60,VLOOKUP(SH19,'Macro Phase'!$B$3:$N$58,13,FALSE)-(30*SJ19)/24/60)) -> 0.4725417811 | ID19: D | IE19: R | IH19: =(IF(IG19="","",IF(IG18="",1,IH18+1))) ->  | II19: =IF(IG19="",NA(),IG19) ->  | IK19: =(IF(IJ19="","",IF(IJ18="",1,IK18+1))) ->  | IL19: =IF(IJ19="",NA(),IJ19) ->  | IN19: =(IF(IM19="","",IF(IM18="",1,IN18+1))) ->  | IO19: =IF(IM19="",NA(),IM19) ->  | IQ19: =(IF(IP19="","",IF(IP18="",1,IQ18+1))) ->  | IR19: =IF(IP19="",NA(),IP19) ->  | IT19: =(IF(IS19="","",IF(IS18="",1,IT18+1))) ->  | IU19: =IF(IS19="",NA(),IS19) ->  | IW19: =(IF(IV19="","",IF(IV18="",1,IW18+1))) ->  | IX19: =IF(IV19="",NA(),IV19) ->  | IZ19: =(IF(IY19="","",IF(IY18="",1,IZ18+1))) ->  | JA19: =IF(IY19="",NA(),IY19) ->  | JC19: =(IF(JB19="","",IF(JB18="",1,JC18+1))) ->  | JD19: =IF(JB19="",NA(),JB19) ->  | JF19: =(IF(JE19="","",IF(JE18="",1,JF18+1))) ->  | JG19: =IF(JE19="",NA(),JE19) ->  | JI19: =(IF(JH19="","",IF(JH18="",1,JI18+1))) ->  | JJ19: =IF(JH19="",NA(),JH19) ->  | JL19: =(IF(JK19="","",IF(JK18="",1,JL18+1))) ->  | JM19: =IF(JK19="",NA(),JK19) ->  | JO19: =(IF(JN19="","",IF(JN18="",1,JO18+1))) ->  | JP19: =IF(JN19="",NA(),JN19) ->  | JR19: =(IF(JQ19="","",IF(JQ18="",1,JR18+1))) ->  | JS19: =IF(JQ19="",NA(),JQ19) ->  | JU19: =(IF(JT19="","",IF(JT18="",1,JU18+1))) ->  | JV19: =IF(JT19="",NA(),JT19) ->  | JX19: =(IF(JW19="","",IF(JW18="",1,JX18+1))) ->  | JY19: =IF(JW19="",NA(),JW19) ->  | JZ19: 0 | KB19: =IF(AND($HO$15=HO19,$HP$15=HP19),4,"") ->  | KC19: =(IF(KB19="","",IF(KB18="",1,KC18+1))) ->  | KD19: =IF(KB19="",NA(),KB19) ->  | KF19: =(IF(KE19="","",IF(KE18="",1,KF18+1))) ->  | KG19: =IF(KE19="",NA(),KE19) ->  | KH19: =IF(AND($HO$15=HU19,$HP$15=HV19),5,"") ->  | KI19: =(IF(KH19="","",IF(KH18="",1,KI18+1))) ->  | KJ19: =IF(KH19="",NA(),KH19) ->  | KL19: =(IF(KK19="","",IF(KK18="",1,KL18+1))) ->  | KM19: =IF(KK19="",NA(),KK19) ->  | KN19: =IF(AND($HO$15=IA19,$HP$15=IB19),6,"") ->  | KO19: =(IF(KN19="","",IF(KN18="",1,KO18+1))) ->  | KP19: =IF(KN19="",NA(),KN19) ->  | KQ19: =IF(AND($HO$15=ID19,$HP$15=IE19),3,"") ->  | KR19: =(IF(KQ19="","",IF(KQ18="",1,KR18+1))) ->  | KS19: =IF(KQ19="",NA(),KQ19) ->  | KT19: 0 | KV19: =IF(AND($HR$15=HO19,$HS$15=HP19),4,"") ->  | KW19: =(IF(KV19="","",IF(KV18="",1,KW18+1))) ->  | KX19: =IF(KV19="",NA(),KV19) ->  | KY19: =IF(AND($HR$15=HR19,$HS$15=HS19),1,"") ->  | KZ19: =(IF(KY19="","",IF(KY18="",1,KZ18+1))) ->  | LA19: =IF(KY19="",NA(),KY19) ->  | LB19: =IF(AND($HR$15=HU19,$HS$15=HV19),5,"") ->  | LC19: =(IF(LB19="","",IF(LB18="",1,LC18+1))) ->  | LD19: =IF(LB19="",NA(),LB19) ->  | LE19: =IF(AND($HR$15=HX19,$HS$15=HY19),2,"") ->  | LF19: =(IF(LE19="","",IF(LE18="",1,LF18+1))) ->  | LG19: =IF(LE19="",NA(),LE19) ->  | LH19: =IF(AND($HR$15=IA19,$HS$15=IB19),6,"") ->  | LI19: =(IF(LH19="","",IF(LH18="",1,LI18+1))) ->  | LJ19: =IF(LH19="",NA(),LH19) ->  | LK19: =IF(AND($HR$15=ID19,$HS$15=IE19),3,"") ->  | LL19: =(IF(LK19="","",IF(LK18="",1,LL18+1))) ->  | LM19: =IF(LK19="",NA(),LK19) ->  | LN19: 0 | LP19: =IF(AND($HU$15=HO19,$HV$15=HP19),4,"") ->  | LQ19: =(IF(LP19="","",IF(LP18="",1,LQ18+1))) ->  | LR19: =IF(LP19="",NA(),LP19) ->  | LS19: =IF(AND($HU$15=HR19,$HV$15=HS19),1,"") ->  | LT19: =(IF(LS19="","",IF(LS18="",1,LT18+1))) ->  | LU19: =IF(LS19="",NA(),LS19) ->  | LV19: =IF(AND($HU$15=HU19,$HV$15=HV19),5,"") ->  | LW19: =(IF(LV19="","",IF(LV18="",1,LW18+1))) ->  | LX19: =IF(LV19="",NA(),LV19) ->  | LY19: =IF(AND($HU$15=HX19,$HV$15=HY19),2,"") ->  | LZ19: =(IF(LY19="","",IF(LY18="",1,LZ18+1))) ->  | MA19: =IF(LY19="",NA(),LY19) ->  | MB19: =IF(AND($HU$15=IA19,$HV$15=IB19),6,"") ->  | MC19: =(IF(MB19="","",IF(MB18="",1,MC18+1))) ->  | MD19: =IF(MB19="",NA(),MB19) ->  | ME19: =IF(AND($HU$15=ID19,$HV$15=IE19),3,"") ->  | MF19: =(IF(ME19="","",IF(ME18="",1,MF18+1))) ->  | MG19: =IF(ME19="",NA(),ME19) ->  | MH19: 0 | MJ19: =IF(AND($HX$15=HO19,$HY$15=HP19),4,"") ->  | MK19: =(IF(MJ19="","",IF(MJ18="",1,MK18+1))) ->  | ML19: =IF(MJ19="",NA(),MJ19) ->  | MM19: =IF(AND($HX$15=HR19,$HY$15=HS19),1,"") ->  | MN19: =(IF(MM19="","",IF(MM18="",1,MN18+1))) ->  | MO19: =IF(MM19="",NA(),MM19) ->  | MP19: =IF(AND($HX$15=HU19,$HY$15=HV19),5,"") ->  | MQ19: =(IF(MP19="","",IF(MP18="",1,MQ18+1))) ->  | MR19: =IF(MP19="",NA(),MP19) ->  | MS19: =IF(AND($HX$15=HX19,$HY$15=HY19),2,"") ->  | MT19: =(IF(MS19="","",IF(MS18="",1,MT18+1))) ->  | MU19: =IF(MS19="",NA(),MS19) ->  | MV19: =IF(AND($HX$15=IA19,$HY$15=IB19),6,"") ->  | MW19: =(IF(MV19="","",IF(MV18="",1,MW18+1))) ->  | MX19: =IF(MV19="",NA(),MV19) ->  | MY19: =IF(AND($HX$15=ID19,$HY$15=IE19),3,"") ->  | MZ19: =(IF(MY19="","",IF(MY18="",1,MZ18+1))) ->  | NA19: =IF(MY19="",NA(),MY19) ->  | NB19: 0 | ND19: =IF(AND($IA$15=HO19,$IB$15=HP19),4,"") ->  | NE19: =(IF(ND19="","",IF(ND18="",1,NE18+1))) ->  | NF19: =IF(ND19="",NA(),ND19) ->  | NG19: =IF(AND($IA$15=HR19,$IB$15=HS19),1,"") ->  | NH19: =(IF(NG19="","",IF(NG18="",1,NH18+1))) ->  | NI19: =IF(NG19="",NA(),NG19) ->  | NJ19: =IF(AND($IA$15=HU19,$IB$15=HV19),5,"") ->  | NK19: =(IF(NJ19="","",IF(NJ18="",1,NK18+1))) ->  | NL19: =IF(NJ19="",NA(),NJ19) ->  | NM19: =IF(AND($IA$15=HX19,$IB$15=HY19),2,"") ->  | NN19: =(IF(NM19="","",IF(NM18="",1,NN18+1))) ->  | NO19: =IF(NM19="",NA(),NM19) ->  | NP19: =IF(AND($IA$15=IA19,$IB$15=IB19),6,"") ->  | NQ19: =(IF(NP19="","",IF(NP18="",1,NQ18+1))) ->  | NR19: =IF(NP19="",NA(),NP19) ->  | NS19: =IF(AND($IA$15=ID19,$IB$15=IE19),3,"") ->  | NT19: =(IF(NS19="","",IF(NS18="",1,NT18+1))) ->  | NU19: =IF(NS19="",NA(),NS19) ->  | NV19: 0 | NX19: =IF(AND($ID$15=HO19,$IE$15=HP19),4,"") ->  | NY19: =(IF(NX19="","",IF(NX18="",1,NY18+1))) ->  | NZ19: =IF(NX19="",NA(),NX19) ->  | OA19: =IF(AND($ID$15=HR19,$IE$15=HS19),1,"") -> 1 | OB19: =(IF(OA19="","",IF(OA18="",1,OB18+1))) -> 3 | OC19: =IF(OA19="",NA(),OA19) -> 1 | OD19: =IF(AND($ID$15=HU19,$IE$15=HV19),5,"") ->  | OE19: =(IF(OD19="","",IF(OD18="",1,OE18+1))) ->  | OF19: =IF(OD19="",NA(),OD19) ->  | OG19: =IF(AND($ID$15=HX19,$IE$15=HY19),2,"") ->  | OH19: =(IF(OG19="","",IF(OG18="",1,OH18+1))) ->  | OI19: =IF(OG19="",NA(),OG19) ->  | OJ19: =IF(AND($ID$15=IA19,$IE$15=IB19),6,"") ->  | OK19: =(IF(OJ19="","",IF(OJ18="",1,OK18+1))) ->  | OL19: =IF(OJ19="",NA(),OJ19) ->  | OM19: =IF(AND($ID$15=ID19,$IE$15=IE19),3,"") ->  | ON19: =(IF(OM19="","",IF(OM18="",1,ON18+1))) ->  | OO19: =IF(OM19="",NA(),OM19) ->  | OP19: 1 | OQ19: =VLOOKUP(B19,'Physical Data Set'!$B$4:$K$35043,10,TRUE) -> SW | OR19: 0.01041666667 | OS19: =VLOOKUP(B19+1/1440,'Physical Data Set'!$B$4:$S$35043,18,TRUE) -> W | OT19: 0.122234623 | OU19: 0.5 | OV19: =VLOOKUP(OS19,Calculations!$E$84:$G$99,2,FALSE)-22.5*OU19 -> 258.75 | OW19: 0 | OX19: 0 | OY19: 0 | OZ19: 0 | PA19: 0 | PB19: 0 | PC19: 0 | PD19: 0 | PE19: 0 | PF19: 0 | PG19: 0 | PH19: 0 | PZ19: R | QA19: LR | QB19: Y | QC19: LR | QD19: R | QE19: LR | QF19: O | QG19: LR | QH19: Y | QI19: =VLOOKUP(VLOOKUP(B19,$U$3:$W$4,3),'EMO and PHY YR'!$D$2:$K$57,8,FALSE) -> LR | QJ19: G | QK19: =VLOOKUP(SH19,'EMO and PHY YR'!$D$2:$K$57,8,FALSE) -> LR | QL19: G | QM19: O | QN19: O | QO19: Y | QP19: R | QQ19: R | QS19: 3 | QT19: 1 | QU19: 3 | QV19: 4 | QW19: 1 | QX19: 2 | QY19: 2 | QZ19: 4 | RA19: 4 | RB19: 1 | RC19: 3 | RD19: 3 | RF19: 3 | RG19: 2 | RH19: 4 | RI19: 3 | RJ19: 12 | RL19: 10:26:54 | RN19: 0 | RR19: 0 | RS19: =VLOOKUP(B19,'Emotional Data Set'!$B$4:$G$2740,5,TRUE) -> 8-3 | RT19: 2025-03-07T11:55:08.571 | RU19: 0.4623397429 | RV19: =VLOOKUP(B19+1/1440,'Emotional Data Set'!$B$4:$G$2740,6,TRUE) -> SSE | RW19: =VLOOKUP(B19,'Emotional Data Set'!$B$4:$P$2740,14,TRUE) -> SE | RX19: 0.1923076594 | RY19: 45647.22222 | RZ19: 2-5 | SA19: =VLOOKUP(RZ19,'EMO and PHY YR'!$D$2:$E$57,2,FALSE) -> WNW | SB19: =IF(B19>'Mind Data Set'!$BC$11,1,IF(B19<='Mind Data Set'!$BC$10,0,(B19-'Mind Data Set'!$BC$10)/'Mind Data Set'!$BD$10)) -> 0.8901671245 | SC19: =IF(B19>'Mind Data Set'!$BC$12,1,IF(B19<='Mind Data Set'!$BC$11,0,(B19-'Mind Data Set'!$BC$11)/'Mind Data Set'!$BD$11)) -> 0 | SD19: =IF(B19>'Mind Data Set'!$BC$13,1,IF(B19<='Mind Data Set'!$BC$12,0,(B19-'Mind Data Set'!$BC$12)/'Mind Data Set'!$BD$12)) -> 0 | SE19: =IF(B19>'Mind Data Set'!$BC$14,1,IF(B19<='Mind Data Set'!$BC$13,0,(B19-'Mind Data Set'!$BC$13)/'Mind Data Set'!$BD$13)) -> 0 | SF19: 0.2225417811 | SG19: =VLOOKUP(RZ19,'EMO and PHY YR'!$D$2:$K$57,8,FALSE) -> LR | SH19: =IF(SG19="LR",VLOOKUP(VLOOKUP(B19,'Mind Data Set'!$B$4:$C$99,2),Calculations!$M$51:$T$98,4,FALSE),VLOOKUP(VLOOKUP(B19,'Mind Data Set'!$B$4:$C$99,2),Calculations!$M$51:$T$98,7,FALSE)) -> 1-5 | SI19: =VLOOKUP(SH19,'EMO and PHY YR'!$D$2:$E$57,2,FALSE) -> NE | SJ19: 0.6820054936 | SK19: =VLOOKUP(SH19,'EMO and PHY YR'!$D$2:$K$57,8,FALSE) -> LR | SM19: 0 | SO19: 1 | SP19: 0 | SQ19: 0 | SR19: 0 | SS19: 0 | ST19: 0 | SW19: 0 | SX19: 0 | SY19: 0 | SZ19: 0 | TA19: 1 | TB19: 0 | TF19: 1 | TG19: 0 | TH19: 0 | TI19: 0 | TJ19: 0 | TK19: 0 | TL19: 0 | TM19: 0 | TN19: 0 | TO19: 0 | TP19: 1 | TQ19: 0 | TR19: 2 | TS19: 0 | TT19: 2
B20: =(B19+B21)/2 -> 2025-03-10T10:30:34.352 | F20: 224.6484375 | G20: =VLOOKUP(F20,$C$17:$E$143,2,TRUE) -> CO3 | H20: R | I20: 253.124 | J20: DC | K20: =VLOOKUP(I20,$C$17:$E$143,3,TRUE) -> Y | L20: 147.0883414 | M20: C | N20: R | O20: 130.2403854 | P20: CO2 | Q20: O | R20: 287.492649 | S20: OI | T20: Y | U20: 29.64714974 | V20: O | W20: G | AK20: =IF(AND(G20=V20,H20=W20),8.5,IF(OR(AND(G20="CO1",V20="CO1"),AND(G20="CO2",V20="CO2"),AND(G20="CO3",V20="CO3"),AND(G20="CO4",V20="CO4")),8.5,"")) ->  | DW20: 3 | DX20: 4 | DY20: 3 | FP20: =IF(AND($V$15=G20,$W$15=H20),4,"") ->  | FQ20: =(IF(FP20="","",IF(FP19="",1,FQ19+1))) ->  | FR20: =IF(FP20="",NA(),FP20) ->  | FS20: =IF(AND($V$15=J20,$W$15=K20),1,"") ->  | FT20: =(IF(FS20="","",IF(FS19="",1,FT19+1))) ->  | FU20: =IF(FS20="",NA(),FS20) ->  | FV20: =IF(AND($V$15=M20,$W$15=N20),5,"") ->  | FW20: =(IF(FV20="","",IF(FV19="",1,FW19+1))) ->  | FX20: =IF(FV20="",NA(),FV20) ->  | FY20: =IF(AND($V$15=P20,$W$15=Q20),2,"") ->  | FZ20: =(IF(FY20="","",IF(FY19="",1,FZ19+1))) ->  | GA20: =IF(FY20="",NA(),FY20) ->  | GB20: =IF(AND($V$15=S20,$W$15=T20),6,"") ->  | GC20: =(IF(GB20="","",IF(GB19="",1,GC19+1))) ->  | GD20: =IF(GB20="",NA(),GB20) ->  | GE20: =IF(AND($V$15=V20,$W$15=W20),3,"") ->  | GF20: =(IF(GE20="","",IF(GE19="",1,GF19+1))) ->  | GG20: =IF(GE20="",NA(),GE20) ->  | HA20: =VLOOKUP(B20,'Physical Data Set'!B:Q,9) -> 5-5 | HB20: =VLOOKUP(HA20,'EMO and PHY YR'!$D$2:$K$57,8,FALSE) -> LR | HC20: =IF(HB20="LR",(VLOOKUP(HE20,Calculations!$N$51:$P$98,3,TRUE)),(VLOOKUP(HE20,Calculations!$N$51:$S$98,6,TRUE))) -> 7-7 | HD20: =VLOOKUP(HC20,'EMO and PHY YR'!$D$2:$K$57,8,FALSE) -> LR | HE20: 0.0156251 | HF20: 3 | HG20: 2025-03-07T11:55:08.571 | HH20: 0.4627403839 | HI20: =VLOOKUP(B20,'Emotional Data Set'!$B$4:$R$2740,9,TRUE) -> LR | HJ20: =VLOOKUP(B20,'Emotional Data Set'!$B$4:$P$2740,13,TRUE) -> 3-5 | HK20: =VLOOKUP(B20,'Emotional Data Set'!$B$4:$R$2740,17,TRUE) -> LR | HL20: 0.2115384287 | HM20: =IF(AND(SK20="RL",VLOOKUP(SH20,'Macro Phase'!$B$3:$N$58,13,FALSE)=0),VLOOKUP(SH20,'Macro Phase'!$B$3:$N$58,13,FALSE)-(30*SJ20)/24/60+1,IF(SK20="LR",VLOOKUP(SH20,'Macro Phase'!$B$3:$N$58,12,FALSE)+(30*SJ20)/24/60,VLOOKUP(SH20,'Macro Phase'!$B$3:$N$58,13,FALSE)-(30*SJ20)/24/60)) -> 0.4725489354 | HN20: =IF(HB20="LR",(VLOOKUP(HA20,'Macro Phase'!$B$3:$N$58,12,FALSE)+(30*HE20)/24/60),IF((VLOOKUP(HA20,'Macro Phase'!$B$3:$N$58,13,FALSE))-(30*HE20)/24/60<0,1+(VLOOKUP(HA20,'Macro Phase'!$B$3:$N$58,13,FALSE))-(30*HE20)/24/60,(VLOOKUP(HA20,'Macro Phase'!$B$3:$N$58,13,FALSE))-(30*HE20)/24/60)) -> 0.9586588562 | HO20: D | HP20: G | HQ20: =IF(AND(HD20="RL",VLOOKUP(HC20,'Macro Phase'!$B$3:$N$58,13,FALSE)=0),VLOOKUP(HC20,'Macro Phase'!$B$3:$N$58,13,FALSE)-$HA$12*HF20+1,IF(HD20="LR",VLOOKUP(HC20,'Macro Phase'!$B$3:$N$58,12,FALSE)+$HA$12*HF20,VLOOKUP(HC20,'Macro Phase'!$B$3:$N$58,13,FALSE)-$HA$12*HF20)) -> 06:22:30 | HR20: I | HS20: O | HT20: =IF(HI20="LR",(VLOOKUP(RS20,'Macro Phase'!$B$3:$N$58,12,FALSE)+(30*RU20)/24/60),IF(RS20="2-8",(VLOOKUP(BJ43,'Macro Phase'!$B$3:$N$58,13,FALSE))-(30*RU20)/24/60+1,(VLOOKUP(RS20,'Macro Phase'!$B$3:$N$58,13,FALSE))-(30*RU20)/24/60)) -> 0.3638070913 | HU20: CO2 | HV20: O | HW20: =IF(AND(HK20="RL",VLOOKUP(HJ20,'Macro Phase'!$B$3:$N$58,13,FALSE)=0),(VLOOKUP(HJ20,'Macro Phase'!$B$3:$N$58,13,FALSE)-((30*HL20)/24/60))+1,IF(HK20="LR",VLOOKUP(HJ20,'Macro Phase'!$B$3:$N$58,12,FALSE)+((30*HL20)/24/60),VLOOKUP(HJ20,'Macro Phase'!$B$3:$N$58,13,FALSE)-((30*HL20)/24/60))) -> 0.7127403839 | HX20: D | HY20: Y | HZ20: =IF(SG20="LR",(VLOOKUP(RZ20,'Macro Phase'!$B$3:$N$58,12,FALSE)+(30*SF20)/24/60),IF(CN43="2-8",(VLOOKUP(RZ20,'Macro Phase'!$B$3:$N$58,13,FALSE))-(30*SF20)/24/60+1,VLOOKUP(RZ20,'Macro Phase'!$B$3:$N$58,13,FALSE))-(30*SF20)/24/60) -> 0.5671364362 | IA20: OI | IB20: R | IC20: =IF(AND(SK20="RL",VLOOKUP(SH20,'Macro Phase'!$B$3:$N$58,13,FALSE)=0),VLOOKUP(SH20,'Macro Phase'!$B$3:$N$58,13,FALSE)-(30*SJ20)/24/60+1,IF(SK20="LR",VLOOKUP(SH20,'Macro Phase'!$B$3:$N$58,12,FALSE)+(30*SJ20)/24/60,VLOOKUP(SH20,'Macro Phase'!$B$3:$N$58,13,FALSE)-(30*SJ20)/24/60)) -> 0.4725489354 | ID20: D | IE20: R | JZ20: 0 | KT20: 0 | LN20: 0 | MH20: 0 | NB20: 0 | NV20: 0 | OP20: 0 | OQ20: =VLOOKUP(B20,'Physical Data Set'!$B$4:$K$35043,10,TRUE) -> SW | OR20: 0.015625 | OS20: =VLOOKUP(B20+1/1440,'Physical Data Set'!$B$4:$S$35043,18,TRUE) -> W | OT20: 0.1833519346 | OU20: 0.75 | OV20: =VLOOKUP(OS20,Calculations!$E$84:$G$99,2,FALSE)-22.5*OU20 -> 253.125 | OW20: 0 | OX20: 0 | OY20: 0 | OZ20: 0 | PA20: 0 | PB20: 0 | PC20: 0 | PD20: 0 | PE20: 0 | PF20: 0 | PG20: 0 | PH20: 0 | PZ20: R | QA20: LR | QB20: Y | QC20: LR | QD20: R | QE20: LR | QF20: O | QG20: LR | QH20: Y | QI20: =VLOOKUP(VLOOKUP(B20,$U$3:$W$4,3),'EMO and PHY YR'!$D$2:$K$57,8,FALSE) -> LR | QJ20: G | QK20: =VLOOKUP(SH20,'EMO and PHY YR'!$D$2:$K$57,8,FALSE) -> LR | QL20: G | QM20: O | QN20: O | QO20: Y | QP20: R | QQ20: R | QS20: 3 | QT20: 1 | QU20: 3 | QV20: 4 | QW20: 1 | QX20: 2 | QY20: 2 | QZ20: 4 | RA20: 4 | RB20: 1 | RC20: 3 | RD20: 3 | RF20: 3 | RG20: 2 | RH20: 4 | RI20: 3 | RJ20: 12 | RL20: 10:30:34 | RN20: 0 | RR20: 0 | RS20: =VLOOKUP(B20,'Emotional Data Set'!$B$4:$G$2740,5,TRUE) -> 8-3 | RT20: 2025-03-07T11:55:08.571 | RU20: 0.4627403839 | RV20: =VLOOKUP(B20+1/1440,'Emotional Data Set'!$B$4:$G$2740,6,TRUE) -> SSE | RW20: =VLOOKUP(B20,'Emotional Data Set'!$B$4:$P$2740,14,TRUE) -> SE | RX20: 0.2115384287 | RY20: 45647.22222 | RZ20: 2-5 | SA20: =VLOOKUP(RZ20,'EMO and PHY YR'!$D$2:$E$57,2,FALSE) -> WNW | SB20: =IF(B20>'Mind Data Set'!$BC$11,1,IF(B20<='Mind Data Set'!$BC$10,0,(B20-'Mind Data Set'!$BC$10)/'Mind Data Set'!$BD$10)) -> 0.8901957417 | SC20: =IF(B20>'Mind Data Set'!$BC$12,1,IF(B20<='Mind Data Set'!$BC$11,0,(B20-'Mind Data Set'!$BC$11)/'Mind Data Set'!$BD$11)) -> 0 | SD20: =IF(B20>'Mind Data Set'!$BC$13,1,IF(B20<='Mind Data Set'!$BC$12,0,(B20-'Mind Data Set'!$BC$12)/'Mind Data Set'!$BD$12)) -> 0 | SE20: =IF(B20>'Mind Data Set'!$BC$14,1,IF(B20<='Mind Data Set'!$BC$13,0,(B20-'Mind Data Set'!$BC$13)/'Mind Data Set'!$BD$13)) -> 0 | SF20: 0.2225489354 | SG20: =VLOOKUP(RZ20,'EMO and PHY YR'!$D$2:$K$57,8,FALSE) -> LR | SH20: =IF(SG20="LR",VLOOKUP(VLOOKUP(B20,'Mind Data Set'!$B$4:$C$99,2),Calculations!$M$51:$T$98,4,FALSE),VLOOKUP(VLOOKUP(B20,'Mind Data Set'!$B$4:$C$99,2),Calculations!$M$51:$T$98,7,FALSE)) -> 1-5 | SI20: =VLOOKUP(SH20,'EMO and PHY YR'!$D$2:$E$57,2,FALSE) -> NE | SJ20: 0.6823489002 | SK20: =VLOOKUP(SH20,'EMO and PHY YR'!$D$2:$K$57,8,FALSE) -> LR | SM20: 0 | SO20: 1 | SP20: 0 | SQ20: 0 | SR20: 0 | SS20: 0 | ST20: 0 | SW20: 0 | SX20: 0 | SY20: 0 | SZ20: 0 | TA20: 1 | TB20: 0 | TF20: 1 | TG20: 0 | TH20: 0 | TI20: 0 | TJ20: 0 | TK20: 0 | TL20: 0 | TM20: 0 | TN20: 0 | TO20: 0 | TP20: 1 | TQ20: 0 | TR20: 2 | TS20: 0 | TT20: 2
A21: 2 | B21: =VLOOKUP($B$7+(A21-1),'Physical Data Set'!$A:$B,2,FALSE) -> 2025-03-10T10:34:14.374 | C21: 11.25 | D21: I | E21: G | F21: 224.53125 | G21: CO3 | H21: R | I21: 247.498775 | J21: DC | K21: Y | L21: 147.0793269 | M21: C | N21: R | O21: 129.807693 | P21: CO2 | Q21: O | R21: 287.492488 | S21: OI | T21: Y | U21: 29.6394231 | V21: O | W21: G | CL21: 0 | DF21: =COUNTIF(CN21:DD21,">0")/2 -> 0 | DW21: 3 | DX21: 5 | DY21: 3 | DZ21: 1 | ET21: 0 | FN21: 0 | GH21: 0 | GJ21: =ABS(F21-I21) -> 22.967525 | GK21: =ABS(F21-L21) -> 77.45192306 | GL21: =ABS(F21-O21) -> 94.72355695 | GM21: =ABS(F21-R21) -> 62.96123798 | GN21: =ABS(F21-U21) -> 194.8918269 | GO21: =ABS(I21-L21) -> 100.4194481 | GP21: =ABS(I21-O21) -> 117.691082 | GQ21: =ABS(I21-R21) -> 39.99371298 | GR21: =ABS(I21-U21) -> 217.8593519 | GS21: =ABS(L21-O21) -> 17.27163389 | GT21: =ABS(L21-R21) -> 140.413161 | GU21: =ABS(L21-U21) -> 117.4399038 | GV21: =ABS(O21-R21) -> 157.6847949 | GW21: =ABS(O21-U21) -> 100.16827 | GX21: =ABS(R21-U21) -> 257.8530649 | HA21: =VLOOKUP(B21,'Physical Data Set'!B:Q,9) -> 5-5 | HB21: =VLOOKUP(HA21,'EMO and PHY YR'!$D$2:$K$57,8,FALSE) -> LR | HC21: =IF(HB21="LR",(VLOOKUP(HE21,Calculations!$N$51:$P$98,3,TRUE)),(VLOOKUP(HE21,Calculations!$N$51:$S$98,6,TRUE))) -> 8-7 | HD21: =VLOOKUP(HC21,'EMO and PHY YR'!$D$2:$K$57,8,FALSE) -> LR | HE21: 0.02083343333 | HF21: 0 | HG21: =VLOOKUP(B21,$HH$11:$HH$13,1,TRUE) -> 2025-03-07T11:55:08.571 | HH21: =(B21-HG21)/VLOOKUP(HG21,$HH$11:$HJ$13,2) -> 0.463141025 | HI21: =VLOOKUP(B21,'Emotional Data Set'!$B$4:$R$2740,9,TRUE) -> LR | HJ21: =VLOOKUP(B21,'Emotional Data Set'!$B$4:$P$2740,13,TRUE) -> 3-5 | HK21: =VLOOKUP(B21,'Emotional Data Set'!$B$4:$R$2740,17,TRUE) -> LR | HL21: 0.2307691979 | HM21: =IF(AND(SK21="RL",VLOOKUP(SH21,'Macro Phase'!$B$3:$N$58,13,FALSE)=0),VLOOKUP(SH21,'Macro Phase'!$B$3:$N$58,13,FALSE)-(30*SJ21)/24/60+1,IF(SK21="LR",VLOOKUP(SH21,'Macro Phase'!$B$3:$N$58,12,FALSE)+(30*SJ21)/24/60,VLOOKUP(SH21,'Macro Phase'!$B$3:$N$58,13,FALSE)-(30*SJ21)/24/60)) -> 0.4725560897 | HN21: =IF(HB21="LR",(VLOOKUP(HA21,'Macro Phase'!$B$3:$N$58,12,FALSE)+(30*HE21)/24/60),IF((VLOOKUP(HA21,'Macro Phase'!$B$3:$N$58,13,FALSE))-(30*HE21)/24/60<0,1+(VLOOKUP(HA21,'Macro Phase'!$B$3:$N$58,13,FALSE))-(30*HE21)/24/60,(VLOOKUP(HA21,'Macro Phase'!$B$3:$N$58,13,FALSE))-(30*HE21)/24/60)) -> 0.9587673632 | HO21: D | HP21: G | HQ21: =IF(AND(HD21="RL",VLOOKUP(HC21,'Macro Phase'!$B$3:$N$58,13,FALSE)=0),VLOOKUP(HC21,'Macro Phase'!$B$3:$N$58,13,FALSE)-$HA$12*HF21+1,IF(HD21="LR",VLOOKUP(HC21,'Macro Phase'!$B$3:$N$58,12,FALSE)+$HA$12*HF21,VLOOKUP(HC21,'Macro Phase'!$B$3:$N$58,13,FALSE)-$HA$12*HF21)) -> 06:30:00 | HR21: I | HS21: O | HT21: =IF(HI21="LR",(VLOOKUP(RS21,'Macro Phase'!$B$3:$N$58,12,FALSE)+(30*RU21)/24/60),IF(RS21="2-8",(VLOOKUP(BJ44,'Macro Phase'!$B$3:$N$58,13,FALSE))-(30*RU21)/24/60+1,(VLOOKUP(RS21,'Macro Phase'!$B$3:$N$58,13,FALSE))-(30*RU21)/24/60)) -> 0.363815438 | HU21: CO2 | HV21: O | HW21: =IF(AND(HK21="RL",VLOOKUP(HJ21,'Macro Phase'!$B$3:$N$58,13,FALSE)=0),(VLOOKUP(HJ21,'Macro Phase'!$B$3:$N$58,13,FALSE)-((30*HL21)/24/60))+1,IF(HK21="LR",VLOOKUP(HJ21,'Macro Phase'!$B$3:$N$58,12,FALSE)+((30*HL21)/24/60),VLOOKUP(HJ21,'Macro Phase'!$B$3:$N$58,13,FALSE)-((30*HL21)/24/60))) -> 0.713141025 | HX21: D | HY21: Y | HZ21: =IF(SG21="LR",(VLOOKUP(RZ21,'Macro Phase'!$B$3:$N$58,12,FALSE)+(30*SF21)/24/60),IF(CN44="2-8",(VLOOKUP(RZ21,'Macro Phase'!$B$3:$N$58,13,FALSE))-(30*SF21)/24/60+1,VLOOKUP(RZ21,'Macro Phase'!$B$3:$N$58,13,FALSE))-(30*SF21)/24/60) -> 0.5671365852 | IA21: OI | IB21: R | IC21: =IF(AND(SK21="RL",VLOOKUP(SH21,'Macro Phase'!$B$3:$N$58,13,FALSE)=0),VLOOKUP(SH21,'Macro Phase'!$B$3:$N$58,13,FALSE)-(30*SJ21)/24/60+1,IF(SK21="LR",VLOOKUP(SH21,'Macro Phase'!$B$3:$N$58,12,FALSE)+(30*SJ21)/24/60,VLOOKUP(SH21,'Macro Phase'!$B$3:$N$58,13,FALSE)-(30*SJ21)/24/60)) -> 0.4725560897 | ID21: D | IE21: R | JZ21: 0 | KT21: 0 | LN21: 0 | MH21: 0 | NB21: 0 | NV21: 0 | OP21: 0 | OQ21: =VLOOKUP(B21,'Physical Data Set'!$B$4:$K$35043,10,TRUE) -> SW | OR21: 0.02083333333 | OS21: =VLOOKUP(B21+1/1440,'Physical Data Set'!$B$4:$S$35043,18,TRUE) -> WSW | OT21: 0.244469246 | OU21: 1e-05 | OV21: =VLOOKUP(OS21,Calculations!$E$84:$G$99,2,FALSE)-22.5*OU21 -> 247.499775 | OW21: 0 | OX21: 0 | OY21: 0 | OZ21: 0 | PA21: 0 | PB21: 0 | PC21: 0 | PD21: 0 | PE21: 0 | PF21: 0 | PG21: 0 | PH21: 0 | PI21: 0.6879340299 | PJ21: 0.5949519252 | PK21: 0.2456263382 | PL21: 0.391630778 | PM21: 0.4862112735 | PN21: 0.09298210469 | PO21: 0.4423076916 | PP21: 0.2963032519 | PQ21: 0.2017227564 | PR21: 0.3493255869 | PS21: 0.2033211472 | PT21: 0.1087406517 | PU21: 0.1460044398 | PV21: 0.2405849352 | PW21: 0.09458049548 | PZ21: R | QA21: LR | QB21: Y | QC21: LR | QD21: R | QE21: LR | QF21: O | QG21: LR | QH21: Y | QI21: =VLOOKUP(VLOOKUP(B21,$U$3:$W$4,3),'EMO and PHY YR'!$D$2:$K$57,8,FALSE) -> LR | QJ21: G | QK21: =VLOOKUP(SH21,'EMO and PHY YR'!$D$2:$K$57,8,FALSE) -> LR | QL21: G | QM21: O | QN21: O | QO21: Y | QP21: R | QQ21: R | QS21: 3 | QT21: 1 | QU21: 3 | QV21: 4 | QW21: 1 | QX21: 2 | QY21: 2 | QZ21: 4 | RA21: 4 | RB21: 1 | RC21: 3 | RD21: 3 | RF21: 3 | RG21: 2 | RH21: 4 | RI21: 3 | RJ21: 12 | RL21: 10:34:14 | RN21: 0 | RR21: 0 | RS21: =VLOOKUP(B21,'Emotional Data Set'!$B$4:$G$2740,5,TRUE) -> 8-3 | RT21: 2025-03-07T11:55:08.571 | RU21: 0.463141025 | RV21: =VLOOKUP(B21+1/1440,'Emotional Data Set'!$B$4:$G$2740,6,TRUE) -> SSE | RW21: =VLOOKUP(B21,'Emotional Data Set'!$B$4:$P$2740,14,TRUE) -> SE | RX21: 0.2307691979 | RY21: 45647.22222 | RZ21: 2-5 | SA21: =VLOOKUP(RZ21,'EMO and PHY YR'!$D$2:$E$57,2,FALSE) -> WNW | SB21: =IF(B21>'Mind Data Set'!$BC$11,1,IF(B21<='Mind Data Set'!$BC$10,0,(B21-'Mind Data Set'!$BC$10)/'Mind Data Set'!$BD$10)) -> 0.8902243589 | SC21: =IF(B21>'Mind Data Set'!$BC$12,1,IF(B21<='Mind Data Set'!$BC$11,0,(B21-'Mind Data Set'!$BC$11)/'Mind Data Set'!$BD$11)) -> 0 | SD21: =IF(B21>'Mind Data Set'!$BC$13,1,IF(B21<='Mind Data Set'!$BC$12,0,(B21-'Mind Data Set'!$BC$12)/'Mind Data Set'!$BD$12)) -> 0 | SE21: =IF(B21>'Mind Data Set'!$BC$14,1,IF(B21<='Mind Data Set'!$BC$13,0,(B21-'Mind Data Set'!$BC$13)/'Mind Data Set'!$BD$13)) -> 0 | SF21: 0.2225560897 | SG21: =VLOOKUP(RZ21,'EMO and PHY YR'!$D$2:$K$57,8,FALSE) -> LR | SH21: =IF(SG21="LR",VLOOKUP(VLOOKUP(B21,'Mind Data Set'!$B$4:$C$99,2),Calculations!$M$51:$T$98,4,FALSE),VLOOKUP(VLOOKUP(B21,'Mind Data Set'!$B$4:$C$99,2),Calculations!$M$51:$T$98,7,FALSE)) -> 1-5 | SI21: =VLOOKUP(SH21,'EMO and PHY YR'!$D$2:$E$57,2,FALSE) -> NE | SJ21: 0.6826923068 | SK21: =VLOOKUP(SH21,'EMO and PHY YR'!$D$2:$K$57,8,FALSE) -> LR | SM21: 0 | SO21: 1 | SP21: 1 | SQ21: 0 | SR21: 0 | SS21: 0 | ST21: 0 | SW21: 0 | SX21: 0 | SY21: 0 | SZ21: 0 | TA21: 1 | TB21: 0 | TF21: 1 | TG21: 1 | TH21: 0 | TI21: 0 | TJ21: 0 | TK21: 0 | TL21: 0 | TM21: 0 | TN21: 0 | TO21: 0 | TP21: 1 | TQ21: 0 | TR21: 3 | TS21: 0 | TT21: 3
B22: =(B21+B23)/2 -> 2025-03-10T10:37:54.397 | F22: 224.4140625 | G22: CO3 | H22: R | I22: 241.874 | J22: C | K22: Y | L22: 147.0703125 | M22: C | N22: R | O22: 129.3750007 | P22: CO2 | Q22: O | R22: 287.492327 | S22: OI | T22: Y | U22: 29.63169645 | V22: O | W22: G | DW22: 3 | DX22: 6 | DY22: 3 | HA22: =VLOOKUP(B22,'Physical Data Set'!B:Q,9) -> 5-5 | HB22: =VLOOKUP(HA22,'EMO and PHY YR'!$D$2:$K$57,8,FALSE) -> LR | HC22: =IF(HB22="LR",(VLOOKUP(HE22,Calculations!$N$51:$P$98,3,TRUE)),(VLOOKUP(HE22,Calculations!$N$51:$S$98,6,TRUE))) -> 8-7 | HD22: =VLOOKUP(HC22,'EMO and PHY YR'!$D$2:$K$57,8,FALSE) -> LR | HE22: 0.02604176667 | HF22: 1 | HG22: 2025-03-07T11:55:08.571 | HH22: 0.463541666 | HI22: =VLOOKUP(B22,'Emotional Data Set'!$B$4:$R$2740,9,TRUE) -> LR | HJ22: =VLOOKUP(B22,'Emotional Data Set'!$B$4:$P$2740,13,TRUE) -> 3-5 | HK22: =VLOOKUP(B22,'Emotional Data Set'!$B$4:$R$2740,17,TRUE) -> LR | HL22: 0.2499999671 | HM22: =IF(AND(SK22="RL",VLOOKUP(SH22,'Macro Phase'!$B$3:$N$58,13,FALSE)=0),VLOOKUP(SH22,'Macro Phase'!$B$3:$N$58,13,FALSE)-(30*SJ22)/24/60+1,IF(SK22="LR",VLOOKUP(SH22,'Macro Phase'!$B$3:$N$58,12,FALSE)+(30*SJ22)/24/60,VLOOKUP(SH22,'Macro Phase'!$B$3:$N$58,13,FALSE)-(30*SJ22)/24/60)) -> 0.472563244 | HN22: =IF(HB22="LR",(VLOOKUP(HA22,'Macro Phase'!$B$3:$N$58,12,FALSE)+(30*HE22)/24/60),IF((VLOOKUP(HA22,'Macro Phase'!$B$3:$N$58,13,FALSE))-(30*HE22)/24/60<0,1+(VLOOKUP(HA22,'Macro Phase'!$B$3:$N$58,13,FALSE))-(30*HE22)/24/60,(VLOOKUP(HA22,'Macro Phase'!$B$3:$N$58,13,FALSE))-(30*HE22)/24/60)) -> 0.9588758701 | HO22: D | HP22: G | HQ22: =IF(AND(HD22="RL",VLOOKUP(HC22,'Macro Phase'!$B$3:$N$58,13,FALSE)=0),VLOOKUP(HC22,'Macro Phase'!$B$3:$N$58,13,FALSE)-$HA$12*HF22+1,IF(HD22="LR",VLOOKUP(HC22,'Macro Phase'!$B$3:$N$58,12,FALSE)+$HA$12*HF22,VLOOKUP(HC22,'Macro Phase'!$B$3:$N$58,13,FALSE)-$HA$12*HF22)) -> 06:37:30 | HR22: I | HS22: O | HT22: =IF(HI22="LR",(VLOOKUP(RS22,'Macro Phase'!$B$3:$N$58,12,FALSE)+(30*RU22)/24/60),IF(RS22="2-8",(VLOOKUP(BJ45,'Macro Phase'!$B$3:$N$58,13,FALSE))-(30*RU22)/24/60+1,(VLOOKUP(RS22,'Macro Phase'!$B$3:$N$58,13,FALSE))-(30*RU22)/24/60)) -> 0.3638237847 | HU22: CO2 | HV22: O | HW22: =IF(AND(HK22="RL",VLOOKUP(HJ22,'Macro Phase'!$B$3:$N$58,13,FALSE)=0),(VLOOKUP(HJ22,'Macro Phase'!$B$3:$N$58,13,FALSE)-((30*HL22)/24/60))+1,IF(HK22="LR",VLOOKUP(HJ22,'Macro Phase'!$B$3:$N$58,12,FALSE)+((30*HL22)/24/60),VLOOKUP(HJ22,'Macro Phase'!$B$3:$N$58,13,FALSE)-((30*HL22)/24/60))) -> 0.713541666 | HX22: D | HY22: Y | HZ22: =IF(SG22="LR",(VLOOKUP(RZ22,'Macro Phase'!$B$3:$N$58,12,FALSE)+(30*SF22)/24/60),IF(CN45="2-8",(VLOOKUP(RZ22,'Macro Phase'!$B$3:$N$58,13,FALSE))-(30*SF22)/24/60+1,VLOOKUP(RZ22,'Macro Phase'!$B$3:$N$58,13,FALSE))-(30*SF22)/24/60) -> 0.5671367343 | IA22: OI | IB22: R | IC22: =IF(AND(SK22="RL",VLOOKUP(SH22,'Macro Phase'!$B$3:$N$58,13,FALSE)=0),VLOOKUP(SH22,'Macro Phase'!$B$3:$N$58,13,FALSE)-(30*SJ22)/24/60+1,IF(SK22="LR",VLOOKUP(SH22,'Macro Phase'!$B$3:$N$58,12,FALSE)+(30*SJ22)/24/60,VLOOKUP(SH22,'Macro Phase'!$B$3:$N$58,13,FALSE)-(30*SJ22)/24/60)) -> 0.472563244 | ID22: D | IE22: R | JZ22: 0 | KT22: 0 | LN22: 0 | MH22: 0 | NB22: 0 | NV22: 0 | OP22: 0 | OQ22: =VLOOKUP(B22,'Physical Data Set'!$B$4:$K$35043,10,TRUE) -> SW | OR22: 0.02604166667 | OS22: =VLOOKUP(B22+1/1440,'Physical Data Set'!$B$4:$S$35043,18,TRUE) -> WSW | OT22: 0.3055865574 | OU22: 0.25 | OV22: =VLOOKUP(OS22,Calculations!$E$84:$G$99,2,FALSE)-22.5*OU22 -> 241.875 | OW22: 0 | OX22: 0 | OY22: 0 | OZ22: 0 | PA22: 0 | PB22: 0 | PC22: 0 | PD22: 0 | PE22: 0 | PF22: 0 | PG22: 0 | PH22: 0 | PZ22: R | QA22: LR | QB22: Y | QC22: LR | QD22: R | QE22: LR | QF22: O | QG22: LR | QH22: Y | QI22: =VLOOKUP(VLOOKUP(B22,$U$3:$W$4,3),'EMO and PHY YR'!$D$2:$K$57,8,FALSE) -> LR | QJ22: G | QK22: =VLOOKUP(SH22,'EMO and PHY YR'!$D$2:$K$57,8,FALSE) -> LR | QL22: G | QM22: O | QN22: O | QO22: Y | QP22: R | QQ22: R | QS22: 3 | QT22: 1 | QU22: 3 | QV22: 4 | QW22: 1 | QX22: 2 | QY22: 2 | QZ22: 4 | RA22: 4 | RB22: 1 | RC22: 3 | RD22: 3 | RF22: 3 | RG22: 2 | RH22: 4 | RI22: 3 | RJ22: 12 | RL22: 10:37:54 | RN22: 0 | RR22: 0 | RS22: =VLOOKUP(B22,'Emotional Data Set'!$B$4:$G$2740,5,TRUE) -> 8-3 | RT22: 2025-03-07T11:55:08.571 | RU22: 0.463541666 | RV22: =VLOOKUP(B22+1/1440,'Emotional Data Set'!$B$4:$G$2740,6,TRUE) -> SSE | RW22: =VLOOKUP(B22,'Emotional Data Set'!$B$4:$P$2740,14,TRUE) -> SE | RX22: 0.2499999671 | RY22: 45647.22222 | RZ22: 2-5 | SA22: =VLOOKUP(RZ22,'EMO and PHY YR'!$D$2:$E$57,2,FALSE) -> WNW | SB22: =IF(B22>'Mind Data Set'!$BC$11,1,IF(B22<='Mind Data Set'!$BC$10,0,(B22-'Mind Data Set'!$BC$10)/'Mind Data Set'!$BD$10)) -> 0.8902529761 | SC22: =IF(B22>'Mind Data Set'!$BC$12,1,IF(B22<='Mind Data Set'!$BC$11,0,(B22-'Mind Data Set'!$BC$11)/'Mind Data Set'!$BD$11)) -> 0 | SD22: =IF(B22>'Mind Data Set'!$BC$13,1,IF(B22<='Mind Data Set'!$BC$12,0,(B22-'Mind Data Set'!$BC$12)/'Mind Data Set'!$BD$12)) -> 0 | SE22: =IF(B22>'Mind Data Set'!$BC$14,1,IF(B22<='Mind Data Set'!$BC$13,0,(B22-'Mind Data Set'!$BC$13)/'Mind Data Set'!$BD$13)) -> 0 | SF22: 0.222563244 | SG22: =VLOOKUP(RZ22,'EMO and PHY YR'!$D$2:$K$57,8,FALSE) -> LR | SH22: =IF(SG22="LR",VLOOKUP(VLOOKUP(B22,'Mind Data Set'!$B$4:$C$99,2),Calculations!$M$51:$T$98,4,FALSE),VLOOKUP(VLOOKUP(B22,'Mind Data Set'!$B$4:$C$99,2),Calculations!$M$51:$T$98,7,FALSE)) -> 1-5 | SI22: =VLOOKUP(SH22,'EMO and PHY YR'!$D$2:$E$57,2,FALSE) -> NE | SJ22: 0.6830357134 | SK22: =VLOOKUP(SH22,'EMO and PHY YR'!$D$2:$K$57,8,FALSE) -> LR | SM22: 0 | SO22: 1 | SP22: 0 | SQ22: 0 | SR22: 0 | SS22: 0 | ST22: 0 | SW22: 0 | SX22: 0 | SY22: 0 | SZ22: 0 | TA22: 1 | TB22: 0 | TF22: 1 | TG22: 0 | TH22: 0 | TI22: 0 | TJ22: 0 | TK22: 0 | TL22: 0 | TM22: 0 | TN22: 0 | TO22: 0 | TP22: 1 | TQ22: 0 | TR22: 2 | TS22: 0 | TT22: 2
B23: =(B21+B25)/2 -> 2025-03-10T10:41:34.419 | C23: 16.875 | D23: OI | E23: G | F23: 224.296875 | G23: CO3 | H23: R | I23: 236.249 | J23: C | K23: Y | L23: 147.0612981 | M23: C | N23: R | O23: 128.9423084 | P23: O | Q23: O | R23: 287.492166 | S23: OI | T23: Y | U23: 29.6239698 | V23: O | W23: G | CL23: 0 | DF23: =COUNTIF(CN23:DD23,">0")/2 -> 0 | DW23: 3 | DX23: 7 | DY23: 3 | DZ23: 1 | ET23: 0 | FN23: 0 | GH23: 0 | HA23: =VLOOKUP(B23,'Physical Data Set'!B:Q,9) -> 5-5 | HB23: =VLOOKUP(HA23,'EMO and PHY YR'!$D$2:$K$57,8,FALSE) -> LR | HC23: =IF(HB23="LR",(VLOOKUP(HE23,Calculations!$N$51:$P$98,3,TRUE)),(VLOOKUP(HE23,Calculations!$N$51:$S$98,6,TRUE))) -> 8-7 | HD23: =VLOOKUP(HC23,'EMO and PHY YR'!$D$2:$K$57,8,FALSE) -> LR | HE23: 0.0312501 | HF23: 2 | HG23: 2025-03-07T11:55:08.571 | HH23: 0.463942307 | HI23: =VLOOKUP(B23,'Emotional Data Set'!$B$4:$R$2740,9,TRUE) -> LR | HJ23: =VLOOKUP(B23,'Emotional Data Set'!$B$4:$P$2740,13,TRUE) -> 3-5 | HK23: =VLOOKUP(B23,'Emotional Data Set'!$B$4:$R$2740,17,TRUE) -> LR | HL23: 0.2692307364 | HM23: =IF(AND(SK23="RL",VLOOKUP(SH23,'Macro Phase'!$B$3:$N$58,13,FALSE)=0),VLOOKUP(SH23,'Macro Phase'!$B$3:$N$58,13,FALSE)-(30*SJ23)/24/60+1,IF(SK23="LR",VLOOKUP(SH23,'Macro Phase'!$B$3:$N$58,12,FALSE)+(30*SJ23)/24/60,VLOOKUP(SH23,'Macro Phase'!$B$3:$N$58,13,FALSE)-(30*SJ23)/24/60)) -> 0.4725703983 | HN23: =IF(HB23="LR",(VLOOKUP(HA23,'Macro Phase'!$B$3:$N$58,12,FALSE)+(30*HE23)/24/60),IF((VLOOKUP(HA23,'Macro Phase'!$B$3:$N$58,13,FALSE))-(30*HE23)/24/60<0,1+(VLOOKUP(HA23,'Macro Phase'!$B$3:$N$58,13,FALSE))-(30*HE23)/24/60,(VLOOKUP(HA23,'Macro Phase'!$B$3:$N$58,13,FALSE))-(30*HE23)/24/60)) -> 0.9589843771 | HO23: D | HP23: G | HQ23: =IF(AND(HD23="RL",VLOOKUP(HC23,'Macro Phase'!$B$3:$N$58,13,FALSE)=0),VLOOKUP(HC23,'Macro Phase'!$B$3:$N$58,13,FALSE)-$HA$12*HF23+1,IF(HD23="LR",VLOOKUP(HC23,'Macro Phase'!$B$3:$N$58,12,FALSE)+$HA$12*HF23,VLOOKUP(HC23,'Macro Phase'!$B$3:$N$58,13,FALSE)-$HA$12*HF23)) -> 06:45:00 | HR23: I | HS23: O | HT23: =IF(HI23="LR",(VLOOKUP(RS23,'Macro Phase'!$B$3:$N$58,12,FALSE)+(30*RU23)/24/60),IF(RS23="2-8",(VLOOKUP(BJ46,'Macro Phase'!$B$3:$N$58,13,FALSE))-(30*RU23)/24/60+1,(VLOOKUP(RS23,'Macro Phase'!$B$3:$N$58,13,FALSE))-(30*RU23)/24/60)) -> 0.3638321314 | HU23: CO2 | HV23: O | HW23: =IF(AND(HK23="RL",VLOOKUP(HJ23,'Macro Phase'!$B$3:$N$58,13,FALSE)=0),(VLOOKUP(HJ23,'Macro Phase'!$B$3:$N$58,13,FALSE)-((30*HL23)/24/60))+1,IF(HK23="LR",VLOOKUP(HJ23,'Macro Phase'!$B$3:$N$58,12,FALSE)+((30*HL23)/24/60),VLOOKUP(HJ23,'Macro Phase'!$B$3:$N$58,13,FALSE)-((30*HL23)/24/60))) -> 0.713942307 | HX23: D | HY23: Y | HZ23: =IF(SG23="LR",(VLOOKUP(RZ23,'Macro Phase'!$B$3:$N$58,12,FALSE)+(30*SF23)/24/60),IF(CN46="2-8",(VLOOKUP(RZ23,'Macro Phase'!$B$3:$N$58,13,FALSE))-(30*SF23)/24/60+1,VLOOKUP(RZ23,'Macro Phase'!$B$3:$N$58,13,FALSE))-(30*SF23)/24/60) -> 0.5671368833 | IA23: OI | IB23: R | IC23: =IF(AND(SK23="RL",VLOOKUP(SH23,'Macro Phase'!$B$3:$N$58,13,FALSE)=0),VLOOKUP(SH23,'Macro Phase'!$B$3:$N$58,13,FALSE)-(30*SJ23)/24/60+1,IF(SK23="LR",VLOOKUP(SH23,'Macro Phase'!$B$3:$N$58,12,FALSE)+(30*SJ23)/24/60,VLOOKUP(SH23,'Macro Phase'!$B$3:$N$58,13,FALSE)-(30*SJ23)/24/60)) -> 0.4725703983 | ID23: D | IE23: R | JZ23: 0 | KT23: 0 | LN23: 0 | MH23: 0 | NB23: 0 | NV23: 0 | OP23: 0 | OQ23: =VLOOKUP(B23,'Physical Data Set'!$B$4:$K$35043,10,TRUE) -> SW | OR23: 0.03125 | OS23: =VLOOKUP(B23+1/1440,'Physical Data Set'!$B$4:$S$35043,18,TRUE) -> WSW | OT23: 0.366703869 | OU23: 0.5 | OV23: =VLOOKUP(OS23,Calculations!$E$84:$G$99,2,FALSE)-22.5*OU23 -> 236.25 | OW23: 0 | OX23: 0 | OY23: 0 | OZ23: 0 | PA23: 0 | PB23: 0 | PC23: 0 | PD23: 0 | PE23: 0 | PF23: 0 | PG23: 0 | PH23: 0 | PZ23: R | QA23: LR | QB23: Y | QC23: LR | QD23: R | QE23: LR | QF23: O | QG23: LR | QH23: Y | QI23: =VLOOKUP(VLOOKUP(B23,$U$3:$W$4,3),'EMO and PHY YR'!$D$2:$K$57,8,FALSE) -> LR | QJ23: G | QK23: =VLOOKUP(SH23,'EMO and PHY YR'!$D$2:$K$57,8,FALSE) -> LR | QL23: G | QM23: O | QN23: O | QO23: Y | QP23: R | QQ23: R | QS23: 3 | QT23: 1 | QU23: 3 | QV23: 4 | QW23: 1 | QX23: 2 | QY23: 2 | QZ23: 4 | RA23: 4 | RB23: 1 | RC23: 3 | RD23: 3 | RF23: 3 | RG23: 2 | RH23: 4 | RI23: 3 | RJ23: 12 | RL23: 10:41:34 | RN23: 0 | RR23: 0 | RS23: =VLOOKUP(B23,'Emotional Data Set'!$B$4:$G$2740,5,TRUE) -> 8-3 | RT23: 2025-03-07T11:55:08.571 | RU23: 0.463942307 | RV23: =VLOOKUP(B23+1/1440,'Emotional Data Set'!$B$4:$G$2740,6,TRUE) -> SSE | RW23: =VLOOKUP(B23,'Emotional Data Set'!$B$4:$P$2740,14,TRUE) -> SE | RX23: 0.2692307364 | RY23: 45647.22222 | RZ23: 2-5 | SA23: =VLOOKUP(RZ23,'EMO and PHY YR'!$D$2:$E$57,2,FALSE) -> WNW | SB23: =IF(B23>'Mind Data Set'!$BC$11,1,IF(B23<='Mind Data Set'!$BC$10,0,(B23-'Mind Data Set'!$BC$10)/'Mind Data Set'!$BD$10)) -> 0.8902815933 | SC23: =IF(B23>'Mind Data Set'!$BC$12,1,IF(B23<='Mind Data Set'!$BC$11,0,(B23-'Mind Data Set'!$BC$11)/'Mind Data Set'!$BD$11)) -> 0 | SD23: =IF(B23>'Mind Data Set'!$BC$13,1,IF(B23<='Mind Data Set'!$BC$12,0,(B23-'Mind Data Set'!$BC$12)/'Mind Data Set'!$BD$12)) -> 0 | SE23: =IF(B23>'Mind Data Set'!$BC$14,1,IF(B23<='Mind Data Set'!$BC$13,0,(B23-'Mind Data Set'!$BC$13)/'Mind Data Set'!$BD$13)) -> 0 | SF23: 0.2225703983 | SG23: =VLOOKUP(RZ23,'EMO and PHY YR'!$D$2:$K$57,8,FALSE) -> LR | SH23: =IF(SG23="LR",VLOOKUP(VLOOKUP(B23,'Mind Data Set'!$B$4:$C$99,2),Calculations!$M$51:$T$98,4,FALSE),VLOOKUP(VLOOKUP(B23,'Mind Data Set'!$B$4:$C$99,2),Calculations!$M$51:$T$98,7,FALSE)) -> 1-5 | SI23: =VLOOKUP(SH23,'EMO and PHY YR'!$D$2:$E$57,2,FALSE) -> NE | SJ23: 0.68337912 | SK23: =VLOOKUP(SH23,'EMO and PHY YR'!$D$2:$K$57,8,FALSE) -> LR | SM23: 0 | SO23: 1 | SP23: 0 | SQ23: 0 | SR23: 0 | SS23: 0 | ST23: 0 | SW23: 0 | SX23: 0 | SY23: 0 | SZ23: 0 | TA23: 1 | TB23: 0 | TF23: 1 | TG23: 0 | TH23: 0 | TI23: 0 | TJ23: 0 | TK23: 0 | TL23: 0 | TM23: 0 | TN23: 0 | TO23: 0 | TP23: 1 | TQ23: 0 | TR23: 2 | TS23: 0 | TT23: 2
B24: =(B23+B25)/2 -> 2025-03-10T10:45:14.441 | F24: 224.1796875 | G24: CO3 | H24: R | I24: 230.624 | J24: CO3 | K24: Y | L24: 147.0522837 | M24: C | N24: R | O24: 128.5096161 | P24: O | Q24: O | R24: 287.4920051 | S24: OI | T24: Y | U24: 29.61624315 | V24: O | W24: G | Y24: 1.5 | Z24: 1 | AA24: 1.5 | DW24: 3 | DX24: 8 | DY24: 3 | HA24: =VLOOKUP(B24,'Physical Data Set'!B:Q,9) -> 5-5 | HB24: =VLOOKUP(HA24,'EMO and PHY YR'!$D$2:$K$57,8,FALSE) -> LR | HC24: =IF(HB24="LR",(VLOOKUP(HE24,Calculations!$N$51:$P$98,3,TRUE)),(VLOOKUP(HE24,Calculations!$N$51:$S$98,6,TRUE))) -> 8-7 | HD24: =VLOOKUP(HC24,'EMO and PHY YR'!$D$2:$K$57,8,FALSE) -> LR | HE24: 0.03645843333 | HF24: 3 | HG24: 2025-03-07T11:55:08.571 | HH24: 0.464342948 | HI24: =VLOOKUP(B24,'Emotional Data Set'!$B$4:$R$2740,9,TRUE) -> LR | HJ24: =VLOOKUP(B24,'Emotional Data Set'!$B$4:$P$2740,13,TRUE) -> 3-5 | HK24: =VLOOKUP(B24,'Emotional Data Set'!$B$4:$R$2740,17,TRUE) -> LR | HL24: 0.2884615056 | HM24: =IF(AND(SK24="RL",VLOOKUP(SH24,'Macro Phase'!$B$3:$N$58,13,FALSE)=0),VLOOKUP(SH24,'Macro Phase'!$B$3:$N$58,13,FALSE)-(30*SJ24)/24/60+1,IF(SK24="LR",VLOOKUP(SH24,'Macro Phase'!$B$3:$N$58,12,FALSE)+(30*SJ24)/24/60,VLOOKUP(SH24,'Macro Phase'!$B$3:$N$58,13,FALSE)-(30*SJ24)/24/60)) -> 0.4725775526 | HN24: =IF(HB24="LR",(VLOOKUP(HA24,'Macro Phase'!$B$3:$N$58,12,FALSE)+(30*HE24)/24/60),IF((VLOOKUP(HA24,'Macro Phase'!$B$3:$N$58,13,FALSE))-(30*HE24)/24/60<0,1+(VLOOKUP(HA24,'Macro Phase'!$B$3:$N$58,13,FALSE))-(30*HE24)/24/60,(VLOOKUP(HA24,'Macro Phase'!$B$3:$N$58,13,FALSE))-(30*HE24)/24/60)) -> 0.959092884 | HO24: D | HP24: G | HQ24: =IF(AND(HD24="RL",VLOOKUP(HC24,'Macro Phase'!$B$3:$N$58,13,FALSE)=0),VLOOKUP(HC24,'Macro Phase'!$B$3:$N$58,13,FALSE)-$HA$12*HF24+1,IF(HD24="LR",VLOOKUP(HC24,'Macro Phase'!$B$3:$N$58,12,FALSE)+$HA$12*HF24,VLOOKUP(HC24,'Macro Phase'!$B$3:$N$58,13,FALSE)-$HA$12*HF24)) -> 06:52:30 | HR24: I | HS24: O | HT24: =IF(HI24="LR",(VLOOKUP(RS24,'Macro Phase'!$B$3:$N$58,12,FALSE)+(30*RU24)/24/60),IF(RS24="2-8",(VLOOKUP(BJ47,'Macro Phase'!$B$3:$N$58,13,FALSE))-(30*RU24)/24/60+1,(VLOOKUP(RS24,'Macro Phase'!$B$3:$N$58,13,FALSE))-(30*RU24)/24/60)) -> 0.3638404781 | HU24: CO2 | HV24: O | HW24: =IF(AND(HK24="RL",VLOOKUP(HJ24,'Macro Phase'!$B$3:$N$58,13,FALSE)=0),(VLOOKUP(HJ24,'Macro Phase'!$B$3:$N$58,13,FALSE)-((30*HL24)/24/60))+1,IF(HK24="LR",VLOOKUP(HJ24,'Macro Phase'!$B$3:$N$58,12,FALSE)+((30*HL24)/24/60),VLOOKUP(HJ24,'Macro Phase'!$B$3:$N$58,13,FALSE)-((30*HL24)/24/60))) -> 0.714342948 | HX24: D | HY24: Y | HZ24: =IF(SG24="LR",(VLOOKUP(RZ24,'Macro Phase'!$B$3:$N$58,12,FALSE)+(30*SF24)/24/60),IF(CN47="2-8",(VLOOKUP(RZ24,'Macro Phase'!$B$3:$N$58,13,FALSE))-(30*SF24)/24/60+1,VLOOKUP(RZ24,'Macro Phase'!$B$3:$N$58,13,FALSE))-(30*SF24)/24/60) -> 0.5671370323 | IA24: OI | IB24: R | IC24: =IF(AND(SK24="RL",VLOOKUP(SH24,'Macro Phase'!$B$3:$N$58,13,FALSE)=0),VLOOKUP(SH24,'Macro Phase'!$B$3:$N$58,13,FALSE)-(30*SJ24)/24/60+1,IF(SK24="LR",VLOOKUP(SH24,'Macro Phase'!$B$3:$N$58,12,FALSE)+(30*SJ24)/24/60,VLOOKUP(SH24,'Macro Phase'!$B$3:$N$58,13,FALSE)-(30*SJ24)/24/60)) -> 0.4725775526 | ID24: D | IE24: R | JZ24: 0 | KT24: 0 | LN24: 0 | MH24: 0 | NB24: 0 | NV24: 0 | OP24: 0 | OQ24: =VLOOKUP(B24,'Physical Data Set'!$B$4:$K$35043,10,TRUE) -> SW | OR24: 0.03645833333 | OS24: =VLOOKUP(B24+1/1440,'Physical Data Set'!$B$4:$S$35043,18,TRUE) -> WSW | OT24: 0.4278211806 | OU24: 0.75 | OV24: =VLOOKUP(OS24,Calculations!$E$84:$G$99,2,FALSE)-22.5*OU24 -> 230.625 | OW24: 1 | OX24: 1 | OY24: 0 | OZ24: 0 | PA24: 0 | PB24: 0 | PC24: 0 | PD24: 0 | PE24: 0 | PF24: 0 | PG24: 0 | PH24: 0 | PZ24: R | QA24: LR | QB24: Y | QC24: LR | QD24: R | QE24: LR | QF24: O | QG24: LR | QH24: Y | QI24: =VLOOKUP(VLOOKUP(B24,$U$3:$W$4,3),'EMO and PHY YR'!$D$2:$K$57,8,FALSE) -> LR | QJ24: G | QK24: =VLOOKUP(SH24,'EMO and PHY YR'!$D$2:$K$57,8,FALSE) -> LR | QL24: G | QM24: O | QN24: O | QO24: Y | QP24: R | QQ24: R | QS24: 3 | QT24: 1 | QU24: 3 | QV24: 4 | QW24: 1 | QX24: 2 | QY24: 2 | QZ24: 4 | RA24: 4 | RB24: 1 | RC24: 3 | RD24: 3 | RF24: 3 | RG24: 2 | RH24: 4 | RI24: 3 | RJ24: 12 | RL24: 10:45:14 | RN24: 0 | RR24: 0 | RS24: =VLOOKUP(B24,'Emotional Data Set'!$B$4:$G$2740,5,TRUE) -> 8-3 | RT24: 2025-03-07T11:55:08.571 | RU24: 0.464342948 | RV24: =VLOOKUP(B24+1/1440,'Emotional Data Set'!$B$4:$G$2740,6,TRUE) -> SSE | RW24: =VLOOKUP(B24,'Emotional Data Set'!$B$4:$P$2740,14,TRUE) -> SE | RX24: 0.2884615056 | RY24: 45647.22222 | RZ24: 2-5 | SA24: =VLOOKUP(RZ24,'EMO and PHY YR'!$D$2:$E$57,2,FALSE) -> WNW | SB24: =IF(B24>'Mind Data Set'!$BC$11,1,IF(B24<='Mind Data Set'!$BC$10,0,(B24-'Mind Data Set'!$BC$10)/'Mind Data Set'!$BD$10)) -> 0.8903102106 | SC24: =IF(B24>'Mind Data Set'!$BC$12,1,IF(B24<='Mind Data Set'!$BC$11,0,(B24-'Mind Data Set'!$BC$11)/'Mind Data Set'!$BD$11)) -> 0 | SD24: =IF(B24>'Mind Data Set'!$BC$13,1,IF(B24<='Mind Data Set'!$BC$12,0,(B24-'Mind Data Set'!$BC$12)/'Mind Data Set'!$BD$12)) -> 0 | SE24: =IF(B24>'Mind Data Set'!$BC$14,1,IF(B24<='Mind Data Set'!$BC$13,0,(B24-'Mind Data Set'!$BC$13)/'Mind Data Set'!$BD$13)) -> 0 | SF24: 0.2225775526 | SG24: =VLOOKUP(RZ24,'EMO and PHY YR'!$D$2:$K$57,8,FALSE) -> LR | SH24: =IF(SG24="LR",VLOOKUP(VLOOKUP(B24,'Mind Data Set'!$B$4:$C$99,2),Calculations!$M$51:$T$98,4,FALSE),VLOOKUP(VLOOKUP(B24,'Mind Data Set'!$B$4:$C$99,2),Calculations!$M$51:$T$98,7,FALSE)) -> 1-5 | SI24: =VLOOKUP(SH24,'EMO and PHY YR'!$D$2:$E$57,2,FALSE) -> NE | SJ24: 0.6837225266 | SK24: =VLOOKUP(SH24,'EMO and PHY YR'!$D$2:$K$57,8,FALSE) -> LR | SM24: 0 | SO24: 1 | SP24: 0 | SQ24: 0 | SR24: 0 | SS24: 0 | ST24: 0 | SW24: 0 | SX24: 0 | SY24: 0 | SZ24: 0 | TA24: 1 | TB24: 0 | TF24: 1 | TG24: 0 | TH24: 0 | TI24: 0 | TJ24: 0 | TK24: 0 | TL24: 0 | TM24: 0 | TN24: 0 | TO24: 0 | TP24: 1 | TQ24: 0 | TR24: 2 | TS24: 0 | TT24: 2
A25: 3 | B25: =VLOOKUP($B$7+(A25-1),'Physical Data Set'!$A:$B,2,FALSE) -> 2025-03-10T10:48:54.464 | C25: 22.5 | D25: OI | E25: G | F25: 224.0625 | G25: CO3 | H25: R | I25: 224.998775 | J25: =VLOOKUP(I25,$C$17:$E$143,2,TRUE) -> CO3 | K25: R | L25: 147.0432692 | M25: C | N25: =VLOOKUP(L25,$C$17:$E$143,3,TRUE) -> R | O25: 128.0769238 | P25: O | Q25: O | R25: 287.4918441 | S25: OI | T25: Y | U25: 29.6085165 | V25: O | W25: G | Y25: 1.5 | Z25: 2 | AA25: 1.5 | CL25: 0 | DF25: =COUNTIF(CN25:DD25,">0")/2 -> 0 | DW25: 3 | DX25: 9 | DY25: 3 | DZ25: 1 | ET25: 0 | FN25: 0 | GH25: 0 | GJ25: =ABS(F25-I25) -> 0.936275 | GK25: =ABS(F25-L25) -> 77.01923075 | GL25: =ABS(F25-O25) -> 95.98557618 | GM25: =ABS(F25-R25) -> 63.42934409 | GN25: =ABS(F25-U25) -> 194.4539835 | GO25: =ABS(I25-L25) -> 77.95550575 | GP25: =ABS(I25-O25) -> 96.92185118 | GQ25: =ABS(I25-R25) -> 62.49306909 | GR25: =ABS(I25-U25) -> 195.3902585 | GS25: =ABS(L25-O25) -> 18.96634543 | GT25: =ABS(L25-R25) -> 140.4485748 | GU25: =ABS(L25-U25) -> 117.4347527 | GV25: =ABS(O25-R25) -> 159.4149203 | GW25: =ABS(O25-U25) -> 98.46840731 | GX25: =ABS(R25-U25) -> 257.8833276 | HA25: =VLOOKUP(B25,'Physical Data Set'!B:Q,9) -> 5-5 | HB25: =VLOOKUP(HA25,'EMO and PHY YR'!$D$2:$K$57,8,FALSE) -> LR | HC25: =IF(HB25="LR",(VLOOKUP(HE25,Calculations!$N$51:$P$98,3,TRUE)),(VLOOKUP(HE25,Calculations!$N$51:$S$98,6,TRUE))) -> 8-6 | HD25: =VLOOKUP(HC25,'EMO and PHY YR'!$D$2:$K$57,8,FALSE) -> RL | HE25: 0.04166676667 | HF25: 0 | HG25: 2025-03-07T11:55:08.571 | HH25: 0.4647435891 | HI25: =VLOOKUP(B25,'Emotional Data Set'!$B$4:$R$2740,9,TRUE) -> LR | HJ25: =VLOOKUP(B25,'Emotional Data Set'!$B$4:$P$2740,13,TRUE) -> 3-5 | HK25: =VLOOKUP(B25,'Emotional Data Set'!$B$4:$R$2740,17,TRUE) -> LR | HL25: 0.3076922748 | HM25: =IF(AND(SK25="RL",VLOOKUP(SH25,'Macro Phase'!$B$3:$N$58,13,FALSE)=0),VLOOKUP(SH25,'Macro Phase'!$B$3:$N$58,13,FALSE)-(30*SJ25)/24/60+1,IF(SK25="LR",VLOOKUP(SH25,'Macro Phase'!$B$3:$N$58,12,FALSE)+(30*SJ25)/24/60,VLOOKUP(SH25,'Macro Phase'!$B$3:$N$58,13,FALSE)-(30*SJ25)/24/60)) -> 0.4725847069 | HN25: =IF(HB25="LR",(VLOOKUP(HA25,'Macro Phase'!$B$3:$N$58,12,FALSE)+(30*HE25)/24/60),IF((VLOOKUP(HA25,'Macro Phase'!$B$3:$N$58,13,FALSE))-(30*HE25)/24/60<0,1+(VLOOKUP(HA25,'Macro Phase'!$B$3:$N$58,13,FALSE))-(30*HE25)/24/60,(VLOOKUP(HA25,'Macro Phase'!$B$3:$N$58,13,FALSE))-(30*HE25)/24/60)) -> 0.959201391 | HO25: D | HP25: G | HQ25: =IF(AND(HD25="RL",VLOOKUP(HC25,'Macro Phase'!$B$3:$N$58,13,FALSE)=0),VLOOKUP(HC25,'Macro Phase'!$B$3:$N$58,13,FALSE)-$HA$12*HF25+1,IF(HD25="LR",VLOOKUP(HC25,'Macro Phase'!$B$3:$N$58,12,FALSE)+$HA$12*HF25,VLOOKUP(HC25,'Macro Phase'!$B$3:$N$58,13,FALSE)-$HA$12*HF25)) -> 05:00:00 | HR25: D | HS25: O | HT25: =IF(HI25="LR",(VLOOKUP(RS25,'Macro Phase'!$B$3:$N$58,12,FALSE)+(30*RU25)/24/60),IF(RS25="2-8",(VLOOKUP(BJ48,'Macro Phase'!$B$3:$N$58,13,FALSE))-(30*RU25)/24/60+1,(VLOOKUP(RS25,'Macro Phase'!$B$3:$N$58,13,FALSE))-(30*RU25)/24/60)) -> 0.3638488248 | HU25: CO2 | HV25: O | HW25: =IF(AND(HK25="RL",VLOOKUP(HJ25,'Macro Phase'!$B$3:$N$58,13,FALSE)=0),(VLOOKUP(HJ25,'Macro Phase'!$B$3:$N$58,13,FALSE)-((30*HL25)/24/60))+1,IF(HK25="LR",VLOOKUP(HJ25,'Macro Phase'!$B$3:$N$58,12,FALSE)+((30*HL25)/24/60),VLOOKUP(HJ25,'Macro Phase'!$B$3:$N$58,13,FALSE)-((30*HL25)/24/60))) -> 0.7147435891 | HX25: D | HY25: Y | HZ25: =IF(SG25="LR",(VLOOKUP(RZ25,'Macro Phase'!$B$3:$N$58,12,FALSE)+(30*SF25)/24/60),IF(CN48="2-8",(VLOOKUP(RZ25,'Macro Phase'!$B$3:$N$58,13,FALSE))-(30*SF25)/24/60+1,VLOOKUP(RZ25,'Macro Phase'!$B$3:$N$58,13,FALSE))-(30*SF25)/24/60) -> 0.5671371814 | IA25: OI | IB25: R | IC25: =IF(AND(SK25="RL",VLOOKUP(SH25,'Macro Phase'!$B$3:$N$58,13,FALSE)=0),VLOOKUP(SH25,'Macro Phase'!$B$3:$N$58,13,FALSE)-(30*SJ25)/24/60+1,IF(SK25="LR",VLOOKUP(SH25,'Macro Phase'!$B$3:$N$58,12,FALSE)+(30*SJ25)/24/60,VLOOKUP(SH25,'Macro Phase'!$B$3:$N$58,13,FALSE)-(30*SJ25)/24/60)) -> 0.4725847069 | ID25: D | IE25: R | JZ25: 0 | KT25: 0 | LN25: 0 | MH25: 0 | NB25: 0 | NV25: 0 | OP25: 0 | OQ25: =VLOOKUP(B25,'Physical Data Set'!$B$4:$K$35043,10,TRUE) -> SW | OR25: 0.04166666667 | OS25: =VLOOKUP(B25+1/1440,'Physical Data Set'!$B$4:$S$35043,18,TRUE) -> SW | OT25: 0.488938492 | OU25: 1e-05 | OV25: =VLOOKUP(OS25,Calculations!$E$84:$G$99,2,FALSE)-22.5*OU25 -> 224.999775 | OW25: 1 | OX25: 1 | OY25: 0 | OZ25: 0 | PA25: 0 | PB25: 0 | PC25: 0 | PD25: 0 | PE25: 0 | PF25: 0 | PG25: 0 | PH25: 0 | PI25: 0.7508680576 | PJ25: 0.5953525662 | PK25: 0.2444578019 | PL25: 0.3920642096 | PM25: 0.486616684 | PN25: 0.1555154914 | PO25: 0.5064102557 | PP25: 0.3588038481 | PQ25: 0.2642513736 | PR25: 0.3508947643 | PS25: 0.2032883566 | PT25: 0.1087358822 | PU25: 0.1476064077 | PV25: 0.2421588821 | PW25: 0.09455247445 | PZ25: R | QA25: LR | QB25: R | QC25: RL | QD25: R | QE25: LR | QF25: O | QG25: LR | QH25: Y | QI25: =VLOOKUP(VLOOKUP(B25,$U$3:$W$4,3),'EMO and PHY YR'!$D$2:$K$57,8,FALSE) -> LR | QJ25: G | QK25: =VLOOKUP(SH25,'EMO and PHY YR'!$D$2:$K$57,8,FALSE) -> LR | QL25: G | QM25: O | QN25: O | QO25: Y | QP25: R | QQ25: R | QS25: 3 | QT25: 4 | QU25: 3 | QV25: 4 | QW25: 1 | QX25: 2 | QY25: 2 | QZ25: 3 | RA25: 4 | RB25: 1 | RC25: 3 | RD25: 3 | RF25: 2 | RG25: 2 | RH25: 5 | RI25: 3 | RJ25: 12 | RL25: 10:48:54 | RN25: 0 | RR25: 0 | RS25: =VLOOKUP(B25,'Emotional Data Set'!$B$4:$G$2740,5,TRUE) -> 8-3 | RT25: 2025-03-07T11:55:08.571 | RU25: 0.4647435891 | RV25: =VLOOKUP(B25+1/1440,'Emotional Data Set'!$B$4:$G$2740,6,TRUE) -> SSE | RW25: =VLOOKUP(B25,'Emotional Data Set'!$B$4:$P$2740,14,TRUE) -> SE | RX25: 0.3076922748 | RY25: 45647.22222 | RZ25: 2-5 | SA25: =VLOOKUP(RZ25,'EMO and PHY YR'!$D$2:$E$57,2,FALSE) -> WNW | SB25: =IF(B25>'Mind Data Set'!$BC$11,1,IF(B25<='Mind Data Set'!$BC$10,0,(B25-'Mind Data Set'!$BC$10)/'Mind Data Set'!$BD$10)) -> 0.8903388278 | SC25: =IF(B25>'Mind Data Set'!$BC$12,1,IF(B25<='Mind Data Set'!$BC$11,0,(B25-'Mind Data Set'!$BC$11)/'Mind Data Set'!$BD$11)) -> 0 | SD25: =IF(B25>'Mind Data Set'!$BC$13,1,IF(B25<='Mind Data Set'!$BC$12,0,(B25-'Mind Data Set'!$BC$12)/'Mind Data Set'!$BD$12)) -> 0 | SE25: =IF(B25>'Mind Data Set'!$BC$14,1,IF(B25<='Mind Data Set'!$BC$13,0,(B25-'Mind Data Set'!$BC$13)/'Mind Data Set'!$BD$13)) -> 0 | SF25: 0.2225847069 | SG25: =VLOOKUP(RZ25,'EMO and PHY YR'!$D$2:$K$57,8,FALSE) -> LR | SH25: =IF(SG25="LR",VLOOKUP(VLOOKUP(B25,'Mind Data Set'!$B$4:$C$99,2),Calculations!$M$51:$T$98,4,FALSE),VLOOKUP(VLOOKUP(B25,'Mind Data Set'!$B$4:$C$99,2),Calculations!$M$51:$T$98,7,FALSE)) -> 1-5 | SI25: =VLOOKUP(SH25,'EMO and PHY YR'!$D$2:$E$57,2,FALSE) -> NE | SJ25: 0.6840659332 | SK25: =VLOOKUP(SH25,'EMO and PHY YR'!$D$2:$K$57,8,FALSE) -> LR | SM25: 0 | SO25: 1 | SP25: 1 | SQ25: 0 | SR25: 0 | SS25: 0 | ST25: 0 | SW25: 0 | SX25: 0 | SY25: 0 | SZ25: 0 | TA25: 1 | TB25: 0 | TF25: 1 | TG25: 2 | TH25: 0 | TI25: 0 | TJ25: 0 | TK25: 0 | TL25: 0 | TM25: 0 | TN25: 0 | TO25: 0 | TP25: 1 | TQ25: 0 | TR25: 2 | TS25: 1 | TT25: 3
B26: =(B25+B27)/2 -> 2025-03-10T10:52:34.486 | F26: 223.9453125 | G26: CO3 | H26: R | I26: 219.374 | J26: O | K26: R | L26: 147.0342548 | M26: C | N26: R | O26: 127.6442315 | P26: O | Q26: O | R26: 287.4916831 | S26: OI | T26: Y | U26: 29.60078985 | V26: O | W26: G | DW26: 3 | DX26: 10 | DY26: 3 | HA26: =VLOOKUP(B26,'Physical Data Set'!B:Q,9) -> 5-5 | HB26: =VLOOKUP(HA26,'EMO and PHY YR'!$D$2:$K$57,8,FALSE) -> LR | HC26: =IF(HB26="LR",(VLOOKUP(HE26,Calculations!$N$51:$P$98,3,TRUE)),(VLOOKUP(HE26,Calculations!$N$51:$S$98,6,TRUE))) -> 8-6 | HD26: =VLOOKUP(HC26,'EMO and PHY YR'!$D$2:$K$57,8,FALSE) -> RL | HE26: 0.0468751 | HF26: 1 | HG26: 2025-03-07T11:55:08.571 | HH26: 0.4651442301 | HI26: =VLOOKUP(B26,'Emotional Data Set'!$B$4:$R$2740,9,TRUE) -> LR | HJ26: =VLOOKUP(B26,'Emotional Data Set'!$B$4:$P$2740,13,TRUE) -> 3-5 | HK26: =VLOOKUP(B26,'Emotional Data Set'!$B$4:$R$2740,17,TRUE) -> LR | HL26: 0.326923044 | HM26: =IF(AND(SK26="RL",VLOOKUP(SH26,'Macro Phase'!$B$3:$N$58,13,FALSE)=0),VLOOKUP(SH26,'Macro Phase'!$B$3:$N$58,13,FALSE)-(30*SJ26)/24/60+1,IF(SK26="LR",VLOOKUP(SH26,'Macro Phase'!$B$3:$N$58,12,FALSE)+(30*SJ26)/24/60,VLOOKUP(SH26,'Macro Phase'!$B$3:$N$58,13,FALSE)-(30*SJ26)/24/60)) -> 0.4725918612 | HN26: =IF(HB26="LR",(VLOOKUP(HA26,'Macro Phase'!$B$3:$N$58,12,FALSE)+(30*HE26)/24/60),IF((VLOOKUP(HA26,'Macro Phase'!$B$3:$N$58,13,FALSE))-(30*HE26)/24/60<0,1+(VLOOKUP(HA26,'Macro Phase'!$B$3:$N$58,13,FALSE))-(30*HE26)/24/60,(VLOOKUP(HA26,'Macro Phase'!$B$3:$N$58,13,FALSE))-(30*HE26)/24/60)) -> 0.9593098979 | HO26: D | HP26: G | HQ26: =IF(AND(HD26="RL",VLOOKUP(HC26,'Macro Phase'!$B$3:$N$58,13,FALSE)=0),VLOOKUP(HC26,'Macro Phase'!$B$3:$N$58,13,FALSE)-$HA$12*HF26+1,IF(HD26="LR",VLOOKUP(HC26,'Macro Phase'!$B$3:$N$58,12,FALSE)+$HA$12*HF26,VLOOKUP(HC26,'Macro Phase'!$B$3:$N$58,13,FALSE)-$HA$12*HF26)) -> 04:52:30 | HR26: DC | HS26: O | HT26: =IF(HI26="LR",(VLOOKUP(RS26,'Macro Phase'!$B$3:$N$58,12,FALSE)+(30*RU26)/24/60),IF(RS26="2-8",(VLOOKUP(BJ49,'Macro Phase'!$B$3:$N$58,13,FALSE))-(30*RU26)/24/60+1,(VLOOKUP(RS26,'Macro Phase'!$B$3:$N$58,13,FALSE))-(30*RU26)/24/60)) -> 0.3638571715 | HU26: CO2 | HV26: O | HW26: =IF(AND(HK26="RL",VLOOKUP(HJ26,'Macro Phase'!$B$3:$N$58,13,FALSE)=0),(VLOOKUP(HJ26,'Macro Phase'!$B$3:$N$58,13,FALSE)-((30*HL26)/24/60))+1,IF(HK26="LR",VLOOKUP(HJ26,'Macro Phase'!$B$3:$N$58,12,FALSE)+((30*HL26)/24/60),VLOOKUP(HJ26,'Macro Phase'!$B$3:$N$58,13,FALSE)-((30*HL26)/24/60))) -> 0.7151442301 | HX26: D | HY26: Y | HZ26: =IF(SG26="LR",(VLOOKUP(RZ26,'Macro Phase'!$B$3:$N$58,12,FALSE)+(30*SF26)/24/60),IF(CN49="2-8",(VLOOKUP(RZ26,'Macro Phase'!$B$3:$N$58,13,FALSE))-(30*SF26)/24/60+1,VLOOKUP(RZ26,'Macro Phase'!$B$3:$N$58,13,FALSE))-(30*SF26)/24/60) -> 0.5671373304 | IA26: OI | IB26: R | IC26: =IF(AND(SK26="RL",VLOOKUP(SH26,'Macro Phase'!$B$3:$N$58,13,FALSE)=0),VLOOKUP(SH26,'Macro Phase'!$B$3:$N$58,13,FALSE)-(30*SJ26)/24/60+1,IF(SK26="LR",VLOOKUP(SH26,'Macro Phase'!$B$3:$N$58,12,FALSE)+(30*SJ26)/24/60,VLOOKUP(SH26,'Macro Phase'!$B$3:$N$58,13,FALSE)-(30*SJ26)/24/60)) -> 0.4725918612 | ID26: D | IE26: R | JZ26: 0 | KT26: 0 | LN26: 0 | MH26: 0 | NB26: 0 | NV26: 0 | OP26: 0 | OQ26: =VLOOKUP(B26,'Physical Data Set'!$B$4:$K$35043,10,TRUE) -> SW | OR26: 0.046875 | OS26: =VLOOKUP(B26+1/1440,'Physical Data Set'!$B$4:$S$35043,18,TRUE) -> SW | OT26: 0.5500558034 | OU26: 0.25 | OV26: =VLOOKUP(OS26,Calculations!$E$84:$G$99,2,FALSE)-22.5*OU26 -> 219.375 | OW26: 0 | OX26: 0 | OY26: 0 | OZ26: 0 | PA26: 0 | PB26: 0 | PC26: 0 | PD26: 0 | PE26: 0 | PF26: 0 | PG26: 0 | PH26: 0 | PZ26: R | QA26: LR | QB26: R | QC26: RL | QD26: R | QE26: LR | QF26: O | QG26: LR | QH26: Y | QI26: =VLOOKUP(VLOOKUP(B26,$U$3:$W$4,3),'EMO and PHY YR'!$D$2:$K$57,8,FALSE) -> LR | QJ26: G | QK26: =VLOOKUP(SH26,'EMO and PHY YR'!$D$2:$K$57,8,FALSE) -> LR | QL26: G | QM26: O | QN26: O | QO26: Y | QP26: R | QQ26: R | QS26: 3 | QT26: 4 | QU26: 3 | QV26: 4 | QW26: 1 | QX26: 2 | QY26: 2 | QZ26: 3 | RA26: 4 | RB26: 1 | RC26: 3 | RD26: 3 | RF26: 2 | RG26: 2 | RH26: 5 | RI26: 3 | RJ26: 12 | RL26: 10:52:34 | RN26: 0 | RR26: 0 | RS26: =VLOOKUP(B26,'Emotional Data Set'!$B$4:$G$2740,5,TRUE) -> 8-3 | RT26: 2025-03-07T11:55:08.571 | RU26: 0.4651442301 | RV26: =VLOOKUP(B26+1/1440,'Emotional Data Set'!$B$4:$G$2740,6,TRUE) -> SSE | RW26: =VLOOKUP(B26,'Emotional Data Set'!$B$4:$P$2740,14,TRUE) -> SE | RX26: 0.326923044 | RY26: 45647.22222 | RZ26: 2-5 | SA26: =VLOOKUP(RZ26,'EMO and PHY YR'!$D$2:$E$57,2,FALSE) -> WNW | SB26: =IF(B26>'Mind Data Set'!$BC$11,1,IF(B26<='Mind Data Set'!$BC$10,0,(B26-'Mind Data Set'!$BC$10)/'Mind Data Set'!$BD$10)) -> 0.890367445 | SC26: =IF(B26>'Mind Data Set'!$BC$12,1,IF(B26<='Mind Data Set'!$BC$11,0,(B26-'Mind Data Set'!$BC$11)/'Mind Data Set'!$BD$11)) -> 0 | SD26: =IF(B26>'Mind Data Set'!$BC$13,1,IF(B26<='Mind Data Set'!$BC$12,0,(B26-'Mind Data Set'!$BC$12)/'Mind Data Set'!$BD$12)) -> 0 | SE26: =IF(B26>'Mind Data Set'!$BC$14,1,IF(B26<='Mind Data Set'!$BC$13,0,(B26-'Mind Data Set'!$BC$13)/'Mind Data Set'!$BD$13)) -> 0 | SF26: 0.2225918612 | SG26: =VLOOKUP(RZ26,'EMO and PHY YR'!$D$2:$K$57,8,FALSE) -> LR | SH26: =IF(SG26="LR",VLOOKUP(VLOOKUP(B26,'Mind Data Set'!$B$4:$C$99,2),Calculations!$M$51:$T$98,4,FALSE),VLOOKUP(VLOOKUP(B26,'Mind Data Set'!$B$4:$C$99,2),Calculations!$M$51:$T$98,7,FALSE)) -> 1-5 | SI26: =VLOOKUP(SH26,'EMO and PHY YR'!$D$2:$E$57,2,FALSE) -> NE | SJ26: 0.6844093398 | SK26: =VLOOKUP(SH26,'EMO and PHY YR'!$D$2:$K$57,8,FALSE) -> LR | SM26: 0 | SO26: 1 | SP26: 0 | SQ26: 0 | SR26: 0 | SS26: 0 | ST26: 0 | SW26: 0 | SX26: 0 | SY26: 0 | SZ26: 0 | TA26: 1 | TB26: 0 | TF26: 1 | TG26: 0 | TH26: 0 | TI26: 0 | TJ26: 0 | TK26: 0 | TL26: 0 | TM26: 0 | TN26: 0 | TO26: 0 | TP26: 1 | TQ26: 0 | TR26: 2 | TS26: 0 | TT26: 2
B27: =(B25+B29)/2 -> 2025-03-10T10:56:14.508 | C27: 28.125 | D27: O | E27: G | F27: 223.828125 | G27: CO3 | H27: R | I27: 213.749 | J27: O | K27: R | L27: 147.0252404 | M27: C | N27: R | O27: 127.2115392 | P27: O | Q27: O | R27: 287.4915222 | S27: OI | T27: Y | U27: 29.59306321 | V27: O | W27: G | CL27: 0 | DF27: =COUNTIF(CN27:DD27,">0")/2 -> 0 | DW27: 3 | DX27: 11 | DY27: 3 | DZ27: 1 | ET27: 0 | FN27: 0 | GH27: 0 | HA27: =VLOOKUP(B27,'Physical Data Set'!B:Q,9) -> 5-5 | HB27: =VLOOKUP(HA27,'EMO and PHY YR'!$D$2:$K$57,8,FALSE) -> LR | HC27: =IF(HB27="LR",(VLOOKUP(HE27,Calculations!$N$51:$P$98,3,TRUE)),(VLOOKUP(HE27,Calculations!$N$51:$S$98,6,TRUE))) -> 8-6 | HD27: =VLOOKUP(HC27,'EMO and PHY YR'!$D$2:$K$57,8,FALSE) -> RL | HE27: 0.05208343333 | HF27: 2 | HG27: 2025-03-07T11:55:08.571 | HH27: 0.4655448711 | HI27: =VLOOKUP(B27,'Emotional Data Set'!$B$4:$R$2740,9,TRUE) -> LR | HJ27: =VLOOKUP(B27,'Emotional Data Set'!$B$4:$P$2740,13,TRUE) -> 3-5 | HK27: =VLOOKUP(B27,'Emotional Data Set'!$B$4:$R$2740,17,TRUE) -> LR | HL27: 0.3461538133 | HM27: =IF(AND(SK27="RL",VLOOKUP(SH27,'Macro Phase'!$B$3:$N$58,13,FALSE)=0),VLOOKUP(SH27,'Macro Phase'!$B$3:$N$58,13,FALSE)-(30*SJ27)/24/60+1,IF(SK27="LR",VLOOKUP(SH27,'Macro Phase'!$B$3:$N$58,12,FALSE)+(30*SJ27)/24/60,VLOOKUP(SH27,'Macro Phase'!$B$3:$N$58,13,FALSE)-(30*SJ27)/24/60)) -> 0.4725990155 | HN27: =IF(HB27="LR",(VLOOKUP(HA27,'Macro Phase'!$B$3:$N$58,12,FALSE)+(30*HE27)/24/60),IF((VLOOKUP(HA27,'Macro Phase'!$B$3:$N$58,13,FALSE))-(30*HE27)/24/60<0,1+(VLOOKUP(HA27,'Macro Phase'!$B$3:$N$58,13,FALSE))-(30*HE27)/24/60,(VLOOKUP(HA27,'Macro Phase'!$B$3:$N$58,13,FALSE))-(30*HE27)/24/60)) -> 0.9594184049 | HO27: D | HP27: G | HQ27: =IF(AND(HD27="RL",VLOOKUP(HC27,'Macro Phase'!$B$3:$N$58,13,FALSE)=0),VLOOKUP(HC27,'Macro Phase'!$B$3:$N$58,13,FALSE)-$HA$12*HF27+1,IF(HD27="LR",VLOOKUP(HC27,'Macro Phase'!$B$3:$N$58,12,FALSE)+$HA$12*HF27,VLOOKUP(HC27,'Macro Phase'!$B$3:$N$58,13,FALSE)-$HA$12*HF27)) -> 04:45:00 | HR27: DC | HS27: O | HT27: =IF(HI27="LR",(VLOOKUP(RS27,'Macro Phase'!$B$3:$N$58,12,FALSE)+(30*RU27)/24/60),IF(RS27="2-8",(VLOOKUP(BJ50,'Macro Phase'!$B$3:$N$58,13,FALSE))-(30*RU27)/24/60+1,(VLOOKUP(RS27,'Macro Phase'!$B$3:$N$58,13,FALSE))-(30*RU27)/24/60)) -> 0.3638655181 | HU27: CO2 | HV27: O | HW27: =IF(AND(HK27="RL",VLOOKUP(HJ27,'Macro Phase'!$B$3:$N$58,13,FALSE)=0),(VLOOKUP(HJ27,'Macro Phase'!$B$3:$N$58,13,FALSE)-((30*HL27)/24/60))+1,IF(HK27="LR",VLOOKUP(HJ27,'Macro Phase'!$B$3:$N$58,12,FALSE)+((30*HL27)/24/60),VLOOKUP(HJ27,'Macro Phase'!$B$3:$N$58,13,FALSE)-((30*HL27)/24/60))) -> 0.7155448711 | HX27: D | HY27: Y | HZ27: =IF(SG27="LR",(VLOOKUP(RZ27,'Macro Phase'!$B$3:$N$58,12,FALSE)+(30*SF27)/24/60),IF(CN50="2-8",(VLOOKUP(RZ27,'Macro Phase'!$B$3:$N$58,13,FALSE))-(30*SF27)/24/60+1,VLOOKUP(RZ27,'Macro Phase'!$B$3:$N$58,13,FALSE))-(30*SF27)/24/60) -> 0.5671374795 | IA27: OI | IB27: R | IC27: =IF(AND(SK27="RL",VLOOKUP(SH27,'Macro Phase'!$B$3:$N$58,13,FALSE)=0),VLOOKUP(SH27,'Macro Phase'!$B$3:$N$58,13,FALSE)-(30*SJ27)/24/60+1,IF(SK27="LR",VLOOKUP(SH27,'Macro Phase'!$B$3:$N$58,12,FALSE)+(30*SJ27)/24/60,VLOOKUP(SH27,'Macro Phase'!$B$3:$N$58,13,FALSE)-(30*SJ27)/24/60)) -> 0.4725990155 | ID27: D | IE27: R | JZ27: 0 | KT27: 0 | LN27: 0 | MH27: 0 | NB27: 0 | NV27: 0 | OP27: 0 | OQ27: =VLOOKUP(B27,'Physical Data Set'!$B$4:$K$35043,10,TRUE) -> SW | OR27: 0.05208333333 | OS27: =VLOOKUP(B27+1/1440,'Physical Data Set'!$B$4:$S$35043,18,TRUE) -> SW | OT27: 0.611173115 | OU27: 0.5 | OV27: =VLOOKUP(OS27,Calculations!$E$84:$G$99,2,FALSE)-22.5*OU27 -> 213.75 | OW27: 0 | OX27: 0 | OY27: 0 | OZ27: 0 | PA27: 0 | PB27: 0 | PC27: 0 | PD27: 0 | PE27: 0 | PF27: 0 | PG27: 0 | PH27: 0 | PZ27: R | QA27: LR | QB27: R | QC27: RL | QD27: R | QE27: LR | QF27: O | QG27: LR | QH27: Y | QI27: =VLOOKUP(VLOOKUP(B27,$U$3:$W$4,3),'EMO and PHY YR'!$D$2:$K$57,8,FALSE) -> LR | QJ27: G | QK27: =VLOOKUP(SH27,'EMO and PHY YR'!$D$2:$K$57,8,FALSE) -> LR | QL27: G | QM27: O | QN27: O | QO27: Y | QP27: R | QQ27: R | QS27: 3 | QT27: 4 | QU27: 3 | QV27: 4 | QW27: 1 | QX27: 2 | QY27: 2 | QZ27: 3 | RA27: 4 | RB27: 1 | RC27: 3 | RD27: 3 | RF27: 2 | RG27: 2 | RH27: 5 | RI27: 3 | RJ27: 12 | RL27: 10:56:15 | RN27: 0 | RR27: 0 | RS27: =VLOOKUP(B27,'Emotional Data Set'!$B$4:$G$2740,5,TRUE) -> 8-3 | RT27: 2025-03-07T11:55:08.571 | RU27: 0.4655448711 | RV27: =VLOOKUP(B27+1/1440,'Emotional Data Set'!$B$4:$G$2740,6,TRUE) -> SSE | RW27: =VLOOKUP(B27,'Emotional Data Set'!$B$4:$P$2740,14,TRUE) -> SE | RX27: 0.3461538133 | RY27: 45647.22222 | RZ27: 2-5 | SA27: =VLOOKUP(RZ27,'EMO and PHY YR'!$D$2:$E$57,2,FALSE) -> WNW | SB27: =IF(B27>'Mind Data Set'!$BC$11,1,IF(B27<='Mind Data Set'!$BC$10,0,(B27-'Mind Data Set'!$BC$10)/'Mind Data Set'!$BD$10)) -> 0.8903960622 | SC27: =IF(B27>'Mind Data Set'!$BC$12,1,IF(B27<='Mind Data Set'!$BC$11,0,(B27-'Mind Data Set'!$BC$11)/'Mind Data Set'!$BD$11)) -> 0 | SD27: =IF(B27>'Mind Data Set'!$BC$13,1,IF(B27<='Mind Data Set'!$BC$12,0,(B27-'Mind Data Set'!$BC$12)/'Mind Data Set'!$BD$12)) -> 0 | SE27: =IF(B27>'Mind Data Set'!$BC$14,1,IF(B27<='Mind Data Set'!$BC$13,0,(B27-'Mind Data Set'!$BC$13)/'Mind Data Set'!$BD$13)) -> 0 | SF27: 0.2225990155 | SG27: =VLOOKUP(RZ27,'EMO and PHY YR'!$D$2:$K$57,8,FALSE) -> LR | SH27: =IF(SG27="LR",VLOOKUP(VLOOKUP(B27,'Mind Data Set'!$B$4:$C$99,2),Calculations!$M$51:$T$98,4,FALSE),VLOOKUP(VLOOKUP(B27,'Mind Data Set'!$B$4:$C$99,2),Calculations!$M$51:$T$98,7,FALSE)) -> 1-5 | SI27: =VLOOKUP(SH27,'EMO and PHY YR'!$D$2:$E$57,2,FALSE) -> NE | SJ27: 0.6847527464 | SK27: =VLOOKUP(SH27,'EMO and PHY YR'!$D$2:$K$57,8,FALSE) -> LR | SM27: 0 | SO27: 1 | SP27: 0 | SQ27: 0 | SR27: 0 | SS27: 0 | ST27: 0 | SW27: 0 | SX27: 0 | SY27: 0 | SZ27: 0 | TA27: 1 | TB27: 0 | TF27: 1 | TG27: 0 | TH27: 0 | TI27: 0 | TJ27: 0 | TK27: 0 | TL27: 0 | TM27: 0 | TN27: 0 | TO27: 0 | TP27: 1 | TQ27: 0 | TR27: 2 | TS27: 0 | TT27: 2
B28: =(B27+B29)/2 -> 2025-03-10T10:59:54.531 | F28: 223.7109375 | G28: CO3 | H28: R | I28: 208.124 | J28: OI | K28: =VLOOKUP(I28,$C$17:$E$143,3,TRUE) -> R | L28: 147.016226 | M28: C | N28: R | O28: 126.7788469 | P28: O | Q28: O | R28: 287.4913612 | S28: OI | T28: Y | U28: 29.58533656 | V28: O | W28: G | DW28: 3 | DX28: 12 | DY28: 3 | HA28: =VLOOKUP(B28,'Physical Data Set'!B:Q,9) -> 5-5 | HB28: =VLOOKUP(HA28,'EMO and PHY YR'!$D$2:$K$57,8,FALSE) -> LR | HC28: =IF(HB28="LR",(VLOOKUP(HE28,Calculations!$N$51:$P$98,3,TRUE)),(VLOOKUP(HE28,Calculations!$N$51:$S$98,6,TRUE))) -> 8-6 | HD28: =VLOOKUP(HC28,'EMO and PHY YR'!$D$2:$K$57,8,FALSE) -> RL | HE28: 0.05729176667 | HF28: 3 | HG28: 2025-03-07T11:55:08.571 | HH28: 0.4659455121 | HI28: =VLOOKUP(B28,'Emotional Data Set'!$B$4:$R$2740,9,TRUE) -> LR | HJ28: =VLOOKUP(B28,'Emotional Data Set'!$B$4:$P$2740,13,TRUE) -> 3-5 | HK28: =VLOOKUP(B28,'Emotional Data Set'!$B$4:$R$2740,17,TRUE) -> LR | HL28: 0.3653845825 | HM28: =IF(AND(SK28="RL",VLOOKUP(SH28,'Macro Phase'!$B$3:$N$58,13,FALSE)=0),VLOOKUP(SH28,'Macro Phase'!$B$3:$N$58,13,FALSE)-(30*SJ28)/24/60+1,IF(SK28="LR",VLOOKUP(SH28,'Macro Phase'!$B$3:$N$58,12,FALSE)+(30*SJ28)/24/60,VLOOKUP(SH28,'Macro Phase'!$B$3:$N$58,13,FALSE)-(30*SJ28)/24/60)) -> 0.4726061699 | HN28: =IF(HB28="LR",(VLOOKUP(HA28,'Macro Phase'!$B$3:$N$58,12,FALSE)+(30*HE28)/24/60),IF((VLOOKUP(HA28,'Macro Phase'!$B$3:$N$58,13,FALSE))-(30*HE28)/24/60<0,1+(VLOOKUP(HA28,'Macro Phase'!$B$3:$N$58,13,FALSE))-(30*HE28)/24/60,(VLOOKUP(HA28,'Macro Phase'!$B$3:$N$58,13,FALSE))-(30*HE28)/24/60)) -> 0.9595269118 | HO28: D | HP28: G | HQ28: =IF(AND(HD28="RL",VLOOKUP(HC28,'Macro Phase'!$B$3:$N$58,13,FALSE)=0),VLOOKUP(HC28,'Macro Phase'!$B$3:$N$58,13,FALSE)-$HA$12*HF28+1,IF(HD28="LR",VLOOKUP(HC28,'Macro Phase'!$B$3:$N$58,12,FALSE)+$HA$12*HF28,VLOOKUP(HC28,'Macro Phase'!$B$3:$N$58,13,FALSE)-$HA$12*HF28)) -> 04:37:30 | HR28: DC | HS28: O | HT28: =IF(HI28="LR",(VLOOKUP(RS28,'Macro Phase'!$B$3:$N$58,12,FALSE)+(30*RU28)/24/60),IF(RS28="2-8",(VLOOKUP(BJ51,'Macro Phase'!$B$3:$N$58,13,FALSE))-(30*RU28)/24/60+1,(VLOOKUP(RS28,'Macro Phase'!$B$3:$N$58,13,FALSE))-(30*RU28)/24/60)) -> 0.3638738648 | HU28: CO2 | HV28: O | HW28: =IF(AND(HK28="RL",VLOOKUP(HJ28,'Macro Phase'!$B$3:$N$58,13,FALSE)=0),(VLOOKUP(HJ28,'Macro Phase'!$B$3:$N$58,13,FALSE)-((30*HL28)/24/60))+1,IF(HK28="LR",VLOOKUP(HJ28,'Macro Phase'!$B$3:$N$58,12,FALSE)+((30*HL28)/24/60),VLOOKUP(HJ28,'Macro Phase'!$B$3:$N$58,13,FALSE)-((30*HL28)/24/60))) -> 0.7159455121 | HX28: D | HY28: Y | HZ28: =IF(SG28="LR",(VLOOKUP(RZ28,'Macro Phase'!$B$3:$N$58,12,FALSE)+(30*SF28)/24/60),IF(CN51="2-8",(VLOOKUP(RZ28,'Macro Phase'!$B$3:$N$58,13,FALSE))-(30*SF28)/24/60+1,VLOOKUP(RZ28,'Macro Phase'!$B$3:$N$58,13,FALSE))-(30*SF28)/24/60) -> 0.5671376285 | IA28: OI | IB28: R | IC28: =IF(AND(SK28="RL",VLOOKUP(SH28,'Macro Phase'!$B$3:$N$58,13,FALSE)=0),VLOOKUP(SH28,'Macro Phase'!$B$3:$N$58,13,FALSE)-(30*SJ28)/24/60+1,IF(SK28="LR",VLOOKUP(SH28,'Macro Phase'!$B$3:$N$58,12,FALSE)+(30*SJ28)/24/60,VLOOKUP(SH28,'Macro Phase'!$B$3:$N$58,13,FALSE)-(30*SJ28)/24/60)) -> 0.4726061699 | ID28: D | IE28: R | JZ28: 0 | KT28: 0 | LN28: 0 | MH28: 0 | NB28: 0 | NV28: 0 | OP28: 0 | OQ28: =VLOOKUP(B28,'Physical Data Set'!$B$4:$K$35043,10,TRUE) -> SW | OR28: 0.05729166667 | OS28: =VLOOKUP(B28+1/1440,'Physical Data Set'!$B$4:$S$35043,18,TRUE) -> SW | OT28: 0.6722904266 | OU28: 0.75 | OV28: =VLOOKUP(OS28,Calculations!$E$84:$G$99,2,FALSE)-22.5*OU28 -> 208.125 | OW28: 0 | OX28: 0 | OY28: 0 | OZ28: 0 | PA28: 0 | PB28: 0 | PC28: 0 | PD28: 0 | PE28: 0 | PF28: 0 | PG28: 0 | PH28: 0 | PZ28: R | QA28: LR | QB28: R | QC28: RL | QD28: R | QE28: LR | QF28: O | QG28: LR | QH28: Y | QI28: =VLOOKUP(VLOOKUP(B28,$U$3:$W$4,3),'EMO and PHY YR'!$D$2:$K$57,8,FALSE) -> LR | QJ28: G | QK28: =VLOOKUP(SH28,'EMO and PHY YR'!$D$2:$K$57,8,FALSE) -> LR | QL28: G | QM28: O | QN28: O | QO28: Y | QP28: R | QQ28: R | QS28: 3 | QT28: 4 | QU28: 3 | QV28: 4 | QW28: 1 | QX28: 2 | QY28: 2 | QZ28: 3 | RA28: 4 | RB28: 1 | RC28: 3 | RD28: 3 | RF28: 2 | RG28: 2 | RH28: 5 | RI28: 3 | RJ28: 12 | RK28: -- | RL28: 10:59:55 | RN28: 0 | RR28: 0 | RS28: =VLOOKUP(B28,'Emotional Data Set'!$B$4:$G$2740,5,TRUE) -> 8-3 | RT28: 2025-03-07T11:55:08.571 | RU28: 0.4659455121 | RV28: =VLOOKUP(B28+1/1440,'Emotional Data Set'!$B$4:$G$2740,6,TRUE) -> SSE | RW28: =VLOOKUP(B28,'Emotional Data Set'!$B$4:$P$2740,14,TRUE) -> SE | RX28: 0.3653845825 | RY28: 45647.22222 | RZ28: 2-5 | SA28: =VLOOKUP(RZ28,'EMO and PHY YR'!$D$2:$E$57,2,FALSE) -> WNW | SB28: =IF(B28>'Mind Data Set'!$BC$11,1,IF(B28<='Mind Data Set'!$BC$10,0,(B28-'Mind Data Set'!$BC$10)/'Mind Data Set'!$BD$10)) -> 0.8904246794 | SC28: =IF(B28>'Mind Data Set'!$BC$12,1,IF(B28<='Mind Data Set'!$BC$11,0,(B28-'Mind Data Set'!$BC$11)/'Mind Data Set'!$BD$11)) -> 0 | SD28: =IF(B28>'Mind Data Set'!$BC$13,1,IF(B28<='Mind Data Set'!$BC$12,0,(B28-'Mind Data Set'!$BC$12)/'Mind Data Set'!$BD$12)) -> 0 | SE28: =IF(B28>'Mind Data Set'!$BC$14,1,IF(B28<='Mind Data Set'!$BC$13,0,(B28-'Mind Data Set'!$BC$13)/'Mind Data Set'!$BD$13)) -> 0 | SF28: 0.2226061699 | SG28: =VLOOKUP(RZ28,'EMO and PHY YR'!$D$2:$K$57,8,FALSE) -> LR | SH28: =IF(SG28="LR",VLOOKUP(VLOOKUP(B28,'Mind Data Set'!$B$4:$C$99,2),Calculations!$M$51:$T$98,4,FALSE),VLOOKUP(VLOOKUP(B28,'Mind Data Set'!$B$4:$C$99,2),Calculations!$M$51:$T$98,7,FALSE)) -> 1-5 | SI28: =VLOOKUP(SH28,'EMO and PHY YR'!$D$2:$E$57,2,FALSE) -> NE | SJ28: 0.685096153 | SK28: =VLOOKUP(SH28,'EMO and PHY YR'!$D$2:$K$57,8,FALSE) -> LR | SM28: 0 | SO28: 1 | SP28: 0 | SQ28: 0 | SR28: 0 | SS28: 0 | ST28: 0 | SW28: 0 | SX28: 1 | SY28: 0 | SZ28: 0 | TA28: 1 | TB28: 0 | TF28: 1 | TG28: 0 | TH28: 0 | TI28: 0 | TJ28: 0 | TK28: 0 | TL28: 0 | TM28: 2 | TN28: 0 | TO28: 0 | TP28: 1 | TQ28: 0 | TR28: 2 | TS28: 1 | TT28: 3
